Workbook

Sheet Introduction
C4: Joint Monitoring Programme for Water Supply, Sanitation and Hygiene
C6: Estimates on household water, sanitation and hygiene by wealth quintile and sub-national region in
C7: =+Water!B5 -> Paraguay
C9: Updated May 2021
C11: Follow the links below to find the following information:
C13: JMP Estimates
C14: WASH status and trends by wealth quintile (customized quintiles made without water and sanitation assets)
C15: Water
C16: Sanitation
C17: Hygiene
C19: Data inputs
C20: customized wealth quintiles and subnational data:
C21: =IF(INDIRECT(CONCATENATE("Water","!B105"))=0,"",INDIRECT(CONCATENATE("Water","!B105"))) -> WHS03
C22: =IF(INDIRECT(CONCATENATE("Water","!B106"))=0,"",INDIRECT(CONCATENATE("Water","!B106"))) -> EPH09
C23: =IF(INDIRECT(CONCATENATE("Water","!B107"))=0,"",INDIRECT(CONCATENATE("Water","!B107"))) -> EPH10
C24: =IF(INDIRECT(CONCATENATE("Water","!B108"))=0,"",INDIRECT(CONCATENATE("Water","!B108"))) -> EPH11
C25: =IF(INDIRECT(CONCATENATE("Water","!B109"))=0,"",INDIRECT(CONCATENATE("Water","!B109"))) -> EPH12
C26: =IF(INDIRECT(CONCATENATE("Water","!B110"))=0,"",INDIRECT(CONCATENATE("Water","!B110"))) -> EPH13
C27: =IF(INDIRECT(CONCATENATE("Water","!B111"))=0,"",INDIRECT(CONCATENATE("Water","!B111"))) -> MICS16
C28: =IF(INDIRECT(CONCATENATE("Water","!B112"))=0,"",INDIRECT(CONCATENATE("Water","!B112"))) -> 
C29: =IF(INDIRECT(CONCATENATE("Water","!B113"))=0,"",INDIRECT(CONCATENATE("Water","!B113"))) -> 
C30: =IF(INDIRECT(CONCATENATE("Water","!B114"))=0,"",INDIRECT(CONCATENATE("Water","!B114"))) -> 
C31: =IF(INDIRECT(CONCATENATE("Water","!B115"))=0,"",INDIRECT(CONCATENATE("Water","!B115"))) -> 
C32: =IF(INDIRECT(CONCATENATE("Water","!B116"))=0,"",INDIRECT(CONCATENATE("Water","!B116"))) -> 
L55: =+IF(ISNUMBER(M48), "", "Insufficient data to estimate safely managed sanitation services at national level") -> Insufficient data to estimate safely managed sanitation services at national level

Sheet Water
A1: BGD
B4: Summary of trends in use of drinking water by wealth quintile (%)
B5: =IF(ISERROR(INDIRECT(CONCATENATE($B105,"!A2"))),"",INDIRECT(CONCATENATE($B105,"!A2"))) -> Paraguay
B7: =B118 -> National use of drinking water sources, 2000–2020 | J7: =B218 -> Urban use of drinking water sources, 2000–2020 | R7: =B318 -> Rural use of drinking water sources, 2000–2020
B31: =IF(ISERROR(INDIRECT(CONCATENATE($B105,"!A2"))),"",INDIRECT(CONCATENATE($B105,"!A2"))) -> Paraguay | F31: Poorest | J31: Poor | N31: Middle | R31: Rich | V31: Richest
F32: Basic | G32: Limited | H32: Unimproved | I32: Surface water | J32: Basic | K32: Limited | L32: Unimproved | M32: Surface water | N32: Basic | O32: Limited | P32: Unimproved | Q32: Surface water | R32: Basic | S32: Limited | T32: Unimproved | U32: Surface water | V32: Basic | W32: Limited | X32: Unimproved | Y32: Surface water
B33: NATIONAL | D33: Estimate | E33: =C99 -> 2000 | F33: =E99 -> 36.34429869 | G33: =F99 -> 0.2414183757 | H33: 55.80132415 | I33: 7.612958789 | J33: =J99 -> 54.7901725 | K33: =K99 -> 0.09254430879 | L33: 42.30859931 | M33: 2.80868388 | N33: =O99 -> 77.20199116 | O33: =P99 -> 0 | P33: 21.78707635 | Q33: 1.010932487 | R33: =T99 -> 92.72540065 | S33: =U99 -> 0 | T33: 7.072928088 | U33: 0.2016712636 | V33: =Y99 -> 97.79590135 | W33: =Z99 -> 0.3319235403 | X33: 1.872175107 | Y33: 0
E34: =C100 -> 2020 | F34: =E100 -> 99.34012944 | G34: 0.6598705592 | H34: 0 | I34: 0 | J34: =J100 -> 99.83137805 | K34: 0.1686219527 | L34: 0 | M34: 0 | N34: =O100 -> 100 | O34: 0 | P34: 0 | Q34: 0 | R34: =T100 -> 100 | S34: 0 | T34: 0 | U34: 0 | V34: =Y100 -> 98.18932665 | W34: 0.3332588429 | X34: 1.477414506 | Y34: 0
B36: URBAN | D36: Estimate | E36: =C199 -> 2000 | F36: =E199 -> 72.90705129 | G36: =F199 -> 0.1173306138 | H36: 26.51709692 | I36: 0.4585211777 | J36: =J199 -> 89.33455563 | K36: =K199 -> 0 | L36: 10.66544437 | M36: 0 | N36: =O199 -> 93.81895935 | O36: =P199 -> 0 | P36: 6.181040651 | Q36: 0 | R36: =T199 -> 97.5850662 | S36: =U199 -> 0 | T36: 2.414933796 | U36: 0 | V36: =Y199 -> 98.80625509 | W36: =Z199 -> 0 | X36: 1.193744912 | Y36: 0
E37: =C200 -> 2020 | F37: =E200 -> 99.8393268 | G37: 0.1606732036 | H37: 0 | I37: 0 | J37: =J200 -> 100 | K37: 0 | L37: 0 | M37: 0 | N37: =O200 -> 99.99824335 | O37: 0 | P37: 0 | Q37: 0.001756652243 | R37: =T200 -> 99.29050615 | S37: 0 | T37: 0.7094938475 | U37: 0 | V37: =Y200 -> 98.54102642 | W37: 0 | X37: 1.458973576 | Y37: 0
B39: RURAL | D39: Estimate | E39: =C299 -> 2000 | F39: =E299 -> 32.20791805 | G39: =F299 -> 0.3159051995 | H39: 55.9439187 | I39: 11.53225805 | J39: =J299 -> 34.91105974 | K39: =K299 -> 0.1181680715 | L39: 60.28962476 | M39: 4.681147438 | N39: =O299 -> 44.39864799 | O39: =P299 -> 0.1084332091 | P39: 51.02421706 | Q39: 4.468701739 | R39: =T299 -> 62.33994391 | S39: =U299 -> 0.04819883867 | T39: 36.18090758 | U39: 1.430949674 | V39: =Y299 -> 84.22450174 | W39: =Z299 -> 0.1776764897 | X39: 14.40762654 | Y39: 1.190195236
E40: =C300 -> 2020 | F40: =E300 -> 92.9887291 | G40: 0.9120621512 | H40: 6.099208747 | I40: 0 | J40: =J300 -> 99.66265865 | K40: 0.3373413543 | L40: 0 | M40: 0 | N40: =O300 -> 99.75636864 | O40: 0.2436313641 | P40: 0 | Q40: 0 | R40: =T300 -> 99.92274359 | S40: 0.07725640891 | T40: 0 | U40: 0 | V40: =Y300 -> 99.78948827 | W40: 0.2105117349 | X40: 0 | Y40: 0
A97: NATIONAL | D97: Poorest | I97: Poor | N97: Middle | S97: Rich | X97: Richest
D98: Improved | E98: Basic | F98: Limited | G98: Unimproved | H98: Surface water | I98: Improved | J98: Basic | K98: Limited | L98: Unimproved | M98: Surface water | N98: Improved | O98: Basic | P98: Limited | Q98: Unimproved | R98: Surface water | S98: Improved | T98: Basic | U98: Limited | V98: Unimproved | W98: Surface water | X98: Improved | Y98: Basic | Z98: Limited | AA98: Unimproved | AB98: Surface water
A99: Forecast period: | C99: 2000 | D99: =IF((D101+H101)>100,D101*100/(D101+H101),D101) -> 36.58571706 | E99: =D99*AVERAGEIF(E105:E116,">0")/100 -> 36.34429869 | F99: =D99*(100-AVERAGEIF(E105:E116,">0"))/100 -> 0.2414183757 | G99: =100-(E99+F99+H99) -> 55.80132415 | H99: =IF((D101+H101)>100,H101*100/(D101+H101),H101) -> 7.612958789 | I99: =IF((I101+M101)>100,I101*100/(I101+M101),I101) -> 54.88271681 | J99: =I99*AVERAGEIF(J105:J116,">0")/100 -> 54.7901725 | K99: =I99*(100-AVERAGEIF(J105:J116,">0"))/100 -> 0.09254430879 | L99: =100-(J99+K99+M99) -> 42.30859931 | M99: =IF((I101+M101)>100,M101*100/(I101+M101),M101) -> 2.80868388 | N99: =IF((N101+R101)>100,N101*100/(N101+R101),N101) -> 77.20199116 | O99: =N99*AVERAGEIF(O105:O116,">0")/100 -> 77.20199116 | P99: =N99*(100-AVERAGEIF(O105:O116,">0"))/100 -> 0 | Q99: =100-(O99+P99+R99) -> 21.78707635 | R99: =IF((N101+R101)>100,R101*100/(N101+R101),R101) -> 1.010932487 | S99: =IF((S101+W101)>100,S101*100/(S101+W101),S101) -> 92.72540065 | T99: =S99*AVERAGEIF(T105:T116,">0")/100 -> 92.72540065 | U99: =S99*(100-AVERAGEIF(T105:T116,">0"))/100 -> 0 | V99: =100-(T99+U99+W99) -> 7.072928088 | W99: =IF((S101+W101)>100,W101*100/(S101+W101),W101) -> 0.2016712636 | X99: =IF((X101+AB101)>100,X101*100/(X101+AB101),X101) -> 98.12782489 | Y99: =X99*AVERAGEIF(Y105:Y116,">0")/100 -> 97.79590135 | Z99: =X99*(100-AVERAGEIF(Y105:Y116,">0"))/100 -> 0.3319235403 | AA99: =100-(Y99+Z99+AB99) -> 1.872175107 | AB99: =IF((X101+AB101)>100,AB101*100/(X101+AB101),AB101) -> 0
C100: 2020 | D100: =IF((D102+H102)>100,D102*100/(D102+H102),D102) -> 100 | E100: =D100*AVERAGEIF(E105:E116,">0")/100 -> 99.34012944 | F100: =D100*(100-AVERAGEIF(E105:E116,">0"))/100 -> 0.6598705592 | G100: =100-(E100+F100+H100) -> 0 | H100: =IF((D102+H102)>100,H102*100/(D102+H102),H102) -> 0 | I100: =IF((I102+M102)>100,I102*100/(I102+M102),I102) -> 100 | J100: =I100*AVERAGEIF(J105:J116,">0")/100 -> 99.83137805 | K100: =I100*(100-AVERAGEIF(J105:J116,">0"))/100 -> 0.1686219527 | L100: =100-(J100+K100+M100) -> 0 | M100: =IF((I102+M102)>100,M102*100/(I102+M102),M102) -> 0 | N100: =IF((N102+R102)>100,N102*100/(N102+R102),N102) -> 100 | O100: =N100*AVERAGEIF(O105:O116,">0")/100 -> 100 | P100: =N100*(100-AVERAGEIF(O105:O116,">0"))/100 -> 0 | Q100: =100-(O100+P100+R100) -> 0 | R100: =IF((N102+R102)>100,R102*100/(N102+R102),R102) -> 0 | S100: =IF((S102+W102)>100,S102*100/(S102+W102),S102) -> 100 | T100: =S100*AVERAGEIF(T105:T116,">0")/100 -> 100 | U100: =S100*(100-AVERAGEIF(T105:T116,">0"))/100 -> 0 | V100: =100-(T100+U100+W100) -> 0 | W100: =IF((S102+W102)>100,W102*100/(S102+W102),W102) -> 0 | X100: =IF((X102+AB102)>100,X102*100/(X102+AB102),X102) -> 98.52258549 | Y100: =X100*AVERAGEIF(Y105:Y116,">0")/100 -> 98.18932665 | Z100: =X100*(100-AVERAGEIF(Y105:Y116,">0"))/100 -> 0.3332588429 | AA100: =100-(Y100+Z100+AB100) -> 1.477414506 | AB100: =IF((X102+AB102)>100,AB102*100/(X102+AB102),AB102) -> 0
A101: Regression period: | C101: =MinRegYear(C99,C105:C116) -> 2001 | D101: =IF(MAX(C105:C116)-MIN(C105:C116)<5,AVERAGEIF(C105:C116,">0",D105:D116), IF(FORECAST($C101,D$105:D$116,$C$105:$C$116)<0,0, IF(FORECAST($C101,D$105:D$116,$C$105:$C$116)>100,100, FORECAST($C101,D$105:D$116,$C$105:$C$116)))) -> 36.58571706 | H101: =IF(MAX(C105:C116)-MIN(C105:C116)<5,AVERAGEIF(C105:C116,">0",H105:H116), IF(FORECAST($C101,H$105:H$116,$C$105:$C$116)<0,0, IF(FORECAST($C101,H$105:H$116,$C$105:$C$116)>100,100, FORECAST($C101,H$105:H$116,$C$105:$C$116)))) -> 7.612958789 | I101: =IF(MAX(C105:C116)-MIN(C105:C116)<5,AVERAGEIF(C105:C116,">0",I105:I116), IF(FORECAST($C101,I$105:I$116,$C$105:$C$116)<0,0, IF(FORECAST($C101,I$105:I$116,$C$105:$C$116)>100,100, FORECAST($C101,I$105:I$116,$C$105:$C$116)))) -> 54.88271681 | M101: =IF(MAX(C105:C116)-MIN(C105:C116)<5,AVERAGEIF(C105:C116,">0",M105:M116), IF(FORECAST($C101,M$105:M$116,$C$105:$C$116)<0,0, IF(FORECAST($C101,M$105:M$116,$C$105:$C$116)>100,100, FORECAST($C101,M$105:M$116,$C$105:$C$116)))) -> 2.80868388 | N101: =IF(MAX(C105:C116)-MIN(C105:C116)<5,AVERAGEIF(C105:C116,">0",N105:N116), IF(FORECAST($C101,N$105:N$116,$C$105:$C$116)<0,0, IF(FORECAST($C101,N$105:N$116,$C$105:$C$116)>100,100, FORECAST($C101,N$105:N$116,$C$105:$C$116)))) -> 77.20199116 | R101: =IF(MAX(C105:C116)-MIN(C105:C116)<5,AVERAGEIF(C105:C116,">0",R105:R116), IF(FORECAST($C101,R$105:R$116,$C$105:$C$116)<0,0, IF(FORECAST($C101,R$105:R$116,$C$105:$C$116)>100,100, FORECAST($C101,R$105:R$116,$C$105:$C$116)))) -> 1.010932487 | S101: =IF(MAX(C105:C116)-MIN(C105:C116)<5,AVERAGEIF(C105:C116,">0",S105:S116), IF(FORECAST($C101,S$105:S$116,$C$105:$C$116)<0,0, IF(FORECAST($C101,S$105:S$116,$C$105:$C$116)>100,100, FORECAST($C101,S$105:S$116,$C$105:$C$116)))) -> 92.72540065 | W101: =IF(MAX(C105:C116)-MIN(C105:C116)<5,AVERAGEIF(C105:C116,">0",W105:W116), IF(FORECAST($C101,W$105:W$116,$C$105:$C$116)<0,0, IF(FORECAST($C101,W$105:W$116,$C$105:$C$116)>100,100, FORECAST($C101,W$105:W$116,$C$105:$C$116)))) -> 0.2016712636 | X101: =IF(MAX(C105:C116)-MIN(C105:C116)<5,AVERAGEIF(C105:C116,">0",X105:X116), IF(FORECAST($C101,X$105:X$116,$C$105:$C$116)<0,0, IF(FORECAST($C101,X$105:X$116,$C$105:$C$116)>100,100, FORECAST($C101,X$105:X$116,$C$105:$C$116)))) -> 98.12782489 | AB101: =IF(MAX(C105:C116)-MIN(C105:C116)<5,AVERAGEIF(C105:C116,">0",AB105:AB116), IF(FORECAST($C101,AB$105:AB$116,$C$105:$C$116)<0,0, IF(FORECAST($C101,AB$105:AB$116,$C$105:$C$116)>100,100, FORECAST($C101,AB$105:AB$116,$C$105:$C$116)))) -> 0
C102: =MaxRegYear(C100,C105:C116) -> 2018 | D102: =IF(MAX(C105:C116)-MIN(C105:C116)<5,AVERAGEIF(C105:C116,">0",D105:D116), IF(FORECAST($C102,D$105:D$116,$C$105:$C$116)<0,0, IF(FORECAST($C102,D$105:D$116,$C$105:$C$116)>100,100, FORECAST($C102,D$105:D$116,$C$105:$C$116)))) -> 100 | H102: =IF(MAX(C105:C116)-MIN(C105:C116)<5,AVERAGEIF(C105:C116,">0",H105:H116), IF(FORECAST($C102,H$105:H$116,$C$105:$C$116)<0,0, IF(FORECAST($C102,H$105:H$116,$C$105:$C$116)>100,100, FORECAST($C102,H$105:H$116,$C$105:$C$116)))) -> 0 | I102: =IF(MAX(C105:C116)-MIN(C105:C116)<5,AVERAGEIF(C105:C116,">0",I105:I116), IF(FORECAST($C102,I$105:I$116,$C$105:$C$116)<0,0, IF(FORECAST($C102,I$105:I$116,$C$105:$C$116)>100,100, FORECAST($C102,I$105:I$116,$C$105:$C$116)))) -> 100 | M102: =IF(MAX(C105:C116)-MIN(C105:C116)<5,AVERAGEIF(C105:C116,">0",M105:M116), IF(FORECAST($C102,M$105:M$116,$C$105:$C$116)<0,0, IF(FORECAST($C102,M$105:M$116,$C$105:$C$116)>100,100, FORECAST($C102,M$105:M$116,$C$105:$C$116)))) -> 0 | N102: =IF(MAX(C105:C116)-MIN(C105:C116)<5,AVERAGEIF(C105:C116,">0",N105:N116), IF(FORECAST($C102,N$105:N$116,$C$105:$C$116)<0,0, IF(FORECAST($C102,N$105:N$116,$C$105:$C$116)>100,100, FORECAST($C102,N$105:N$116,$C$105:$C$116)))) -> 100 | R102: =IF(MAX(C105:C116)-MIN(C105:C116)<5,AVERAGEIF(C105:C116,">0",R105:R116), IF(FORECAST($C102,R$105:R$116,$C$105:$C$116)<0,0, IF(FORECAST($C102,R$105:R$116,$C$105:$C$116)>100,100, FORECAST($C102,R$105:R$116,$C$105:$C$116)))) -> 0 | S102: =IF(MAX(C105:C116)-MIN(C105:C116)<5,AVERAGEIF(C105:C116,">0",S105:S116), IF(FORECAST($C102,S$105:S$116,$C$105:$C$116)<0,0, IF(FORECAST($C102,S$105:S$116,$C$105:$C$116)>100,100, FORECAST($C102,S$105:S$116,$C$105:$C$116)))) -> 100 | W102: =IF(MAX(C105:C116)-MIN(C105:C116)<5,AVERAGEIF(C105:C116,">0",W105:W116), IF(FORECAST($C102,W$105:W$116,$C$105:$C$116)<0,0, IF(FORECAST($C102,W$105:W$116,$C$105:$C$116)>100,100, FORECAST($C102,W$105:W$116,$C$105:$C$116)))) -> 0 | X102: =IF(MAX(C105:C116)-MIN(C105:C116)<5,AVERAGEIF(C105:C116,">0",X105:X116), IF(FORECAST($C102,X$105:X$116,$C$105:$C$116)<0,0, IF(FORECAST($C102,X$105:X$116,$C$105:$C$116)>100,100, FORECAST($C102,X$105:X$116,$C$105:$C$116)))) -> 98.52258549 | AB102: =IF(MAX(C105:C116)-MIN(C105:C116)<5,AVERAGEIF(C105:C116,">0",AB105:AB116), IF(FORECAST($C102,AB$105:AB$116,$C$105:$C$116)<0,0, IF(FORECAST($C102,AB$105:AB$116,$C$105:$C$116)>100,100, FORECAST($C102,AB$105:AB$116,$C$105:$C$116)))) -> 0
B104: Survey | C104: Year | D104: Improved | E104: % Improved < = 30min | H104: Surface water | I104: Improved | J104: % Improved < = 30min | M104: Surface water | N104: Improved | O104: % Improved < = 30min | R104: Surface water | S104: Improved | T104: % Improved < = 30min | W104: Surface water | X104: Improved | Y104: % Improved < = 30min | AB104: Surface water
B105: WHS03 | C105: 2003 | D105: =IF(ISERROR(INDIRECT(CONCATENATE($B105,"!C16"))),"",INDIRECT(CONCATENATE($B105,"!C16"))) -> 34.3987563 | E105: =IF(ISERROR(INDIRECT(CONCATENATE($B105,"!C23"))),"",INDIRECT(CONCATENATE($B105,"!C23"))) -> 99.45271406 | H105: =IF(ISERROR(INDIRECT(CONCATENATE($B105,"!C21"))),"",INDIRECT(CONCATENATE($B105,"!C21"))) -> 8.787128308 | I105: =IF(ISERROR(INDIRECT(CONCATENATE($B105,"!D16"))),"",INDIRECT(CONCATENATE($B105,"!D16"))) -> 55.49311682 | J105: =IF(ISERROR(INDIRECT(CONCATENATE($B105,"!D23"))),"",INDIRECT(CONCATENATE($B105,"!D23"))) -> 99.7227504 | M105: =IF(ISERROR(INDIRECT(CONCATENATE($B105,"!D21"))),"",INDIRECT(CONCATENATE($B105,"!D21"))) -> 2.917367242 | N105: =IF(ISERROR(INDIRECT(CONCATENATE($B105,"!E16"))),"",INDIRECT(CONCATENATE($B105,"!E16"))) -> 78.22573603 | O105: =IF(ISERROR(INDIRECT(CONCATENATE($B105,"!E23"))),"",INDIRECT(CONCATENATE($B105,"!E23"))) -> 100 | R105: =IF(ISERROR(INDIRECT(CONCATENATE($B105,"!E21"))),"",INDIRECT(CONCATENATE($B105,"!E21"))) -> 1.09469324 | S105: =IF(ISERROR(INDIRECT(CONCATENATE($B105,"!F16"))),"",INDIRECT(CONCATENATE($B105,"!F16"))) -> 94.33861391 | T105: =IF(ISERROR(INDIRECT(CONCATENATE($B105,"!F23"))),"",INDIRECT(CONCATENATE($B105,"!F23"))) -> 100 | W105: =IF(ISERROR(INDIRECT(CONCATENATE($B105,"!F21"))),"",INDIRECT(CONCATENATE($B105,"!F21"))) -> 0.2288723074 | X105: =IF(ISERROR(INDIRECT(CONCATENATE($B105,"!G16"))),"",INDIRECT(CONCATENATE($B105,"!G16"))) -> 99.36909195 | Y105: =IF(ISERROR(INDIRECT(CONCATENATE($B105,"!G23"))),"",INDIRECT(CONCATENATE($B105,"!G23"))) -> 99.32348742 | AB105: =IF(ISERROR(INDIRECT(CONCATENATE($B105,"!G221"))),"",INDIRECT(CONCATENATE($B105,"!G21"))) -> 0
B106: EPH09 | C106: 2009 | D106: 83.29056311 | E106: N/A | H106: 1.093669183 | I106: 93.59701769 | J106: N/A | M106: 0.7781280517 | N106: 95.98477018 | O106: N/A | R106: 0.1306667837 | S106: 98.23536538 | T106: N/A | W106: 0 | X106: 98.12953942 | Y106: N/A | AB106: 0
B107: EPH10 | C107: 2010 | D107: 63.43356053 | E107: N/A | H107: 0.2115422599 | I107: 73.56732099 | J107: N/A | M107: 0.2729621049 | N107: 87.16545393 | O107: N/A | R107: 0.01958127404 | S107: 91.48732816 | T107: N/A | W107: 0 | X107: 96.31791796 | Y107: N/A | AB107: 0
B108: EPH11 | C108: 2011 | D108: 86.54140029 | E108: N/A | H108: 0.8686744204 | I108: 93.74689176 | J108: N/A | M108: 0.1269126531 | N108: 96.11960766 | O108: N/A | R108: 0 | S108: 98.14208845 | T108: N/A | W108: 0 | X108: 97.96433462 | Y108: N/A | AB108: 0
B109: EPH12 | C109: 2012 | D109: 80.84726527 | E109: N/A | H109: 3.569737463 | I109: 92.8382656 | J109: N/A | M109: 0 | N109: 97.65004697 | O109: N/A | R109: 0 | S109: 97.85503652 | T109: N/A | W109: 0 | X109: 98.05114276 | Y109: N/A | AB109: 0
B110: EPH13 | C110: 2013 | D110: 86.51749393 | E110: N/A | H110: 0.340118315 | I110: 95.16953037 | J110: N/A | M110: 0.1183489281 | N110: 97.2505734 | O110: N/A | R110: 0 | S110: 98.78029523 | T110: N/A | W110: 0 | X110: 98.79848834 | Y110: N/A | AB110: 0
B111: MICS16 | C111: 2016 | D111: =IF(ISERROR(INDIRECT(CONCATENATE($B111,"!C16"))),"",INDIRECT(CONCATENATE($B111,"!C16"))) -> 82.07135219 | E111: =IF(ISERROR(INDIRECT(CONCATENATE($B111,"!C23"))),"",INDIRECT(CONCATENATE($B111,"!C23"))) -> 99.22754482 | H111: =IF(ISERROR(INDIRECT(CONCATENATE($B111,"!C21"))),"",INDIRECT(CONCATENATE($B111,"!C21"))) -> 1.521442578 | I111: =IF(ISERROR(INDIRECT(CONCATENATE($B111,"!D16"))),"",INDIRECT(CONCATENATE($B111,"!D16"))) -> 95.89135418 | J111: =IF(ISERROR(INDIRECT(CONCATENATE($B111,"!D23"))),"",INDIRECT(CONCATENATE($B111,"!D23"))) -> 99.9400057 | M111: =IF(ISERROR(INDIRECT(CONCATENATE($B111,"!D21"))),"",INDIRECT(CONCATENATE($B111,"!D21"))) -> 0.1504306061 | N111: =IF(ISERROR(INDIRECT(CONCATENATE($B111,"!E16"))),"",INDIRECT(CONCATENATE($B111,"!E16"))) -> 99.12061721 | O111: =IF(ISERROR(INDIRECT(CONCATENATE($B111,"!E23"))),"",INDIRECT(CONCATENATE($B111,"!E23"))) -> 100 | R111: =IF(ISERROR(INDIRECT(CONCATENATE($B111,"!E21"))),"",INDIRECT(CONCATENATE($B111,"!E21"))) -> 0 | S111: =IF(ISERROR(INDIRECT(CONCATENATE($B111,"!F16"))),"",INDIRECT(CONCATENATE($B111,"!F16"))) -> 99.93059457 | T111: =IF(ISERROR(INDIRECT(CONCATENATE($B111,"!F23"))),"",INDIRECT(CONCATENATE($B111,"!F23"))) -> 100 | W111: =IF(ISERROR(INDIRECT(CONCATENATE($B111,"!F21"))),"",INDIRECT(CONCATENATE($B111,"!F21"))) -> 0.00197218696 | X111: =IF(ISERROR(INDIRECT(CONCATENATE($B111,"!G16"))),"",INDIRECT(CONCATENATE($B111,"!G16"))) -> 99.82008039 | Y111: =IF(ISERROR(INDIRECT(CONCATENATE($B111,"!G23"))),"",INDIRECT(CONCATENATE($B111,"!G23"))) -> 100 | AB111: =IF(ISERROR(INDIRECT(CONCATENATE($B111,"!G221"))),"",INDIRECT(CONCATENATE($B111,"!G21"))) -> 0
D112: =IF(ISERROR(INDIRECT(CONCATENATE($B112,"!C16"))),"",INDIRECT(CONCATENATE($B112,"!C16"))) ->  | E112: =IF(ISERROR(INDIRECT(CONCATENATE($B112,"!C23"))),"",INDIRECT(CONCATENATE($B112,"!C23"))) ->  | H112: =IF(ISERROR(INDIRECT(CONCATENATE($B112,"!C21"))),"",INDIRECT(CONCATENATE($B112,"!C21"))) ->  | I112: =IF(ISERROR(INDIRECT(CONCATENATE($B112,"!D16"))),"",INDIRECT(CONCATENATE($B112,"!D16"))) ->  | J112: =IF(ISERROR(INDIRECT(CONCATENATE($B112,"!D23"))),"",INDIRECT(CONCATENATE($B112,"!D23"))) ->  | M112: =IF(ISERROR(INDIRECT(CONCATENATE($B112,"!D21"))),"",INDIRECT(CONCATENATE($B112,"!D21"))) ->  | N112: =IF(ISERROR(INDIRECT(CONCATENATE($B112,"!E16"))),"",INDIRECT(CONCATENATE($B112,"!E16"))) ->  | O112: =IF(ISERROR(INDIRECT(CONCATENATE($B112,"!E23"))),"",INDIRECT(CONCATENATE($B112,"!E23"))) ->  | R112: =IF(ISERROR(INDIRECT(CONCATENATE($B112,"!E21"))),"",INDIRECT(CONCATENATE($B112,"!E21"))) ->  | S112: =IF(ISERROR(INDIRECT(CONCATENATE($B112,"!F16"))),"",INDIRECT(CONCATENATE($B112,"!F16"))) ->  | T112: =IF(ISERROR(INDIRECT(CONCATENATE($B112,"!F23"))),"",INDIRECT(CONCATENATE($B112,"!F23"))) ->  | W112: =IF(ISERROR(INDIRECT(CONCATENATE($B112,"!F21"))),"",INDIRECT(CONCATENATE($B112,"!F21"))) ->  | X112: =IF(ISERROR(INDIRECT(CONCATENATE($B112,"!G16"))),"",INDIRECT(CONCATENATE($B112,"!G16"))) ->  | Y112: =IF(ISERROR(INDIRECT(CONCATENATE($B112,"!G23"))),"",INDIRECT(CONCATENATE($B112,"!G23"))) ->  | AB112: =IF(ISERROR(INDIRECT(CONCATENATE($B112,"!G221"))),"",INDIRECT(CONCATENATE($B112,"!G21"))) -> 
B118: =CONCATENATE("National use of drinking water sources, ",C99,"–",C100) -> National use of drinking water sources, 2000–2020 | S118: Data points used for regression
E153: =IF(ISERROR(INDIRECT(CONCATENATE($B153,"!M18"))),"",INDIRECT(CONCATENATE($B153,"!M18"))) ->  | F153: =IF(ISERROR(INDIRECT(CONCATENATE($B153,"!M19"))),"",INDIRECT(CONCATENATE($B153,"!M19"))) ->  | G153: =IF(ISERROR(INDIRECT(CONCATENATE($B153,"!M20"))),"",INDIRECT(CONCATENATE($B153,"!M20"))) ->  | H153: =IF(ISERROR(INDIRECT(CONCATENATE($B153,"!M21"))),"",INDIRECT(CONCATENATE($B153,"!M21"))) ->  | J153: =IF(ISERROR(INDIRECT(CONCATENATE($B153,"!N18"))),"",INDIRECT(CONCATENATE($B153,"!N18"))) ->  | K153: =IF(ISERROR(INDIRECT(CONCATENATE($B153,"!N19"))),"",INDIRECT(CONCATENATE($B153,"!N19"))) ->  | L153: =IF(ISERROR(INDIRECT(CONCATENATE($B153,"!N20"))),"",INDIRECT(CONCATENATE($B153,"!N20"))) ->  | M153: =IF(ISERROR(INDIRECT(CONCATENATE($B153,"!N21"))),"",INDIRECT(CONCATENATE($B153,"!N21"))) ->  | O153: =IF(ISERROR(INDIRECT(CONCATENATE($B153,"!O18"))),"",INDIRECT(CONCATENATE($B153,"!O18"))) ->  | P153: =IF(ISERROR(INDIRECT(CONCATENATE($B153,"!O19"))),"",INDIRECT(CONCATENATE($B153,"!O19"))) ->  | Q153: =IF(ISERROR(INDIRECT(CONCATENATE($B153,"!O20"))),"",INDIRECT(CONCATENATE($B153,"!O20"))) ->  | R153: =IF(ISERROR(INDIRECT(CONCATENATE($B153,"!O21"))),"",INDIRECT(CONCATENATE($B153,"!O21"))) ->  | T153: =IF(ISERROR(INDIRECT(CONCATENATE($B153,"!P18"))),"",INDIRECT(CONCATENATE($B153,"!P18"))) ->  | U153: =IF(ISERROR(INDIRECT(CONCATENATE($B153,"!P19"))),"",INDIRECT(CONCATENATE($B153,"!P19"))) ->  | V153: =IF(ISERROR(INDIRECT(CONCATENATE($B153,"!P20"))),"",INDIRECT(CONCATENATE($B153,"!P20"))) ->  | W153: =IF(ISERROR(INDIRECT(CONCATENATE($B153,"!P21"))),"",INDIRECT(CONCATENATE($B153,"!P21"))) ->  | Y153: =IF(ISERROR(INDIRECT(CONCATENATE($B153,"!Q18"))),"",INDIRECT(CONCATENATE($B153,"!Q18"))) ->  | Z153: =IF(ISERROR(INDIRECT(CONCATENATE($B153,"!Q19"))),"",INDIRECT(CONCATENATE($B153,"!Q19"))) ->  | AA153: =IF(ISERROR(INDIRECT(CONCATENATE($B153,"!Q20"))),"",INDIRECT(CONCATENATE($B153,"!Q20"))) ->  | AB153: =IF(ISERROR(INDIRECT(CONCATENATE($B153,"!Q21"))),"",INDIRECT(CONCATENATE($B153,"!Q1"))) -> 
A197: URBAN | D197: Poorest | I197: Poor | N197: Middle | S197: Rich | X197: Richest
D198: Improved | E198: Basic | F198: Limited | G198: Unimproved | H198: Surface water | I198: Improved | J198: Basic | K198: Limited | L198: Unimproved | M198: Surface water | N198: Improved | O198: Basic | P198: Limited | Q198: Unimproved | R198: Surface water | S198: Improved | T198: Basic | U198: Limited | V198: Unimproved | W198: Surface water | X198: Improved | Y198: Basic | Z198: Limited | AA198: Unimproved | AB198: Surface water
A199: Forecast period: | C199: 2000 | D199: =IF((D201+H201)>100,D201*100/(D201+H201),D201) -> 73.02438191 | E199: =D199*AVERAGEIF(E205:E216,">0")/100 -> 72.90705129 | F199: =D199*(100-AVERAGEIF(E205:E216,">0"))/100 -> 0.1173306138 | G199: =100-(E199+F199+H199) -> 26.51709692 | H199: =IF((D201+H201)>100,H201*100/(D201+H201),H201) -> 0.4585211777 | I199: =IF((I201+M201)>100,I201*100/(I201+M201),I201) -> 89.33455563 | J199: =I199*AVERAGEIF(J205:J216,">0")/100 -> 89.33455563 | K199: =I199*(100-AVERAGEIF(J205:J216,">0"))/100 -> 0 | L199: =100-(J199+K199+M199) -> 10.66544437 | M199: =IF((I201+M201)>100,M201*100/(I201+M201),M201) -> 0 | N199: =IF((N201+R201)>100,N201*100/(N201+R201),N201) -> 93.81895935 | O199: =N199*AVERAGEIF(O205:O216,">0")/100 -> 93.81895935 | P199: =N199*(100-AVERAGEIF(O205:O216,">0"))/100 -> 0 | Q199: =100-(O199+P199+R199) -> 6.181040651 | R199: =IF((N201+R201)>100,R201*100/(N201+R201),R201) -> 0 | S199: =IF((S201+W201)>100,S201*100/(S201+W201),S201) -> 97.5850662 | T199: =S199*AVERAGEIF(T205:T216,">0")/100 -> 97.5850662 | U199: =S199*(100-AVERAGEIF(T205:T216,">0"))/100 -> 0 | V199: =100-(T199+U199+W199) -> 2.414933796 | W199: =IF((S201+W201)>100,W201*100/(S201+W201),W201) -> 0 | X199: =IF((X201+AB201)>100,X201*100/(X201+AB201),X201) -> 98.80625509 | Y199: =X199*AVERAGEIF(Y205:Y216,">0")/100 -> 98.80625509 | Z199: =X199*(100-AVERAGEIF(Y205:Y216,">0"))/100 -> 0 | AA199: =100-(Y199+Z199+AB199) -> 1.193744912 | AB199: =IF((X201+AB201)>100,AB201*100/(X201+AB201),AB201) -> 0
C200: 2020 | D200: =IF((D202+H202)>100,D202*100/(D202+H202),D202) -> 100 | E200: =D200*AVERAGEIF(E205:E216,">0")/100 -> 99.8393268 | F200: =D200*(100-AVERAGEIF(E205:E216,">0"))/100 -> 0.1606732036 | G200: =100-(E200+F200+H200) -> 0 | H200: =IF((D202+H202)>100,H202*100/(D202+H202),H202) -> 0 | I200: =IF((I202+M202)>100,I202*100/(I202+M202),I202) -> 100 | J200: =I200*AVERAGEIF(J205:J216,">0")/100 -> 100 | K200: =I200*(100-AVERAGEIF(J205:J216,">0"))/100 -> 0 | L200: =100-(J200+K200+M200) -> 0 | M200: =IF((I202+M202)>100,M202*100/(I202+M202),M202) -> 0 | N200: =IF((N202+R202)>100,N202*100/(N202+R202),N202) -> 99.99824335 | O200: =N200*AVERAGEIF(O205:O216,">0")/100 -> 99.99824335 | P200: =N200*(100-AVERAGEIF(O205:O216,">0"))/100 -> 0 | Q200: =100-(O200+P200+R200) -> 0 | R200: =IF((N202+R202)>100,R202*100/(N202+R202),R202) -> 0.001756652243 | S200: =IF((S202+W202)>100,S202*100/(S202+W202),S202) -> 99.29050615 | T200: =S200*AVERAGEIF(T205:T216,">0")/100 -> 99.29050615 | U200: =S200*(100-AVERAGEIF(T205:T216,">0"))/100 -> 0 | V200: =100-(T200+U200+W200) -> 0.7094938475 | W200: =IF((S202+W202)>100,W202*100/(S202+W202),W202) -> 0 | X200: =IF((X202+AB202)>100,X202*100/(X202+AB202),X202) -> 98.54102642 | Y200: =X200*AVERAGEIF(Y205:Y216,">0")/100 -> 98.54102642 | Z200: =X200*(100-AVERAGEIF(Y205:Y216,">0"))/100 -> 0 | AA200: =100-(Y200+Z200+AB200) -> 1.458973576 | AB200: =IF((X202+AB202)>100,AB202*100/(X202+AB202),AB202) -> 0
A201: Regression period: | C201: =MinRegYear(C199,C205:C216) -> 2001 | D201: =IF(MAX(C205:C216)-MIN(C205:C216)<5,AVERAGEIF(C205:C216,">0",D205:D216), IF(FORECAST($C201,D$205:D$216,$C$205:$C$216)<0,0, IF(FORECAST($C201,D$205:D$216,$C$205:$C$216)>100,100, FORECAST($C201,D$205:D$216,$C$205:$C$216)))) -> 73.02438191 | H201: =IF(MAX(C205:C216)-MIN(C205:C216)<5,AVERAGEIF(C205:C216,">0",H205:H216), IF(FORECAST($C201,H$205:H$216,$C$205:$C$216)<0,0, IF(FORECAST($C201,H$205:H$216,$C$205:$C$216)>100,100, FORECAST($C201,H$205:H$216,$C$205:$C$216)))) -> 0.4585211777 | I201: =IF(MAX(C205:C216)-MIN(C205:C216)<5,AVERAGEIF(C205:C216,">0",I205:I216), IF(FORECAST($C201,I$205:I$216,$C$205:$C$216)<0,0, IF(FORECAST($C201,I$205:I$216,$C$205:$C$216)>100,100, FORECAST($C201,I$205:I$216,$C$205:$C$216)))) -> 89.33455563 | M201: =IF(MAX(C205:C216)-MIN(C205:C216)<5,AVERAGEIF(C205:C216,">0",M205:M216), IF(FORECAST($C201,M$205:M$216,$C$205:$C$216)<0,0, IF(FORECAST($C201,M$205:M$216,$C$205:$C$216)>100,100, FORECAST($C201,M$205:M$216,$C$205:$C$216)))) -> 0 | N201: =IF(MAX(C205:C216)-MIN(C205:C216)<5,AVERAGEIF(C205:C216,">0",N205:N216), IF(FORECAST($C201,N$205:N$216,$C$205:$C$216)<0,0, IF(FORECAST($C201,N$205:N$216,$C$205:$C$216)>100,100, FORECAST($C201,N$205:N$216,$C$205:$C$216)))) -> 93.81895935 | R201: =IF(MAX(C205:C216)-MIN(C205:C216)<5,AVERAGEIF(C205:C216,">0",R205:R216), IF(FORECAST($C201,R$205:R$216,$C$205:$C$216)<0,0, IF(FORECAST($C201,R$205:R$216,$C$205:$C$216)>100,100, FORECAST($C201,R$205:R$216,$C$205:$C$216)))) -> 0 | S201: =IF(MAX(C205:C216)-MIN(C205:C216)<5,AVERAGEIF(C205:C216,">0",S205:S216), IF(FORECAST($C201,S$205:S$216,$C$205:$C$216)<0,0, IF(FORECAST($C201,S$205:S$216,$C$205:$C$216)>100,100, FORECAST($C201,S$205:S$216,$C$205:$C$216)))) -> 97.5850662 | W201: =IF(MAX(C205:C216)-MIN(C205:C216)<5,AVERAGEIF(C205:C216,">0",W205:W216), IF(FORECAST($C201,W$205:W$216,$C$205:$C$216)<0,0, IF(FORECAST($C201,W$205:W$216,$C$205:$C$216)>100,100, FORECAST($C201,W$205:W$216,$C$205:$C$216)))) -> 0 | X201: =IF(MAX(C205:C216)-MIN(C205:C216)<5,AVERAGEIF(C205:C216,">0",X205:X216), IF(FORECAST($C201,X$205:X$216,$C$205:$C$216)<0,0, IF(FORECAST($C201,X$205:X$216,$C$205:$C$216)>100,100, FORECAST($C201,X$205:X$216,$C$205:$C$216)))) -> 98.80625509 | AB201: =IF(MAX(C205:C216)-MIN(C205:C216)<5,AVERAGEIF(C205:C216,">0",AB205:AB216), IF(FORECAST($C201,AB$205:AB$216,$C$205:$C$216)<0,0, IF(FORECAST($C201,AB$205:AB$216,$C$205:$C$216)>100,100, FORECAST($C201,AB$205:AB$216,$C$205:$C$216)))) -> 0
C202: =MaxRegYear(C200,C205:C216) -> 2018 | D202: =IF(MAX(C205:C216)-MIN(C205:C216)<5,AVERAGEIF(C205:C216,">0",D205:D216), IF(FORECAST($C202,D$205:D$216,$C$205:$C$216)<0,0, IF(FORECAST($C202,D$205:D$216,$C$205:$C$216)>100,100, FORECAST($C202,D$205:D$216,$C$205:$C$216)))) -> 100 | H202: =IF(MAX(C205:C216)-MIN(C205:C216)<5,AVERAGEIF(C205:C216,">0",H205:H216), IF(FORECAST($C202,H$205:H$216,$C$205:$C$216)<0,0, IF(FORECAST($C202,H$205:H$216,$C$205:$C$216)>100,100, FORECAST($C202,H$205:H$216,$C$205:$C$216)))) -> 0 | I202: =IF(MAX(C205:C216)-MIN(C205:C216)<5,AVERAGEIF(C205:C216,">0",I205:I216), IF(FORECAST($C202,I$205:I$216,$C$205:$C$216)<0,0, IF(FORECAST($C202,I$205:I$216,$C$205:$C$216)>100,100, FORECAST($C202,I$205:I$216,$C$205:$C$216)))) -> 100 | M202: =IF(MAX(C205:C216)-MIN(C205:C216)<5,AVERAGEIF(C205:C216,">0",M205:M216), IF(FORECAST($C202,M$205:M$216,$C$205:$C$216)<0,0, IF(FORECAST($C202,M$205:M$216,$C$205:$C$216)>100,100, FORECAST($C202,M$205:M$216,$C$205:$C$216)))) -> 0 | N202: =IF(MAX(C205:C216)-MIN(C205:C216)<5,AVERAGEIF(C205:C216,">0",N205:N216), IF(FORECAST($C202,N$205:N$216,$C$205:$C$216)<0,0, IF(FORECAST($C202,N$205:N$216,$C$205:$C$216)>100,100, FORECAST($C202,N$205:N$216,$C$205:$C$216)))) -> 100 | R202: =IF(MAX(C205:C216)-MIN(C205:C216)<5,AVERAGEIF(C205:C216,">0",R205:R216), IF(FORECAST($C202,R$205:R$216,$C$205:$C$216)<0,0, IF(FORECAST($C202,R$205:R$216,$C$205:$C$216)>100,100, FORECAST($C202,R$205:R$216,$C$205:$C$216)))) -> 0.001756683102 | S202: =IF(MAX(C205:C216)-MIN(C205:C216)<5,AVERAGEIF(C205:C216,">0",S205:S216), IF(FORECAST($C202,S$205:S$216,$C$205:$C$216)<0,0, IF(FORECAST($C202,S$205:S$216,$C$205:$C$216)>100,100, FORECAST($C202,S$205:S$216,$C$205:$C$216)))) -> 99.29050615 | W202: =IF(MAX(C205:C216)-MIN(C205:C216)<5,AVERAGEIF(C205:C216,">0",W205:W216), IF(FORECAST($C202,W$205:W$216,$C$205:$C$216)<0,0, IF(FORECAST($C202,W$205:W$216,$C$205:$C$216)>100,100, FORECAST($C202,W$205:W$216,$C$205:$C$216)))) -> 0 | X202: =IF(MAX(C205:C216)-MIN(C205:C216)<5,AVERAGEIF(C205:C216,">0",X205:X216), IF(FORECAST($C202,X$205:X$216,$C$205:$C$216)<0,0, IF(FORECAST($C202,X$205:X$216,$C$205:$C$216)>100,100, FORECAST($C202,X$205:X$216,$C$205:$C$216)))) -> 98.54102642 | AB202: =IF(MAX(C205:C216)-MIN(C205:C216)<5,AVERAGEIF(C205:C216,">0",AB205:AB216), IF(FORECAST($C202,AB$205:AB$216,$C$205:$C$216)<0,0, IF(FORECAST($C202,AB$205:AB$216,$C$205:$C$216)>100,100, FORECAST($C202,AB$205:AB$216,$C$205:$C$216)))) -> 0
B204: Survey | C204: Year | D204: Improved | E204: % Improved < = 30min | H204: Surface water | I204: Improved | J204: % Improved < = 30min | M204: Surface water | N204: Improved | O204: % Improved < = 30min | R204: Surface water | S204: Improved | T204: % Improved < = 30min | W204: Surface water | X204: Improved | Y204: % Improved < = 30min | AB204: Surface water
B205: WHS03 | C205: 2003 | D205: =IF(ISERROR(INDIRECT(CONCATENATE($B205,"!H16"))),"",INDIRECT(CONCATENATE($B205,"!H16"))) -> 72.67637376 | E205: =IF(ISERROR(INDIRECT(CONCATENATE($B205,"!H23"))),"",INDIRECT(CONCATENATE($B205,"!H23"))) -> 100 | H205: =IF(ISERROR(INDIRECT(CONCATENATE($B205,"!H21"))),"",INDIRECT(CONCATENATE($B205,"!H21"))) -> 0.4385921802 | I205: =IF(ISERROR(INDIRECT(CONCATENATE($B205,"!I16"))),"",INDIRECT(CONCATENATE($B205,"!I16"))) -> 90.37038724 | J205: =IF(ISERROR(INDIRECT(CONCATENATE($B205,"!I23"))),"",INDIRECT(CONCATENATE($B205,"!I23"))) -> 100 | M205: =IF(ISERROR(INDIRECT(CONCATENATE($B205,"!I21"))),"",INDIRECT(CONCATENATE($B205,"!I21"))) -> 0 | N205: =IF(ISERROR(INDIRECT(CONCATENATE($B205,"!J16"))),"",INDIRECT(CONCATENATE($B205,"!J16"))) -> 94.95157736 | O205: =IF(ISERROR(INDIRECT(CONCATENATE($B205,"!J23"))),"",INDIRECT(CONCATENATE($B205,"!J23"))) -> 100 | R205: =IF(ISERROR(INDIRECT(CONCATENATE($B205,"!J21"))),"",INDIRECT(CONCATENATE($B205,"!J21"))) -> 0 | S205: =IF(ISERROR(INDIRECT(CONCATENATE($B205,"!K16"))),"",INDIRECT(CONCATENATE($B205,"!K16"))) -> 98.68662673 | T205: =IF(ISERROR(INDIRECT(CONCATENATE($B205,"!K23"))),"",INDIRECT(CONCATENATE($B205,"!K23"))) -> 100 | W205: =IF(ISERROR(INDIRECT(CONCATENATE($B205,"!K21"))),"",INDIRECT(CONCATENATE($B205,"!K21"))) -> 0 | X205: =IF(ISERROR(INDIRECT(CONCATENATE($B205,"!L16"))),"",INDIRECT(CONCATENATE($B205,"!L16"))) -> 99.84182527 | Y205: =IF(ISERROR(INDIRECT(CONCATENATE($B205,"!L23"))),"",INDIRECT(CONCATENATE($B205,"!L23"))) -> 100 | AB205: =IF(ISERROR(INDIRECT(CONCATENATE($B205,"!L221"))),"",INDIRECT(CONCATENATE($B205,"!L21"))) -> 0
B206: EPH09 | C206: 2009 | D206: 97.1456929 | E206: N/A | H206: 0 | I206: 97.29592196 | J206: N/A | M206: 0 | N206: 98.57493941 | O206: N/A | R206: 0 | S206: 98.61992199 | T206: N/A | W206: 0 | X206: 98.3113267 | Y206: N/A | AB206: 0
B207: EPH10 | C207: 2010 | D207: 81.71341305 | E207: N/A | H207: 0 | I207: 91.93536353 | J207: N/A | M207: 0 | N207: 93.46490374 | O207: N/A | R207: 0 | S207: 95.68562593 | T207: N/A | W207: 0 | X207: 96.95470439 | Y207: N/A | AB207: 0
B208: EPH11 | C208: 2011 | D208: 93.26799163 | E208: N/A | H208: 0.7491306122 | I208: 97.62886358 | J208: N/A | M208: 0 | N208: 98.75667807 | O208: N/A | R208: 0 | S208: 99.10581735 | T208: N/A | W208: 0 | X208: 98.42483382 | Y208: N/A | AB208: 0
B209: EPH12 | C209: 2012 | D209: 96.60953767 | E209: N/A | H209: 0 | I209: 98.57602862 | J209: N/A | M209: 0 | N209: 98.4532858 | O209: N/A | R209: 0 | S209: 98.80080023 | T209: N/A | W209: 0 | X209: 98.45013649 | Y209: N/A | AB209: 0
B210: EPH13 | C210: 2013 | D210: 96.94319369 | E210: N/A | H210: 0 | I210: 98.55741335 | J210: N/A | M210: 0 | N210: 98.79959457 | O210: N/A | R210: 0 | S210: 98.9353301 | T210: N/A | W210: 0 | X210: 98.90389603 | Y210: N/A | AB210: 0
B211: MICS16 | C211: 2016 | D211: 94.66741219 | E211: 99.67865359 | H211: 0.0128187808 | I211: 99.06331432 | J211: 100 | M211: 0 | N211: 99.94217831 | O211: 100 | R211: 0.003162029583 | S211: 99.9827809 | T211: 100 | W211: 0 | X211: 99.71174996 | Y211: 100 | AB211: 0
B218: =CONCATENATE("Urban use of drinking water sources, ",C199,"–",C200) -> Urban use of drinking water sources, 2000–2020 | S218: Data points used for regression
E253: =IF(ISERROR(INDIRECT(CONCATENATE($B253,"!M18"))),"",INDIRECT(CONCATENATE($B253,"!M18"))) ->  | F253: =IF(ISERROR(INDIRECT(CONCATENATE($B253,"!M19"))),"",INDIRECT(CONCATENATE($B253,"!M19"))) ->  | G253: =IF(ISERROR(INDIRECT(CONCATENATE($B253,"!M20"))),"",INDIRECT(CONCATENATE($B253,"!M20"))) ->  | H253: =IF(ISERROR(INDIRECT(CONCATENATE($B253,"!M21"))),"",INDIRECT(CONCATENATE($B253,"!M21"))) ->  | J253: =IF(ISERROR(INDIRECT(CONCATENATE($B253,"!N18"))),"",INDIRECT(CONCATENATE($B253,"!N18"))) ->  | K253: =IF(ISERROR(INDIRECT(CONCATENATE($B253,"!N19"))),"",INDIRECT(CONCATENATE($B253,"!N19"))) ->  | L253: =IF(ISERROR(INDIRECT(CONCATENATE($B253,"!N20"))),"",INDIRECT(CONCATENATE($B253,"!N20"))) ->  | M253: =IF(ISERROR(INDIRECT(CONCATENATE($B253,"!N21"))),"",INDIRECT(CONCATENATE($B253,"!N21"))) ->  | O253: =IF(ISERROR(INDIRECT(CONCATENATE($B253,"!O18"))),"",INDIRECT(CONCATENATE($B253,"!O18"))) ->  | P253: =IF(ISERROR(INDIRECT(CONCATENATE($B253,"!O19"))),"",INDIRECT(CONCATENATE($B253,"!O19"))) ->  | Q253: =IF(ISERROR(INDIRECT(CONCATENATE($B253,"!O20"))),"",INDIRECT(CONCATENATE($B253,"!O20"))) ->  | R253: =IF(ISERROR(INDIRECT(CONCATENATE($B253,"!O21"))),"",INDIRECT(CONCATENATE($B253,"!O21"))) ->  | T253: =IF(ISERROR(INDIRECT(CONCATENATE($B253,"!P18"))),"",INDIRECT(CONCATENATE($B253,"!P18"))) ->  | U253: =IF(ISERROR(INDIRECT(CONCATENATE($B253,"!P19"))),"",INDIRECT(CONCATENATE($B253,"!P19"))) ->  | V253: =IF(ISERROR(INDIRECT(CONCATENATE($B253,"!P20"))),"",INDIRECT(CONCATENATE($B253,"!P20"))) ->  | W253: =IF(ISERROR(INDIRECT(CONCATENATE($B253,"!P21"))),"",INDIRECT(CONCATENATE($B253,"!P21"))) ->  | Y253: =IF(ISERROR(INDIRECT(CONCATENATE($B253,"!Q18"))),"",INDIRECT(CONCATENATE($B253,"!Q18"))) ->  | Z253: =IF(ISERROR(INDIRECT(CONCATENATE($B253,"!Q19"))),"",INDIRECT(CONCATENATE($B253,"!Q19"))) ->  | AA253: =IF(ISERROR(INDIRECT(CONCATENATE($B253,"!Q20"))),"",INDIRECT(CONCATENATE($B253,"!Q20"))) ->  | AB253: =IF(ISERROR(INDIRECT(CONCATENATE($B253,"!Q21"))),"",INDIRECT(CONCATENATE($B253,"!Q1"))) -> 
E254: =IF(ISERROR(INDIRECT(CONCATENATE($B254,"!M18"))),"",INDIRECT(CONCATENATE($B254,"!M18"))) ->  | F254: =IF(ISERROR(INDIRECT(CONCATENATE($B254,"!M19"))),"",INDIRECT(CONCATENATE($B254,"!M19"))) ->  | G254: =IF(ISERROR(INDIRECT(CONCATENATE($B254,"!M20"))),"",INDIRECT(CONCATENATE($B254,"!M20"))) ->  | H254: =IF(ISERROR(INDIRECT(CONCATENATE($B254,"!M21"))),"",INDIRECT(CONCATENATE($B254,"!M21"))) ->  | J254: =IF(ISERROR(INDIRECT(CONCATENATE($B254,"!N18"))),"",INDIRECT(CONCATENATE($B254,"!N18"))) ->  | K254: =IF(ISERROR(INDIRECT(CONCATENATE($B254,"!N19"))),"",INDIRECT(CONCATENATE($B254,"!N19"))) ->  | L254: =IF(ISERROR(INDIRECT(CONCATENATE($B254,"!N20"))),"",INDIRECT(CONCATENATE($B254,"!N20"))) ->  | M254: =IF(ISERROR(INDIRECT(CONCATENATE($B254,"!N21"))),"",INDIRECT(CONCATENATE($B254,"!N21"))) ->  | O254: =IF(ISERROR(INDIRECT(CONCATENATE($B254,"!O18"))),"",INDIRECT(CONCATENATE($B254,"!O18"))) ->  | P254: =IF(ISERROR(INDIRECT(CONCATENATE($B254,"!O19"))),"",INDIRECT(CONCATENATE($B254,"!O19"))) ->  | Q254: =IF(ISERROR(INDIRECT(CONCATENATE($B254,"!O20"))),"",INDIRECT(CONCATENATE($B254,"!O20"))) ->  | R254: =IF(ISERROR(INDIRECT(CONCATENATE($B254,"!O21"))),"",INDIRECT(CONCATENATE($B254,"!O21"))) ->  | T254: =IF(ISERROR(INDIRECT(CONCATENATE($B254,"!P18"))),"",INDIRECT(CONCATENATE($B254,"!P18"))) ->  | U254: =IF(ISERROR(INDIRECT(CONCATENATE($B254,"!P19"))),"",INDIRECT(CONCATENATE($B254,"!P19"))) ->  | V254: =IF(ISERROR(INDIRECT(CONCATENATE($B254,"!P20"))),"",INDIRECT(CONCATENATE($B254,"!P20"))) ->  | W254: =IF(ISERROR(INDIRECT(CONCATENATE($B254,"!P21"))),"",INDIRECT(CONCATENATE($B254,"!P21"))) ->  | Y254: =IF(ISERROR(INDIRECT(CONCATENATE($B254,"!Q18"))),"",INDIRECT(CONCATENATE($B254,"!Q18"))) ->  | Z254: =IF(ISERROR(INDIRECT(CONCATENATE($B254,"!Q19"))),"",INDIRECT(CONCATENATE($B254,"!Q19"))) ->  | AA254: =IF(ISERROR(INDIRECT(CONCATENATE($B254,"!Q20"))),"",INDIRECT(CONCATENATE($B254,"!Q20"))) ->  | AB254: =IF(ISERROR(INDIRECT(CONCATENATE($B254,"!Q21"))),"",INDIRECT(CONCATENATE($B254,"!Q1"))) -> 
E255: =IF(ISERROR(INDIRECT(CONCATENATE($B255,"!M18"))),"",INDIRECT(CONCATENATE($B255,"!M18"))) ->  | F255: =IF(ISERROR(INDIRECT(CONCATENATE($B255,"!M19"))),"",INDIRECT(CONCATENATE($B255,"!M19"))) ->  | G255: =IF(ISERROR(INDIRECT(CONCATENATE($B255,"!M20"))),"",INDIRECT(CONCATENATE($B255,"!M20"))) ->  | H255: =IF(ISERROR(INDIRECT(CONCATENATE($B255,"!M21"))),"",INDIRECT(CONCATENATE($B255,"!M21"))) ->  | J255: =IF(ISERROR(INDIRECT(CONCATENATE($B255,"!N18"))),"",INDIRECT(CONCATENATE($B255,"!N18"))) ->  | K255: =IF(ISERROR(INDIRECT(CONCATENATE($B255,"!N19"))),"",INDIRECT(CONCATENATE($B255,"!N19"))) ->  | L255: =IF(ISERROR(INDIRECT(CONCATENATE($B255,"!N20"))),"",INDIRECT(CONCATENATE($B255,"!N20"))) ->  | M255: =IF(ISERROR(INDIRECT(CONCATENATE($B255,"!N21"))),"",INDIRECT(CONCATENATE($B255,"!N21"))) ->  | O255: =IF(ISERROR(INDIRECT(CONCATENATE($B255,"!O18"))),"",INDIRECT(CONCATENATE($B255,"!O18"))) ->  | P255: =IF(ISERROR(INDIRECT(CONCATENATE($B255,"!O19"))),"",INDIRECT(CONCATENATE($B255,"!O19"))) ->  | Q255: =IF(ISERROR(INDIRECT(CONCATENATE($B255,"!O20"))),"",INDIRECT(CONCATENATE($B255,"!O20"))) ->  | R255: =IF(ISERROR(INDIRECT(CONCATENATE($B255,"!O21"))),"",INDIRECT(CONCATENATE($B255,"!O21"))) ->  | T255: =IF(ISERROR(INDIRECT(CONCATENATE($B255,"!P18"))),"",INDIRECT(CONCATENATE($B255,"!P18"))) ->  | U255: =IF(ISERROR(INDIRECT(CONCATENATE($B255,"!P19"))),"",INDIRECT(CONCATENATE($B255,"!P19"))) ->  | V255: =IF(ISERROR(INDIRECT(CONCATENATE($B255,"!P20"))),"",INDIRECT(CONCATENATE($B255,"!P20"))) ->  | W255: =IF(ISERROR(INDIRECT(CONCATENATE($B255,"!P21"))),"",INDIRECT(CONCATENATE($B255,"!P21"))) ->  | Y255: =IF(ISERROR(INDIRECT(CONCATENATE($B255,"!Q18"))),"",INDIRECT(CONCATENATE($B255,"!Q18"))) ->  | Z255: =IF(ISERROR(INDIRECT(CONCATENATE($B255,"!Q19"))),"",INDIRECT(CONCATENATE($B255,"!Q19"))) ->  | AA255: =IF(ISERROR(INDIRECT(CONCATENATE($B255,"!Q20"))),"",INDIRECT(CONCATENATE($B255,"!Q20"))) ->  | AB255: =IF(ISERROR(INDIRECT(CONCATENATE($B255,"!Q21"))),"",INDIRECT(CONCATENATE($B255,"!Q1"))) -> 
E256: =IF(ISERROR(INDIRECT(CONCATENATE($B256,"!M18"))),"",INDIRECT(CONCATENATE($B256,"!M18"))) ->  | F256: =IF(ISERROR(INDIRECT(CONCATENATE($B256,"!M19"))),"",INDIRECT(CONCATENATE($B256,"!M19"))) ->  | G256: =IF(ISERROR(INDIRECT(CONCATENATE($B256,"!M20"))),"",INDIRECT(CONCATENATE($B256,"!M20"))) ->  | H256: =IF(ISERROR(INDIRECT(CONCATENATE($B256,"!M21"))),"",INDIRECT(CONCATENATE($B256,"!M21"))) ->  | J256: =IF(ISERROR(INDIRECT(CONCATENATE($B256,"!N18"))),"",INDIRECT(CONCATENATE($B256,"!N18"))) ->  | K256: =IF(ISERROR(INDIRECT(CONCATENATE($B256,"!N19"))),"",INDIRECT(CONCATENATE($B256,"!N19"))) ->  | L256: =IF(ISERROR(INDIRECT(CONCATENATE($B256,"!N20"))),"",INDIRECT(CONCATENATE($B256,"!N20"))) ->  | M256: =IF(ISERROR(INDIRECT(CONCATENATE($B256,"!N21"))),"",INDIRECT(CONCATENATE($B256,"!N21"))) ->  | O256: =IF(ISERROR(INDIRECT(CONCATENATE($B256,"!O18"))),"",INDIRECT(CONCATENATE($B256,"!O18"))) ->  | P256: =IF(ISERROR(INDIRECT(CONCATENATE($B256,"!O19"))),"",INDIRECT(CONCATENATE($B256,"!O19"))) ->  | Q256: =IF(ISERROR(INDIRECT(CONCATENATE($B256,"!O20"))),"",INDIRECT(CONCATENATE($B256,"!O20"))) ->  | R256: =IF(ISERROR(INDIRECT(CONCATENATE($B256,"!O21"))),"",INDIRECT(CONCATENATE($B256,"!O21"))) ->  | T256: =IF(ISERROR(INDIRECT(CONCATENATE($B256,"!P18"))),"",INDIRECT(CONCATENATE($B256,"!P18"))) ->  | U256: =IF(ISERROR(INDIRECT(CONCATENATE($B256,"!P19"))),"",INDIRECT(CONCATENATE($B256,"!P19"))) ->  | V256: =IF(ISERROR(INDIRECT(CONCATENATE($B256,"!P20"))),"",INDIRECT(CONCATENATE($B256,"!P20"))) ->  | W256: =IF(ISERROR(INDIRECT(CONCATENATE($B256,"!P21"))),"",INDIRECT(CONCATENATE($B256,"!P21"))) ->  | Y256: =IF(ISERROR(INDIRECT(CONCATENATE($B256,"!Q18"))),"",INDIRECT(CONCATENATE($B256,"!Q18"))) ->  | Z256: =IF(ISERROR(INDIRECT(CONCATENATE($B256,"!Q19"))),"",INDIRECT(CONCATENATE($B256,"!Q19"))) ->  | AA256: =IF(ISERROR(INDIRECT(CONCATENATE($B256,"!Q20"))),"",INDIRECT(CONCATENATE($B256,"!Q20"))) ->  | AB256: =IF(ISERROR(INDIRECT(CONCATENATE($B256,"!Q21"))),"",INDIRECT(CONCATENATE($B256,"!Q1"))) -> 
E257: =IF(ISERROR(INDIRECT(CONCATENATE($B257,"!M18"))),"",INDIRECT(CONCATENATE($B257,"!M18"))) ->  | F257: =IF(ISERROR(INDIRECT(CONCATENATE($B257,"!M19"))),"",INDIRECT(CONCATENATE($B257,"!M19"))) ->  | G257: =IF(ISERROR(INDIRECT(CONCATENATE($B257,"!M20"))),"",INDIRECT(CONCATENATE($B257,"!M20"))) ->  | H257: =IF(ISERROR(INDIRECT(CONCATENATE($B257,"!M21"))),"",INDIRECT(CONCATENATE($B257,"!M21"))) ->  | J257: =IF(ISERROR(INDIRECT(CONCATENATE($B257,"!N18"))),"",INDIRECT(CONCATENATE($B257,"!N18"))) ->  | K257: =IF(ISERROR(INDIRECT(CONCATENATE($B257,"!N19"))),"",INDIRECT(CONCATENATE($B257,"!N19"))) ->  | L257: =IF(ISERROR(INDIRECT(CONCATENATE($B257,"!N20"))),"",INDIRECT(CONCATENATE($B257,"!N20"))) ->  | M257: =IF(ISERROR(INDIRECT(CONCATENATE($B257,"!N21"))),"",INDIRECT(CONCATENATE($B257,"!N21"))) ->  | O257: =IF(ISERROR(INDIRECT(CONCATENATE($B257,"!O18"))),"",INDIRECT(CONCATENATE($B257,"!O18"))) ->  | P257: =IF(ISERROR(INDIRECT(CONCATENATE($B257,"!O19"))),"",INDIRECT(CONCATENATE($B257,"!O19"))) ->  | Q257: =IF(ISERROR(INDIRECT(CONCATENATE($B257,"!O20"))),"",INDIRECT(CONCATENATE($B257,"!O20"))) ->  | R257: =IF(ISERROR(INDIRECT(CONCATENATE($B257,"!O21"))),"",INDIRECT(CONCATENATE($B257,"!O21"))) ->  | T257: =IF(ISERROR(INDIRECT(CONCATENATE($B257,"!P18"))),"",INDIRECT(CONCATENATE($B257,"!P18"))) ->  | U257: =IF(ISERROR(INDIRECT(CONCATENATE($B257,"!P19"))),"",INDIRECT(CONCATENATE($B257,"!P19"))) ->  | V257: =IF(ISERROR(INDIRECT(CONCATENATE($B257,"!P20"))),"",INDIRECT(CONCATENATE($B257,"!P20"))) ->  | W257: =IF(ISERROR(INDIRECT(CONCATENATE($B257,"!P21"))),"",INDIRECT(CONCATENATE($B257,"!P21"))) ->  | Y257: =IF(ISERROR(INDIRECT(CONCATENATE($B257,"!Q18"))),"",INDIRECT(CONCATENATE($B257,"!Q18"))) ->  | Z257: =IF(ISERROR(INDIRECT(CONCATENATE($B257,"!Q19"))),"",INDIRECT(CONCATENATE($B257,"!Q19"))) ->  | AA257: =IF(ISERROR(INDIRECT(CONCATENATE($B257,"!Q20"))),"",INDIRECT(CONCATENATE($B257,"!Q20"))) ->  | AB257: =IF(ISERROR(INDIRECT(CONCATENATE($B257,"!Q21"))),"",INDIRECT(CONCATENATE($B257,"!Q1"))) -> 
A297: RURAL | D297: Poorest | I297: Poor | N297: Middle | S297: Rich | X297: Richest
D298: Improved | E298: Basic | F298: Limited | G298: Unimproved | H298: Surface water | I298: Improved | J298: Basic | K298: Limited | L298: Unimproved | M298: Surface water | N298: Improved | O298: Basic | P298: Limited | Q298: Unimproved | R298: Surface water | S298: Improved | T298: Basic | U298: Limited | V298: Unimproved | W298: Surface water | X298: Improved | Y298: Basic | Z298: Limited | AA298: Unimproved | AB298: Surface water
A299: Forecast period: | C299: 2000 | D299: =IF((D301+H301)>100,D301*100/(D301+H301),D301) -> 32.52382325 | E299: =D299*AVERAGEIF(E305:E316,">0")/100 -> 32.20791805 | F299: =D299*(100-AVERAGEIF(E305:E316,">0"))/100 -> 0.3159051995 | G299: =100-(E299+F299+H299) -> 55.9439187 | H299: =IF((D301+H301)>100,H301*100/(D301+H301),H301) -> 11.53225805 | I299: =IF((I301+M301)>100,I301*100/(I301+M301),I301) -> 35.02922781 | J299: =I299*AVERAGEIF(J305:J316,">0")/100 -> 34.91105974 | K299: =I299*(100-AVERAGEIF(J305:J316,">0"))/100 -> 0.1181680715 | L299: =100-(J299+K299+M299) -> 60.28962476 | M299: =IF((I301+M301)>100,M301*100/(I301+M301),M301) -> 4.681147438 | N299: =IF((N301+R301)>100,N301*100/(N301+R301),N301) -> 44.5070812 | O299: =N299*AVERAGEIF(O305:O316,">0")/100 -> 44.39864799 | P299: =N299*(100-AVERAGEIF(O305:O316,">0"))/100 -> 0.1084332091 | Q299: =100-(O299+P299+R299) -> 51.02421706 | R299: =IF((N301+R301)>100,R301*100/(N301+R301),R301) -> 4.468701739 | S299: =IF((S301+W301)>100,S301*100/(S301+W301),S301) -> 62.38814274 | T299: =S299*AVERAGEIF(T305:T316,">0")/100 -> 62.33994391 | U299: =S299*(100-AVERAGEIF(T305:T316,">0"))/100 -> 0.04819883867 | V299: =100-(T299+U299+W299) -> 36.18090758 | W299: =IF((S301+W301)>100,W301*100/(S301+W301),W301) -> 1.430949674 | X299: =IF((X301+AB301)>100,X301*100/(X301+AB301),X301) -> 84.40217823 | Y299: =X299*AVERAGEIF(Y305:Y316,">0")/100 -> 84.22450174 | Z299: =X299*(100-AVERAGEIF(Y305:Y316,">0"))/100 -> 0.1776764897 | AA299: =100-(Y299+Z299+AB299) -> 14.40762654 | AB299: =IF((X301+AB301)>100,AB301*100/(X301+AB301),AB301) -> 1.190195236
C300: 2020 | D300: =IF((D302+H302)>100,D302*100/(D302+H302),D302) -> 93.90079125 | E300: =D300*AVERAGEIF(E305:E316,">0")/100 -> 92.9887291 | F300: =D300*(100-AVERAGEIF(E305:E316,">0"))/100 -> 0.9120621512 | G300: =100-(E300+F300+H300) -> 6.099208747 | H300: =IF((D302+H302)>100,H302*100/(D302+H302),H302) -> 0 | I300: =IF((I302+M302)>100,I302*100/(I302+M302),I302) -> 100 | J300: =I300*AVERAGEIF(J305:J316,">0")/100 -> 99.66265865 | K300: =I300*(100-AVERAGEIF(J305:J316,">0"))/100 -> 0.3373413543 | L300: =100-(J300+K300+M300) -> 0 | M300: =IF((I302+M302)>100,M302*100/(I302+M302),M302) -> 0 | N300: =IF((N302+R302)>100,N302*100/(N302+R302),N302) -> 100 | O300: =N300*AVERAGEIF(O305:O316,">0")/100 -> 99.75636864 | P300: =N300*(100-AVERAGEIF(O305:O316,">0"))/100 -> 0.2436313641 | Q300: =100-(O300+P300+R300) -> 0 | R300: =IF((N302+R302)>100,R302*100/(N302+R302),R302) -> 0 | S300: =IF((S302+W302)>100,S302*100/(S302+W302),S302) -> 100 | T300: =S300*AVERAGEIF(T305:T316,">0")/100 -> 99.92274359 | U300: =S300*(100-AVERAGEIF(T305:T316,">0"))/100 -> 0.07725640891 | V300: =100-(T300+U300+W300) -> 0 | W300: =IF((S302+W302)>100,W302*100/(S302+W302),W302) -> 0 | X300: =IF((X302+AB302)>100,X302*100/(X302+AB302),X302) -> 100 | Y300: =X300*AVERAGEIF(Y305:Y316,">0")/100 -> 99.78948827 | Z300: =X300*(100-AVERAGEIF(Y305:Y316,">0"))/100 -> 0.2105117349 | AA300: =100-(Y300+Z300+AB300) -> 0 | AB300: =IF((X302+AB302)>100,AB302*100/(X302+AB302),AB302) -> 0
A301: Regression period: | C301: =MinRegYear(C299,C305:C316) -> 2001 | D301: =IF(MAX(C305:C316)-MIN(C305:C316)<5,AVERAGEIF(C305:C316,">0",D305:D316), IF(FORECAST($C301,D$305:D$316,$C$305:$C$316)<0,0, IF(FORECAST($C301,D$305:D$316,$C$305:$C$316)>100,100, FORECAST($C301,D$305:D$316,$C$305:$C$316)))) -> 32.52382325 | H301: =IF(MAX(C305:C316)-MIN(C305:C316)<5,AVERAGEIF(C305:C316,">0",H305:H316), IF(FORECAST($C301,H$305:H$316,$C$305:$C$316)<0,0, IF(FORECAST($C301,H$305:H$316,$C$305:$C$316)>100,100, FORECAST($C301,H$305:H$316,$C$305:$C$316)))) -> 11.53225805 | I301: =IF(MAX(C305:C316)-MIN(C305:C316)<5,AVERAGEIF(C305:C316,">0",I305:I316), IF(FORECAST($C301,I$305:I$316,$C$305:$C$316)<0,0, IF(FORECAST($C301,I$305:I$316,$C$305:$C$316)>100,100, FORECAST($C301,I$305:I$316,$C$305:$C$316)))) -> 35.02922781 | M301: =IF(MAX(C305:C316)-MIN(C305:C316)<5,AVERAGEIF(C305:C316,">0",M305:M316), IF(FORECAST($C301,M$305:M$316,$C$305:$C$316)<0,0, IF(FORECAST($C301,M$305:M$316,$C$305:$C$316)>100,100, FORECAST($C301,M$305:M$316,$C$305:$C$316)))) -> 4.681147438 | N301: =IF(MAX(C305:C316)-MIN(C305:C316)<5,AVERAGEIF(C305:C316,">0",N305:N316), IF(FORECAST($C301,N$305:N$316,$C$305:$C$316)<0,0, IF(FORECAST($C301,N$305:N$316,$C$305:$C$316)>100,100, FORECAST($C301,N$305:N$316,$C$305:$C$316)))) -> 44.5070812 | R301: =IF(MAX(C305:C316)-MIN(C305:C316)<5,AVERAGEIF(C305:C316,">0",R305:R316), IF(FORECAST($C301,R$305:R$316,$C$305:$C$316)<0,0, IF(FORECAST($C301,R$305:R$316,$C$305:$C$316)>100,100, FORECAST($C301,R$305:R$316,$C$305:$C$316)))) -> 4.468701739 | S301: =IF(MAX(C305:C316)-MIN(C305:C316)<5,AVERAGEIF(C305:C316,">0",S305:S316), IF(FORECAST($C301,S$305:S$316,$C$305:$C$316)<0,0, IF(FORECAST($C301,S$305:S$316,$C$305:$C$316)>100,100, FORECAST($C301,S$305:S$316,$C$305:$C$316)))) -> 62.38814274 | W301: =IF(MAX(C305:C316)-MIN(C305:C316)<5,AVERAGEIF(C305:C316,">0",W305:W316), IF(FORECAST($C301,W$305:W$316,$C$305:$C$316)<0,0, IF(FORECAST($C301,W$305:W$316,$C$305:$C$316)>100,100, FORECAST($C301,W$305:W$316,$C$305:$C$316)))) -> 1.430949674 | X301: =IF(MAX(C305:C316)-MIN(C305:C316)<5,AVERAGEIF(C305:C316,">0",X305:X316), IF(FORECAST($C301,X$305:X$316,$C$305:$C$316)<0,0, IF(FORECAST($C301,X$305:X$316,$C$305:$C$316)>100,100, FORECAST($C301,X$305:X$316,$C$305:$C$316)))) -> 84.40217823 | AB301: =IF(MAX(C305:C316)-MIN(C305:C316)<5,AVERAGEIF(C305:C316,">0",AB305:AB316), IF(FORECAST($C301,AB$305:AB$316,$C$305:$C$316)<0,0, IF(FORECAST($C301,AB$305:AB$316,$C$305:$C$316)>100,100, FORECAST($C301,AB$305:AB$316,$C$305:$C$316)))) -> 1.190195236
C302: =MaxRegYear(C300,C305:C316) -> 2018 | D302: =IF(MAX(C305:C316)-MIN(C305:C316)<5,AVERAGEIF(C305:C316,">0",D305:D316), IF(FORECAST($C302,D$305:D$316,$C$305:$C$316)<0,0, IF(FORECAST($C302,D$305:D$316,$C$305:$C$316)>100,100, FORECAST($C302,D$305:D$316,$C$305:$C$316)))) -> 93.90079125 | H302: =IF(MAX(C305:C316)-MIN(C305:C316)<5,AVERAGEIF(C305:C316,">0",H305:H316), IF(FORECAST($C302,H$305:H$316,$C$305:$C$316)<0,0, IF(FORECAST($C302,H$305:H$316,$C$305:$C$316)>100,100, FORECAST($C302,H$305:H$316,$C$305:$C$316)))) -> 0 | I302: =IF(MAX(C305:C316)-MIN(C305:C316)<5,AVERAGEIF(C305:C316,">0",I305:I316), IF(FORECAST($C302,I$305:I$316,$C$305:$C$316)<0,0, IF(FORECAST($C302,I$305:I$316,$C$305:$C$316)>100,100, FORECAST($C302,I$305:I$316,$C$305:$C$316)))) -> 100 | M302: =IF(MAX(C305:C316)-MIN(C305:C316)<5,AVERAGEIF(C305:C316,">0",M305:M316), IF(FORECAST($C302,M$305:M$316,$C$305:$C$316)<0,0, IF(FORECAST($C302,M$305:M$316,$C$305:$C$316)>100,100, FORECAST($C302,M$305:M$316,$C$305:$C$316)))) -> 0 | N302: =IF(MAX(C305:C316)-MIN(C305:C316)<5,AVERAGEIF(C305:C316,">0",N305:N316), IF(FORECAST($C302,N$305:N$316,$C$305:$C$316)<0,0, IF(FORECAST($C302,N$305:N$316,$C$305:$C$316)>100,100, FORECAST($C302,N$305:N$316,$C$305:$C$316)))) -> 100 | R302: =IF(MAX(C305:C316)-MIN(C305:C316)<5,AVERAGEIF(C305:C316,">0",R305:R316), IF(FORECAST($C302,R$305:R$316,$C$305:$C$316)<0,0, IF(FORECAST($C302,R$305:R$316,$C$305:$C$316)>100,100, FORECAST($C302,R$305:R$316,$C$305:$C$316)))) -> 0 | S302: =IF(MAX(C305:C316)-MIN(C305:C316)<5,AVERAGEIF(C305:C316,">0",S305:S316), IF(FORECAST($C302,S$305:S$316,$C$305:$C$316)<0,0, IF(FORECAST($C302,S$305:S$316,$C$305:$C$316)>100,100, FORECAST($C302,S$305:S$316,$C$305:$C$316)))) -> 100 | W302: =IF(MAX(C305:C316)-MIN(C305:C316)<5,AVERAGEIF(C305:C316,">0",W305:W316), IF(FORECAST($C302,W$305:W$316,$C$305:$C$316)<0,0, IF(FORECAST($C302,W$305:W$316,$C$305:$C$316)>100,100, FORECAST($C302,W$305:W$316,$C$305:$C$316)))) -> 0 | X302: =IF(MAX(C305:C316)-MIN(C305:C316)<5,AVERAGEIF(C305:C316,">0",X305:X316), IF(FORECAST($C302,X$305:X$316,$C$305:$C$316)<0,0, IF(FORECAST($C302,X$305:X$316,$C$305:$C$316)>100,100, FORECAST($C302,X$305:X$316,$C$305:$C$316)))) -> 100 | AB302: =IF(MAX(C305:C316)-MIN(C305:C316)<5,AVERAGEIF(C305:C316,">0",AB305:AB316), IF(FORECAST($C302,AB$305:AB$316,$C$305:$C$316)<0,0, IF(FORECAST($C302,AB$305:AB$316,$C$305:$C$316)>100,100, FORECAST($C302,AB$305:AB$316,$C$305:$C$316)))) -> 0
B304: Survey | C304: Year | D304: Improved | E304: % Improved < = 30min | H304: Surface water | I304: Improved | J304: % Improved < = 30min | M304: Surface water | N304: Improved | O304: % Improved < = 30min | R304: Surface water | S304: Improved | T304: % Improved < = 30min | W304: Surface water | X304: Improved | Y304: % Improved < = 30min | AB304: Surface water
B305: WHS03 | C305: 2003 | D305: =IF(ISERROR(INDIRECT(CONCATENATE($B305,"!M16"))),"",INDIRECT(CONCATENATE($B305,"!M16"))) -> 28.14018425 | E305: =IF(ISERROR(INDIRECT(CONCATENATE($B305,"!M23"))),"",INDIRECT(CONCATENATE($B305,"!M23"))) -> 98.87632003 | H305: =IF(ISERROR(INDIRECT(CONCATENATE($B305,"!M21"))),"",INDIRECT(CONCATENATE($B305,"!M21"))) -> 13.50730942 | I305: =IF(ISERROR(INDIRECT(CONCATENATE($B305,"!N16"))),"",INDIRECT(CONCATENATE($B305,"!N16"))) -> 34.97729259 | J305: =IF(ISERROR(INDIRECT(CONCATENATE($B305,"!N23"))),"",INDIRECT(CONCATENATE($B305,"!N23"))) -> 100 | M305: =IF(ISERROR(INDIRECT(CONCATENATE($B305,"!N21"))),"",INDIRECT(CONCATENATE($B305,"!N21"))) -> 5.483118919 | N305: =IF(ISERROR(INDIRECT(CONCATENATE($B305,"!O16"))),"",INDIRECT(CONCATENATE($B305,"!O16"))) -> 46.05504715 | O305: =IF(ISERROR(INDIRECT(CONCATENATE($B305,"!O23"))),"",INDIRECT(CONCATENATE($B305,"!O23"))) -> 99.51273727 | R305: =IF(ISERROR(INDIRECT(CONCATENATE($B305,"!O21"))),"",INDIRECT(CONCATENATE($B305,"!O21"))) -> 4.627730323 | S305: =IF(ISERROR(INDIRECT(CONCATENATE($B305,"!P16"))),"",INDIRECT(CONCATENATE($B305,"!P16"))) -> 64.15508256 | T305: =IF(ISERROR(INDIRECT(CONCATENATE($B305,"!P23"))),"",INDIRECT(CONCATENATE($B305,"!P23"))) -> 100 | W305: =IF(ISERROR(INDIRECT(CONCATENATE($B305,"!P21"))),"",INDIRECT(CONCATENATE($B305,"!P21"))) -> 1.375605452 | X305: =IF(ISERROR(INDIRECT(CONCATENATE($B305,"!Q16"))),"",INDIRECT(CONCATENATE($B305,"!Q16"))) -> 88.02256014 | Y305: =IF(ISERROR(INDIRECT(CONCATENATE($B305,"!Q23"))),"",INDIRECT(CONCATENATE($B305,"!Q23"))) -> 99.57897653 | AB305: =IF(ISERROR(INDIRECT(CONCATENATE($B305,"!Q221"))),"",INDIRECT(CONCATENATE($B305,"!Q21"))) -> 1.306499383
B306: EPH09 | C306: 2009 | D306: 74.80015675 | E306: N/A | H306: 1.901623648 | I306: 86.60433964 | J306: N/A | M306: 0.7504050482 | N306: 90.23752633 | O306: N/A | R306: 1.393725522 | S306: 91.61915324 | T306: N/A | W306: 0.6994182463 | X306: 96.43305233 | Y306: N/A | AB306: 0.1165586918
B307: EPH10 | C307: 2010 | D307: 61.36397906 | E307: N/A | H307: 0.263397484 | I307: 57.27422893 | J307: N/A | M307: 0.2524624177 | N307: 65.57741481 | O307: N/A | R307: 0.667006071 | S307: 77.15952144 | T307: N/A | W307: 0.04762004537 | X307: 81.82271757 | Y307: N/A | AB307: 0
B308: EPH11 | C308: 2011 | D308: 81.49568009 | E308: N/A | H308: 0.6741891318 | I308: 88.74409966 | J308: N/A | M308: 0.6773062563 | N308: 93.43090731 | O308: N/A | R308: 0 | S308: 93.49852973 | T308: N/A | W308: 0 | X308: 94.028537 | Y308: N/A | AB308: 0
B309: EPH12 | C309: 2012 | D309: 71.95684691 | E309: N/A | H309: 6.237379403 | I309: 84.82829131 | J309: N/A | M309: 2.578582286 | N309: 88.65458737 | O309: N/A | R309: 0 | S309: 92.28526804 | T309: N/A | W309: 0 | X309: 94.72902795 | Y309: N/A | AB309: 0
B310: EPH13 | C310: 2013 | D310: 81.12038576 | E310: N/A | H310: 0.3677131208 | I310: 88.46009533 | J310: N/A | M310: 0.4792350072 | N310: 92.61179059 | O310: N/A | R310: 0.2936091929 | S310: 92.94907309 | T310: N/A | W310: 0 | X310: 98.13011788 | Y310: N/A | AB310: 0
B311: MICS16 | C311: 2016 | D311: 70.68699206 | E311: 99.18107195 | H311: 2.784969202 | I311: 86.89601331 | J311: 99.32531729 | M311: 1.213497115 | N311: 94.96797607 | O311: 100 | R311: 0.3674412218 | S311: 97.09397622 | T311: 99.84548718 | W311: 0.007255455419 | X311: 99.71927682 | Y311: 100 | AB311: 0
B318: =CONCATENATE("Rural use of drinking water sources, ",C299,"–",C300) -> Rural use of drinking water sources, 2000–2020 | S318: Data points used for regression

Sheet Sanitation
B4: Summary of trends in use of sanitation facilities by wealth quintile (%)
B5: =IF(ISERROR(INDIRECT(CONCATENATE($B105,"!A2"))),"",INDIRECT(CONCATENATE($B105,"!A2"))) -> Paraguay
B7: =B118 -> National use of sanitation facilities, 2000–2020 | J7: =B218 -> Urban use of sanitation facilities, 2000–2020 | R7: =B318 -> Rural use of sanitation facilities, 2000–2020
B31: =IF(ISERROR(INDIRECT(CONCATENATE($B105,"!A2"))),"",INDIRECT(CONCATENATE($B105,"!A2"))) -> Paraguay | F31: Poorest | J31: Poor | N31: Middle | R31: Rich | V31: Richest
F32: Basic | G32: Limited | H32: Unimproved | I32: Open defecation | J32: Basic | K32: Limited | L32: Unimproved | M32: Open defecation | N32: Basic | O32: Limited | P32: Unimproved | Q32: Open defecation | R32: Basic | S32: Limited | T32: Unimproved | U32: Open defecation | V32: Basic | W32: Limited | X32: Unimproved | Y32: Open defecation
B33: NATIONAL | D33: Estimate | E33: =C99 -> 2000 | F33: =E99 -> 35.77023162 | G33: =F99 -> 2.235394344 | H33: 60.97601401 | I33: 1.018360021 | J33: =J99 -> 70.57818179 | K33: =K99 -> 3.703216507 | L33: 25.70770878 | M33: 0.01089292161 | N33: =O99 -> 84.93455798 | O33: =P99 -> 4.289320581 | P33: 10.67617637 | Q33: 0.09994506212 | R33: =T99 -> 95.92229764 | S33: =U99 -> 3.112454521 | T33: 0.965247841 | U33: 0 | V33: =Y99 -> 98.99411413 | W33: =Z99 -> 0.9700109965 | X33: 0.03587487058 | Y33: 0
E34: =C100 -> 2020 | F34: =E100 -> 58.34371525 | G34: 3.646082375 | H34: 37.532766 | I34: 0.4774363744 | J34: =J100 -> 87.88271893 | K34: 4.611180497 | L34: 7.239994034 | M34: 0.2661065417 | N34: =O100 -> 95.16158348 | O34: 4.805800469 | P34: 0 | Q34: 0.03261604693 | R34: =T100 -> 96.12328371 | S34: 3.11897605 | T34: 0.7316824497 | U34: 0.02605778654 | V34: =Y100 -> 98.43056497 | W34: 0.9644889623 | X34: 0.6049460684 | Y34: 0
B36: URBAN | D36: Estimate | E36: =C199 -> 2000 | F36: =E199 -> 70.50131718 | G36: =F199 -> 7.647137104 | H36: 20.99304951 | I36: 0.8584962045 | J36: =J199 -> 87.48540378 | K36: =K199 -> 7.709878085 | L36: 4.804718135 | M36: 0 | N36: =O199 -> 95.58570368 | O36: =P199 -> 3.950433179 | P36: 0.4638631369 | Q36: 0 | R36: =T199 -> 97.45718272 | S36: =U199 -> 1.968477033 | T36: 0.5743402436 | U36: 0 | V36: =Y199 -> 99.41022329 | W36: =Z199 -> 0.5897767128 | X36: 0 | Y36: 0
E37: =C200 -> 2020 | F37: =E200 -> 80.1363296 | G37: 8.692227664 | H37: 11.17144273 | I37: 0 | J37: =J200 -> 91.45586676 | K37: 8.059785432 | L37: 0.3741242911 | M37: 0.1102235158 | N37: =O200 -> 94.99990168 | O37: 3.926222742 | P37: 1.030253992 | Q37: 0.04362158589 | R37: =T200 -> 97.32302975 | S37: 1.965767361 | T37: 0.7112028924 | U37: 0 | V37: =Y200 -> 98.64863809 | W37: 0.5852584128 | X37: 0.7661034949 | Y37: 0
B39: RURAL | D39: Estimate | E39: =C299 -> 2000 | F39: =E299 -> 23.56258873 | G39: =F299 -> 1.324637867 | H39: 74.24011021 | I39: 0.872663193 | J39: =J299 -> 47.38125624 | K39: =K299 -> 1.744668664 | L39: 50.87407509 | M39: 0 | N39: =O299 -> 66.40752046 | O39: =P299 -> 1.601648076 | P39: 31.64080351 | Q39: 0.35002795 | R39: =T299 -> 77.86757172 | S39: =U299 -> 1.442020367 | T39: 20.67987768 | U39: 0.01053023632 | V39: =Y299 -> 95.23928777 | W39: =Z299 -> 0.3311618153 | X39: 4.429550413 | Y39: 0
E40: =C300 -> 2020 | F40: =E300 -> 44.05438338 | G40: 2.476642321 | H40: 51.8509668 | I40: 1.618007497 | J40: =J300 -> 63.95642943 | K40: 2.354998309 | L40: 33.1809882 | M40: 0.5075840531 | N40: =O300 -> 83.52405886 | O40: 2.014472868 | P40: 14.46146827 | Q40: 0 | R40: =T300 -> 95.20167857 | S40: 1.763028645 | T40: 2.874632342 | U40: 0.1606604479 | V40: =Y300 -> 99.53265613 | W40: 0.3460905248 | X40: 0 | Y40: 0.1212533425
A97: NATIONAL | D97: Poorest | I97: Poor | N97: Middle | S97: Rich | X97: Richest
D98: Improved | E98: Basic | F98: Limited | G98: Unimproved | H98: Open defecation | I98: Improved | J98: Basic | K98: Limited | L98: Unimproved | M98: Open defecation | N98: Improved | O98: Basic | P98: Limited | Q98: Unimproved | R98: Open defecation | S98: Improved | T98: Basic | U98: Limited | V98: Unimproved | W98: Open defecation | X98: Improved | Y98: Basic | Z98: Limited | AA98: Unimproved | AB98: Open defecation
A99: Forecast period: | C99: 2000 | D99: =IF((D101+H101)>100,D101*100/(D101+H101),D101) -> 38.00562596 | E99: =D99*AVERAGEIF(E105:E116,">0")/100 -> 35.77023162 | F99: =D99*(100-AVERAGEIF(E105:E116,">0"))/100 -> 2.235394344 | G99: =100-(E99+F99+H99) -> 60.97601401 | H99: =IF((D101+H101)>100,H101*100/(D101+H101),H101) -> 1.018360021 | I99: =IF((I101+M101)>100,I101*100/(I101+M101),I101) -> 74.2813983 | J99: =I99*AVERAGEIF(J105:J116,">0")/100 -> 70.57818179 | K99: =I99*(100-AVERAGEIF(J105:J116,">0"))/100 -> 3.703216507 | L99: =100-(J99+K99+M99) -> 25.70770878 | M99: =IF((I101+M101)>100,M101*100/(I101+M101),M101) -> 0.01089292161 | N99: =IF((N101+R101)>100,N101*100/(N101+R101),N101) -> 89.22387857 | O99: =N99*AVERAGEIF(O105:O116,">0")/100 -> 84.93455798 | P99: =N99*(100-AVERAGEIF(O105:O116,">0"))/100 -> 4.289320581 | Q99: =100-(O99+P99+R99) -> 10.67617637 | R99: =IF((N101+R101)>100,R101*100/(N101+R101),R101) -> 0.09994506212 | S99: =IF((S101+W101)>100,S101*100/(S101+W101),S101) -> 99.03475216 | T99: =S99*AVERAGEIF(T105:T116,">0")/100 -> 95.92229764 | U99: =S99*(100-AVERAGEIF(T105:T116,">0"))/100 -> 3.112454521 | V99: =100-(T99+U99+W99) -> 0.965247841 | W99: =IF((S101+W101)>100,W101*100/(S101+W101),W101) -> 0 | X99: =IF((X101+AB101)>100,X101*100/(X101+AB101),X101) -> 99.96412513 | Y99: =X99*AVERAGEIF(Y105:Y116,">0")/100 -> 98.99411413 | Z99: =X99*(100-AVERAGEIF(Y105:Y116,">0"))/100 -> 0.9700109965 | AA99: =100-(Y99+Z99+AB99) -> 0.03587487058 | AB99: =IF((X101+AB101)>100,AB101*100/(X101+AB101),AB101) -> 0
C100: 2020 | D100: =IF((D102+H102)>100,D102*100/(D102+H102),D102) -> 61.98979762 | E100: =D100*AVERAGEIF(E105:E116,">0")/100 -> 58.34371525 | F100: =D100*(100-AVERAGEIF(E105:E116,">0"))/100 -> 3.646082375 | G100: =100-(E100+F100+H100) -> 37.532766 | H100: =IF((D102+H102)>100,H102*100/(D102+H102),H102) -> 0.4774363744 | I100: =IF((I102+M102)>100,I102*100/(I102+M102),I102) -> 92.49389942 | J100: =I100*AVERAGEIF(J105:J116,">0")/100 -> 87.88271893 | K100: =I100*(100-AVERAGEIF(J105:J116,">0"))/100 -> 4.611180497 | L100: =100-(J100+K100+M100) -> 7.239994034 | M100: =IF((I102+M102)>100,M102*100/(I102+M102),M102) -> 0.2661065417 | N100: =IF((N102+R102)>100,N102*100/(N102+R102),N102) -> 99.96738395 | O100: =N100*AVERAGEIF(O105:O116,">0")/100 -> 95.16158348 | P100: =N100*(100-AVERAGEIF(O105:O116,">0"))/100 -> 4.805800469 | Q100: =100-(O100+P100+R100) -> 0 | R100: =IF((N102+R102)>100,R102*100/(N102+R102),R102) -> 0.03261604693 | S100: =IF((S102+W102)>100,S102*100/(S102+W102),S102) -> 99.24225976 | T100: =S100*AVERAGEIF(T105:T116,">0")/100 -> 96.12328371 | U100: =S100*(100-AVERAGEIF(T105:T116,">0"))/100 -> 3.11897605 | V100: =100-(T100+U100+W100) -> 0.7316824497 | W100: =IF((S102+W102)>100,W102*100/(S102+W102),W102) -> 0.02605778654 | X100: =IF((X102+AB102)>100,X102*100/(X102+AB102),X102) -> 99.39505393 | Y100: =X100*AVERAGEIF(Y105:Y116,">0")/100 -> 98.43056497 | Z100: =X100*(100-AVERAGEIF(Y105:Y116,">0"))/100 -> 0.9644889623 | AA100: =100-(Y100+Z100+AB100) -> 0.6049460684 | AB100: =IF((X102+AB102)>100,AB102*100/(X102+AB102),AB102) -> 0
A101: Regression period: | C101: =MinRegYear(C99,C105:C116) -> 2001 | D101: =IF(MAX(C105:C116)-MIN(C105:C116)<5,AVERAGEIF(C105:C116,">0",D105:D116), IF(FORECAST($C101,D$105:D$116,$C$105:$C$116)<0,0, IF(FORECAST($C101,D$105:D$116,$C$105:$C$116)>100,100, FORECAST($C101,D$105:D$116,$C$105:$C$116)))) -> 38.00562596 | H101: =IF(MAX(C105:C116)-MIN(C105:C116)<5,AVERAGEIF(C105:C116,">0",H105:H116), IF(FORECAST($C101,H$105:H$116,$C$105:$C$116)<0,0, IF(FORECAST($C101,H$105:H$116,$C$105:$C$116)>100,100, FORECAST($C101,H$105:H$116,$C$105:$C$116)))) -> 1.018360021 | I101: =IF(MAX(C105:C116)-MIN(C105:C116)<5,AVERAGEIF(C105:C116,">0",I105:I116), IF(FORECAST($C101,I$105:I$116,$C$105:$C$116)<0,0, IF(FORECAST($C101,I$105:I$116,$C$105:$C$116)>100,100, FORECAST($C101,I$105:I$116,$C$105:$C$116)))) -> 74.2813983 | M101: =IF(MAX(C105:C116)-MIN(C105:C116)<5,AVERAGEIF(C105:C116,">0",M105:M116), IF(FORECAST($C101,M$105:M$116,$C$105:$C$116)<0,0, IF(FORECAST($C101,M$105:M$116,$C$105:$C$116)>100,100, FORECAST($C101,M$105:M$116,$C$105:$C$116)))) -> 0.01089292161 | N101: =IF(MAX(C105:C116)-MIN(C105:C116)<5,AVERAGEIF(C105:C116,">0",N105:N116), IF(FORECAST($C101,N$105:N$116,$C$105:$C$116)<0,0, IF(FORECAST($C101,N$105:N$116,$C$105:$C$116)>100,100, FORECAST($C101,N$105:N$116,$C$105:$C$116)))) -> 89.22387857 | R101: =IF(MAX(C105:C116)-MIN(C105:C116)<5,AVERAGEIF(C105:C116,">0",R105:R116), IF(FORECAST($C101,R$105:R$116,$C$105:$C$116)<0,0, IF(FORECAST($C101,R$105:R$116,$C$105:$C$116)>100,100, FORECAST($C101,R$105:R$116,$C$105:$C$116)))) -> 0.09994506212 | S101: =IF(MAX(C105:C116)-MIN(C105:C116)<5,AVERAGEIF(C105:C116,">0",S105:S116), IF(FORECAST($C101,S$105:S$116,$C$105:$C$116)<0,0, IF(FORECAST($C101,S$105:S$116,$C$105:$C$116)>100,100, FORECAST($C101,S$105:S$116,$C$105:$C$116)))) -> 99.03475216 | W101: =IF(MAX(C105:C116)-MIN(C105:C116)<5,AVERAGEIF(C105:C116,">0",W105:W116), IF(FORECAST($C101,W$105:W$116,$C$105:$C$116)<0,0, IF(FORECAST($C101,W$105:W$116,$C$105:$C$116)>100,100, FORECAST($C101,W$105:W$116,$C$105:$C$116)))) -> 0 | X101: =IF(MAX(C105:C116)-MIN(C105:C116)<5,AVERAGEIF(C105:C116,">0",X105:X116), IF(FORECAST($C101,X$105:X$116,$C$105:$C$116)<0,0, IF(FORECAST($C101,X$105:X$116,$C$105:$C$116)>100,100, FORECAST($C101,X$105:X$116,$C$105:$C$116)))) -> 99.96412513 | AB101: =IF(MAX(C105:C116)-MIN(C105:C116)<5,AVERAGEIF(C105:C116,">0",AB105:AB116), IF(FORECAST($C101,AB$105:AB$116,$C$105:$C$116)<0,0, IF(FORECAST($C101,AB$105:AB$116,$C$105:$C$116)>100,100, FORECAST($C101,AB$105:AB$116,$C$105:$C$116)))) -> 0
C102: =MaxRegYear(C100,C105:C116) -> 2018 | D102: =IF(MAX(C105:C116)-MIN(C105:C116)<5,AVERAGEIF(C105:C116,">0",D105:D116), IF(FORECAST($C102,D$105:D$116,$C$105:$C$116)<0,0, IF(FORECAST($C102,D$105:D$116,$C$105:$C$116)>100,100, FORECAST($C102,D$105:D$116,$C$105:$C$116)))) -> 61.98979762 | H102: =IF(MAX(C105:C116)-MIN(C105:C116)<5,AVERAGEIF(C105:C116,">0",H105:H116), IF(FORECAST($C102,H$105:H$116,$C$105:$C$116)<0,0, IF(FORECAST($C102,H$105:H$116,$C$105:$C$116)>100,100, FORECAST($C102,H$105:H$116,$C$105:$C$116)))) -> 0.4774363744 | I102: =IF(MAX(C105:C116)-MIN(C105:C116)<5,AVERAGEIF(C105:C116,">0",I105:I116), IF(FORECAST($C102,I$105:I$116,$C$105:$C$116)<0,0, IF(FORECAST($C102,I$105:I$116,$C$105:$C$116)>100,100, FORECAST($C102,I$105:I$116,$C$105:$C$116)))) -> 92.49389942 | M102: =IF(MAX(C105:C116)-MIN(C105:C116)<5,AVERAGEIF(C105:C116,">0",M105:M116), IF(FORECAST($C102,M$105:M$116,$C$105:$C$116)<0,0, IF(FORECAST($C102,M$105:M$116,$C$105:$C$116)>100,100, FORECAST($C102,M$105:M$116,$C$105:$C$116)))) -> 0.2661065417 | N102: =IF(MAX(C105:C116)-MIN(C105:C116)<5,AVERAGEIF(C105:C116,">0",N105:N116), IF(FORECAST($C102,N$105:N$116,$C$105:$C$116)<0,0, IF(FORECAST($C102,N$105:N$116,$C$105:$C$116)>100,100, FORECAST($C102,N$105:N$116,$C$105:$C$116)))) -> 100 | R102: =IF(MAX(C105:C116)-MIN(C105:C116)<5,AVERAGEIF(C105:C116,">0",R105:R116), IF(FORECAST($C102,R$105:R$116,$C$105:$C$116)<0,0, IF(FORECAST($C102,R$105:R$116,$C$105:$C$116)>100,100, FORECAST($C102,R$105:R$116,$C$105:$C$116)))) -> 0.03262668846 | S102: =IF(MAX(C105:C116)-MIN(C105:C116)<5,AVERAGEIF(C105:C116,">0",S105:S116), IF(FORECAST($C102,S$105:S$116,$C$105:$C$116)<0,0, IF(FORECAST($C102,S$105:S$116,$C$105:$C$116)>100,100, FORECAST($C102,S$105:S$116,$C$105:$C$116)))) -> 99.24225976 | W102: =IF(MAX(C105:C116)-MIN(C105:C116)<5,AVERAGEIF(C105:C116,">0",W105:W116), IF(FORECAST($C102,W$105:W$116,$C$105:$C$116)<0,0, IF(FORECAST($C102,W$105:W$116,$C$105:$C$116)>100,100, FORECAST($C102,W$105:W$116,$C$105:$C$116)))) -> 0.02605778654 | X102: =IF(MAX(C105:C116)-MIN(C105:C116)<5,AVERAGEIF(C105:C116,">0",X105:X116), IF(FORECAST($C102,X$105:X$116,$C$105:$C$116)<0,0, IF(FORECAST($C102,X$105:X$116,$C$105:$C$116)>100,100, FORECAST($C102,X$105:X$116,$C$105:$C$116)))) -> 99.39505393 | AB102: =IF(MAX(C105:C116)-MIN(C105:C116)<5,AVERAGEIF(C105:C116,">0",AB105:AB116), IF(FORECAST($C102,AB$105:AB$116,$C$105:$C$116)<0,0, IF(FORECAST($C102,AB$105:AB$116,$C$105:$C$116)>100,100, FORECAST($C102,AB$105:AB$116,$C$105:$C$116)))) -> 0
B104: Survey | C104: Year | D104: Improved | E104: Not shared | H104: Open defecation | I104: Improved | J104: Not shared | M104: Open defecation | N104: Improved | O104: Not shared | R104: Open defecation | S104: Improved | T104: Not shared | W104: Open defecation | X104: Improved | Y104: Not shared | AB104: Open defecation
B105: WHS03 | C105: 2003 | D105: =IF(ISERROR(INDIRECT(CONCATENATE($B105,"!C122"))),"",INDIRECT(CONCATENATE($B105,"!C122"))) -> 35.59325422 | E105: =IF(ISERROR(INDIRECT(CONCATENATE($B105,"!C129"))),"",INDIRECT(CONCATENATE($B105,"!C129"))) -> 95.1474791 | H105: =IF(ISERROR(INDIRECT(CONCATENATE($B105,"!C127"))),"",INDIRECT(CONCATENATE($B105,"!C127"))) -> 2.254029053 | I105: =IF(ISERROR(INDIRECT(CONCATENATE($B105,"!D122"))),"",INDIRECT(CONCATENATE($B105,"!D122"))) -> 73.30267341 | J105: =IF(ISERROR(INDIRECT(CONCATENATE($B105,"!D129"))),"",INDIRECT(CONCATENATE($B105,"!D129"))) -> 95.54326243 | M105: =IF(ISERROR(INDIRECT(CONCATENATE($B105,"!D127"))),"",INDIRECT(CONCATENATE($B105,"!D127"))) -> 0.3180105826 | N105: =IF(ISERROR(INDIRECT(CONCATENATE($B105,"!E122"))),"",INDIRECT(CONCATENATE($B105,"!E122"))) -> 88.58028205 | O105: =IF(ISERROR(INDIRECT(CONCATENATE($B105,"!E129"))),"",INDIRECT(CONCATENATE($B105,"!E129"))) -> 94.5410505 | R105: =IF(ISERROR(INDIRECT(CONCATENATE($B105,"!E127"))),"",INDIRECT(CONCATENATE($B105,"!E127"))) -> 0.1877411825 | S105: =IF(ISERROR(INDIRECT(CONCATENATE($B105,"!F122"))),"",INDIRECT(CONCATENATE($B105,"!F122"))) -> 99.00316647 | T105: =IF(ISERROR(INDIRECT(CONCATENATE($B105,"!F129"))),"",INDIRECT(CONCATENATE($B105,"!F129"))) -> 96.15463112 | W105: =IF(ISERROR(INDIRECT(CONCATENATE($B105,"!F127"))),"",INDIRECT(CONCATENATE($B105,"!F127"))) -> 0 | X105: =IF(ISERROR(INDIRECT(CONCATENATE($B105,"!G122"))),"",INDIRECT(CONCATENATE($B105,"!G122"))) -> 99.80063638 | Y105: =IF(ISERROR(INDIRECT(CONCATENATE($B105,"!G129"))),"",INDIRECT(CONCATENATE($B105,"!G129"))) -> 99.32688088 | AB105: =IF(ISERROR(INDIRECT(CONCATENATE($B105,"!G2127"))),"",INDIRECT(CONCATENATE($B105,"!G127"))) -> 0
B106: EPH09 | C106: 2009 | D106: 53.21848936 | E106: N/A | H106: 0 | I106: 85.89889641 | J106: N/A | M106: 0 | N106: 97.53586756 | O106: N/A | R106: 0 | S106: 99.2324453 | T106: N/A | W106: 0 | X106: 99.97813946 | Y106: N/A | AB106: 0
B107: EPH10 | C107: 2010 | D107: 45.28933552 | E107: N/A | H107: 0.08966374477 | I107: 80.72074202 | J107: N/A | M107: 0 | N107: 95.81736962 | O107: N/A | R107: 0 | S107: 98.63581564 | T107: N/A | W107: 0 | X107: 99.62684141 | Y107: N/A | AB107: 0
B108: EPH11 | C108: 2011 | D108: 67.66462739 | E108: N/A | H108: 0.07869130547 | I108: 88.79367657 | J108: N/A | M108: 0.05462719458 | N108: 97.62901699 | O108: N/A | R108: 0.060788487 | S108: 99.36401793 | T108: N/A | W108: 0 | X108: 99.20543235 | Y108: N/A | AB108: 0
B109: EPH12 | C109: 2012 | D109: 49.73335789 | E109: N/A | H109: 0 | I109: 86.94754982 | J109: N/A | M109: 0 | N109: 97.76437483 | O109: N/A | R109: 0 | S109: 99.26447062 | T109: N/A | W109: 0 | X109: 99.67225126 | Y109: N/A | AB109: 0
B110: EPH13 | C110: 2013 | D110: 58.42040648 | E110: N/A | H110: 0 | I110: 92.45171609 | J110: N/A | M110: 0 | N110: 98.30684646 | O110: N/A | R110: 0 | S110: 99.73543949 | T110: N/A | W110: 0.07956931247 | X110: 100 | Y110: N/A | AB110: 0
B111: MICS16 | C111: 2016 | D111: 50.6457639 | E111: 93.08902911 | H111: 2.574260496 | I111: 83.63321467 | J111: 94.48595998 | M111: 0.7094545884 | N111: 97.49949994 | O111: 95.84421261 | R111: 0.185772175 | S111: 98.82573374 | T111: 97.55978841 | W111: 0 | X111: 99.22276503 | Y111: 98.73240089 | AB111: 0
B118: =CONCATENATE("National use of sanitation facilities, ",C99,"–",C100) -> National use of sanitation facilities, 2000–2020 | S118: Data points used for regression
A197: URBAN | D197: Poorest | I197: Poor | N197: Middle | S197: Rich | X197: Richest
D198: Improved | E198: Basic | F198: Limited | G198: Unimproved | H198: Open defecation | I198: Improved | J198: Basic | K198: Limited | L198: Unimproved | M198: Open defecation | N198: Improved | O198: Basic | P198: Limited | Q198: Unimproved | R198: Open defecation | S198: Improved | T198: Basic | U198: Limited | V198: Unimproved | W198: Open defecation | X198: Improved | Y198: Basic | Z198: Limited | AA198: Unimproved | AB198: Open defecation
A199: Forecast period: | C199: 2000 | D199: =IF((D201+H201)>100,D201*100/(D201+H201),D201) -> 78.14845428 | E199: =D199*AVERAGEIF(E205:E216,">0")/100 -> 70.50131718 | F199: =D199*(100-AVERAGEIF(E205:E216,">0"))/100 -> 7.647137104 | G199: =100-(E199+F199+H199) -> 20.99304951 | H199: =IF((D201+H201)>100,H201*100/(D201+H201),H201) -> 0.8584962045 | I199: =IF((I201+M201)>100,I201*100/(I201+M201),I201) -> 95.19528186 | J199: =I199*AVERAGEIF(J205:J216,">0")/100 -> 87.48540378 | K199: =I199*(100-AVERAGEIF(J205:J216,">0"))/100 -> 7.709878085 | L199: =100-(J199+K199+M199) -> 4.804718135 | M199: =IF((I201+M201)>100,M201*100/(I201+M201),M201) -> 0 | N199: =IF((N201+R201)>100,N201*100/(N201+R201),N201) -> 99.53613686 | O199: =N199*AVERAGEIF(O205:O216,">0")/100 -> 95.58570368 | P199: =N199*(100-AVERAGEIF(O205:O216,">0"))/100 -> 3.950433179 | Q199: =100-(O199+P199+R199) -> 0.4638631369 | R199: =IF((N201+R201)>100,R201*100/(N201+R201),R201) -> 0 | S199: =IF((S201+W201)>100,S201*100/(S201+W201),S201) -> 99.42565976 | T199: =S199*AVERAGEIF(T205:T216,">0")/100 -> 97.45718272 | U199: =S199*(100-AVERAGEIF(T205:T216,">0"))/100 -> 1.968477033 | V199: =100-(T199+U199+W199) -> 0.5743402436 | W199: =IF((S201+W201)>100,W201*100/(S201+W201),W201) -> 0 | X199: =IF((X201+AB201)>100,X201*100/(X201+AB201),X201) -> 100 | Y199: =X199*AVERAGEIF(Y205:Y216,">0")/100 -> 99.41022329 | Z199: =X199*(100-AVERAGEIF(Y205:Y216,">0"))/100 -> 0.5897767128 | AA199: =100-(Y199+Z199+AB199) -> 0 | AB199: =IF((X201+AB201)>100,AB201*100/(X201+AB201),AB201) -> 0
C200: 2020 | D200: =IF((D202+H202)>100,D202*100/(D202+H202),D202) -> 88.82855727 | E200: =D200*AVERAGEIF(E205:E216,">0")/100 -> 80.1363296 | F200: =D200*(100-AVERAGEIF(E205:E216,">0"))/100 -> 8.692227664 | G200: =100-(E200+F200+H200) -> 11.17144273 | H200: =IF((D202+H202)>100,H202*100/(D202+H202),H202) -> 0 | I200: =IF((I202+M202)>100,I202*100/(I202+M202),I202) -> 99.51565219 | J200: =I200*AVERAGEIF(J205:J216,">0")/100 -> 91.45586676 | K200: =I200*(100-AVERAGEIF(J205:J216,">0"))/100 -> 8.059785432 | L200: =100-(J200+K200+M200) -> 0.3741242911 | M200: =IF((I202+M202)>100,M202*100/(I202+M202),M202) -> 0.1102235158 | N200: =IF((N202+R202)>100,N202*100/(N202+R202),N202) -> 98.92612442 | O200: =N200*AVERAGEIF(O205:O216,">0")/100 -> 94.99990168 | P200: =N200*(100-AVERAGEIF(O205:O216,">0"))/100 -> 3.926222742 | Q200: =100-(O200+P200+R200) -> 1.030253992 | R200: =IF((N202+R202)>100,R202*100/(N202+R202),R202) -> 0.04362158589 | S200: =IF((S202+W202)>100,S202*100/(S202+W202),S202) -> 99.28879711 | T200: =S200*AVERAGEIF(T205:T216,">0")/100 -> 97.32302975 | U200: =S200*(100-AVERAGEIF(T205:T216,">0"))/100 -> 1.965767361 | V200: =100-(T200+U200+W200) -> 0.7112028924 | W200: =IF((S202+W202)>100,W202*100/(S202+W202),W202) -> 0 | X200: =IF((X202+AB202)>100,X202*100/(X202+AB202),X202) -> 99.23389651 | Y200: =X200*AVERAGEIF(Y205:Y216,">0")/100 -> 98.64863809 | Z200: =X200*(100-AVERAGEIF(Y205:Y216,">0"))/100 -> 0.5852584128 | AA200: =100-(Y200+Z200+AB200) -> 0.7661034949 | AB200: =IF((X202+AB202)>100,AB202*100/(X202+AB202),AB202) -> 0
A201: Regression period: | C201: =MinRegYear(C199,C205:C216) -> 2001 | D201: =IF(MAX(C205:C216)-MIN(C205:C216)<5,AVERAGEIF(C205:C216,">0",D205:D216), IF(FORECAST($C201,D$205:D$216,$C$205:$C$216)<0,0, IF(FORECAST($C201,D$205:D$216,$C$205:$C$216)>100,100, FORECAST($C201,D$205:D$216,$C$205:$C$216)))) -> 78.14845428 | H201: =IF(MAX(C205:C216)-MIN(C205:C216)<5,AVERAGEIF(C205:C216,">0",H205:H216), IF(FORECAST($C201,H$205:H$216,$C$205:$C$216)<0,0, IF(FORECAST($C201,H$205:H$216,$C$205:$C$216)>100,100, FORECAST($C201,H$205:H$216,$C$205:$C$216)))) -> 0.8584962045 | I201: =IF(MAX(C205:C216)-MIN(C205:C216)<5,AVERAGEIF(C205:C216,">0",I205:I216), IF(FORECAST($C201,I$205:I$216,$C$205:$C$216)<0,0, IF(FORECAST($C201,I$205:I$216,$C$205:$C$216)>100,100, FORECAST($C201,I$205:I$216,$C$205:$C$216)))) -> 95.19528186 | M201: =IF(MAX(C205:C216)-MIN(C205:C216)<5,AVERAGEIF(C205:C216,">0",M205:M216), IF(FORECAST($C201,M$205:M$216,$C$205:$C$216)<0,0, IF(FORECAST($C201,M$205:M$216,$C$205:$C$216)>100,100, FORECAST($C201,M$205:M$216,$C$205:$C$216)))) -> 0 | N201: =IF(MAX(C205:C216)-MIN(C205:C216)<5,AVERAGEIF(C205:C216,">0",N205:N216), IF(FORECAST($C201,N$205:N$216,$C$205:$C$216)<0,0, IF(FORECAST($C201,N$205:N$216,$C$205:$C$216)>100,100, FORECAST($C201,N$205:N$216,$C$205:$C$216)))) -> 99.53613686 | R201: =IF(MAX(C205:C216)-MIN(C205:C216)<5,AVERAGEIF(C205:C216,">0",R205:R216), IF(FORECAST($C201,R$205:R$216,$C$205:$C$216)<0,0, IF(FORECAST($C201,R$205:R$216,$C$205:$C$216)>100,100, FORECAST($C201,R$205:R$216,$C$205:$C$216)))) -> 0 | S201: =IF(MAX(C205:C216)-MIN(C205:C216)<5,AVERAGEIF(C205:C216,">0",S205:S216), IF(FORECAST($C201,S$205:S$216,$C$205:$C$216)<0,0, IF(FORECAST($C201,S$205:S$216,$C$205:$C$216)>100,100, FORECAST($C201,S$205:S$216,$C$205:$C$216)))) -> 99.42565976 | W201: =IF(MAX(C205:C216)-MIN(C205:C216)<5,AVERAGEIF(C205:C216,">0",W205:W216), IF(FORECAST($C201,W$205:W$216,$C$205:$C$216)<0,0, IF(FORECAST($C201,W$205:W$216,$C$205:$C$216)>100,100, FORECAST($C201,W$205:W$216,$C$205:$C$216)))) -> 0 | X201: =IF(MAX(C205:C216)-MIN(C205:C216)<5,AVERAGEIF(C205:C216,">0",X205:X216), IF(FORECAST($C201,X$205:X$216,$C$205:$C$216)<0,0, IF(FORECAST($C201,X$205:X$216,$C$205:$C$216)>100,100, FORECAST($C201,X$205:X$216,$C$205:$C$216)))) -> 100 | AB201: =IF(MAX(C205:C216)-MIN(C205:C216)<5,AVERAGEIF(C205:C216,">0",AB205:AB216), IF(FORECAST($C201,AB$205:AB$216,$C$205:$C$216)<0,0, IF(FORECAST($C201,AB$205:AB$216,$C$205:$C$216)>100,100, FORECAST($C201,AB$205:AB$216,$C$205:$C$216)))) -> 0
C202: =MaxRegYear(C200,C205:C216) -> 2018 | D202: =IF(MAX(C205:C216)-MIN(C205:C216)<5,AVERAGEIF(C205:C216,">0",D205:D216), IF(FORECAST($C202,D$205:D$216,$C$205:$C$216)<0,0, IF(FORECAST($C202,D$205:D$216,$C$205:$C$216)>100,100, FORECAST($C202,D$205:D$216,$C$205:$C$216)))) -> 88.82855727 | H202: =IF(MAX(C205:C216)-MIN(C205:C216)<5,AVERAGEIF(C205:C216,">0",H205:H216), IF(FORECAST($C202,H$205:H$216,$C$205:$C$216)<0,0, IF(FORECAST($C202,H$205:H$216,$C$205:$C$216)>100,100, FORECAST($C202,H$205:H$216,$C$205:$C$216)))) -> 0 | I202: =IF(MAX(C205:C216)-MIN(C205:C216)<5,AVERAGEIF(C205:C216,">0",I205:I216), IF(FORECAST($C202,I$205:I$216,$C$205:$C$216)<0,0, IF(FORECAST($C202,I$205:I$216,$C$205:$C$216)>100,100, FORECAST($C202,I$205:I$216,$C$205:$C$216)))) -> 99.51565219 | M202: =IF(MAX(C205:C216)-MIN(C205:C216)<5,AVERAGEIF(C205:C216,">0",M205:M216), IF(FORECAST($C202,M$205:M$216,$C$205:$C$216)<0,0, IF(FORECAST($C202,M$205:M$216,$C$205:$C$216)>100,100, FORECAST($C202,M$205:M$216,$C$205:$C$216)))) -> 0.1102235158 | N202: =IF(MAX(C205:C216)-MIN(C205:C216)<5,AVERAGEIF(C205:C216,">0",N205:N216), IF(FORECAST($C202,N$205:N$216,$C$205:$C$216)<0,0, IF(FORECAST($C202,N$205:N$216,$C$205:$C$216)>100,100, FORECAST($C202,N$205:N$216,$C$205:$C$216)))) -> 98.92612442 | R202: =IF(MAX(C205:C216)-MIN(C205:C216)<5,AVERAGEIF(C205:C216,">0",R205:R216), IF(FORECAST($C202,R$205:R$216,$C$205:$C$216)<0,0, IF(FORECAST($C202,R$205:R$216,$C$205:$C$216)>100,100, FORECAST($C202,R$205:R$216,$C$205:$C$216)))) -> 0.04362158589 | S202: =IF(MAX(C205:C216)-MIN(C205:C216)<5,AVERAGEIF(C205:C216,">0",S205:S216), IF(FORECAST($C202,S$205:S$216,$C$205:$C$216)<0,0, IF(FORECAST($C202,S$205:S$216,$C$205:$C$216)>100,100, FORECAST($C202,S$205:S$216,$C$205:$C$216)))) -> 99.28879711 | W202: =IF(MAX(C205:C216)-MIN(C205:C216)<5,AVERAGEIF(C205:C216,">0",W205:W216), IF(FORECAST($C202,W$205:W$216,$C$205:$C$216)<0,0, IF(FORECAST($C202,W$205:W$216,$C$205:$C$216)>100,100, FORECAST($C202,W$205:W$216,$C$205:$C$216)))) -> 0 | X202: =IF(MAX(C205:C216)-MIN(C205:C216)<5,AVERAGEIF(C205:C216,">0",X205:X216), IF(FORECAST($C202,X$205:X$216,$C$205:$C$216)<0,0, IF(FORECAST($C202,X$205:X$216,$C$205:$C$216)>100,100, FORECAST($C202,X$205:X$216,$C$205:$C$216)))) -> 99.23389651 | AB202: =IF(MAX(C205:C216)-MIN(C205:C216)<5,AVERAGEIF(C205:C216,">0",AB205:AB216), IF(FORECAST($C202,AB$205:AB$216,$C$205:$C$216)<0,0, IF(FORECAST($C202,AB$205:AB$216,$C$205:$C$216)>100,100, FORECAST($C202,AB$205:AB$216,$C$205:$C$216)))) -> 0
B204: Survey | C204: Year | D204: Improved | E204: Not shared | H204: Open defecation | I204: Improved | J204: Not shared | M204: Open defecation | N204: Improved | O204: Not shared | R204: Open defecation | S204: Improved | T204: Not shared | W204: Open defecation | X204: Improved | Y204: Not shared | AB204: Open defecation
B205: WHS03 | C205: 2003 | D205: =IF(ISERROR(INDIRECT(CONCATENATE($B205,"!H122"))),"",INDIRECT(CONCATENATE($B205,"!H122"))) -> 75.78850505 | E205: =IF(ISERROR(INDIRECT(CONCATENATE($B205,"!H129"))),"",INDIRECT(CONCATENATE($B205,"!H129"))) -> 91.10517325 | H205: =IF(ISERROR(INDIRECT(CONCATENATE($B205,"!H127"))),"",INDIRECT(CONCATENATE($B205,"!H127"))) -> 1.335673735 | I205: =IF(ISERROR(INDIRECT(CONCATENATE($B205,"!I122"))),"",INDIRECT(CONCATENATE($B205,"!I122"))) -> 94.54155147 | J205: =IF(ISERROR(INDIRECT(CONCATENATE($B205,"!I129"))),"",INDIRECT(CONCATENATE($B205,"!I129"))) -> 89.13310077 | M205: =IF(ISERROR(INDIRECT(CONCATENATE($B205,"!I127"))),"",INDIRECT(CONCATENATE($B205,"!I127"))) -> 0 | N205: =IF(ISERROR(INDIRECT(CONCATENATE($B205,"!J122"))),"",INDIRECT(CONCATENATE($B205,"!J122"))) -> 99.37803435 | O205: =IF(ISERROR(INDIRECT(CONCATENATE($B205,"!J129"))),"",INDIRECT(CONCATENATE($B205,"!J129"))) -> 95.61135276 | R205: =IF(ISERROR(INDIRECT(CONCATENATE($B205,"!J127"))),"",INDIRECT(CONCATENATE($B205,"!J127"))) -> 0 | S205: =IF(ISERROR(INDIRECT(CONCATENATE($B205,"!K122"))),"",INDIRECT(CONCATENATE($B205,"!K122"))) -> 99.80385695 | T205: =IF(ISERROR(INDIRECT(CONCATENATE($B205,"!K129"))),"",INDIRECT(CONCATENATE($B205,"!K129"))) -> 98.63862193 | W205: =IF(ISERROR(INDIRECT(CONCATENATE($B205,"!K127"))),"",INDIRECT(CONCATENATE($B205,"!K127"))) -> 0 | X205: =IF(ISERROR(INDIRECT(CONCATENATE($B205,"!L122"))),"",INDIRECT(CONCATENATE($B205,"!L122"))) -> 99.80636855 | Y205: =IF(ISERROR(INDIRECT(CONCATENATE($B205,"!L129"))),"",INDIRECT(CONCATENATE($B205,"!L129"))) -> 99.51076571 | AB205: =IF(ISERROR(INDIRECT(CONCATENATE($B205,"!L2127"))),"",INDIRECT(CONCATENATE($B205,"!L127"))) -> 0
B206: EPH09 | C206: 2009 | D206: 83.98752318 | E206: N/A | H206: 0 | I206: 97.99838154 | J206: N/A | M206: 0 | N206: 99.73143063 | O206: N/A | R206: 0 | S206: 98.96114579 | T206: N/A | W206: 0 | X206: 99.96287439 | Y206: N/A | AB206: 0
B207: EPH10 | C207: 2010 | D207: 81.5244318 | E207: N/A | H207: 0.149825294 | I207: 97.57675635 | J207: N/A | M207: 0 | N207: 98.49210989 | O207: N/A | R207: 0 | S207: 98.98893382 | T207: N/A | W207: 0 | X207: 99.57882445 | Y207: N/A | AB207: 0
B208: EPH11 | C208: 2011 | D208: 89.13418706 | E208: N/A | H208: 0.1077464288 | I208: 98.64581939 | J208: N/A | M208: 0.1021483647 | N208: 99.32250547 | O208: N/A | R208: 0 | S208: 98.71021241 | T208: N/A | W208: 0 | X208: 99.55000826 | Y208: N/A | AB208: 0
B209: EPH12 | C209: 2012 | D209: 90.70794545 | E209: N/A | H209: 0 | I209: 98.73616525 | J209: N/A | M209: 0 | N209: 98.99284098 | O209: N/A | R209: 0 | S209: 99.65275687 | T209: N/A | W209: 0 | X209: 99.66482906 | Y209: N/A | AB209: 0
B210: EPH13 | C210: 2013 | D210: 88.64697549 | E210: N/A | H210: 0 | I210: 98.78622119 | J210: N/A | M210: 0 | N210: 99.75242956 | O210: N/A | R210: 0.1332016284 | S210: 99.91990648 | T210: N/A | W210: 0 | X210: 100 | Y210: N/A | AB210: 0
B211: MICS16 | C211: 2016 | D211: 79.34178252 | E211: 89.32403121 | H211: 0.9348945467 | I211: 97.10941975 | J211: 94.66887358 | M211: 0.1661449501 | N211: 98.67944048 | O211: 96.45096088 | R211: 0 | S211: 99.40340612 | T211: 97.40168188 | W211: 0 | X211: 98.84092805 | Y211: 99.30968087 | AB211: 0
B218: =CONCATENATE("Urban use of sanitation facilities, ",C199,"–",C200) -> Urban use of sanitation facilities, 2000–2020 | S218: Data points used for regression
A297: RURAL | D297: Poorest | I297: Poor | N297: Middle | S297: Rich | X297: Richest
D298: Improved | E298: Basic | F298: Limited | G298: Unimproved | H298: Open defecation | I298: Improved | J298: Basic | K298: Limited | L298: Unimproved | M298: Open defecation | N298: Improved | O298: Basic | P298: Limited | Q298: Unimproved | R298: Open defecation | S298: Improved | T298: Basic | U298: Limited | V298: Unimproved | W298: Open defecation | X298: Improved | Y298: Basic | Z298: Limited | AA298: Unimproved | AB298: Open defecation
A299: Forecast period: | C299: 2000 | D299: =IF((D301+H301)>100,D301*100/(D301+H301),D301) -> 24.8872266 | E299: =D299*AVERAGEIF(E305:E316,">0")/100 -> 23.56258873 | F299: =D299*(100-AVERAGEIF(E305:E316,">0"))/100 -> 1.324637867 | G299: =100-(E299+F299+H299) -> 74.24011021 | H299: =IF((D301+H301)>100,H301*100/(D301+H301),H301) -> 0.872663193 | I299: =IF((I301+M301)>100,I301*100/(I301+M301),I301) -> 49.12592491 | J299: =I299*AVERAGEIF(J305:J316,">0")/100 -> 47.38125624 | K299: =I299*(100-AVERAGEIF(J305:J316,">0"))/100 -> 1.744668664 | L299: =100-(J299+K299+M299) -> 50.87407509 | M299: =IF((I301+M301)>100,M301*100/(I301+M301),M301) -> 0 | N299: =IF((N301+R301)>100,N301*100/(N301+R301),N301) -> 68.00916854 | O299: =N299*AVERAGEIF(O305:O316,">0")/100 -> 66.40752046 | P299: =N299*(100-AVERAGEIF(O305:O316,">0"))/100 -> 1.601648076 | Q299: =100-(O299+P299+R299) -> 31.64080351 | R299: =IF((N301+R301)>100,R301*100/(N301+R301),R301) -> 0.35002795 | S299: =IF((S301+W301)>100,S301*100/(S301+W301),S301) -> 79.30959208 | T299: =S299*AVERAGEIF(T305:T316,">0")/100 -> 77.86757172 | U299: =S299*(100-AVERAGEIF(T305:T316,">0"))/100 -> 1.442020367 | V299: =100-(T299+U299+W299) -> 20.67987768 | W299: =IF((S301+W301)>100,W301*100/(S301+W301),W301) -> 0.01053023632 | X299: =IF((X301+AB301)>100,X301*100/(X301+AB301),X301) -> 95.57044959 | Y299: =X299*AVERAGEIF(Y305:Y316,">0")/100 -> 95.23928777 | Z299: =X299*(100-AVERAGEIF(Y305:Y316,">0"))/100 -> 0.3311618153 | AA299: =100-(Y299+Z299+AB299) -> 4.429550413 | AB299: =IF((X301+AB301)>100,AB301*100/(X301+AB301),AB301) -> 0
C300: 2020 | D300: =IF((D302+H302)>100,D302*100/(D302+H302),D302) -> 46.5310257 | E300: =D300*AVERAGEIF(E305:E316,">0")/100 -> 44.05438338 | F300: =D300*(100-AVERAGEIF(E305:E316,">0"))/100 -> 2.476642321 | G300: =100-(E300+F300+H300) -> 51.8509668 | H300: =IF((D302+H302)>100,H302*100/(D302+H302),H302) -> 1.618007497 | I300: =IF((I302+M302)>100,I302*100/(I302+M302),I302) -> 66.31142774 | J300: =I300*AVERAGEIF(J305:J316,">0")/100 -> 63.95642943 | K300: =I300*(100-AVERAGEIF(J305:J316,">0"))/100 -> 2.354998309 | L300: =100-(J300+K300+M300) -> 33.1809882 | M300: =IF((I302+M302)>100,M302*100/(I302+M302),M302) -> 0.5075840531 | N300: =IF((N302+R302)>100,N302*100/(N302+R302),N302) -> 85.53853173 | O300: =N300*AVERAGEIF(O305:O316,">0")/100 -> 83.52405886 | P300: =N300*(100-AVERAGEIF(O305:O316,">0"))/100 -> 2.014472868 | Q300: =100-(O300+P300+R300) -> 14.46146827 | R300: =IF((N302+R302)>100,R302*100/(N302+R302),R302) -> 0 | S300: =IF((S302+W302)>100,S302*100/(S302+W302),S302) -> 96.96470721 | T300: =S300*AVERAGEIF(T305:T316,">0")/100 -> 95.20167857 | U300: =S300*(100-AVERAGEIF(T305:T316,">0"))/100 -> 1.763028645 | V300: =100-(T300+U300+W300) -> 2.874632342 | W300: =IF((S302+W302)>100,W302*100/(S302+W302),W302) -> 0.1606604479 | X300: =IF((X302+AB302)>100,X302*100/(X302+AB302),X302) -> 99.87874666 | Y300: =X300*AVERAGEIF(Y305:Y316,">0")/100 -> 99.53265613 | Z300: =X300*(100-AVERAGEIF(Y305:Y316,">0"))/100 -> 0.3460905248 | AA300: =100-(Y300+Z300+AB300) -> 0 | AB300: =IF((X302+AB302)>100,AB302*100/(X302+AB302),AB302) -> 0.1212533425
A301: Regression period: | C301: =MinRegYear(C299,C305:C316) -> 2001 | D301: =IF(MAX(C305:C316)-MIN(C305:C316)<5,AVERAGEIF(C305:C316,">0",D305:D316), IF(FORECAST($C301,D$305:D$316,$C$305:$C$316)<0,0, IF(FORECAST($C301,D$305:D$316,$C$305:$C$316)>100,100, FORECAST($C301,D$305:D$316,$C$305:$C$316)))) -> 24.8872266 | H301: =IF(MAX(C305:C316)-MIN(C305:C316)<5,AVERAGEIF(C305:C316,">0",H305:H316), IF(FORECAST($C301,H$305:H$316,$C$305:$C$316)<0,0, IF(FORECAST($C301,H$305:H$316,$C$305:$C$316)>100,100, FORECAST($C301,H$305:H$316,$C$305:$C$316)))) -> 0.872663193 | I301: =IF(MAX(C305:C316)-MIN(C305:C316)<5,AVERAGEIF(C305:C316,">0",I305:I316), IF(FORECAST($C301,I$305:I$316,$C$305:$C$316)<0,0, IF(FORECAST($C301,I$305:I$316,$C$305:$C$316)>100,100, FORECAST($C301,I$305:I$316,$C$305:$C$316)))) -> 49.12592491 | M301: =IF(MAX(C305:C316)-MIN(C305:C316)<5,AVERAGEIF(C305:C316,">0",M305:M316), IF(FORECAST($C301,M$305:M$316,$C$305:$C$316)<0,0, IF(FORECAST($C301,M$305:M$316,$C$305:$C$316)>100,100, FORECAST($C301,M$305:M$316,$C$305:$C$316)))) -> 0 | N301: =IF(MAX(C305:C316)-MIN(C305:C316)<5,AVERAGEIF(C305:C316,">0",N305:N316), IF(FORECAST($C301,N$305:N$316,$C$305:$C$316)<0,0, IF(FORECAST($C301,N$305:N$316,$C$305:$C$316)>100,100, FORECAST($C301,N$305:N$316,$C$305:$C$316)))) -> 68.00916854 | R301: =IF(MAX(C305:C316)-MIN(C305:C316)<5,AVERAGEIF(C305:C316,">0",R305:R316), IF(FORECAST($C301,R$305:R$316,$C$305:$C$316)<0,0, IF(FORECAST($C301,R$305:R$316,$C$305:$C$316)>100,100, FORECAST($C301,R$305:R$316,$C$305:$C$316)))) -> 0.35002795 | S301: =IF(MAX(C305:C316)-MIN(C305:C316)<5,AVERAGEIF(C305:C316,">0",S305:S316), IF(FORECAST($C301,S$305:S$316,$C$305:$C$316)<0,0, IF(FORECAST($C301,S$305:S$316,$C$305:$C$316)>100,100, FORECAST($C301,S$305:S$316,$C$305:$C$316)))) -> 79.30959208 | W301: =IF(MAX(C305:C316)-MIN(C305:C316)<5,AVERAGEIF(C305:C316,">0",W305:W316), IF(FORECAST($C301,W$305:W$316,$C$305:$C$316)<0,0, IF(FORECAST($C301,W$305:W$316,$C$305:$C$316)>100,100, FORECAST($C301,W$305:W$316,$C$305:$C$316)))) -> 0.01053023632 | X301: =IF(MAX(C305:C316)-MIN(C305:C316)<5,AVERAGEIF(C305:C316,">0",X305:X316), IF(FORECAST($C301,X$305:X$316,$C$305:$C$316)<0,0, IF(FORECAST($C301,X$305:X$316,$C$305:$C$316)>100,100, FORECAST($C301,X$305:X$316,$C$305:$C$316)))) -> 95.57044959 | AB301: =IF(MAX(C305:C316)-MIN(C305:C316)<5,AVERAGEIF(C305:C316,">0",AB305:AB316), IF(FORECAST($C301,AB$305:AB$316,$C$305:$C$316)<0,0, IF(FORECAST($C301,AB$305:AB$316,$C$305:$C$316)>100,100, FORECAST($C301,AB$305:AB$316,$C$305:$C$316)))) -> 0
C302: =MaxRegYear(C300,C305:C316) -> 2018 | D302: =IF(MAX(C305:C316)-MIN(C305:C316)<5,AVERAGEIF(C305:C316,">0",D305:D316), IF(FORECAST($C302,D$305:D$316,$C$305:$C$316)<0,0, IF(FORECAST($C302,D$305:D$316,$C$305:$C$316)>100,100, FORECAST($C302,D$305:D$316,$C$305:$C$316)))) -> 46.5310257 | H302: =IF(MAX(C305:C316)-MIN(C305:C316)<5,AVERAGEIF(C305:C316,">0",H305:H316), IF(FORECAST($C302,H$305:H$316,$C$305:$C$316)<0,0, IF(FORECAST($C302,H$305:H$316,$C$305:$C$316)>100,100, FORECAST($C302,H$305:H$316,$C$305:$C$316)))) -> 1.618007497 | I302: =IF(MAX(C305:C316)-MIN(C305:C316)<5,AVERAGEIF(C305:C316,">0",I305:I316), IF(FORECAST($C302,I$305:I$316,$C$305:$C$316)<0,0, IF(FORECAST($C302,I$305:I$316,$C$305:$C$316)>100,100, FORECAST($C302,I$305:I$316,$C$305:$C$316)))) -> 66.31142774 | M302: =IF(MAX(C305:C316)-MIN(C305:C316)<5,AVERAGEIF(C305:C316,">0",M305:M316), IF(FORECAST($C302,M$305:M$316,$C$305:$C$316)<0,0, IF(FORECAST($C302,M$305:M$316,$C$305:$C$316)>100,100, FORECAST($C302,M$305:M$316,$C$305:$C$316)))) -> 0.5075840531 | N302: =IF(MAX(C305:C316)-MIN(C305:C316)<5,AVERAGEIF(C305:C316,">0",N305:N316), IF(FORECAST($C302,N$305:N$316,$C$305:$C$316)<0,0, IF(FORECAST($C302,N$305:N$316,$C$305:$C$316)>100,100, FORECAST($C302,N$305:N$316,$C$305:$C$316)))) -> 85.53853173 | R302: =IF(MAX(C305:C316)-MIN(C305:C316)<5,AVERAGEIF(C305:C316,">0",R305:R316), IF(FORECAST($C302,R$305:R$316,$C$305:$C$316)<0,0, IF(FORECAST($C302,R$305:R$316,$C$305:$C$316)>100,100, FORECAST($C302,R$305:R$316,$C$305:$C$316)))) -> 0 | S302: =IF(MAX(C305:C316)-MIN(C305:C316)<5,AVERAGEIF(C305:C316,">0",S305:S316), IF(FORECAST($C302,S$305:S$316,$C$305:$C$316)<0,0, IF(FORECAST($C302,S$305:S$316,$C$305:$C$316)>100,100, FORECAST($C302,S$305:S$316,$C$305:$C$316)))) -> 96.96470721 | W302: =IF(MAX(C305:C316)-MIN(C305:C316)<5,AVERAGEIF(C305:C316,">0",W305:W316), IF(FORECAST($C302,W$305:W$316,$C$305:$C$316)<0,0, IF(FORECAST($C302,W$305:W$316,$C$305:$C$316)>100,100, FORECAST($C302,W$305:W$316,$C$305:$C$316)))) -> 0.1606604479 | X302: =IF(MAX(C305:C316)-MIN(C305:C316)<5,AVERAGEIF(C305:C316,">0",X305:X316), IF(FORECAST($C302,X$305:X$316,$C$305:$C$316)<0,0, IF(FORECAST($C302,X$305:X$316,$C$305:$C$316)>100,100, FORECAST($C302,X$305:X$316,$C$305:$C$316)))) -> 100 | AB302: =IF(MAX(C305:C316)-MIN(C305:C316)<5,AVERAGEIF(C305:C316,">0",AB305:AB316), IF(FORECAST($C302,AB$305:AB$316,$C$305:$C$316)<0,0, IF(FORECAST($C302,AB$305:AB$316,$C$305:$C$316)>100,100, FORECAST($C302,AB$305:AB$316,$C$305:$C$316)))) -> 0.1214005448
B304: Survey | C304: Year | D304: Improved | E304: Not shared | H304: Open defecation | I304: Improved | J304: Not shared | M304: Open defecation | N304: Improved | O304: Not shared | R304: Open defecation | S304: Improved | T304: Not shared | W304: Open defecation | X304: Improved | Y304: Not shared | AB304: Open defecation
B305: WHS03 | C305: 2003 | D305: =IF(ISERROR(INDIRECT(CONCATENATE($B305,"!M122"))),"",INDIRECT(CONCATENATE($B305,"!M122"))) -> 22.65315181 | E305: =IF(ISERROR(INDIRECT(CONCATENATE($B305,"!M129"))),"",INDIRECT(CONCATENATE($B305,"!M129"))) -> 95.93043477 | H305: =IF(ISERROR(INDIRECT(CONCATENATE($B305,"!M127"))),"",INDIRECT(CONCATENATE($B305,"!M127"))) -> 3.381540706 | I305: =IF(ISERROR(INDIRECT(CONCATENATE($B305,"!N122"))),"",INDIRECT(CONCATENATE($B305,"!N122"))) -> 45.59872941 | J305: =IF(ISERROR(INDIRECT(CONCATENATE($B305,"!N129"))),"",INDIRECT(CONCATENATE($B305,"!N129"))) -> 96.94873621 | M305: =IF(ISERROR(INDIRECT(CONCATENATE($B305,"!N127"))),"",INDIRECT(CONCATENATE($B305,"!N127"))) -> 0.1438308557 | N305: =IF(ISERROR(INDIRECT(CONCATENATE($B305,"!O122"))),"",INDIRECT(CONCATENATE($B305,"!O122"))) -> 67.3209082 | O305: =IF(ISERROR(INDIRECT(CONCATENATE($B305,"!O129"))),"",INDIRECT(CONCATENATE($B305,"!O129"))) -> 97.15103989 | R305: =IF(ISERROR(INDIRECT(CONCATENATE($B305,"!O127"))),"",INDIRECT(CONCATENATE($B305,"!O127"))) -> 0.4895474989 | S305: =IF(ISERROR(INDIRECT(CONCATENATE($B305,"!P122"))),"",INDIRECT(CONCATENATE($B305,"!P122"))) -> 78.53272399 | T305: =IF(ISERROR(INDIRECT(CONCATENATE($B305,"!P129"))),"",INDIRECT(CONCATENATE($B305,"!P129"))) -> 98.3202563 | W305: =IF(ISERROR(INDIRECT(CONCATENATE($B305,"!P127"))),"",INDIRECT(CONCATENATE($B305,"!P127"))) -> 0.2114804024 | X305: =IF(ISERROR(INDIRECT(CONCATENATE($B305,"!Q122"))),"",INDIRECT(CONCATENATE($B305,"!Q122"))) -> 95.24097 | Y305: =IF(ISERROR(INDIRECT(CONCATENATE($B305,"!Q129"))),"",INDIRECT(CONCATENATE($B305,"!Q129"))) -> 99.66654435 | AB305: =IF(ISERROR(INDIRECT(CONCATENATE($B305,"!Q2127"))),"",INDIRECT(CONCATENATE($B305,"!Q127"))) -> 0
B306: EPH09 | C306: 2009 | D306: 39.2367501 | E306: N/A | H306: 0 | I306: 62.5226938 | J306: N/A | M306: 0 | N306: 79.84048024 | O306: N/A | R306: 0 | S306: 91.16836024 | T306: N/A | W306: 0 | X306: 99.06404532 | Y306: N/A | AB306: 0
B307: EPH10 | C307: 2010 | D307: 28.68260874 | E307: N/A | H307: 0 | I307: 53.39306576 | J307: N/A | M307: 0 | N307: 71.67541668 | O307: N/A | R307: 0 | S307: 86.35206124 | T307: N/A | W307: 0 | X307: 98.9363218 | Y307: N/A | AB307: 0
B308: EPH11 | C308: 2011 | D308: 58.77817458 | E308: N/A | H308: 0.1727236655 | I308: 72.21875333 | J308: N/A | M308: 0 | N308: 81.87547207 | O308: N/A | R308: 0 | S308: 93.05716603 | T308: N/A | W308: 0 | X308: 99.15510995 | Y308: N/A | AB308: 0
B309: EPH12 | C309: 2012 | D309: 30.75042767 | E309: N/A | H309: 0 | I309: 55.57215399 | J309: N/A | M309: 0 | N309: 78.5025721 | O309: N/A | R309: 0 | S309: 90.9913806 | T309: N/A | W309: 0 | X309: 97.98291627 | Y309: N/A | AB309: 0
B310: EPH13 | C310: 2013 | D310: 42.0799827 | E310: N/A | H310: 0 | I310: 67.16820134 | J310: N/A | M310: 0 | N310: 90.37868809 | O310: N/A | R310: 0 | S310: 94.51582354 | T310: N/A | W310: 0 | X310: 99.0883864 | Y310: N/A | AB310: 0
B311: MICS16 | C311: 2016 | D311: 37.33152233 | E311: 93.42444283 | H311: 5.491911414 | I311: 55.13897611 | J311: 95.94842077 | M311: 1.025687962 | N311: 75.55695613 | O311: 98.13886554 | R311: 0.2133726278 | S311: 90.13155328 | T311: 98.04331 | W311: 0.4539209092 | X311: 99.2964797 | Y311: 99.64043429 | AB311: 0.2185209806
B318: =CONCATENATE("Rural use of sanitation facilities, ",C299,"–",C300) -> Rural use of sanitation facilities, 2000–2020 | S318: Data points used for regression

Sheet Hygiene
B4: Access to hygiene facilities by wealth quintile (%)
B5: =IF(ISERROR(INDIRECT(CONCATENATE($E$32,"!A2"))),"",INDIRECT(CONCATENATE($E$32,"!A2"))) -> Paraguay
B7: =CONCATENATE("National ",IF(ISERROR(INDIRECT(CONCATENATE($E$32,"!A2"))),"",INDIRECT(CONCATENATE($E$32,"!A210")))) -> National Access to hygiene facilities | K7: =CONCATENATE("Urban ",IF(ISERROR(INDIRECT(CONCATENATE($E$32,"!A2"))),"",INDIRECT(CONCATENATE($E$32,"!A210")))) -> Urban Access to hygiene facilities | S7: =CONCATENATE("Rural ",IF(ISERROR(INDIRECT(CONCATENATE($E$32,"!A2"))),"",INDIRECT(CONCATENATE($E$32,"!A210")))) -> Rural Access to hygiene facilities
E32: =INDEX(B88:B100,A88) -> MICS16 | G32: =IF(ISERROR(INDIRECT(CONCATENATE($E$32,"!A2"))),"",INDIRECT(CONCATENATE($E$32,"!A2"))) -> Paraguay | K32: Poorest | N32: Poor | Q32: Middle | T32: Rich | W32: Richest
K33: Basic | L33: Limited | M33: No facility | N33: Basic | O33: Limited | P33: No facility | Q33: Basic | R33: Limited | S33: No facility | T33: Basic | U33: Limited | V33: No facility | W33: Basic | X33: Limited | Y33: No facility
B34: >>> Select Survey : | G34: NATIONAL | J34: =IF(ISERROR(INDIRECT(CONCATENATE(#REF!,"!A2"))),"",INDIRECT(CONCATENATE(#REF!,"!A210"))) ->  | K34: =IF(ISERROR(INDIRECT(CONCATENATE($E$32,"!C222"))),"",INDIRECT(CONCATENATE($E$32,"!C222"))) -> 56.04147619 | L34: =IF(ISERROR(INDIRECT(CONCATENATE($E$32,"!C223"))),"",INDIRECT(CONCATENATE($E$32,"!C223"))) -> 39.97951232 | M34: =IF(ISERROR(INDIRECT(CONCATENATE($E$32,"!C224"))),"",INDIRECT(CONCATENATE($E$32,"!C224"))) -> 3.979011481 | N34: =IF(ISERROR(INDIRECT(CONCATENATE($E$32,"!D222"))),"",INDIRECT(CONCATENATE($E$32,"!D222"))) -> 75.3638937 | O34: =IF(ISERROR(INDIRECT(CONCATENATE($E$32,"!D223"))),"",INDIRECT(CONCATENATE($E$32,"!D223"))) -> 22.48103813 | P34: =IF(ISERROR(INDIRECT(CONCATENATE($E$32,"!D224"))),"",INDIRECT(CONCATENATE($E$32,"!D224"))) -> 2.155068164 | Q34: =IF(ISERROR(INDIRECT(CONCATENATE($E$32,"!E222"))),"",INDIRECT(CONCATENATE($E$32,"!E222"))) -> 86.04234613 | R34: =IF(ISERROR(INDIRECT(CONCATENATE($E$32,"!E223"))),"",INDIRECT(CONCATENATE($E$32,"!E223"))) -> 12.77113241 | S34: =IF(ISERROR(INDIRECT(CONCATENATE($E$32,"!E224"))),"",INDIRECT(CONCATENATE($E$32,"!E224"))) -> 1.186521458 | T34: =IF(ISERROR(INDIRECT(CONCATENATE($E$32,"!F222"))),"",INDIRECT(CONCATENATE($E$32,"!F222"))) -> 90.96120884 | U34: =IF(ISERROR(INDIRECT(CONCATENATE($E$32,"!F223"))),"",INDIRECT(CONCATENATE($E$32,"!F223"))) -> 8.215655995 | V34: =IF(ISERROR(INDIRECT(CONCATENATE($E$32,"!F224"))),"",INDIRECT(CONCATENATE($E$32,"!F224"))) -> 0.8231351655 | W34: =IF(ISERROR(INDIRECT(CONCATENATE($E$32,"!G222"))),"",INDIRECT(CONCATENATE($E$32,"!G222"))) -> 93.65673979 | X34: =IF(ISERROR(INDIRECT(CONCATENATE($E$32,"!G223"))),"",INDIRECT(CONCATENATE($E$32,"!G223"))) -> 2.965061182 | Y34: =IF(ISERROR(INDIRECT(CONCATENATE($E$32,"!G224"))),"",INDIRECT(CONCATENATE($E$32,"!G224"))) -> 3.378199032
G37: URBAN | J37: =IF(ISERROR(INDIRECT(CONCATENATE(#REF!,"!A2"))),"",INDIRECT(CONCATENATE(#REF!,"!A210"))) ->  | K37: =IF(ISERROR(INDIRECT(CONCATENATE($E$32,"!H222"))),"",INDIRECT(CONCATENATE($E$32,"!H222"))) -> 63.88348949 | L37: =IF(ISERROR(INDIRECT(CONCATENATE($E$32,"!H223"))),"",INDIRECT(CONCATENATE($E$32,"!H223"))) -> 33.31613008 | M37: =IF(ISERROR(INDIRECT(CONCATENATE($E$32,"!H224"))),"",INDIRECT(CONCATENATE($E$32,"!H224"))) -> 2.80038043 | N37: =IF(ISERROR(INDIRECT(CONCATENATE($E$32,"!I222"))),"",INDIRECT(CONCATENATE($E$32,"!I222"))) -> 86.03296833 | O37: =IF(ISERROR(INDIRECT(CONCATENATE($E$32,"!I223"))),"",INDIRECT(CONCATENATE($E$32,"!I223"))) -> 12.58646512 | P37: =IF(ISERROR(INDIRECT(CONCATENATE($E$32,"!I224"))),"",INDIRECT(CONCATENATE($E$32,"!I224"))) -> 1.380566542 | Q37: =IF(ISERROR(INDIRECT(CONCATENATE($E$32,"!J222"))),"",INDIRECT(CONCATENATE($E$32,"!J222"))) -> 91.2882386 | R37: =IF(ISERROR(INDIRECT(CONCATENATE($E$32,"!J223"))),"",INDIRECT(CONCATENATE($E$32,"!J223"))) -> 8.057288618 | S37: =IF(ISERROR(INDIRECT(CONCATENATE($E$32,"!J224"))),"",INDIRECT(CONCATENATE($E$32,"!J224"))) -> 0.6544727783 | T37: =IF(ISERROR(INDIRECT(CONCATENATE($E$32,"!K222"))),"",INDIRECT(CONCATENATE($E$32,"!K222"))) -> 92.10146391 | U37: =IF(ISERROR(INDIRECT(CONCATENATE($E$32,"!K223"))),"",INDIRECT(CONCATENATE($E$32,"!K223"))) -> 5.809393243 | V37: =IF(ISERROR(INDIRECT(CONCATENATE($E$32,"!K224"))),"",INDIRECT(CONCATENATE($E$32,"!K224"))) -> 2.089142844 | W37: =IF(ISERROR(INDIRECT(CONCATENATE($E$32,"!L222"))),"",INDIRECT(CONCATENATE($E$32,"!L222"))) -> 93.11369251 | X37: =IF(ISERROR(INDIRECT(CONCATENATE($E$32,"!L223"))),"",INDIRECT(CONCATENATE($E$32,"!L223"))) -> 3.142836001 | Y37: =IF(ISERROR(INDIRECT(CONCATENATE($E$32,"!L224"))),"",INDIRECT(CONCATENATE($E$32,"!L224"))) -> 3.743471486
G40: RURAL | J40: =IF(ISERROR(INDIRECT(CONCATENATE(#REF!,"!A2"))),"",INDIRECT(CONCATENATE(#REF!,"!A210"))) ->  | K40: =IF(ISERROR(INDIRECT(CONCATENATE($E$32,"!M222"))),"",INDIRECT(CONCATENATE($E$32,"!M222"))) -> 51.08361348 | L40: =IF(ISERROR(INDIRECT(CONCATENATE($E$32,"!M223"))),"",INDIRECT(CONCATENATE($E$32,"!M223"))) -> 43.45010114 | M40: =IF(ISERROR(INDIRECT(CONCATENATE($E$32,"!M224"))),"",INDIRECT(CONCATENATE($E$32,"!M224"))) -> 5.46628538 | N40: =IF(ISERROR(INDIRECT(CONCATENATE($E$32,"!N222"))),"",INDIRECT(CONCATENATE($E$32,"!N222"))) -> 63.39573904 | O40: =IF(ISERROR(INDIRECT(CONCATENATE($E$32,"!N223"))),"",INDIRECT(CONCATENATE($E$32,"!N223"))) -> 33.46818389 | P40: =IF(ISERROR(INDIRECT(CONCATENATE($E$32,"!N224"))),"",INDIRECT(CONCATENATE($E$32,"!N224"))) -> 3.136077069 | Q40: =IF(ISERROR(INDIRECT(CONCATENATE($E$32,"!O222"))),"",INDIRECT(CONCATENATE($E$32,"!O222"))) -> 75.62802595 | R40: =IF(ISERROR(INDIRECT(CONCATENATE($E$32,"!O223"))),"",INDIRECT(CONCATENATE($E$32,"!O223"))) -> 22.61649631 | S40: =IF(ISERROR(INDIRECT(CONCATENATE($E$32,"!O224"))),"",INDIRECT(CONCATENATE($E$32,"!O224"))) -> 1.755477738 | T40: =IF(ISERROR(INDIRECT(CONCATENATE($E$32,"!P222"))),"",INDIRECT(CONCATENATE($E$32,"!P222"))) -> 81.14840967 | U40: =IF(ISERROR(INDIRECT(CONCATENATE($E$32,"!P223"))),"",INDIRECT(CONCATENATE($E$32,"!P223"))) -> 17.52403732 | V40: =IF(ISERROR(INDIRECT(CONCATENATE($E$32,"!P224"))),"",INDIRECT(CONCATENATE($E$32,"!P224"))) -> 1.327553008 | W40: =IF(ISERROR(INDIRECT(CONCATENATE($E$32,"!Q222"))),"",INDIRECT(CONCATENATE($E$32,"!Q222"))) -> 89.78115997 | X40: =IF(ISERROR(INDIRECT(CONCATENATE($E$32,"!Q223"))),"",INDIRECT(CONCATENATE($E$32,"!Q223"))) -> 8.958020715 | Y40: =IF(ISERROR(INDIRECT(CONCATENATE($E$32,"!Q224"))),"",INDIRECT(CONCATENATE($E$32,"!Q224"))) -> 1.260819316
A88: 7 | B88: WHS03
B89: EPH09
B90: EPH10
B91: EPH11
B92: EPH12
B93: EPH13
B94: MICS16
B95: Template

Sheet WHS03
A2: =A1026 -> Paraguay
A3: =A1034 -> 2003
A4: Use of drinking water sources
A5: by wealth quintile and sub-national region
A6: Notes:
A7: WHO/UNICEF JMP customised wealth index excludes water,
A8: sanitation and hygiene assets.
A9: Survey used for analysis: | B9: =A1025 -> WHS03
A10: =B1028 -> 
A11: =B1027 -> 
A14: Use of drinking water sources | C14: NATIONAL wealth index quintile | H14: URBAN wealth index quintile | M14: RURAL wealth index quintile | BA14: Raw numbers of respondents: | BB14: Use of drinking water sources | BC14: NATIONAL wealth index quintile | BH14: URBAN wealth index quintile | BM14: RURAL wealth index quintile
A15: Weighted percentage (used in graphs) | C15: Poorest | D15: Poor | E15: Middle | F15: Rich | G15: Richest | H15: Poorest | I15: Poor | J15: Middle | K15: Rich | L15: Richest | M15: Poorest | N15: Poor | O15: Middle | P15: Rich | Q15: Richest | BA15: Water data, raw numbers (weighted) | BC15: Poorest | BD15: Poor | BE15: Middle | BF15: Rich | BG15: Richest | BH15: Poorest | BI15: Poor | BJ15: Middle | BK15: Rich | BL15: Richest | BM15: Poorest | BN15: Poor | BO15: Middle | BP15: Rich | BQ15: Richest
A16: Water | B16: Improved | C16: =C58+C59+C60+C61+C63+C65 -> 34.3987563 | D16: 55.49311682 | E16: 78.22573603 | F16: 94.33861391 | G16: 99.36909195 | H16: 72.67637376 | I16: 90.37038724 | J16: 94.95157736 | K16: 98.68662673 | L16: 99.84182527 | M16: 28.14018425 | N16: 34.97729259 | O16: 46.05504715 | P16: 64.15508256 | Q16: 88.02256014 | BA16: Water | BB16: Improved | BC16: N/A | BD16: N/A | BE16: N/A | BF16: N/A | BG16: N/A | BH16: N/A | BI16: N/A | BJ16: N/A | BK16: N/A | BL16: N/A | BM16: N/A | BN16: N/A | BO16: N/A | BP16: N/A | BQ16: N/A
B17: Not Improved | C17: =100-C16 -> 65.6012437 | D17: =100-D16 -> 44.50688318 | E17: 21.77426397 | F17: 5.661386094 | G17: 0.6309080455 | H17: 27.32362624 | I17: 9.629612756 | J17: 5.048422635 | K17: 1.313373267 | L17: 0.1581747316 | M17: 71.85981575 | N17: 65.02270741 | O17: 53.94495285 | P17: 35.84491744 | Q17: 11.97743986 | BB17: Not Improved | BC17: N/A | BD17: N/A | BE17: N/A | BF17: N/A | BG17: N/A | BH17: N/A | BI17: N/A | BJ17: N/A | BK17: N/A | BL17: N/A | BM17: N/A | BN17: N/A | BO17: N/A | BP17: N/A | BQ17: N/A
A18: Water ladder | B18: Basic | C18: =C16*C23/100 -> 34.21049675 | D18: =D16*D23/100 -> 55.33926237 | E18: 78.22573603 | F18: 94.33861391 | G18: 98.69684755 | H18: 72.67637376 | I18: 90.37038724 | J18: 94.95157736 | K18: 98.68662673 | L18: 99.84182527 | M18: 27.82397863 | N18: 34.97729259 | O18: 45.83063807 | P18: 64.15508256 | Q18: 87.6519645 | BA18: Water ladder | BB18: Basic | BC18: N/A | BD18: N/A | BE18: N/A | BF18: N/A | BG18: N/A | BH18: N/A | BI18: N/A | BJ18: N/A | BK18: N/A | BL18: N/A | BM18: N/A | BN18: N/A | BO18: N/A | BP18: N/A | BQ18: N/A
B19: Limited | C19: =C16*C22/100 -> 0.1882595574 | D19: =D16*D22/100 -> 0.1538544456 | E19: 0 | F19: 0 | G19: 0.6722444085 | H19: 0 | I19: 0 | J19: 0 | K19: 0 | L19: 0 | M19: 0.3162056149 | N19: 0 | O19: 0.2244090792 | P19: 0 | Q19: 0.370595637 | BB19: Limited | BC19: N/A | BD19: N/A | BE19: N/A | BF19: N/A | BG19: N/A | BH19: N/A | BI19: N/A | BJ19: N/A | BK19: N/A | BL19: N/A | BM19: N/A | BN19: N/A | BO19: N/A | BP19: N/A | BQ19: N/A
B20: Unimproved | C20: =100-(C18+C19+C21) -> 56.81411539 | D20: =100-(D18+D19+D21) -> 41.58951594 | E20: 20.67957073 | F20: 5.432513787 | G20: 0.6309080455 | H20: 26.88503406 | I20: 9.629612756 | J20: 5.048422635 | K20: 1.313373267 | L20: 0.1581747316 | M20: 58.35250633 | N20: 59.53958849 | O20: 49.31722253 | P20: 34.46931199 | Q20: 10.67094048 | BB20: Unimproved | BC20: N/A | BD20: N/A | BE20: N/A | BF20: N/A | BG20: N/A | BH20: N/A | BI20: N/A | BJ20: N/A | BK20: N/A | BL20: N/A | BM20: N/A | BN20: N/A | BO20: N/A | BP20: N/A | BQ20: N/A
B21: Surface water | C21: =C64 -> 8.787128308 | D21: 2.917367242 | E21: 1.09469324 | F21: 0.2288723074 | G21: 0 | H21: 0.4385921802 | I21: 0 | J21: 0 | K21: 0 | L21: 0 | M21: 13.50730942 | N21: 5.483118919 | O21: 4.627730323 | P21: 1.375605452 | Q21: 1.306499383 | BB21: Surface water | BC21: N/A | BD21: N/A | BE21: N/A | BF21: N/A | BG21: N/A | BH21: N/A | BI21: N/A | BJ21: N/A | BK21: N/A | BL21: N/A | BM21: N/A | BN21: N/A | BO21: N/A | BP21: N/A | BQ21: N/A
A22: Improved water point at more than 30 minutes | B22: Yes | C22: 0.5472859417 | D22: 0.2772496022 | E22: 0 | F22: 0 | G22: 0.6765125808 | H22: 0 | I22: 0 | J22: 0 | K22: 0 | L22: 0 | M22: 1.123679973 | N22: 0 | O22: 0.4872627283 | P22: 0 | Q22: 0.4210234699 | BA22: Improved water point at more than 30 minutes | BB22: Yes | BC22: N/A | BD22: N/A | BE22: N/A | BF22: N/A | BG22: N/A | BH22: N/A | BI22: N/A | BJ22: N/A | BK22: N/A | BL22: N/A | BM22: N/A | BN22: N/A | BO22: N/A | BP22: N/A | BQ22: N/A
B23: No | C23: 99.45271406 | D23: 99.7227504 | E23: 100 | F23: 100 | G23: 99.32348742 | H23: 100 | I23: 100 | J23: 100 | K23: 100 | L23: 100 | M23: 98.87632003 | N23: 100 | O23: 99.51273727 | P23: 100 | Q23: 99.57897653 | BB23: No | BC23: N/A | BD23: N/A | BE23: N/A | BF23: N/A | BG23: N/A | BH23: N/A | BI23: N/A | BJ23: N/A | BK23: N/A | BL23: N/A | BM23: N/A | BN23: N/A | BO23: N/A | BP23: N/A | BQ23: N/A
A24: Manually calculated ratios | B24: Improved wells
B25: Improved springs
B26: Other
C27: NATIONAL wealth index quintile | H27: URBAN wealth index quintile | M27: RURAL wealth index quintile | BA27: Raw numbers of respondents: | BB27: Use of drinking water sources | BC27: NATIONAL wealth index quintile | BH27: URBAN wealth index quintile | BM27: RURAL wealth index quintile
A28: Percentage based on weighted population | C28: Poorest | D28: Poor | E28: Middle | F28: Rich | G28: Richest | H28: Poorest | I28: Poor | J28: Middle | K28: Rich | L28: Richest | M28: Poorest | N28: Poor | O28: Middle | P28: Rich | Q28: Richest | BA28: Water data, raw numbers (weighted) | BC28: Poorest | BD28: Poor | BE28: Middle | BF28: Rich | BG28: Richest | BH28: Poorest | BI28: Poor | BJ28: Middle | BK28: Rich | BL28: Richest | BM28: Poorest | BN28: Poor | BO28: Middle | BP28: Rich | BQ28: Richest
A29: Piped water | B29: Yes | C29: 18.54717009 | D29: 37.28654546 | E29: 55.59967801 | F29: 73.10541763 | G29: 88.21015968 | H29: 62.90025783 | I29: 72.80496416 | J29: 79.36680339 | K29: 88.28866358 | L29: 92.18197005 | M29: 12.63416811 | N29: 17.07946147 | O29: 23.07905064 | P29: 37.190599 | Q29: 53.0473482 | BA29: Piped water | BB29: Yes | BC29: N/A | BD29: N/A | BE29: N/A | BF29: N/A | BG29: N/A | BH29: N/A | BI29: N/A | BJ29: N/A | BK29: N/A | BL29: N/A | BM29: N/A | BN29: N/A | BO29: N/A | BP29: N/A | BQ29: N/A
B30: No | C30: 81.45282991 | D30: 62.71345454 | E30: 44.40032199 | F30: 26.89458237 | G30: 11.78984032 | H30: 37.09974217 | I30: 27.19503584 | J30: 20.63319661 | K30: 11.71133642 | L30: 7.818029952 | M30: 87.36583189 | N30: 82.92053853 | O30: 76.92094936 | P30: 62.809401 | Q30: 46.9526518 | BB30: No | BC30: N/A | BD30: N/A | BE30: N/A | BF30: N/A | BG30: N/A | BH30: N/A | BI30: N/A | BJ30: N/A | BK30: N/A | BL30: N/A | BM30: N/A | BN30: N/A | BO30: N/A | BP30: N/A | BQ30: N/A
A31: Piped water on premises | B31: Yes | C31: 15.8347164 | D31: 35.35934584 | E31: 54.82409894 | F31: 72.8976657 | G31: 88.04542177 | H31: 58.03162088 | I31: 72.12349409 | J31: 78.94875293 | K31: 88.09742786 | L31: 92.18197005 | M31: 9.987490142 | N31: 16.44991737 | O31: 22.29746488 | P31: 36.12541914 | Q31: 52.77541863 | BA31: Piped water on premises | BB31: Yes | BC31: N/A | BD31: N/A | BE31: N/A | BF31: N/A | BG31: N/A | BH31: N/A | BI31: N/A | BJ31: N/A | BK31: N/A | BL31: N/A | BM31: N/A | BN31: N/A | BO31: N/A | BP31: N/A | BQ31: N/A
B32: No | C32: 84.1652836 | D32: 64.64065416 | E32: 45.17590106 | F32: 27.1023343 | G32: 11.95457823 | H32: 41.96837912 | I32: 27.87650591 | J32: 21.05124707 | K32: 11.90257214 | L32: 7.818029952 | M32: 90.01250986 | N32: 83.55008263 | O32: 77.70253512 | P32: 63.87458086 | Q32: 47.22458137 | BB32: No | BC32: N/A | BD32: N/A | BE32: N/A | BF32: N/A | BG32: N/A | BH32: N/A | BI32: N/A | BJ32: N/A | BK32: N/A | BL32: N/A | BM32: N/A | BN32: N/A | BO32: N/A | BP32: N/A | BQ32: N/A
A33: Piped water into dwelling | B33: Yes | C33: N/A | D33: N/A | E33: N/A | F33: N/A | G33: N/A | H33: N/A | I33: N/A | J33: N/A | K33: N/A | L33: N/A | M33: N/A | N33: N/A | O33: N/A | P33: N/A | Q33: N/A | BA33: Piped water into dwelling | BB33: Yes | BC33: N/A | BD33: N/A | BE33: N/A | BF33: N/A | BG33: N/A | BH33: N/A | BI33: N/A | BJ33: N/A | BK33: N/A | BL33: N/A | BM33: N/A | BN33: N/A | BO33: N/A | BP33: N/A | BQ33: N/A
B34: No | C34: N/A | D34: N/A | E34: N/A | F34: N/A | G34: N/A | H34: N/A | I34: N/A | J34: N/A | K34: N/A | L34: N/A | M34: N/A | N34: N/A | O34: N/A | P34: N/A | Q34: N/A | BB34: No | BC34: N/A | BD34: N/A | BE34: N/A | BF34: N/A | BG34: N/A | BH34: N/A | BI34: N/A | BJ34: N/A | BK34: N/A | BL34: N/A | BM34: N/A | BN34: N/A | BO34: N/A | BP34: N/A | BQ34: N/A
A35: Water source on premises | B35: Yes | C35: N/A | D35: N/A | E35: N/A | F35: N/A | G35: N/A | H35: N/A | I35: N/A | J35: N/A | K35: N/A | L35: N/A | M35: N/A | N35: N/A | O35: N/A | P35: N/A | Q35: N/A | BA35: Water source on premises | BB35: Yes | BC35: N/A | BD35: N/A | BE35: N/A | BF35: N/A | BG35: N/A | BH35: N/A | BI35: N/A | BJ35: N/A | BK35: N/A | BL35: N/A | BM35: N/A | BN35: N/A | BO35: N/A | BP35: N/A | BQ35: N/A
B36: No | C36: N/A | D36: N/A | E36: N/A | F36: N/A | G36: N/A | H36: N/A | I36: N/A | J36: N/A | K36: N/A | L36: N/A | M36: N/A | N36: N/A | O36: N/A | P36: N/A | Q36: N/A | BB36: No | BC36: N/A | BD36: N/A | BE36: N/A | BF36: N/A | BG36: N/A | BH36: N/A | BI36: N/A | BJ36: N/A | BK36: N/A | BL36: N/A | BM36: N/A | BN36: N/A | BO36: N/A | BP36: N/A | BQ36: N/A
A37: Improved Water source on premises | B37: Yes | C37: N/A | D37: N/A | E37: N/A | F37: N/A | G37: N/A | H37: N/A | I37: N/A | J37: N/A | K37: N/A | L37: N/A | M37: N/A | N37: N/A | O37: N/A | P37: N/A | Q37: N/A | BA37: Improved water source on premises | BB37: Yes | BC37: N/A | BD37: N/A | BE37: N/A | BF37: N/A | BG37: N/A | BH37: N/A | BI37: N/A | BJ37: N/A | BK37: N/A | BL37: N/A | BM37: N/A | BN37: N/A | BO37: N/A | BP37: N/A | BQ37: N/A
B38: No | C38: N/A | D38: N/A | E38: N/A | F38: N/A | G38: N/A | H38: N/A | I38: N/A | J38: N/A | K38: N/A | L38: N/A | M38: N/A | N38: N/A | O38: N/A | P38: N/A | Q38: N/A | BB38: No | BC38: N/A | BD38: N/A | BE38: N/A | BF38: N/A | BG38: N/A | BH38: N/A | BI38: N/A | BJ38: N/A | BK38: N/A | BL38: N/A | BM38: N/A | BN38: N/A | BO38: N/A | BP38: N/A | BQ38: N/A
A39: Piped water on premises available when needed | B39: Yes | C39: N/A | D39: N/A | E39: N/A | F39: N/A | G39: N/A | H39: N/A | I39: N/A | J39: N/A | K39: N/A | L39: N/A | M39: N/A | N39: N/A | O39: N/A | P39: N/A | Q39: N/A | BA39: Piped water on premises available when needed | BB39: Yes | BC39: N/A | BD39: N/A | BE39: N/A | BF39: N/A | BG39: N/A | BH39: N/A | BI39: N/A | BJ39: N/A | BK39: N/A | BL39: N/A | BM39: N/A | BN39: N/A | BO39: N/A | BP39: N/A | BQ39: N/A
B40: No | C40: N/A | D40: N/A | E40: N/A | F40: N/A | G40: N/A | H40: N/A | I40: N/A | J40: N/A | K40: N/A | L40: N/A | M40: N/A | N40: N/A | O40: N/A | P40: N/A | Q40: N/A | BB40: No | BC40: N/A | BD40: N/A | BE40: N/A | BF40: N/A | BG40: N/A | BH40: N/A | BI40: N/A | BJ40: N/A | BK40: N/A | BL40: N/A | BM40: N/A | BN40: N/A | BO40: N/A | BP40: N/A | BQ40: N/A
A41: Water point at more than 30 minutes | B41: Yes | C41: 1.066630205 | D41: 0.5903239939 | E41: 0.3665449851 | F41: 0 | G41: 0.6361641846 | H41: 0 | I41: 0 | J41: 0 | K41: 0 | L41: 0 | M41: 1.605216112 | N41: 0.7253756401 | O41: 0.7398093979 | P41: 0.2341143287 | Q41: 0.6826921845 | BA41: Water point at more than 30 minutes | BB41: Yes | BC41: N/A | BD41: N/A | BE41: N/A | BF41: N/A | BG41: N/A | BH41: N/A | BI41: N/A | BJ41: N/A | BK41: N/A | BL41: N/A | BM41: N/A | BN41: N/A | BO41: N/A | BP41: N/A | BQ41: N/A
B42: No | C42: 98.9333698 | D42: 99.40967601 | E42: 99.63345501 | F42: 100 | G42: 99.36383582 | H42: 100 | I42: 100 | J42: 100 | K42: 100 | L42: 100 | M42: 98.39478389 | N42: 99.27462436 | O42: 99.2601906 | P42: 99.76588567 | Q42: 99.31730782 | BB42: No | BC42: N/A | BD42: N/A | BE42: N/A | BF42: N/A | BG42: N/A | BH42: N/A | BI42: N/A | BJ42: N/A | BK42: N/A | BL42: N/A | BM42: N/A | BN42: N/A | BO42: N/A | BP42: N/A | BQ42: N/A
A43: Water source available when needed | B43: Yes | C43: N/A | D43: N/A | E43: N/A | F43: N/A | G43: N/A | H43: N/A | I43: N/A | J43: N/A | K43: N/A | L43: N/A | M43: N/A | N43: N/A | O43: N/A | P43: N/A | Q43: N/A | BA43: Water source available when needed | BB43: Yes | BC43: N/A | BD43: N/A | BE43: N/A | BF43: N/A | BG43: N/A | BH43: N/A | BI43: N/A | BJ43: N/A | BK43: N/A | BL43: N/A | BM43: N/A | BN43: N/A | BO43: N/A | BP43: N/A | BQ43: N/A
B44: No | C44: N/A | D44: N/A | E44: N/A | F44: N/A | G44: N/A | H44: N/A | I44: N/A | J44: N/A | K44: N/A | L44: N/A | M44: N/A | N44: N/A | O44: N/A | P44: N/A | Q44: N/A | BB44: No | BC44: N/A | BD44: N/A | BE44: N/A | BF44: N/A | BG44: N/A | BH44: N/A | BI44: N/A | BJ44: N/A | BK44: N/A | BL44: N/A | BM44: N/A | BN44: N/A | BO44: N/A | BP44: N/A | BQ44: N/A
A45: Improved water source available when needed | B45: Yes | C45: N/A | D45: N/A | E45: N/A | F45: N/A | G45: N/A | H45: N/A | I45: N/A | J45: N/A | K45: N/A | L45: N/A | M45: N/A | N45: N/A | O45: N/A | P45: N/A | Q45: N/A | BA45: Improved water source available when needed | BB45: Yes | BC45: N/A | BD45: N/A | BE45: N/A | BF45: N/A | BG45: N/A | BH45: N/A | BI45: N/A | BJ45: N/A | BK45: N/A | BL45: N/A | BM45: N/A | BN45: N/A | BO45: N/A | BP45: N/A | BQ45: N/A
B46: No | C46: N/A | D46: N/A | E46: N/A | F46: N/A | G46: N/A | H46: N/A | I46: N/A | J46: N/A | K46: N/A | L46: N/A | M46: N/A | N46: N/A | O46: N/A | P46: N/A | Q46: N/A | BB46: No | BC46: N/A | BD46: N/A | BE46: N/A | BF46: N/A | BG46: N/A | BH46: N/A | BI46: N/A | BJ46: N/A | BK46: N/A | BL46: N/A | BM46: N/A | BN46: N/A | BO46: N/A | BP46: N/A | BQ46: N/A
A47: Microbiological quality at point of collection | B47: Not contaminated (No E. coli in 100 mL) | C47: N/A | D47: N/A | E47: N/A | F47: N/A | G47: N/A | H47: N/A | I47: N/A | J47: N/A | K47: N/A | L47: N/A | M47: N/A | N47: N/A | O47: N/A | P47: N/A | Q47: N/A | BA47: Microbiological quality at point of collection | BB47: Not contaminated (No E. coli in 100 mL) | BC47: N/A | BD47: N/A | BE47: N/A | BF47: N/A | BG47: N/A | BH47: N/A | BI47: N/A | BJ47: N/A | BK47: N/A | BL47: N/A | BM47: N/A | BN47: N/A | BO47: N/A | BP47: N/A | BQ47: N/A
B48: Contaminated (E. coli detected in 100 mL) | C48: N/A | D48: N/A | E48: N/A | F48: N/A | G48: N/A | H48: N/A | I48: N/A | J48: N/A | K48: N/A | L48: N/A | M48: N/A | N48: N/A | O48: N/A | P48: N/A | Q48: N/A | BB48: Contaminated (E. coli detected in 100 mL) | BC48: N/A | BD48: N/A | BE48: N/A | BF48: N/A | BG48: N/A | BH48: N/A | BI48: N/A | BJ48: N/A | BK48: N/A | BL48: N/A | BM48: N/A | BN48: N/A | BO48: N/A | BP48: N/A | BQ48: N/A
B49: Highly contaminated (>100 CFU/100 mL) | C49: N/A | D49: N/A | E49: N/A | F49: N/A | G49: N/A | H49: N/A | I49: N/A | J49: N/A | K49: N/A | L49: N/A | M49: N/A | N49: N/A | O49: N/A | P49: N/A | Q49: N/A | BB49: Highly contaminated (>100 CFU/100 mL) | BC49: N/A | BD49: N/A | BE49: N/A | BF49: N/A | BG49: N/A | BH49: N/A | BI49: N/A | BJ49: N/A | BK49: N/A | BL49: N/A | BM49: N/A | BN49: N/A | BO49: N/A | BP49: N/A | BQ49: N/A
A50: Microbiological quality of improved water sources at point of collection | B50: Not contaminated (No E. coli in 100 mL) | C50: N/A | D50: N/A | E50: N/A | F50: N/A | G50: N/A | H50: N/A | I50: N/A | J50: N/A | K50: N/A | L50: N/A | M50: N/A | N50: N/A | O50: N/A | P50: N/A | Q50: N/A | BA50: Microbiological quality of improved water sources at point of collection | BB50: Not contaminated (No E. coli in 100 mL) | BC50: N/A | BD50: N/A | BE50: N/A | BF50: N/A | BG50: N/A | BH50: N/A | BI50: N/A | BJ50: N/A | BK50: N/A | BL50: N/A | BM50: N/A | BN50: N/A | BO50: N/A | BP50: N/A | BQ50: N/A
B51: Contaminated (E. coli detected in 100 mL) | C51: N/A | D51: N/A | E51: N/A | F51: N/A | G51: N/A | H51: N/A | I51: N/A | J51: N/A | K51: N/A | L51: N/A | M51: N/A | N51: N/A | O51: N/A | P51: N/A | Q51: N/A | BB51: Contaminated (E. coli detected in 100 mL) | BC51: N/A | BD51: N/A | BE51: N/A | BF51: N/A | BG51: N/A | BH51: N/A | BI51: N/A | BJ51: N/A | BK51: N/A | BL51: N/A | BM51: N/A | BN51: N/A | BO51: N/A | BP51: N/A | BQ51: N/A
B52: Highly contaminated (>100 CFU/100 mL) | C52: N/A | D52: N/A | E52: N/A | F52: N/A | G52: N/A | H52: N/A | I52: N/A | J52: N/A | K52: N/A | L52: N/A | M52: N/A | N52: N/A | O52: N/A | P52: N/A | Q52: N/A | BB52: Highly contaminated (>100 CFU/100 mL) | BC52: N/A | BD52: N/A | BE52: N/A | BF52: N/A | BG52: N/A | BH52: N/A | BI52: N/A | BJ52: N/A | BK52: N/A | BL52: N/A | BM52: N/A | BN52: N/A | BO52: N/A | BP52: N/A | BQ52: N/A
A53: Microbiological quality of piped on premises at point of collection | B53: Not contaminated (No E. coli in 100 mL) | C53: N/A | D53: N/A | E53: N/A | F53: N/A | G53: N/A | H53: N/A | I53: N/A | J53: N/A | K53: N/A | L53: N/A | M53: N/A | N53: N/A | O53: N/A | P53: N/A | Q53: N/A | BA53: Microbiological quality of piped on premises at point of collection | BB53: Not contaminated (No E. coli in 100 mL) | BC53: N/A | BD53: N/A | BE53: N/A | BF53: N/A | BG53: N/A | BH53: N/A | BI53: N/A | BJ53: N/A | BK53: N/A | BL53: N/A | BM53: N/A | BN53: N/A | BO53: N/A | BP53: N/A | BQ53: N/A
B54: Contaminated (E. coli detected in 100 mL) | C54: N/A | D54: N/A | E54: N/A | F54: N/A | G54: N/A | H54: N/A | I54: N/A | J54: N/A | K54: N/A | L54: N/A | M54: N/A | N54: N/A | O54: N/A | P54: N/A | Q54: N/A | BB54: Contaminated (E. coli detected in 100 mL) | BC54: N/A | BD54: N/A | BE54: N/A | BF54: N/A | BG54: N/A | BH54: N/A | BI54: N/A | BJ54: N/A | BK54: N/A | BL54: N/A | BM54: N/A | BN54: N/A | BO54: N/A | BP54: N/A | BQ54: N/A
B55: Highly contaminated (>100 CFU/100 mL) | C55: N/A | D55: N/A | E55: N/A | F55: N/A | G55: N/A | H55: N/A | I55: N/A | J55: N/A | K55: N/A | L55: N/A | M55: N/A | N55: N/A | O55: N/A | P55: N/A | Q55: N/A | BB55: Highly contaminated (>100 CFU/100 mL) | BC55: N/A | BD55: N/A | BE55: N/A | BF55: N/A | BG55: N/A | BH55: N/A | BI55: N/A | BJ55: N/A | BK55: N/A | BL55: N/A | BM55: N/A | BN55: N/A | BO55: N/A | BP55: N/A | BQ55: N/A
C56: NATIONAL wealth index quintile | H56: URBAN wealth index quintile | M56: RURAL wealth index quintile | BA56: Raw numbers of respondents: | BB56: Use of drinking water sources | BC56: NATIONAL wealth index quintile | BH56: URBAN wealth index quintile | BM56: RURAL wealth index quintile
A57: Percentage based on weighted population | C57: Poorest | D57: Poor | E57: Middle | F57: Rich | G57: Richest | H57: Poorest | I57: Poor | J57: Middle | K57: Rich | L57: Richest | M57: Poorest | N57: Poor | O57: Middle | P57: Rich | Q57: Richest | BA57: Water data, raw numbers (weighted) | BC57: Poorest | BD57: Poor | BE57: Middle | BF57: Rich | BG57: Richest | BH57: Poorest | BI57: Poor | BJ57: Middle | BK57: Rich | BL57: Richest | BM57: Poorest | BN57: Poor | BO57: Middle | BP57: Rich | BQ57: Richest
A58: main source of drinking water | B58: Piped water through house connection or yard | C58: 16.03277373 | D58: 36.72145428 | E58: 57.42080051 | F58: 76.69069336 | G58: 89.20764662 | H58: 58.42468603 | I58: 77.77014706 | J58: 82.32374219 | K58: 90.24289663 | L58: 93.26174034 | M58: 9.987490142 | N58: 17.01369398 | O58: 23.60403927 | P58: 37.31597841 | Q58: 54.82257212
B59: Public standpipe | C59: 2.746380492 | D59: 2.001438966 | E59: 0.8123137757 | F59: 0.2185617256 | G59: 0.166912495 | H59: 4.901613659 | I59: 0.7348233529 | J59: 0.4359217391 | K59: 0.1958929511 | L59: 0 | M59: 2.646677967 | N59: 0.6511200216 | O59: 0.8273846848 | P59: 1.100284224 | Q59: 0.2824776855
B60: Protected tube well or bore hole | C60: 7.604184856 | D60: 6.155155003 | E60: 5.499310715 | F60: 2.23684829 | G60: 2.331207926 | H60: 5.23515344 | I60: 2.63713958 | J60: 1.897151065 | K60: 1.691362606 | L60: 1.609531446 | M60: 7.317434299 | N60: 7.871288692 | O60: 7.565874276 | P60: 6.962887858 | Q60: 5.482702401
B61: Protected dug well or protected spring | C61: 6.493287188 | D61: 10.03401837 | E61: 13.93885614 | F61: 15.19251054 | G61: 7.464185262 | H61: 3.742662899 | I61: 8.951067087 | J61: 10.29476237 | K61: 6.556474547 | L61: 4.583474666 | M61: 6.10139827 | N61: 8.335577419 | O61: 13.79691016 | P61: 17.67383978 | Q61: 27.22513829
B62: Unprotected dug well or spring | C62: 56.81411539 | D62: 41.58951594 | E62: 20.67957073 | F62: 5.432513787 | G62: 0.6309080455 | H62: 26.88503406 | I62: 9.629612756 | J62: 5.048422635 | K62: 1.313373267 | L62: 0.1581747316 | M62: 58.35250633 | N62: 59.53958849 | O62: 49.31722253 | P62: 34.46931199 | Q62: 10.67094048
B63: Rainwater (into tank or cistern ) | C63: 1.422483576 | D63: 0.3527804757 | E63: 0.4116440516 | F63: 0 | G63: 0 | H63: 0.1789412219 | I63: 0 | J63: 0 | K63: 0 | L63: 0 | M63: 2.087183572 | N63: 1.105612479 | O63: 0 | P63: 0.8869691629 | Q63: 0.2096696373
B64: Water taken directly from pond-water or stream | C64: 8.787128308 | D64: 2.917367242 | E64: 1.09469324 | F64: 0.2288723074 | G64: 0 | H64: 0.4385921802 | I64: 0 | J64: 0 | K64: 0 | L64: 0 | M64: 13.50730942 | N64: 5.483118919 | O64: 4.627730323 | P64: 1.375605452 | Q64: 1.306499383
B65: Tanker-truck, vendor | C65: 0.09964646347 | D65: 0.2282697292 | E65: 0.1428108374 | F65: 0 | G65: 0.1991396548 | H65: 0.1933165083 | I65: 0.277210167 | J65: 0 | K65: 0 | L65: 0.3870788154 | M65: 0 | N65: 0 | O65: 0.2608387565 | P65: 0.2151231346 | Q65: 0
A108: =A1026 -> Paraguay
A109: =A1034 -> 2003
A110: Use of sanitation facilities
A111: by wealth quintile and sub-national region
A112: Notes:
A113: WHO/UNICEF JMP customised wealth index excludes water,
A114: sanitation and hygiene assets.
A115: Survey used for analysis: | B115: =A1025 -> WHS03
A116: =B1030 -> 
A117: =B1029 -> 
A120: Use of sanitation facilities | C120: NATIONAL wealth index quintile | H120: URBAN wealth index quintile | M120: RURAL wealth index quintile | BA120: Raw numbers of respondents: | BB120: Use of sanitation facilities | BC120: NATIONAL wealth index quintile | BH120: URBAN wealth index quintile | BM120: RURAL wealth index quintile
A121: Weighted percentage (used in graphs) | C121: Poorest | D121: Poor | E121: Middle | F121: Rich | G121: Richest | H121: Poorest | I121: Poor | J121: Middle | K121: Rich | L121: Richest | M121: Poorest | N121: Poor | O121: Middle | P121: Rich | Q121: Richest | BA121: Sanitation data, raw numbers (weighted) | BC121: Poorest | BD121: Poor | BE121: Middle | BF121: Rich | BG121: Richest | BH121: Poorest | BI121: Poor | BJ121: Middle | BK121: Rich | BL121: Richest | BM121: Poorest | BN121: Poor | BO121: Middle | BP121: Rich | BQ121: Richest
A122: Sanitation | B122: Improved | C122: =C153+C154+C155+(C156+C157)*'EPH10'!C130/100 -> 35.59325422 | D122: =D153+D154+D155+(D156+D157)*'EPH10'!D130/100 -> 73.30267341 | E122: =E153+E154+E155+(E156+E157)*'EPH10'!E130/100 -> 88.58028205 | F122: =F153+F154+F155+(F156+F157)*'EPH10'!F130/100 -> 99.00316647 | G122: =G153+G154+G155+(G156+G157)*'EPH10'!G130/100 -> 99.80063638 | H122: =H153+H154+H155+(H156+H157)*'EPH10'!H130/100 -> 75.78850505 | I122: =I153+I154+I155+(I156+I157)*'EPH10'!I130/100 -> 94.54155147 | J122: =J153+J154+J155+(J156+J157)*'EPH10'!J130/100 -> 99.37803435 | K122: =K153+K154+K155+(K156+K157)*'EPH10'!K130/100 -> 99.80385695 | L122: =L153+L154+L155+(L156+L157)*'EPH10'!L130/100 -> 99.80636855 | M122: =M153+M154+M155+(M156+M157)*'EPH10'!M130/100 -> 22.65315181 | N122: =N153+N154+N155+(N156+N157)*'EPH10'!N130/100 -> 45.59872941 | O122: =O153+O154+O155+(O156+O157)*'EPH10'!O130/100 -> 67.3209082 | P122: =P153+P154+P155+(P156+P157)*'EPH10'!P130/100 -> 78.53272399 | Q122: =Q153+Q154+Q155+(Q156+Q157)*'EPH10'!Q130/100 -> 95.24097 | BA122: Sanitation | BB122: Improved | BC122: 19812.09069 | BD122: 74263.39054 | BE122: 124759.0392 | BF122: 162724.7006 | BG122: 188667.1056 | BH122: 56069.70383 | BI122: 80011.58286 | BJ122: 86303.91431 | BK122: 95677.36721 | BL122: 97790.97124 | BM122: 4037.646103 | BN122: 11934.77951 | BO122: 25759.92339 | BP122: 44529.41407 | BQ122: 68111.02409
B123: Not Improved | C123: =100-C122 -> 64.40674578 | D123: =100-D122 -> 26.69732659 | E123: 11.41971795 | F123: 0.9968335272 | G123: 0.1993636214 | H123: 24.21149495 | I123: 5.458448527 | J123: 0.6219656512 | K123: 0.1961430478 | L123: 0.1936314496 | M123: 77.34684819 | N123: 54.40127059 | O123: 32.6790918 | P123: 21.46727601 | Q123: 4.759030001 | BB123: Not Improved | BC123: 173544.1908 | BD123: 118155.7767 | BE123: 67134.80878 | BF123: 31067.22926 | BG123: 4297.414192 | BH123: 43032.78131 | BI123: 21765.84819 | BJ123: 10001.80032 | BK123: 3530.784042 | BL123: 1337.414864 | BM123: 89912.58931 | BN123: 81834.40688 | BO123: 67866.46359 | BP123: 47781.52575 | BQ123: 27135.80541
A124: Sanitation ladder | B124: Basic | C124: =C122*C129/100 -> 33.86608412 | D124: =D122*D129/100 -> 70.03576563 | E124: 83.74472919 | F124: 95.19612952 | G124: 99.12885922 | H124: 69.04724883 | I124: 84.26781635 | J124: 95.01668298 | K124: 98.44514913 | L124: 99.31808157 | M124: 21.73126702 | N124: 44.20739189 | O124: 65.40296238 | P124: 77.21357551 | Q124: 94.9233836 | BA124: Sanitation ladder | BB124: Basic | BC124: 18389.99376 | BD124: 69260.2484 | BE124: 117310.0995 | BF124: 156642.9504 | BG124: 187146.3934 | BH124: 50902.68743 | BI124: 71543.84572 | BJ124: 82869.02101 | BK124: 94358.87882 | BL124: 97071.33378 | BM124: 3906.806091 | BN124: 11439.62998 | BO124: 24886.22665 | BP124: 43660.2319 | BQ124: 68111.02409
B125: Limited | C125: =C122*C128/100 -> 1.727170098 | D125: =D122*D128/100 -> 3.266907788 | E125: 4.83555286 | F125: 3.807036954 | G125: 0.6717771629 | H125: 6.741256221 | I125: 10.27373513 | J125: 4.361351364 | K125: 1.358707823 | L125: 0.4882869835 | M125: 0.9218847894 | N125: 1.391337519 | O125: 1.917945819 | P125: 1.319148483 | Q125: 0.3175864003 | BB125: Limited | BC125: 1422.096931 | BD125: 5003.142143 | BE125: 7218.243958 | BF125: 6081.750206 | BG125: 1279.248535 | BH125: 5167.016403 | BI125: 8467.737144 | BJ125: 3434.893295 | BK125: 1318.488388 | BL125: 478.1738281 | BM125: 130.8400116 | BN125: 495.1495285 | BO125: 873.6967392 | BP125: 638.4864349 | BQ125: 0
B126: Unimproved | C126: =100-(C124+C125+C127) -> 62.15271673 | D126: =100-(D124+D125+D127) -> 26.379316 | E126: 11.23197677 | F126: 0.9968335272 | G126: 0.1993636214 | H126: 22.87582121 | I126: 5.458448527 | J126: 0.6219656512 | K126: 0.1961430478 | L126: 0.1936314496 | M126: 73.96530748 | N126: 54.25743973 | O126: 32.1895443 | P126: 21.25579561 | Q126: 4.759030001 | BB126: Unimproved | BC126: 169232.8267 | BD126: 117566.5611 | BE126: 66790.83696 | BF126: 31067.22926 | BG126: 4297.414192 | BH126: 41718.00084 | BI126: 21765.84819 | BJ126: 10001.80032 | BK126: 3530.784042 | BL126: 1337.414864 | BM126: 86735.62386 | BN126: 81703.56688 | BO126: 67433.48915 | BP126: 47592.53465 | BQ126: 27135.80541
B127: Open defecation | C127: =C159 -> 2.254029053 | D127: =D159 -> 0.3180105826 | E127: 0.1877411825 | F127: 0 | G127: 0 | H127: 1.335673735 | I127: 0 | J127: 0 | K127: 0 | L127: 0 | M127: 3.381540706 | N127: 0.1438308557 | O127: 0.4895474989 | P127: 0.2114804024 | Q127: 0 | BB127: Open defecation | BC127: 4311.364029 | BD127: 589.2156219 | BE127: 343.971817 | BF127: 0 | BG127: 0 | BH127: 1314.780472 | BI127: 0 | BJ127: 0 | BK127: 0 | BL127: 0 | BM127: 3176.965454 | BN127: 130.8399963 | BO127: 432.9744415 | BP127: 188.9911041 | BQ127: 0
A128: Shared among Improved Sanitation | B128: Yes | C128: 4.852520895 | D128: 4.456737573 | E128: 5.458949496 | F128: 3.845368881 | G128: 0.6731191175 | H128: 8.89482675 | I128: 10.86689923 | J128: 4.388647243 | K128: 1.361378071 | L128: 0.489234295 | M128: 4.069565229 | N128: 3.05126379 | O128: 2.848960107 | P128: 1.6797437 | Q128: 0.3334556549 | BA128: Shared among improved sanitation facilities | BB128: Yes | BC128: N/A | BD128: N/A | BE128: N/A | BF128: N/A | BG128: N/A | BH128: N/A | BI128: N/A | BJ128: N/A | BK128: N/A | BL128: N/A | BM128: N/A | BN128: N/A | BO128: N/A | BP128: N/A | BQ128: N/A
B129: No | C129: 95.1474791 | D129: 95.54326243 | E129: 94.5410505 | F129: 96.15463112 | G129: 99.32688088 | H129: 91.10517325 | I129: 89.13310077 | J129: 95.61135276 | K129: 98.63862193 | L129: 99.51076571 | M129: 95.93043477 | N129: 96.94873621 | O129: 97.15103989 | P129: 98.3202563 | Q129: 99.66654435 | BB129: No | BC129: N/A | BD129: N/A | BE129: N/A | BF129: N/A | BG129: N/A | BH129: N/A | BI129: N/A | BJ129: N/A | BK129: N/A | BL129: N/A | BM129: N/A | BN129: N/A | BO129: N/A | BP129: N/A | BQ129: N/A
A130: Manually calculated ratios | B130: Improved latrines
B131: Other
B132: Other
C133: NATIONAL wealth index quintile | H133: URBAN wealth index quintile | M133: RURAL wealth index quintile | BA133: Raw numbers of respondents: | BB133: Use of sanitation facilities | BC133: NATIONAL wealth index quintile | BH133: URBAN wealth index quintile | BM133: RURAL wealth index quintile
A134: Percentage based on weighted population | C134: Poorest | D134: Poor | E134: Middle | F134: Rich | G134: Richest | H134: Poorest | I134: Poor | J134: Middle | K134: Rich | L134: Richest | M134: Poorest | N134: Poor | O134: Middle | P134: Rich | Q134: Richest | BA134: Sanitation data, raw numbers (weighted) | BC134: Poorest | BD134: Poor | BE134: Middle | BF134: Rich | BG134: Richest | BH134: Poorest | BI134: Poor | BJ134: Middle | BK134: Rich | BL134: Richest | BM134: Poorest | BN134: Poor | BO134: Middle | BP134: Rich | BQ134: Richest
A135: Sanitation type | B135: Sewer connection | C135: 0.4999826875 | D135: 2.055094602 | E135: 4.15173826 | F135: 11.64624585 | G135: 30.59691707 | H135: 5.487903461 | I135: 11.48937818 | J135: 14.89547371 | K135: 22.29350628 | L135: 40.43216361 | M135: 0 | N135: 0.2733612428 | O135: 0 | P135: 0 | Q135: 0.5966208738 | BA135: Sanitation type | BB135: Sewer connection | BC135: N/A | BD135: N/A | BE135: N/A | BF135: N/A | BG135: N/A | BH135: N/A | BI135: N/A | BJ135: N/A | BK135: N/A | BL135: N/A | BM135: N/A | BN135: N/A | BO135: N/A | BP135: N/A | BQ135: N/A
B136: Septic tank connection | C136: 0.6018818123 | D136: 1.852088604 | E136: 6.545058539 | F136: 10.18389788 | G136: 18.0094524 | H136: 2.963498489 | I136: 8.124850154 | J136: 12.8429081 | K136: 15.3254293 | L136: 17.99667667 | M136: 0.1508706511 | N136: 0.7594205575 | O136: 1.572073597 | P136: 3.565269003 | Q136: 10.01521643 | BB136: Septic tank connection | BC136: N/A | BD136: N/A | BE136: N/A | BF136: N/A | BG136: N/A | BH136: N/A | BI136: N/A | BJ136: N/A | BK136: N/A | BL136: N/A | BM136: N/A | BN136: N/A | BO136: N/A | BP136: N/A | BQ136: N/A
B137: Improved latrines | C137: 9.144552396 | D137: 34.68740776 | E137: 54.31781441 | F137: 62.13862666 | G137: 49.16658164 | H137: 48.12609331 | I137: 59.00004011 | J137: 61.876149 | K137: 58.82209876 | L137: 40.22198527 | M137: 4.146772761 | N137: 11.69504487 | O137: 25.94145568 | P137: 44.67323248 | Q137: 60.89817982 | BB137: Improved latrines | BC137: N/A | BD137: N/A | BE137: N/A | BF137: N/A | BG137: N/A | BH137: N/A | BI137: N/A | BJ137: N/A | BK137: N/A | BL137: N/A | BM137: N/A | BN137: N/A | BO137: N/A | BP137: N/A | BQ137: N/A
B138: Unimproved facilities | C138: 87.52383189 | D138: 61.09919441 | E138: 34.8061377 | F138: 16.03122961 | G138: 2.227048889 | H138: 42.09581705 | I138: 21.38573156 | J138: 10.38546919 | K138: 3.558965667 | L138: 1.349174456 | M138: 92.32081588 | N138: 87.13263923 | O138: 72.02402156 | P138: 51.55676536 | Q138: 28.48998287 | BB138: Unimproved facilities | BC138: N/A | BD138: N/A | BE138: N/A | BF138: N/A | BG138: N/A | BH138: N/A | BI138: N/A | BJ138: N/A | BK138: N/A | BL138: N/A | BM138: N/A | BN138: N/A | BO138: N/A | BP138: N/A | BQ138: N/A
B139: Open defecation | C139: 2.229751212 | D139: 0.3062146201 | E139: 0.1792510915 | F139: 0 | G139: 0 | H139: 1.326687691 | I139: 0 | J139: 0 | K139: 0 | L139: 0 | M139: 3.381540706 | N139: 0.1395341064 | O139: 0.4624491615 | P139: 0.20473316 | Q139: 0 | BB139: Open defecation | BC139: N/A | BD139: N/A | BE139: N/A | BF139: N/A | BG139: N/A | BH139: N/A | BI139: N/A | BJ139: N/A | BK139: N/A | BL139: N/A | BM139: N/A | BN139: N/A | BO139: N/A | BP139: N/A | BQ139: N/A
A140: Septic tank emptying practices | B140: Not emptied/treated and disposed in situ | C140: N/A | D140: N/A | E140: N/A | F140: N/A | G140: N/A | H140: N/A | I140: N/A | J140: N/A | K140: N/A | L140: N/A | M140: N/A | N140: N/A | O140: N/A | P140: N/A | Q140: N/A | BA140: Septic tank emptying practices | BB140: Not emptied/treated and disposed in situ | BC140: N/A | BD140: N/A | BE140: N/A | BF140: N/A | BG140: N/A | BH140: N/A | BI140: N/A | BJ140: N/A | BK140: N/A | BL140: N/A | BM140: N/A | BN140: N/A | BO140: N/A | BP140: N/A | BQ140: N/A
B141: Emptied and buried on site | C141: N/A | D141: N/A | E141: N/A | F141: N/A | G141: N/A | H141: N/A | I141: N/A | J141: N/A | K141: N/A | L141: N/A | M141: N/A | N141: N/A | O141: N/A | P141: N/A | Q141: N/A | BB141: Emptied and buried on site | BC141: N/A | BD141: N/A | BE141: N/A | BF141: N/A | BG141: N/A | BH141: N/A | BI141: N/A | BJ141: N/A | BK141: N/A | BL141: N/A | BM141: N/A | BN141: N/A | BO141: N/A | BP141: N/A | BQ141: N/A
B142: Emptied and discharged locally | C142: N/A | D142: N/A | E142: N/A | F142: N/A | G142: N/A | H142: N/A | I142: N/A | J142: N/A | K142: N/A | L142: N/A | M142: N/A | N142: N/A | O142: N/A | P142: N/A | Q142: N/A | BB142: Emptied and discharged locally | BC142: N/A | BD142: N/A | BE142: N/A | BF142: N/A | BG142: N/A | BH142: N/A | BI142: N/A | BJ142: N/A | BK142: N/A | BL142: N/A | BM142: N/A | BN142: N/A | BO142: N/A | BP142: N/A | BQ142: N/A
B143: Emptied and removed offsite | C143: N/A | D143: N/A | E143: N/A | F143: N/A | G143: N/A | H143: N/A | I143: N/A | J143: N/A | K143: N/A | L143: N/A | M143: N/A | N143: N/A | O143: N/A | P143: N/A | Q143: N/A | BB143: Emptied and removed offsite | BC143: N/A | BD143: N/A | BE143: N/A | BF143: N/A | BG143: N/A | BH143: N/A | BI143: N/A | BJ143: N/A | BK143: N/A | BL143: N/A | BM143: N/A | BN143: N/A | BO143: N/A | BP143: N/A | BQ143: N/A
A144: Latrine emptying practices | B144: Not emptied/treated and disposed in situ | C144: N/A | D144: N/A | E144: N/A | F144: N/A | G144: N/A | H144: N/A | I144: N/A | J144: N/A | K144: N/A | L144: N/A | M144: N/A | N144: N/A | O144: N/A | P144: N/A | Q144: N/A | BA144: Latrine emptying practices | BB144: Not emptied/treated and disposed in situ | BC144: N/A | BD144: N/A | BE144: N/A | BF144: N/A | BG144: N/A | BH144: N/A | BI144: N/A | BJ144: N/A | BK144: N/A | BL144: N/A | BM144: N/A | BN144: N/A | BO144: N/A | BP144: N/A | BQ144: N/A
B145: Emptied and buried on site | C145: N/A | D145: N/A | E145: N/A | F145: N/A | G145: N/A | H145: N/A | I145: N/A | J145: N/A | K145: N/A | L145: N/A | M145: N/A | N145: N/A | O145: N/A | P145: N/A | Q145: N/A | BB145: Emptied and buried on site | BC145: N/A | BD145: N/A | BE145: N/A | BF145: N/A | BG145: N/A | BH145: N/A | BI145: N/A | BJ145: N/A | BK145: N/A | BL145: N/A | BM145: N/A | BN145: N/A | BO145: N/A | BP145: N/A | BQ145: N/A
B146: Emptied and discharged locally | C146: N/A | D146: N/A | E146: N/A | F146: N/A | G146: N/A | H146: N/A | I146: N/A | J146: N/A | K146: N/A | L146: N/A | M146: N/A | N146: N/A | O146: N/A | P146: N/A | Q146: N/A | BB146: Emptied and discharged locally | BC146: N/A | BD146: N/A | BE146: N/A | BF146: N/A | BG146: N/A | BH146: N/A | BI146: N/A | BJ146: N/A | BK146: N/A | BL146: N/A | BM146: N/A | BN146: N/A | BO146: N/A | BP146: N/A | BQ146: N/A
B147: Emptied and removed offsite | C147: N/A | D147: N/A | E147: N/A | F147: N/A | G147: N/A | H147: N/A | I147: N/A | J147: N/A | K147: N/A | L147: N/A | M147: N/A | N147: N/A | O147: N/A | P147: N/A | Q147: N/A | BB147: Emptied and removed offsite | BC147: N/A | BD147: N/A | BE147: N/A | BF147: N/A | BG147: N/A | BH147: N/A | BI147: N/A | BJ147: N/A | BK147: N/A | BL147: N/A | BM147: N/A | BN147: N/A | BO147: N/A | BP147: N/A | BQ147: N/A
A148: Shared among improved sanitation facilities | B148: Yes | C148: 4.498245681 | D148: 4.162473447 | E148: 5.148101171 | F148: 3.643624939 | G148: 0.662944948 | H148: 8.650408677 | I148: 9.963202165 | J148: 4.208727855 | K148: 1.329012154 | L148: 0.4823783044 | M148: 3.756137208 | N148: 2.826044488 | O148: 2.562879948 | P148: 1.604935517 | Q148: 0.3184734952 | BA148: Shared among improved sanitation facilities | BB148: Yes | BC148: N/A | BD148: N/A | BE148: N/A | BF148: N/A | BG148: N/A | BH148: N/A | BI148: N/A | BJ148: N/A | BK148: N/A | BL148: N/A | BM148: N/A | BN148: N/A | BO148: N/A | BP148: N/A | BQ148: N/A
B149: No | C149: 88.20090551 | D149: 89.23484643 | E149: 89.15761049 | F149: 91.10996182 | G149: 97.82555891 | H149: 88.60172359 | I149: 81.72074518 | J149: 91.69161734 | K149: 96.29355001 | L149: 98.11625008 | M149: 88.54210591 | N149: 89.79277454 | O149: 87.39555583 | P149: 93.94151704 | Q149: 95.18852736 | BB149: No | BC149: N/A | BD149: N/A | BE149: N/A | BF149: N/A | BG149: N/A | BH149: N/A | BI149: N/A | BJ149: N/A | BK149: N/A | BL149: N/A | BM149: N/A | BN149: N/A | BO149: N/A | BP149: N/A | BQ149: N/A
B150: DK/missing | C150: 7.300848806 | D150: 6.602680118 | E150: 5.694288338 | F150: 5.246413239 | G150: 1.51149614 | H150: 2.747867729 | I150: 8.316052659 | J150: 4.099654806 | K150: 2.377437833 | L150: 1.401371616 | M150: 7.701756886 | N150: 7.381180975 | O150: 10.04156422 | P150: 4.453547447 | Q150: 4.492999142 | BB150: DK/missing | BC150: N/A | BD150: N/A | BE150: N/A | BF150: N/A | BG150: N/A | BH150: N/A | BI150: N/A | BJ150: N/A | BK150: N/A | BL150: N/A | BM150: N/A | BN150: N/A | BO150: N/A | BP150: N/A | BQ150: N/A
A151: Shared among all sanitation facilities | B151: Yes | C151: 95.56734064 | D151: 95.79900222 | E151: 94.54330523 | F151: 96.54030581 | G151: 99.37044663 | H151: 92.00235246 | I151: 89.02245453 | J151: 96.43573976 | K151: 98.72208732 | L151: 99.50943257 | M151: 96.0655485 | N151: 97.23711787 | O151: 97.08863919 | P151: 98.28440295 | Q151: 99.66402187 | BA151: Shared among all sanitation facilities | BB151: Yes | BC151: N/A | BD151: N/A | BE151: N/A | BF151: N/A | BG151: N/A | BH151: N/A | BI151: N/A | BJ151: N/A | BK151: N/A | BL151: N/A | BM151: N/A | BN151: N/A | BO151: N/A | BP151: N/A | BQ151: N/A
B152: No | C152: 4.432659361 | D152: 4.200997779 | E152: 5.456694771 | F152: 3.459694192 | G152: 0.6295533735 | H152: 7.997647539 | I152: 10.97754547 | J152: 3.564260238 | K152: 1.277912684 | L152: 0.4905674303 | M152: 3.934451499 | N152: 2.762882127 | O152: 2.911360809 | P152: 1.715597045 | Q152: 0.3359781308 | BB152: No | BC152: N/A | BD152: N/A | BE152: N/A | BF152: N/A | BG152: N/A | BH152: N/A | BI152: N/A | BJ152: N/A | BK152: N/A | BL152: N/A | BM152: N/A | BN152: N/A | BO152: N/A | BP152: N/A | BQ152: N/A
A153: What type of toilet facilities | B153: Flush to piped sewage system | C153: 0.5054265685 | D153: 2.134260708 | E153: 4.348382172 | F153: 12.25222592 | G153: 31.0209182 | H153: 5.525074638 | I153: 12.38889826 | J153: 15.53224202 | K153: 22.86558161 | L153: 40.90576434 | M153: 0 | N153: 0.2817790035 | O153: 0 | P153: 0 | Q153: 0.619763741 | BA153: What type of toilet facilities | BB153: Flush to piped sewage system | BC153: 966.7479324 | BD153: 3954.39592 | BE153: 7966.930305 | BF153: 22569.48459 | BG153: 59041.19408 | BH153: 5438.648712 | BI153: 11693.59396 | BJ153: 14345.19241 | BK153: 22116.97543 | BL153: 40079.75125 | BM153: 0 | BN153: 256.3286133 | BO153: 0 | BP153: 0 | BQ153: 568.2624664
B154: Flush to septic tank | C154: 0.6084351851 | D154: 1.923434537 | E154: 6.855060237 | F154: 10.71378874 | G154: 18.25902095 | H154: 2.983571132 | I154: 8.760956458 | J154: 13.39193104 | K154: 15.71869629 | L154: 18.20748011 | M154: 0.1508706511 | N154: 0.7828058058 | O154: 1.664193087 | P154: 3.682766991 | Q154: 10.40370573 | BB154: Flush to septic tank | BC154: 1163.776291 | BD154: 3563.773468 | BE154: 12559.56468 | BF154: 19735.57224 | BG154: 34751.85332 | BH154: 2936.90065 | BI154: 8269.263763 | BJ154: 12368.45442 | BK154: 15204.07508 | BL154: 17839.81513 | BM154: 141.7433319 | BN154: 712.102478 | BO154: 1471.87571 | BP154: 3291.133324 | BQ154: 9539.176117
B155: Pour flush latrine | C155: 5.596697442 | D155: 31.55092344 | E155: 53.61611463 | F155: 64.36567312 | G155: 49.49129438 | H155: 46.50897927 | I155: 62.79723536 | J155: 63.43826128 | K155: 59.62981859 | L155: 40.69312409 | M155: 1.884001538 | N155: 5.292263593 | O155: 22.3285866 | P155: 41.5660479 | Q155: 60.51495668 | BB155: Pour flush latrine | BC155: 10705.00844 | BD155: 58458.10798 | BE155: 98233.28117 | BF155: 118566.2162 | BG155: 94195.31356 | BH155: 45781.46302 | BI155: 59272.85512 | BJ155: 58590.00027 | BK155: 57677.57212 | BL155: 39871.40486 | BM155: 1770.02388 | BN155: 4814.264267 | BO155: 19748.25188 | BP155: 37145.82153 | BQ155: 55486.27043
B156: Covered dry latrine (with privacy) | C156: 3.647422111 | D156: 4.472708446 | E156: 3.274421575 | F156: 1.006164464 | G156: 0.3566201619 | H156: 1.943086158 | I156: 0.8220034704 | J156: 1.083038274 | K156: 0.7017184474 | L156: 0 | M156: 2.262771223 | N156: 6.762913121 | O156: 5.132971994 | P156: 4.579447934 | Q156: 2.745457773 | BB156: Covered dry latrine (with privacy) | BC156: 6976.558029 | BD156: 8287.113174 | BE156: 5999.263046 | BF156: 1853.427574 | BG156: 678.7445831 | BH156: 1912.691452 | BI156: 775.8700256 | BJ156: 1000.267212 | BK156: 678.7445831 | BL156: 0 | BM156: 2125.878891 | BN156: 6152.084152 | BO156: 4539.795807 | BP156: 4092.459213 | BQ156: 2517.315071
B157: Uncovered dry latrine (without privacy) | C157: 86.19684157 | D157: 57.87332271 | E157: 30.78412444 | F157: 10.8925617 | G157: 0.6727826857 | H157: 40.70917558 | I157: 13.96447555 | J157: 6.08711599 | K157: 0.8880420176 | L157: 0 | M157: 91.24995856 | N157: 85.34738191 | O157: 68.28102856 | P157: 48.81523684 | Q157: 24.79065157 | BB157: Uncovered dry latrine (without privacy) | BC157: 164871.8599 | BD157: 107228.7141 | BE157: 56401.43028 | BF157: 20064.88495 | BG157: 1280.487343 | BH157: 40072.38271 | BI157: 13180.74484 | BJ157: 5621.908928 | BK157: 858.9680252 | BL157: 0 | BM157: 85729.55088 | BN157: 77638.77287 | BO157: 60390.34062 | BP157: 43624.11553 | BQ157: 22730.59212
B158: Bucket latrine (where fresh excreta are manually removed) | C158: 0.9362412668 | D158: 1.499069845 | E158: 0.6932976044 | F158: 0.4341679802 | G158: 0 | H158: 0.994439482 | I158: 0.7989010416 | J158: 0.4674113931 | K158: 0 | L158: 0 | M158: 0.5518915255 | N158: 1.389025707 | O158: 1.625467829 | P158: 1.145019927 | Q158: 0.2516035348 | BB158: Bucket latrine (where fresh excreta are manually removed) | BC158: 1790.783005 | BD158: 2777.503075 | BE158: 1270.231888 | BF158: 799.7687607 | BG158: 0 | BH158: 978.8839722 | BI158: 754.0641785 | BJ158: 431.689537 | BK158: 0 | BL158: 0 | BM158: 518.5033875 | BN158: 1263.568359 | BO158: 1437.625618 | BP158: 1023.255951 | BQ158: 230.6957245
B159: No facilities (open defecation) | C159: 2.254029053 | D159: 0.3180105826 | E159: 0.1877411825 | F159: 0 | G159: 0 | H159: 1.335673735 | I159: 0 | J159: 0 | K159: 0 | L159: 0 | M159: 3.381540706 | N159: 0.1438308557 | O159: 0.4895474989 | P159: 0.2114804024 | Q159: 0 | BB159: No facilities (open defecation) | BC159: 4311.364029 | BD159: 589.2156219 | BE159: 343.971817 | BF159: 0 | BG159: 0 | BH159: 1314.780472 | BI159: 0 | BJ159: 0 | BK159: 0 | BL159: 0 | BM159: 3176.965454 | BN159: 130.8399963 | BO159: 432.9744415 | BP159: 188.9911041 | BQ159: 0
B160: Other | C160: 0.2549068018 | D160: 0.2282697375 | E160: 0.2408581583 | F160: 0.3354180815 | G160: 0.1993636214 | H160: 0 | I160: 0.467529856 | J160: 0 | K160: 0.1961430478 | L160: 0.1936314496 | M160: 0.5189657967 | N160: 0 | O160: 0.47820443 | P160: 0 | Q160: 0.6738609785 | BB160: Other | BC160: 487.5695877 | BD160: 422.9421997 | BE160: 441.290596 | BF160: 617.8643188 | BG160: 379.4428711 | BH160: 0 | BI160: 441.290596 | BJ160: 0 | BK160: 189.7214355 | BL160: 189.7214355 | BM160: 487.5695877 | BN160: 0 | BO160: 422.9421997 | BP160: 0 | BQ160: 617.8643188
BB161: Total | BC161: 191273.6672 | BD161: 185281.7655 | BE161: 183215.9638 | BF161: 184207.2187 | BG161: 190327.0358 | BH161: 98435.75098 | BI161: 94387.68248 | BJ161: 92357.51277 | BK161: 96726.05667 | BL161: 97980.69268 | BM161: 93950.23541 | BN161: 90967.96073 | BO161: 88443.80627 | BP161: 89365.77666 | BQ161: 91690.17625
A208: =A1026 -> Paraguay
A209: =A1034 -> 2003
A210: Access to hygiene facilities
A211: by wealth quintile and sub-national region
A212: Notes:
A213: WHO/UNICEF JMP customised wealth index excludes water,
A214: sanitation and hygiene assets.
A215: Survey used for analysis: | B215: =A1025 -> WHS03
A220: Access to handwashing | C220: NATIONAL wealth index quintile | H220: URBAN wealth index quintile | M220: RURAL wealth index quintile | BA220: Raw numbers of respondents: | BB220: Access to handwashing | BC220: NATIONAL wealth index quintile | BH220: URBAN wealth index quintile | BM220: RURAL wealth index quintile
A221: Weighted percentage (used in graphs) | C221: Poorest | D221: Poor | E221: Middle | F221: Rich | G221: Richest | H221: Poorest | I221: Poor | J221: Middle | K221: Rich | L221: Richest | M221: Poorest | N221: Poor | O221: Middle | P221: Rich | Q221: Richest | BA221: Hygiene data, raw numbers (weighted) | BC221: Poorest | BD221: Poor | BE221: Middle | BF221: Rich | BG221: Richest | BH221: Poorest | BI221: Poor | BJ221: Middle | BK221: Rich | BL221: Richest | BM221: Poorest | BN221: Poor | BO221: Middle | BP221: Rich | BQ221: Richest
A222: Hygiene ladder | B222: Basic | C222: N/A | D222: N/A | E222: N/A | F222: N/A | G222: N/A | H222: N/A | I222: N/A | J222: N/A | K222: N/A | L222: N/A | M222: N/A | N222: N/A | O222: N/A | P222: N/A | Q222: N/A | BA222: Hygiene ladder | BB222: Basic | BC222: N/A | BD222: N/A | BE222: N/A | BF222: N/A | BG222: N/A | BH222: N/A | BI222: N/A | BJ222: N/A | BK222: N/A | BL222: N/A | BM222: N/A | BN222: N/A | BO222: N/A | BP222: N/A | BQ222: N/A
B223: Limited | C223: N/A | D223: N/A | E223: N/A | F223: N/A | G223: N/A | H223: N/A | I223: N/A | J223: N/A | K223: N/A | L223: N/A | M223: N/A | N223: N/A | O223: N/A | P223: N/A | Q223: N/A | BB223: Limited | BC223: N/A | BD223: N/A | BE223: N/A | BF223: N/A | BG223: N/A | BH223: N/A | BI223: N/A | BJ223: N/A | BK223: N/A | BL223: N/A | BM223: N/A | BN223: N/A | BO223: N/A | BP223: N/A | BQ223: N/A
B224: No facility | C224: N/A | D224: N/A | E224: N/A | F224: N/A | G224: N/A | H224: N/A | I224: N/A | J224: N/A | K224: N/A | L224: N/A | M224: N/A | N224: N/A | O224: N/A | P224: N/A | Q224: N/A | BB224: No facility | BC224: N/A | BD224: N/A | BE224: N/A | BF224: N/A | BG224: N/A | BH224: N/A | BI224: N/A | BJ224: N/A | BK224: N/A | BL224: N/A | BM224: N/A | BN224: N/A | BO224: N/A | BP224: N/A | BQ224: N/A
BA225: Observed handwashing place | BB225: Fixed | BC225: N/A | BD225: N/A | BE225: N/A | BF225: N/A | BG225: N/A | BH225: N/A | BI225: N/A | BJ225: N/A | BK225: N/A | BL225: N/A | BM225: N/A | BN225: N/A | BO225: N/A | BP225: N/A | BQ225: N/A
BB226: Mobile | BC226: N/A | BD226: N/A | BE226: N/A | BF226: N/A | BG226: N/A | BH226: N/A | BI226: N/A | BJ226: N/A | BK226: N/A | BL226: N/A | BM226: N/A | BN226: N/A | BO226: N/A | BP226: N/A | BQ226: N/A
BA227: Water / Soap | BB227: Water and soap | BC227: N/A | BD227: N/A | BE227: N/A | BF227: N/A | BG227: N/A | BH227: N/A | BI227: N/A | BJ227: N/A | BK227: N/A | BL227: N/A | BM227: N/A | BN227: N/A | BO227: N/A | BP227: N/A | BQ227: N/A
BB228: Water only | BC228: N/A | BD228: N/A | BE228: N/A | BF228: N/A | BG228: N/A | BH228: N/A | BI228: N/A | BJ228: N/A | BK228: N/A | BL228: N/A | BM228: N/A | BN228: N/A | BO228: N/A | BP228: N/A | BQ228: N/A
BB229: Soap only | BC229: N/A | BD229: N/A | BE229: N/A | BF229: N/A | BG229: N/A | BH229: N/A | BI229: N/A | BJ229: N/A | BK229: N/A | BL229: N/A | BM229: N/A | BN229: N/A | BO229: N/A | BP229: N/A | BQ229: N/A
BB230: Neither | BC230: N/A | BD230: N/A | BE230: N/A | BF230: N/A | BG230: N/A | BH230: N/A | BI230: N/A | BJ230: N/A | BK230: N/A | BL230: N/A | BM230: N/A | BN230: N/A | BO230: N/A | BP230: N/A | BQ230: N/A
BA259: Raw numbers of respondents: | BB259: Menstrual health and hygiene | BC259: NATIONAL wealth index quintile | BH259: URBAN wealth index quintile | BM259: RURAL wealth index quintile
BA260: MHH data, raw numbers (weighted) | BC260: Poorest | BD260: Poor | BE260: Middle | BF260: Rich | BG260: Richest | BH260: Poorest | BI260: Poor | BJ260: Middle | BK260: Rich | BL260: Richest | BM260: Poorest | BN260: Poor | BO260: Middle | BP260: Rich | BQ260: Richest
BA261: Private place to wash and change | BB261: Yes | BC261: N/A | BD261: N/A | BE261: N/A | BF261: N/A | BG261: N/A | BH261: N/A | BI261: N/A | BJ261: N/A | BK261: N/A | BL261: N/A | BM261: N/A | BN261: N/A | BO261: N/A | BP261: N/A | BQ261: N/A
BB262: No | BC262: N/A | BD262: N/A | BE262: N/A | BF262: N/A | BG262: N/A | BH262: N/A | BI262: N/A | BJ262: N/A | BK262: N/A | BL262: N/A | BM262: N/A | BN262: N/A | BO262: N/A | BP262: N/A | BQ262: N/A
BB263: DK/not sure/missing | BC263: N/A | BD263: N/A | BE263: N/A | BF263: N/A | BG263: N/A | BH263: N/A | BI263: N/A | BJ263: N/A | BK263: N/A | BL263: N/A | BM263: N/A | BN263: N/A | BO263: N/A | BP263: N/A | BQ263: N/A
BA264: Use of menstrual materials | BB264: Materials reusable | BC264: N/A | BD264: N/A | BE264: N/A | BF264: N/A | BG264: N/A | BH264: N/A | BI264: N/A | BJ264: N/A | BK264: N/A | BL264: N/A | BM264: N/A | BN264: N/A | BO264: N/A | BP264: N/A | BQ264: N/A
BB265: Materials not reusable | BC265: N/A | BD265: N/A | BE265: N/A | BF265: N/A | BG265: N/A | BH265: N/A | BI265: N/A | BJ265: N/A | BK265: N/A | BL265: N/A | BM265: N/A | BN265: N/A | BO265: N/A | BP265: N/A | BQ265: N/A
BB266: No materials used | BC266: N/A | BD266: N/A | BE266: N/A | BF266: N/A | BG266: N/A | BH266: N/A | BI266: N/A | BJ266: N/A | BK266: N/A | BL266: N/A | BM266: N/A | BN266: N/A | BO266: N/A | BP266: N/A | BQ266: N/A
BB267: DK/not sure/missing | BC267: N/A | BD267: N/A | BE267: N/A | BF267: N/A | BG267: N/A | BH267: N/A | BI267: N/A | BJ267: N/A | BK267: N/A | BL267: N/A | BM267: N/A | BN267: N/A | BO267: N/A | BP267: N/A | BQ267: N/A
BA268: Use of menstrual materials with private place to wash and change | BB268: Materials reusable | BC268: N/A | BD268: N/A | BE268: N/A | BF268: N/A | BG268: N/A | BH268: N/A | BI268: N/A | BJ268: N/A | BK268: N/A | BL268: N/A | BM268: N/A | BN268: N/A | BO268: N/A | BP268: N/A | BQ268: N/A
BB269: Materials not reusable | BC269: N/A | BD269: N/A | BE269: N/A | BF269: N/A | BG269: N/A | BH269: N/A | BI269: N/A | BJ269: N/A | BK269: N/A | BL269: N/A | BM269: N/A | BN269: N/A | BO269: N/A | BP269: N/A | BQ269: N/A
BB270: No materials used | BC270: N/A | BD270: N/A | BE270: N/A | BF270: N/A | BG270: N/A | BH270: N/A | BI270: N/A | BJ270: N/A | BK270: N/A | BL270: N/A | BM270: N/A | BN270: N/A | BO270: N/A | BP270: N/A | BQ270: N/A
BA271: Awareness of menstruation before menarche | BB271: Yes | BC271: N/A | BD271: N/A | BE271: N/A | BF271: N/A | BG271: N/A | BH271: N/A | BI271: N/A | BJ271: N/A | BK271: N/A | BL271: N/A | BM271: N/A | BN271: N/A | BO271: N/A | BP271: N/A | BQ271: N/A
BB272: No | BC272: N/A | BD272: N/A | BE272: N/A | BF272: N/A | BG272: N/A | BH272: N/A | BI272: N/A | BJ272: N/A | BK272: N/A | BL272: N/A | BM272: N/A | BN272: N/A | BO272: N/A | BP272: N/A | BQ272: N/A
BB273: DK/not sure/missing | BC273: N/A | BD273: N/A | BE273: N/A | BF273: N/A | BG273: N/A | BH273: N/A | BI273: N/A | BJ273: N/A | BK273: N/A | BL273: N/A | BM273: N/A | BN273: N/A | BO273: N/A | BP273: N/A | BQ273: N/A
BA274: Participation in (all) activities during menstruation | BB274: Yes | BC274: N/A | BD274: N/A | BE274: N/A | BF274: N/A | BG274: N/A | BH274: N/A | BI274: N/A | BJ274: N/A | BK274: N/A | BL274: N/A | BM274: N/A | BN274: N/A | BO274: N/A | BP274: N/A | BQ274: N/A
BB275: No | BC275: N/A | BD275: N/A | BE275: N/A | BF275: N/A | BG275: N/A | BH275: N/A | BI275: N/A | BJ275: N/A | BK275: N/A | BL275: N/A | BM275: N/A | BN275: N/A | BO275: N/A | BP275: N/A | BQ275: N/A
BB276: DK/not sure/missing/no such activity | BC276: N/A | BD276: N/A | BE276: N/A | BF276: N/A | BG276: N/A | BH276: N/A | BI276: N/A | BJ276: N/A | BK276: N/A | BL276: N/A | BM276: N/A | BN276: N/A | BO276: N/A | BP276: N/A | BQ276: N/A
BA277: Participation in specific activities during menstruation | BB277: Did not go to school (amongst those usually attending school) | BC277: N/A | BD277: N/A | BE277: N/A | BF277: N/A | BG277: N/A | BH277: N/A | BI277: N/A | BJ277: N/A | BK277: N/A | BL277: N/A | BM277: N/A | BN277: N/A | BO277: N/A | BP277: N/A | BQ277: N/A
BB278: Did not go to work (amongst those who usually work) | BC278: N/A | BD278: N/A | BE278: N/A | BF278: N/A | BG278: N/A | BH278: N/A | BI278: N/A | BJ278: N/A | BK278: N/A | BL278: N/A | BM278: N/A | BN278: N/A | BO278: N/A | BP278: N/A | BQ278: N/A
BB279: Did not participate in social activities | BC279: N/A | BD279: N/A | BE279: N/A | BF279: N/A | BG279: N/A | BH279: N/A | BI279: N/A | BJ279: N/A | BK279: N/A | BL279: N/A | BM279: N/A | BN279: N/A | BO279: N/A | BP279: N/A | BQ279: N/A
BB280: Did not cook food | BC280: N/A | BD280: N/A | BE280: N/A | BF280: N/A | BG280: N/A | BH280: N/A | BI280: N/A | BJ280: N/A | BK280: N/A | BL280: N/A | BM280: N/A | BN280: N/A | BO280: N/A | BP280: N/A | BQ280: N/A
BB281: Did not eat with others | BC281: N/A | BD281: N/A | BE281: N/A | BF281: N/A | BG281: N/A | BH281: N/A | BI281: N/A | BJ281: N/A | BK281: N/A | BL281: N/A | BM281: N/A | BN281: N/A | BO281: N/A | BP281: N/A | BQ281: N/A
BB282: Did not bathe in regular place | BC282: N/A | BD282: N/A | BE282: N/A | BF282: N/A | BG282: N/A | BH282: N/A | BI282: N/A | BJ282: N/A | BK282: N/A | BL282: N/A | BM282: N/A | BN282: N/A | BO282: N/A | BP282: N/A | BQ282: N/A
BB283: Did not participate in other activities | BC283: N/A | BD283: N/A | BE283: N/A | BF283: N/A | BG283: N/A | BH283: N/A | BI283: N/A | BJ283: N/A | BK283: N/A | BL283: N/A | BM283: N/A | BN283: N/A | BO283: N/A | BP283: N/A | BQ283: N/A
BB284: DK/not sure/missing/no such activity | BC284: N/A | BD284: N/A | BE284: N/A | BF284: N/A | BG284: N/A | BH284: N/A | BI284: N/A | BJ284: N/A | BK284: N/A | BL284: N/A | BM284: N/A | BN284: N/A | BO284: N/A | BP284: N/A | BQ284: N/A
BA339: Raw numbers of respondents: | BB339: Basic water, sanitation and hygiene | BC339: NATIONAL wealth index quintile | BH339: URBAN wealth index quintile | BM339: RURAL wealth index quintile
BA340: WatSan data, raw numbers (weighted) | BC340: Poorest | BD340: Poor | BE340: Middle | BF340: Rich | BG340: Richest | BH340: Poorest | BI340: Poor | BJ340: Middle | BK340: Rich | BL340: Richest | BM340: Poorest | BN340: Poor | BO340: Middle | BP340: Rich | BQ340: Richest
BA341: Use of Basic Water Sanitation and Hygiene | BB341: Yes | BC341: N/A | BD341: N/A | BE341: N/A | BF341: N/A | BG341: N/A | BH341: N/A | BI341: N/A | BJ341: N/A | BK341: N/A | BL341: N/A | BM341: N/A | BN341: N/A | BO341: N/A | BP341: N/A | BQ341: N/A
BB342: No | BC342: N/A | BD342: N/A | BE342: N/A | BF342: N/A | BG342: N/A | BH342: N/A | BI342: N/A | BJ342: N/A | BK342: N/A | BL342: N/A | BM342: N/A | BN342: N/A | BO342: N/A | BP342: N/A | BQ342: N/A
BA343: Use of Basic Water and Sanitation | BB343: Yes | BC343: N/A | BD343: N/A | BE343: N/A | BF343: N/A | BG343: N/A | BH343: N/A | BI343: N/A | BJ343: N/A | BK343: N/A | BL343: N/A | BM343: N/A | BN343: N/A | BO343: N/A | BP343: N/A | BQ343: N/A
BB344: No | BC344: N/A | BD344: N/A | BE344: N/A | BF344: N/A | BG344: N/A | BH344: N/A | BI344: N/A | BJ344: N/A | BK344: N/A | BL344: N/A | BM344: N/A | BN344: N/A | BO344: N/A | BP344: N/A | BQ344: N/A
BA345: Use of Basic Water and Hygiene | BB345: Yes | BC345: N/A | BD345: N/A | BE345: N/A | BF345: N/A | BG345: N/A | BH345: N/A | BI345: N/A | BJ345: N/A | BK345: N/A | BL345: N/A | BM345: N/A | BN345: N/A | BO345: N/A | BP345: N/A | BQ345: N/A
BB346: No | BC346: N/A | BD346: N/A | BE346: N/A | BF346: N/A | BG346: N/A | BH346: N/A | BI346: N/A | BJ346: N/A | BK346: N/A | BL346: N/A | BM346: N/A | BN346: N/A | BO346: N/A | BP346: N/A | BQ346: N/A
BA347: Use of Basic Sanitation and Hygiene | BB347: Yes | BC347: N/A | BD347: N/A | BE347: N/A | BF347: N/A | BG347: N/A | BH347: N/A | BI347: N/A | BJ347: N/A | BK347: N/A | BL347: N/A | BM347: N/A | BN347: N/A | BO347: N/A | BP347: N/A | BQ347: N/A
BB348: No | BC348: N/A | BD348: N/A | BE348: N/A | BF348: N/A | BG348: N/A | BH348: N/A | BI348: N/A | BJ348: N/A | BK348: N/A | BL348: N/A | BM348: N/A | BN348: N/A | BO348: N/A | BP348: N/A | BQ348: N/A
BA349: Use of Basic Water | BB349: Yes | BC349: N/A | BD349: N/A | BE349: N/A | BF349: N/A | BG349: N/A | BH349: N/A | BI349: N/A | BJ349: N/A | BK349: N/A | BL349: N/A | BM349: N/A | BN349: N/A | BO349: N/A | BP349: N/A | BQ349: N/A
BB350: No | BC350: N/A | BD350: N/A | BE350: N/A | BF350: N/A | BG350: N/A | BH350: N/A | BI350: N/A | BJ350: N/A | BK350: N/A | BL350: N/A | BM350: N/A | BN350: N/A | BO350: N/A | BP350: N/A | BQ350: N/A
BA351: Use of Basic Sanitation | BB351: Yes | BC351: N/A | BD351: N/A | BE351: N/A | BF351: N/A | BG351: N/A | BH351: N/A | BI351: N/A | BJ351: N/A | BK351: N/A | BL351: N/A | BM351: N/A | BN351: N/A | BO351: N/A | BP351: N/A | BQ351: N/A
BB352: No | BC352: N/A | BD352: N/A | BE352: N/A | BF352: N/A | BG352: N/A | BH352: N/A | BI352: N/A | BJ352: N/A | BK352: N/A | BL352: N/A | BM352: N/A | BN352: N/A | BO352: N/A | BP352: N/A | BQ352: N/A
BA353: Access to Basic Hygiene | BB353: Yes | BC353: N/A | BD353: N/A | BE353: N/A | BF353: N/A | BG353: N/A | BH353: N/A | BI353: N/A | BJ353: N/A | BK353: N/A | BL353: N/A | BM353: N/A | BN353: N/A | BO353: N/A | BP353: N/A | BQ353: N/A
BB354: No | BC354: N/A | BD354: N/A | BE354: N/A | BF354: N/A | BG354: N/A | BH354: N/A | BI354: N/A | BJ354: N/A | BK354: N/A | BL354: N/A | BM354: N/A | BN354: N/A | BO354: N/A | BP354: N/A | BQ354: N/A
C399: INITIAL (national) Wealth Index | H399: URBAN Wealth Index | M399: RURAL Wealth Index
C400: Component Matrix | H400: Component Matrix | M400: Component Matrix
E401: Component | J401: Component | O401: Component
B402: Note: The INITIAL (national) Wealth Index is based on the first component of the Principal Component Analysis (PCA) which has been obtained at national level. The final national-level (NATIONAL) Wealth Index is based on the URBAN and RURAL specific wealth indexes. Regression procedures are used to establish the relationships between the two sets of scores (urban and rural) and the initial (national) wealth factors. This allows best use of the available information for each area and a better precision of the FINAL (NATIONAL) Wealth Index. For dependency reasons, all WASH variables (contained in the generic MICS and DHS scripts) have been excluded from the sets of asset variables used in the PCAs. The PCA can extracts as many components as there are asset variables in the input. Only the first of the components is used to represent the Wealth Index. The scores represent the weights of the asset variables on the Wealth Index (correlations between the variables and the component). The communalities are the proportion of each variable's variance that can be explained by the component. Proportion of explained variance is the part of the model's total variance that is explained by the component. For more information on the procedure used: The DHS Wealth Index, DHS Comparative Reports No. 6, Shea Oscar Rutstein, Kiersten Johnson, ORC Macro International Inc., 2004. The DHS Wealth Index: Approaches for Rural and Urban Areas, Shea O. Rutstein, ORC Macro International Inc., 2008. MICS Methodological Paper No. 4, Review of options for reporting water, sanitation and hygiene coverage by wealth quintile, UNICEF, 2016. | E402: 1 | J402: 1 | O402: 1
C403: Uses gaz fuel | E403: -0.7636501023 | H403: Uses gaz fuel | J403: -0.745141906 | M403: Has hearth floor | O403: 0.6884403885
C404: Uses wood fuel | E404: 0.6869664646 | H404: Uses open fire without chimney | J404: 0.7162243384 | M404: Has hard floor | O404: -0.6720366975
C405: Has Clothes washing machine | E405: 0.6752552784 | H405: Has Internet | J405: 0.6141143125 | M405: Has Vacuum cleaner | O405: 0.6646339006
C406: Uses open fire without chimney | E406: 0.6507088348 | H406: Has Clothes washing machine | J406: 0.6091014521 | M406: Has Clothes washing machine | O406: 0.6303871966
C407: Has Vacuum cleaner | E407: 0.6472378001 | H407: Has Bicycle | J407: 0.5969808596 | M407: Uses gaz fuel | O407: -0.626653018
C408: Has hearth floor | E408: 0.6441599365 | H408: Has Refrigerator | J408: 0.5937158775 | M408: Has Cellular phone | O408: 0.5817329104
C409: Has hard floor | E409: -0.6147936318 | H409: Has Vacuum cleaner | J409: 0.5523376181 | M409: Uses open fire without chimney | O409: 0.5696629046
C410: Has Refrigerator | E410: 0.6015615426 | H410: Uses electricity heating | J410: -0.5162545922 | M410: Uses wood fuel | O410: 0.5457058591
C411: Has Bicycle | E411: 0.60143962 | H411: Uses wood fuel | J411: 0.5159459136 | M411: Has Telephone | O411: 0.529328252
C412: Has Internet | E412: 0.598581692 | H412: Has Employee | J412: 0.5156838556 | M412: Has Bicycle | O412: 0.5195358267
C413: Has Cellular phone | E413: 0.5796082956 | H413: Has Telephone | J413: 0.4977360978 | M413: Has Video | O413: 0.4822057665
C414: Has Telephone | E414: 0.5601209937 | H414: Has Computer | J414: 0.4820673905 | M414: Has DVD | O414: 0.4371340263
C415: Uses electricity heating | E415: -0.5397893608 | H415: Has Cellular phone | J415: 0.468400583 | M415: Uses electricity heating | O415: -0.4001776087
C416: Has Employee | E416: 0.5127484787 | H416: Uses charcoal fuel | J416: 0.4487238965 | M416: Has Internet | O416: 0.3711811212
C417: Has Computer | E417: 0.4712977085 | H417: Has hearth floor | J417: 0.4308488294 | M417: Has Security system | O417: 0.3665512761
C418: Has DVD | E418: 0.4431343456 | H418: Uses separate room as kitchen | J418: 0.4098118962 | M418: Has Magazine | O418: 0.3238784359
C419: Has Video | E419: 0.4383727537 | H419: Has DVD | J419: 0.3756982536 | M419: Has Second home | O419: 0.3162922815
C420: Uses separate building as kitchen | E420: 0.4107609215 | H420: Uses separate building as kitchen | J420: 0.3721351236 | M420: Uses separate building as kitchen | O420: 0.2944271583
C421: Heats house | E421: -0.3616987226 | H421: Has hard floor | J421: -0.3563483042 | M421: Heats house | O421: -0.2905689705
C422: Uses separate room as kitchen | E422: 0.3226412298 | H422: Kooks outdoor | J422: 0.3351280387 | M422: Has Refrigerator | O422: 0.2816208765
C423: Has Second home | E423: 0.2612578363 | H423: Has Video | J423: 0.2980236094 | M423: Has Computer | O423: 0.2754584299
... 197 more rows

Sheet EPH09
A2: =A1026 -> Paraguay
A3: =A1034 -> 2009
A4: Use of drinking water sources
A5: by wealth quintile and sub-national region
A6: Notes:
A7: WHO/UNICEF JMP customised wealth index excludes water,
A8: sanitation and hygiene assets.
A9: Survey used for analysis: | B9: =A1025 -> EPH09
A10: Ratio of improved artesian wells: | B10: 50% Rule
A11: Time to improved source based on: | B11: WHS03
A14: Use of drinking water sources | C14: NATIONAL wealth index quintile | H14: URBAN wealth index quintile | M14: RURAL wealth index quintile | R14: SUB-REGIONS: | BA14: Raw numbers of respondents: | BB14: Use of drinking water sources | BC14: NATIONAL wealth index quintile | BH14: URBAN wealth index quintile | BM14: RURAL wealth index quintile | BR14: SUB-REGIONS:
A15: Weighted percentage (used in graphs) | C15: Poorest | D15: Poor | E15: Middle | F15: Rich | G15: Richest | H15: Poorest | I15: Poor | J15: Middle | K15: Rich | L15: Richest | M15: Poorest | N15: Poor | O15: Middle | P15: Rich | Q15: Richest | R15: Alto Paraná | S15: Asunción | T15: Caaguazú | U15: Central | V15: Itapúa | W15: Resto | X15: San Pedro | BA15: Water data, raw numbers (weighted) | BC15: Poorest | BD15: Poor | BE15: Middle | BF15: Rich | BG15: Richest | BH15: Poorest | BI15: Poor | BJ15: Middle | BK15: Rich | BL15: Richest | BM15: Poorest | BN15: Poor | BO15: Middle | BP15: Rich | BQ15: Richest | BR15: Alto Paraná | BS15: Asunción | BT15: Caaguazú | BU15: Central | BV15: Itapúa | BW15: Resto | BX15: San Pedro
A16: Water | B16: Improved | C16: =C58+C59+C60+C61+C63+C65+C67+C68+C62*0.5 -> 83.29056311 | D16: 93.59701769 | E16: 95.98477018 | F16: 98.23536538 | G16: 98.12953942 | H16: 97.1456929 | I16: 97.29592196 | J16: 98.57493941 | K16: 98.61992199 | L16: 98.3113267 | M16: 74.80015675 | N16: 86.60433964 | O16: 90.23752633 | P16: 91.61915324 | Q16: 96.43305233 | R16: 94.43163654 | S16: 99.64167176 | T16: 89.39155035 | U16: 98.22066897 | V16: 88.4724319 | W16: 89.94044171 | X16: 91.76678931 | BA16: Water | BB16: Improved | BC16: N/A | BD16: N/A | BE16: N/A | BF16: N/A | BG16: N/A | BH16: N/A | BI16: N/A | BJ16: N/A | BK16: N/A | BL16: N/A | BM16: N/A | BN16: N/A | BO16: N/A | BP16: N/A | BQ16: N/A | BR16: N/A | BS16: N/A | BT16: N/A | BU16: N/A | BV16: N/A | BW16: N/A | BX16: N/A
B17: Not Improved | C17: =100-C16 -> 16.70943689 | D17: =100-D16 -> 6.402982307 | E17: 4.015229824 | F17: 1.764634625 | G17: 1.870460579 | H17: 2.854307103 | I17: 2.704078042 | J17: 1.425060591 | K17: 1.380078013 | L17: 1.688673301 | M17: 25.19984325 | N17: 13.39566036 | O17: 9.762473669 | P17: 8.38084676 | Q17: 3.566947673 | R17: 5.568363462 | S17: 0.3583282387 | T17: 10.60844965 | U17: 1.779331033 | V17: 11.5275681 | W17: 10.05955829 | X17: 8.233210688 | BB17: Not Improved | BC17: N/A | BD17: N/A | BE17: N/A | BF17: N/A | BG17: N/A | BH17: N/A | BI17: N/A | BJ17: N/A | BK17: N/A | BL17: N/A | BM17: N/A | BN17: N/A | BO17: N/A | BP17: N/A | BQ17: N/A | BR17: N/A | BS17: N/A | BT17: N/A | BU17: N/A | BV17: N/A | BW17: N/A | BX17: N/A
A18: Water ladder | B18: Basic | C18: =C16*'WHS03'!C23/100 -> 82.83472557 | D18: =D16*'WHS03'!D23/100 -> 93.33752033 | E18: =E16*'WHS03'!E23/100 -> 95.98477018 | F18: =F16*'WHS03'!F23/100 -> 98.23536538 | G18: =G16*'WHS03'!G23/100 -> 97.46568074 | H18: =H16*'WHS03'!H23/100 -> 97.1456929 | I18: =I16*'WHS03'!I23/100 -> 97.29592196 | J18: =J16*'WHS03'!J23/100 -> 98.57493941 | K18: =K16*'WHS03'!K23/100 -> 98.61992199 | L18: =L16*'WHS03'!L23/100 -> 98.3113267 | M18: =M16*'WHS03'!M23/100 -> 73.95964237 | N18: =N16*'WHS03'!N23/100 -> 86.60433964 | O18: =O16*'WHS03'!O23/100 -> 89.7978325 | P18: =P16*'WHS03'!P23/100 -> 91.61915324 | Q18: =Q16*'WHS03'!Q23/100 -> 96.02704654 | R18: =R16*R23/100 -> 94.43163654 | S18: =S16*S23/100 -> 99.64167176 | T18: 89.39155035 | U18: 98.22066897 | V18: 88.4724319 | W18: 89.94044171 | X18: 91.76678931 | BA18: Water ladder | BB18: Basic | BC18: N/A | BD18: N/A | BE18: N/A | BF18: N/A | BG18: N/A | BH18: N/A | BI18: N/A | BJ18: N/A | BK18: N/A | BL18: N/A | BM18: N/A | BN18: N/A | BO18: N/A | BP18: N/A | BQ18: N/A | BR18: N/A | BS18: N/A | BT18: N/A | BU18: N/A | BV18: N/A | BW18: N/A | BX18: N/A
B19: Limited | C19: =C16*'WHS03'!C22/100 -> 0.4558375426 | D19: =D16*'WHS03'!D22/100 -> 0.2594973592 | E19: =E16*'WHS03'!E22/100 -> 0 | F19: =F16*'WHS03'!F22/100 -> 0 | G19: =G16*'WHS03'!G22/100 -> 0.6638586797 | H19: =H16*'WHS03'!H22/100 -> 0 | I19: =I16*'WHS03'!I22/100 -> 0 | J19: =J16*'WHS03'!J22/100 -> 0 | K19: =K16*'WHS03'!K22/100 -> 0 | L19: =L16*'WHS03'!L22/100 -> 0 | M19: =M16*'WHS03'!M22/100 -> 0.8405143813 | N19: =N16*'WHS03'!N22/100 -> 0 | O19: =O16*'WHS03'!O22/100 -> 0.4396938327 | P19: =P16*'WHS03'!P22/100 -> 0 | Q19: =Q16*'WHS03'!Q22/100 -> 0.406005783 | R19: =R16*R22/100 -> 0 | S19: =S16*S22/100 -> 0 | T19: 0 | U19: 0 | V19: 0 | W19: 0 | X19: 0 | BB19: Limited | BC19: N/A | BD19: N/A | BE19: N/A | BF19: N/A | BG19: N/A | BH19: N/A | BI19: N/A | BJ19: N/A | BK19: N/A | BL19: N/A | BM19: N/A | BN19: N/A | BO19: N/A | BP19: N/A | BQ19: N/A | BR19: N/A | BS19: N/A | BT19: N/A | BU19: N/A | BV19: N/A | BW19: N/A | BX19: N/A
B20: Unimproved | C20: =100-(C18+C19+C21) -> 15.61576771 | D20: =100-(D18+D19+D21) -> 5.624854255 | E20: 3.884563041 | F20: 1.764634625 | G20: 1.870460579 | H20: 2.854307103 | I20: 2.704078042 | J20: 1.425060591 | K20: 1.380078013 | L20: 1.688673301 | M20: 23.2982196 | N20: 12.64525532 | O20: 8.368748147 | P20: 7.681428513 | Q20: 3.450388981 | R20: 5.432670519 | S20: 0.3583282387 | T20: 10.44721269 | U20: 1.749213158 | V20: 11.33200945 | W20: 8.747113739 | X20: 8.233210688 | BB20: Unimproved | BC20: N/A | BD20: N/A | BE20: N/A | BF20: N/A | BG20: N/A | BH20: N/A | BI20: N/A | BJ20: N/A | BK20: N/A | BL20: N/A | BM20: N/A | BN20: N/A | BO20: N/A | BP20: N/A | BQ20: N/A | BR20: N/A | BS20: N/A | BT20: N/A | BU20: N/A | BV20: N/A | BW20: N/A | BX20: N/A
B21: Surface water | C21: =C69 -> 1.093669183 | D21: 0.7781280517 | E21: 0.1306667837 | F21: 0 | G21: 0 | H21: 0 | I21: 0 | J21: 0 | K21: 0 | L21: 0 | M21: 1.901623648 | N21: 0.7504050482 | O21: 1.393725522 | P21: 0.6994182463 | Q21: 0.1165586918 | R21: 0.1356929432 | S21: 0 | T21: 0.1612369597 | U21: 0.03011787496 | V21: 0.1955586459 | W21: 1.312444547 | X21: 0 | BB21: Surface water | BC21: N/A | BD21: N/A | BE21: N/A | BF21: N/A | BG21: N/A | BH21: N/A | BI21: N/A | BJ21: N/A | BK21: N/A | BL21: N/A | BM21: N/A | BN21: N/A | BO21: N/A | BP21: N/A | BQ21: N/A | BR21: N/A | BS21: N/A | BT21: N/A | BU21: N/A | BV21: N/A | BW21: N/A | BX21: N/A
A22: Improved water point at more than 30 minutes | B22: Yes | C22: N/A | D22: N/A | E22: N/A | F22: N/A | G22: N/A | H22: N/A | I22: N/A | J22: N/A | K22: N/A | L22: N/A | M22: N/A | N22: N/A | O22: N/A | P22: N/A | Q22: N/A | R22: 0 | S22: 0 | T22: 0 | U22: 0 | V22: 0 | W22: 0 | X22: 0 | BA22: Improved water point at more than 30 minutes | BB22: Yes | BC22: N/A | BD22: N/A | BE22: N/A | BF22: N/A | BG22: N/A | BH22: N/A | BI22: N/A | BJ22: N/A | BK22: N/A | BL22: N/A | BM22: N/A | BN22: N/A | BO22: N/A | BP22: N/A | BQ22: N/A | BR22: N/A | BS22: N/A | BT22: N/A | BU22: N/A | BV22: N/A | BW22: N/A | BX22: N/A
B23: No | C23: N/A | D23: N/A | E23: N/A | F23: N/A | G23: N/A | H23: N/A | I23: N/A | J23: N/A | K23: N/A | L23: N/A | M23: N/A | N23: N/A | O23: N/A | P23: N/A | Q23: N/A | R23: 100 | S23: 100 | T23: 100 | U23: 100 | V23: 100 | W23: 100 | X23: 100 | BB23: No | BC23: N/A | BD23: N/A | BE23: N/A | BF23: N/A | BG23: N/A | BH23: N/A | BI23: N/A | BJ23: N/A | BK23: N/A | BL23: N/A | BM23: N/A | BN23: N/A | BO23: N/A | BP23: N/A | BQ23: N/A | BR23: N/A | BS23: N/A | BT23: N/A | BU23: N/A | BV23: N/A | BW23: N/A | BX23: N/A
A24: Manually calculated ratios | B24: Improved wells
B25: Improved springs
B26: Other
C27: NATIONAL wealth index quintile | H27: URBAN wealth index quintile | M27: RURAL wealth index quintile | R27: SUB-REGIONS: | BA27: Raw numbers of respondents: | BB27: Use of drinking water sources | BC27: NATIONAL wealth index quintile | BH27: URBAN wealth index quintile | BM27: RURAL wealth index quintile | BR27: SUB-REGIONS:
A28: Percentage based on weighted population | C28: Poorest | D28: Poor | E28: Middle | F28: Rich | G28: Richest | H28: Poorest | I28: Poor | J28: Middle | K28: Rich | L28: Richest | M28: Poorest | N28: Poor | O28: Middle | P28: Rich | Q28: Richest | R28: Alto Paraná | S28: Asunción | T28: Caaguazú | U28: Central | V28: Itapúa | W28: Resto | X28: San Pedro | BA28: Water data, raw numbers (weighted) | BC28: Poorest | BD28: Poor | BE28: Middle | BF28: Rich | BG28: Richest | BH28: Poorest | BI28: Poor | BJ28: Middle | BK28: Rich | BL28: Richest | BM28: Poorest | BN28: Poor | BO28: Middle | BP28: Rich | BQ28: Richest | BR28: Alto Paraná | BS28: Asunción | BT28: Caaguazú | BU28: Central | BV28: Itapúa | BW28: Resto | BX28: San Pedro
A29: Piped water | B29: Yes | C29: N/A | D29: N/A | E29: N/A | F29: N/A | G29: N/A | H29: N/A | I29: N/A | J29: N/A | K29: N/A | L29: N/A | M29: N/A | N29: N/A | O29: N/A | P29: N/A | Q29: N/A | R29: N/A | S29: N/A | T29: N/A | U29: N/A | V29: N/A | W29: N/A | X29: N/A | BA29: Piped water | BB29: Yes | BC29: N/A | BD29: N/A | BE29: N/A | BF29: N/A | BG29: N/A | BH29: N/A | BI29: N/A | BJ29: N/A | BK29: N/A | BL29: N/A | BM29: N/A | BN29: N/A | BO29: N/A | BP29: N/A | BQ29: N/A | BR29: N/A | BS29: N/A | BT29: N/A | BU29: N/A | BV29: N/A | BW29: N/A | BX29: N/A
B30: No | C30: N/A | D30: N/A | E30: N/A | F30: N/A | G30: N/A | H30: N/A | I30: N/A | J30: N/A | K30: N/A | L30: N/A | M30: N/A | N30: N/A | O30: N/A | P30: N/A | Q30: N/A | R30: N/A | S30: N/A | T30: N/A | U30: N/A | V30: N/A | W30: N/A | X30: N/A | BB30: No | BC30: N/A | BD30: N/A | BE30: N/A | BF30: N/A | BG30: N/A | BH30: N/A | BI30: N/A | BJ30: N/A | BK30: N/A | BL30: N/A | BM30: N/A | BN30: N/A | BO30: N/A | BP30: N/A | BQ30: N/A | BR30: N/A | BS30: N/A | BT30: N/A | BU30: N/A | BV30: N/A | BW30: N/A | BX30: N/A
A31: Piped water on premises | B31: Yes | C31: N/A | D31: N/A | E31: N/A | F31: N/A | G31: N/A | H31: N/A | I31: N/A | J31: N/A | K31: N/A | L31: N/A | M31: N/A | N31: N/A | O31: N/A | P31: N/A | Q31: N/A | R31: N/A | S31: N/A | T31: N/A | U31: N/A | V31: N/A | W31: N/A | X31: N/A | BA31: Piped water on premises | BB31: Yes | BC31: N/A | BD31: N/A | BE31: N/A | BF31: N/A | BG31: N/A | BH31: N/A | BI31: N/A | BJ31: N/A | BK31: N/A | BL31: N/A | BM31: N/A | BN31: N/A | BO31: N/A | BP31: N/A | BQ31: N/A | BR31: N/A | BS31: N/A | BT31: N/A | BU31: N/A | BV31: N/A | BW31: N/A | BX31: N/A
B32: No | C32: N/A | D32: N/A | E32: N/A | F32: N/A | G32: N/A | H32: N/A | I32: N/A | J32: N/A | K32: N/A | L32: N/A | M32: N/A | N32: N/A | O32: N/A | P32: N/A | Q32: N/A | R32: N/A | S32: N/A | T32: N/A | U32: N/A | V32: N/A | W32: N/A | X32: N/A | BB32: No | BC32: N/A | BD32: N/A | BE32: N/A | BF32: N/A | BG32: N/A | BH32: N/A | BI32: N/A | BJ32: N/A | BK32: N/A | BL32: N/A | BM32: N/A | BN32: N/A | BO32: N/A | BP32: N/A | BQ32: N/A | BR32: N/A | BS32: N/A | BT32: N/A | BU32: N/A | BV32: N/A | BW32: N/A | BX32: N/A
A33: Piped water into dwelling | B33: Yes | C33: N/A | D33: N/A | E33: N/A | F33: N/A | G33: N/A | H33: N/A | I33: N/A | J33: N/A | K33: N/A | L33: N/A | M33: N/A | N33: N/A | O33: N/A | P33: N/A | Q33: N/A | R33: N/A | S33: N/A | T33: N/A | U33: N/A | V33: N/A | W33: N/A | X33: N/A | BA33: Piped water into dwelling | BB33: Yes | BC33: N/A | BD33: N/A | BE33: N/A | BF33: N/A | BG33: N/A | BH33: N/A | BI33: N/A | BJ33: N/A | BK33: N/A | BL33: N/A | BM33: N/A | BN33: N/A | BO33: N/A | BP33: N/A | BQ33: N/A | BR33: N/A | BS33: N/A | BT33: N/A | BU33: N/A | BV33: N/A | BW33: N/A | BX33: N/A
B34: No | C34: N/A | D34: N/A | E34: N/A | F34: N/A | G34: N/A | H34: N/A | I34: N/A | J34: N/A | K34: N/A | L34: N/A | M34: N/A | N34: N/A | O34: N/A | P34: N/A | Q34: N/A | R34: N/A | S34: N/A | T34: N/A | U34: N/A | V34: N/A | W34: N/A | X34: N/A | BB34: No | BC34: N/A | BD34: N/A | BE34: N/A | BF34: N/A | BG34: N/A | BH34: N/A | BI34: N/A | BJ34: N/A | BK34: N/A | BL34: N/A | BM34: N/A | BN34: N/A | BO34: N/A | BP34: N/A | BQ34: N/A | BR34: N/A | BS34: N/A | BT34: N/A | BU34: N/A | BV34: N/A | BW34: N/A | BX34: N/A
A35: Water source on premises | B35: Yes | C35: N/A | D35: N/A | E35: N/A | F35: N/A | G35: N/A | H35: N/A | I35: N/A | J35: N/A | K35: N/A | L35: N/A | M35: N/A | N35: N/A | O35: N/A | P35: N/A | Q35: N/A | R35: N/A | S35: N/A | T35: N/A | U35: N/A | V35: N/A | W35: N/A | X35: N/A | BA35: Water source on premises | BB35: Yes | BC35: N/A | BD35: N/A | BE35: N/A | BF35: N/A | BG35: N/A | BH35: N/A | BI35: N/A | BJ35: N/A | BK35: N/A | BL35: N/A | BM35: N/A | BN35: N/A | BO35: N/A | BP35: N/A | BQ35: N/A | BR35: N/A | BS35: N/A | BT35: N/A | BU35: N/A | BV35: N/A | BW35: N/A | BX35: N/A
B36: No | C36: N/A | D36: N/A | E36: N/A | F36: N/A | G36: N/A | H36: N/A | I36: N/A | J36: N/A | K36: N/A | L36: N/A | M36: N/A | N36: N/A | O36: N/A | P36: N/A | Q36: N/A | R36: N/A | S36: N/A | T36: N/A | U36: N/A | V36: N/A | W36: N/A | X36: N/A | BB36: No | BC36: N/A | BD36: N/A | BE36: N/A | BF36: N/A | BG36: N/A | BH36: N/A | BI36: N/A | BJ36: N/A | BK36: N/A | BL36: N/A | BM36: N/A | BN36: N/A | BO36: N/A | BP36: N/A | BQ36: N/A | BR36: N/A | BS36: N/A | BT36: N/A | BU36: N/A | BV36: N/A | BW36: N/A | BX36: N/A
A37: Improved Water source on premises | B37: Yes | C37: N/A | D37: N/A | E37: N/A | F37: N/A | G37: N/A | H37: N/A | I37: N/A | J37: N/A | K37: N/A | L37: N/A | M37: N/A | N37: N/A | O37: N/A | P37: N/A | Q37: N/A | R37: N/A | S37: N/A | T37: N/A | U37: N/A | V37: N/A | W37: N/A | X37: N/A | BA37: Improved water source on premises | BB37: Yes | BC37: N/A | BD37: N/A | BE37: N/A | BF37: N/A | BG37: N/A | BH37: N/A | BI37: N/A | BJ37: N/A | BK37: N/A | BL37: N/A | BM37: N/A | BN37: N/A | BO37: N/A | BP37: N/A | BQ37: N/A | BR37: N/A | BS37: N/A | BT37: N/A | BU37: N/A | BV37: N/A | BW37: N/A | BX37: N/A
B38: No | C38: N/A | D38: N/A | E38: N/A | F38: N/A | G38: N/A | H38: N/A | I38: N/A | J38: N/A | K38: N/A | L38: N/A | M38: N/A | N38: N/A | O38: N/A | P38: N/A | Q38: N/A | R38: N/A | S38: N/A | T38: N/A | U38: N/A | V38: N/A | W38: N/A | X38: N/A | BB38: No | BC38: N/A | BD38: N/A | BE38: N/A | BF38: N/A | BG38: N/A | BH38: N/A | BI38: N/A | BJ38: N/A | BK38: N/A | BL38: N/A | BM38: N/A | BN38: N/A | BO38: N/A | BP38: N/A | BQ38: N/A | BR38: N/A | BS38: N/A | BT38: N/A | BU38: N/A | BV38: N/A | BW38: N/A | BX38: N/A
A39: Piped water on premises available when needed | B39: Yes | C39: N/A | D39: N/A | E39: N/A | F39: N/A | G39: N/A | H39: N/A | I39: N/A | J39: N/A | K39: N/A | L39: N/A | M39: N/A | N39: N/A | O39: N/A | P39: N/A | Q39: N/A | R39: N/A | S39: N/A | T39: N/A | U39: N/A | V39: N/A | W39: N/A | X39: N/A | BA39: Piped water on premises available when needed | BB39: Yes | BC39: N/A | BD39: N/A | BE39: N/A | BF39: N/A | BG39: N/A | BH39: N/A | BI39: N/A | BJ39: N/A | BK39: N/A | BL39: N/A | BM39: N/A | BN39: N/A | BO39: N/A | BP39: N/A | BQ39: N/A | BR39: N/A | BS39: N/A | BT39: N/A | BU39: N/A | BV39: N/A | BW39: N/A | BX39: N/A
B40: No | C40: N/A | D40: N/A | E40: N/A | F40: N/A | G40: N/A | H40: N/A | I40: N/A | J40: N/A | K40: N/A | L40: N/A | M40: N/A | N40: N/A | O40: N/A | P40: N/A | Q40: N/A | R40: N/A | S40: N/A | T40: N/A | U40: N/A | V40: N/A | W40: N/A | X40: N/A | BB40: No | BC40: N/A | BD40: N/A | BE40: N/A | BF40: N/A | BG40: N/A | BH40: N/A | BI40: N/A | BJ40: N/A | BK40: N/A | BL40: N/A | BM40: N/A | BN40: N/A | BO40: N/A | BP40: N/A | BQ40: N/A | BR40: N/A | BS40: N/A | BT40: N/A | BU40: N/A | BV40: N/A | BW40: N/A | BX40: N/A
A41: Water point at more than 30 minutes | B41: Yes | C41: N/A | D41: N/A | E41: N/A | F41: N/A | G41: N/A | H41: N/A | I41: N/A | J41: N/A | K41: N/A | L41: N/A | M41: N/A | N41: N/A | O41: N/A | P41: N/A | Q41: N/A | R41: N/A | S41: N/A | T41: N/A | U41: N/A | V41: N/A | W41: N/A | X41: N/A | BA41: Water point at more than 30 minutes | BB41: Yes | BC41: N/A | BD41: N/A | BE41: N/A | BF41: N/A | BG41: N/A | BH41: N/A | BI41: N/A | BJ41: N/A | BK41: N/A | BL41: N/A | BM41: N/A | BN41: N/A | BO41: N/A | BP41: N/A | BQ41: N/A | BR41: N/A | BS41: N/A | BT41: N/A | BU41: N/A | BV41: N/A | BW41: N/A | BX41: N/A
B42: No | C42: N/A | D42: N/A | E42: N/A | F42: N/A | G42: N/A | H42: N/A | I42: N/A | J42: N/A | K42: N/A | L42: N/A | M42: N/A | N42: N/A | O42: N/A | P42: N/A | Q42: N/A | R42: N/A | S42: N/A | T42: N/A | U42: N/A | V42: N/A | W42: N/A | X42: N/A | BB42: No | BC42: N/A | BD42: N/A | BE42: N/A | BF42: N/A | BG42: N/A | BH42: N/A | BI42: N/A | BJ42: N/A | BK42: N/A | BL42: N/A | BM42: N/A | BN42: N/A | BO42: N/A | BP42: N/A | BQ42: N/A | BR42: N/A | BS42: N/A | BT42: N/A | BU42: N/A | BV42: N/A | BW42: N/A | BX42: N/A
A43: Water source available when needed | B43: Yes | C43: 81.52983273 | D43: 87.65201512 | E43: 83.6308745 | F43: 86.9674544 | G43: 90.11017721 | H43: 87.26431387 | I43: 85.9477606 | J43: 85.01431101 | K43: 90.92117696 | L43: 89.21257567 | M43: 82.42798255 | N43: 79.55402055 | O43: 83.96441589 | P43: 86.01701948 | Q43: 84.03819918 | R43: 69.75713746 | S43: 97.6155857 | T43: 78.81518441 | U43: 89.70394746 | V43: 87.6433189 | W43: 84.13298807 | X43: 79.49069844 | BA43: Water source available when needed | BB43: Yes | BC43: N/A | BD43: N/A | BE43: N/A | BF43: N/A | BG43: N/A | BH43: N/A | BI43: N/A | BJ43: N/A | BK43: N/A | BL43: N/A | BM43: N/A | BN43: N/A | BO43: N/A | BP43: N/A | BQ43: N/A | BR43: N/A | BS43: N/A | BT43: N/A | BU43: N/A | BV43: N/A | BW43: N/A | BX43: N/A
B44: No | C44: 18.47016727 | D44: 12.34798488 | E44: 16.3691255 | F44: 13.0325456 | G44: 9.889822794 | H44: 12.73568613 | I44: 14.0522394 | J44: 14.98568899 | K44: 9.07882304 | L44: 10.78742433 | M44: 17.57201745 | N44: 20.44597945 | O44: 16.03558411 | P44: 13.98298052 | Q44: 15.96180082 | R44: 30.24286254 | S44: 2.384414302 | T44: 21.18481559 | U44: 10.29605254 | V44: 12.3566811 | W44: 15.86701193 | X44: 20.50930156 | BB44: No | BC44: N/A | BD44: N/A | BE44: N/A | BF44: N/A | BG44: N/A | BH44: N/A | BI44: N/A | BJ44: N/A | BK44: N/A | BL44: N/A | BM44: N/A | BN44: N/A | BO44: N/A | BP44: N/A | BQ44: N/A | BR44: N/A | BS44: N/A | BT44: N/A | BU44: N/A | BV44: N/A | BW44: N/A | BX44: N/A
A45: Improved water source available when needed | B45: Yes | C45: N/A | D45: N/A | E45: N/A | F45: N/A | G45: N/A | H45: N/A | I45: N/A | J45: N/A | K45: N/A | L45: N/A | M45: N/A | N45: N/A | O45: N/A | P45: N/A | Q45: N/A | R45: N/A | S45: N/A | T45: N/A | U45: N/A | V45: N/A | W45: N/A | X45: N/A | BA45: Improved water source available when needed | BB45: Yes | BC45: N/A | BD45: N/A | BE45: N/A | BF45: N/A | BG45: N/A | BH45: N/A | BI45: N/A | BJ45: N/A | BK45: N/A | BL45: N/A | BM45: N/A | BN45: N/A | BO45: N/A | BP45: N/A | BQ45: N/A | BR45: N/A | BS45: N/A | BT45: N/A | BU45: N/A | BV45: N/A | BW45: N/A | BX45: N/A
B46: No | C46: N/A | D46: N/A | E46: N/A | F46: N/A | G46: N/A | H46: N/A | I46: N/A | J46: N/A | K46: N/A | L46: N/A | M46: N/A | N46: N/A | O46: N/A | P46: N/A | Q46: N/A | R46: N/A | S46: N/A | T46: N/A | U46: N/A | V46: N/A | W46: N/A | X46: N/A | BB46: No | BC46: N/A | BD46: N/A | BE46: N/A | BF46: N/A | BG46: N/A | BH46: N/A | BI46: N/A | BJ46: N/A | BK46: N/A | BL46: N/A | BM46: N/A | BN46: N/A | BO46: N/A | BP46: N/A | BQ46: N/A | BR46: N/A | BS46: N/A | BT46: N/A | BU46: N/A | BV46: N/A | BW46: N/A | BX46: N/A
A47: Microbiological quality at point of collection | B47: Not contaminated (No E. coli in 100 mL) | C47: N/A | D47: N/A | E47: N/A | F47: N/A | G47: N/A | H47: N/A | I47: N/A | J47: N/A | K47: N/A | L47: N/A | M47: N/A | N47: N/A | O47: N/A | P47: N/A | Q47: N/A | R47: N/A | S47: N/A | T47: N/A | U47: N/A | V47: N/A | W47: N/A | X47: N/A | BA47: Microbiological quality at point of collection | BB47: Not contaminated (No E. coli in 100 mL) | BC47: N/A | BD47: N/A | BE47: N/A | BF47: N/A | BG47: N/A | BH47: N/A | BI47: N/A | BJ47: N/A | BK47: N/A | BL47: N/A | BM47: N/A | BN47: N/A | BO47: N/A | BP47: N/A | BQ47: N/A | BR47: N/A | BS47: N/A | BT47: N/A | BU47: N/A | BV47: N/A | BW47: N/A | BX47: N/A
B48: Contaminated (E. coli detected in 100 mL) | C48: N/A | D48: N/A | E48: N/A | F48: N/A | G48: N/A | H48: N/A | I48: N/A | J48: N/A | K48: N/A | L48: N/A | M48: N/A | N48: N/A | O48: N/A | P48: N/A | Q48: N/A | R48: N/A | S48: N/A | T48: N/A | U48: N/A | V48: N/A | W48: N/A | X48: N/A | BB48: Contaminated (E. coli detected in 100 mL) | BC48: N/A | BD48: N/A | BE48: N/A | BF48: N/A | BG48: N/A | BH48: N/A | BI48: N/A | BJ48: N/A | BK48: N/A | BL48: N/A | BM48: N/A | BN48: N/A | BO48: N/A | BP48: N/A | BQ48: N/A | BR48: N/A | BS48: N/A | BT48: N/A | BU48: N/A | BV48: N/A | BW48: N/A | BX48: N/A
B49: Highly contaminated (>100 CFU/100 mL) | C49: N/A | D49: N/A | E49: N/A | F49: N/A | G49: N/A | H49: N/A | I49: N/A | J49: N/A | K49: N/A | L49: N/A | M49: N/A | N49: N/A | O49: N/A | P49: N/A | Q49: N/A | R49: N/A | S49: N/A | T49: N/A | U49: N/A | V49: N/A | W49: N/A | X49: N/A | BB49: Highly contaminated (>100 CFU/100 mL) | BC49: N/A | BD49: N/A | BE49: N/A | BF49: N/A | BG49: N/A | BH49: N/A | BI49: N/A | BJ49: N/A | BK49: N/A | BL49: N/A | BM49: N/A | BN49: N/A | BO49: N/A | BP49: N/A | BQ49: N/A | BR49: N/A | BS49: N/A | BT49: N/A | BU49: N/A | BV49: N/A | BW49: N/A | BX49: N/A
A50: Microbiological quality of improved water sources at point of collection | B50: Not contaminated (No E. coli in 100 mL) | C50: N/A | D50: N/A | E50: N/A | F50: N/A | G50: N/A | H50: N/A | I50: N/A | J50: N/A | K50: N/A | L50: N/A | M50: N/A | N50: N/A | O50: N/A | P50: N/A | Q50: N/A | R50: N/A | S50: N/A | T50: N/A | U50: N/A | V50: N/A | W50: N/A | X50: N/A | BA50: Microbiological quality of improved water sources at point of collection | BB50: Not contaminated (No E. coli in 100 mL) | BC50: N/A | BD50: N/A | BE50: N/A | BF50: N/A | BG50: N/A | BH50: N/A | BI50: N/A | BJ50: N/A | BK50: N/A | BL50: N/A | BM50: N/A | BN50: N/A | BO50: N/A | BP50: N/A | BQ50: N/A | BR50: N/A | BS50: N/A | BT50: N/A | BU50: N/A | BV50: N/A | BW50: N/A | BX50: N/A
B51: Contaminated (E. coli detected in 100 mL) | C51: N/A | D51: N/A | E51: N/A | F51: N/A | G51: N/A | H51: N/A | I51: N/A | J51: N/A | K51: N/A | L51: N/A | M51: N/A | N51: N/A | O51: N/A | P51: N/A | Q51: N/A | R51: N/A | S51: N/A | T51: N/A | U51: N/A | V51: N/A | W51: N/A | X51: N/A | BB51: Contaminated (E. coli detected in 100 mL) | BC51: N/A | BD51: N/A | BE51: N/A | BF51: N/A | BG51: N/A | BH51: N/A | BI51: N/A | BJ51: N/A | BK51: N/A | BL51: N/A | BM51: N/A | BN51: N/A | BO51: N/A | BP51: N/A | BQ51: N/A | BR51: N/A | BS51: N/A | BT51: N/A | BU51: N/A | BV51: N/A | BW51: N/A | BX51: N/A
B52: Highly contaminated (>100 CFU/100 mL) | C52: N/A | D52: N/A | E52: N/A | F52: N/A | G52: N/A | H52: N/A | I52: N/A | J52: N/A | K52: N/A | L52: N/A | M52: N/A | N52: N/A | O52: N/A | P52: N/A | Q52: N/A | R52: N/A | S52: N/A | T52: N/A | U52: N/A | V52: N/A | W52: N/A | X52: N/A | BB52: Highly contaminated (>100 CFU/100 mL) | BC52: N/A | BD52: N/A | BE52: N/A | BF52: N/A | BG52: N/A | BH52: N/A | BI52: N/A | BJ52: N/A | BK52: N/A | BL52: N/A | BM52: N/A | BN52: N/A | BO52: N/A | BP52: N/A | BQ52: N/A | BR52: N/A | BS52: N/A | BT52: N/A | BU52: N/A | BV52: N/A | BW52: N/A | BX52: N/A
A53: Microbiological quality of piped on premises at point of collection | B53: Not contaminated (No E. coli in 100 mL) | C53: N/A | D53: N/A | E53: N/A | F53: N/A | G53: N/A | H53: N/A | I53: N/A | J53: N/A | K53: N/A | L53: N/A | M53: N/A | N53: N/A | O53: N/A | P53: N/A | Q53: N/A | R53: N/A | S53: N/A | T53: N/A | U53: N/A | V53: N/A | W53: N/A | X53: N/A | BA53: Microbiological quality of piped on premises at point of collection | BB53: Not contaminated (No E. coli in 100 mL) | BC53: N/A | BD53: N/A | BE53: N/A | BF53: N/A | BG53: N/A | BH53: N/A | BI53: N/A | BJ53: N/A | BK53: N/A | BL53: N/A | BM53: N/A | BN53: N/A | BO53: N/A | BP53: N/A | BQ53: N/A | BR53: N/A | BS53: N/A | BT53: N/A | BU53: N/A | BV53: N/A | BW53: N/A | BX53: N/A
B54: Contaminated (E. coli detected in 100 mL) | C54: N/A | D54: N/A | E54: N/A | F54: N/A | G54: N/A | H54: N/A | I54: N/A | J54: N/A | K54: N/A | L54: N/A | M54: N/A | N54: N/A | O54: N/A | P54: N/A | Q54: N/A | R54: N/A | S54: N/A | T54: N/A | U54: N/A | V54: N/A | W54: N/A | X54: N/A | BB54: Contaminated (E. coli detected in 100 mL) | BC54: N/A | BD54: N/A | BE54: N/A | BF54: N/A | BG54: N/A | BH54: N/A | BI54: N/A | BJ54: N/A | BK54: N/A | BL54: N/A | BM54: N/A | BN54: N/A | BO54: N/A | BP54: N/A | BQ54: N/A | BR54: N/A | BS54: N/A | BT54: N/A | BU54: N/A | BV54: N/A | BW54: N/A | BX54: N/A
B55: Highly contaminated (>100 CFU/100 mL) | C55: N/A | D55: N/A | E55: N/A | F55: N/A | G55: N/A | H55: N/A | I55: N/A | J55: N/A | K55: N/A | L55: N/A | M55: N/A | N55: N/A | O55: N/A | P55: N/A | Q55: N/A | R55: N/A | S55: N/A | T55: N/A | U55: N/A | V55: N/A | W55: N/A | X55: N/A | BB55: Highly contaminated (>100 CFU/100 mL) | BC55: N/A | BD55: N/A | BE55: N/A | BF55: N/A | BG55: N/A | BH55: N/A | BI55: N/A | BJ55: N/A | BK55: N/A | BL55: N/A | BM55: N/A | BN55: N/A | BO55: N/A | BP55: N/A | BQ55: N/A | BR55: N/A | BS55: N/A | BT55: N/A | BU55: N/A | BV55: N/A | BW55: N/A | BX55: N/A
C56: NATIONAL wealth index quintile | H56: URBAN wealth index quintile | M56: RURAL wealth index quintile | R56: SUB-REGIONS: | BA56: Raw numbers of respondents: | BB56: Use of drinking water sources | BC56: NATIONAL wealth index quintile | BH56: URBAN wealth index quintile | BM56: RURAL wealth index quintile | BR56: SUB-REGIONS:
A57: Percentage based on weighted population | C57: Poorest | D57: Poor | E57: Middle | F57: Rich | G57: Richest | H57: Poorest | I57: Poor | J57: Middle | K57: Rich | L57: Richest | M57: Poorest | N57: Poor | O57: Middle | P57: Rich | Q57: Richest | R57: Alto Paraná | S57: Asunción | T57: Caaguazú | U57: Central | V57: Itapúa | W57: Resto | X57: San Pedro | BA57: Water data, raw numbers (weighted) | BC57: Poorest | BD57: Poor | BE57: Middle | BF57: Rich | BG57: Richest | BH57: Poorest | BI57: Poor | BJ57: Middle | BK57: Rich | BL57: Richest | BM57: Poorest | BN57: Poor | BO57: Middle | BP57: Rich | BQ57: Richest | BR57: Alto Paraná | BS57: Asunción | BT57: Caaguazú | BU57: Central | BV57: Itapúa | BW57: Resto | BX57: San Pedro
A58: Fuente principal de agua para beber | B58: ESSAP (ex-corposana) | C58: 2.75684649 | D58: 8.440982207 | E58: 15.37422025 | F58: 26.12443456 | G58: 31.16831036 | H58: 18.60465431 | I58: 20.7688893 | J58: 29.31099329 | K58: 35.34431448 | L58: 32.7694486 | M58: 0 | N58: 0.9438203989 | O58: 0.7146912855 | P58: 3.50114863 | Q58: 3.125980197 | R58: 2.530266311 | S58: 64.30294743 | T58: 6.440055449 | U58: 22.27286895 | V58: 6.759716053 | W58: 10.88042501 | X58: 2.262336766
B59: SENASA o Junta de Saneamiento | C59: 21.84748244 | D59: 33.60562907 | E59: 31.17843559 | F59: 27.15729811 | G59: 16.32844079 | H59: 39.78862505 | I59: 28.69543798 | J59: 25.85638735 | K59: 17.40004637 | L59: 13.33568191 | M59: 14.00147868 | N59: 24.09474639 | O59: 24.08924339 | P59: 34.15073816 | Q59: 41.00213368 | R59: 10.25146616 | S59: 0 | T59: 24.29275606 | U59: 33.66708141 | V59: 28.70460819 | W59: 27.718853 | X59: 44.11626856
B60: Red Comunitaria | C60: 25.10609539 | D60: 19.05788964 | E60: 16.06794353 | F60: 9.160607094 | G60: 9.049342656 | H60: 14.75735917 | I60: 16.14624217 | J60: 9.814187469 | K60: 6.915439547 | L60: 9.463101343 | M60: 25.12301387 | N60: 27.98844159 | O60: 24.27276092 | P60: 15.21350611 | Q60: 16.3278978 | R60: 23.25953446 | S60: 0 | T60: 32.15881631 | U60: 5.53238347 | V60: 8.320406309 | W60: 24.54192786 | X60: 27.58361328
B61: Red o Prestador privado | C61: 3.116594555 | D61: 5.4196774 | E61: 10.88397636 | F61: 15.54419795 | G61: 9.457063359 | H61: 10.3790522 | I61: 12.94546911 | J61: 15.18774737 | K61: 16.29397736 | L61: 8.310581476 | M61: 0.9146170789 | N61: 1.166693799 | O61: 1.790022615 | P61: 6.470584826 | Q61: 7.379210731 | R61: 4.517896542 | S61: 0.7405707409 | T61: 2.787933612 | U61: 22.15750048 | V61: 2.707400808 | W61: 2.993013785 | X61: 0
B62: Pozo artesiano | C62: 1.286214891 | D62: 1.335320901 | E62: 4.592574263 | F62: 3.292730745 | G62: 3.740921159 | H62: 1.092510416 | I62: 4.003334759 | J62: 2.728463873 | K62: 2.479232395 | L62: 3.377346603 | M62: 0.8308383089 | N62: 1.41980046 | O62: 1.108856707 | P62: 6.028907999 | Q62: 5.650773121 | R62: 3.235869615 | S62: 0.26614261 | T62: 3.664266958 | U62: 3.046658192 | V62: 3.772486882 | W62: 3.18840072 | X62: 0.648867709
B63: Pozo excavado protegido (brocal y tapa) | C63: 27.29431042 | D63: 25.14689883 | E63: 18.50854682 | F63: 8.823173123 | G63: 5.448899377 | H63: 12.35757596 | I63: 14.50092301 | J63: 7.541395393 | K63: 5.00198626 | L63: 2.664507781 | M63: 32.46755503 | N63: 27.07853671 | O63: 37.50908383 | P63: 28.65663394 | Q63: 21.13139379 | R63: 45.49974354 | S63: 1.244891701 | T63: 19.67677225 | U63: 4.297150359 | V63: 34.83702501 | W63: 18.19925119 | X63: 17.41390294
B64: Pozo excavado sin protección (sin brocal ni tapa) | C64: 12.85314325 | D64: 4.142614628 | E64: 1.347695771 | F64: 0.1182692522 | G64: 0 | H64: 2.155618035 | I64: 0.7024106626 | J64: 0.06082865464 | K64: 0.1404618157 | L64: 0 | M64: 19.59187771 | N64: 10.08511826 | O64: 6.048908294 | P64: 4.0846412 | Q64: 0.6250024202 | R64: 3.309143805 | S64: 0.2252569337 | T64: 8.529225769 | U64: 0.2258840622 | V64: 6.333076997 | W64: 5.991221781 | X64: 7.908776834
B65: Manantial protegido | C65: 0.7540842244 | D65: 0.3196238371 | E65: 0.145353826 | F65: 0.09563551393 | G65: 0.1064347161 | H65: 0.1046035026 | I65: 0.07836142074 | J65: 0 | K65: 0 | L65: 0.1808857304 | M65: 0.7331607568 | N65: 1.170569858 | O65: 0.4209082083 | P65: 0.3744399341 | Q65: 0.2323429072 | R65: 0.1628315318 | S65: 0 | T65: 1.158602725 | U65: 0 | V65: 1.708256732 | W65: 0.1244195015 | X65: 0
B66: Manantial sin protección | C66: 2.11951701 | D66: 0.8145791765 | E66: 0.2405801382 | F66: 0 | G66: 0 | H66: 0.1524338606 | I66: 0 | J66: 0 | K66: 0 | L66: 0 | M66: 3.290922744 | N66: 1.850236827 | O66: 1.7654115 | P66: 0.5823333134 | Q66: 0 | R66: 0.5055919062 | S66: 0 | T66: 0.08585344607 | U66: 0 | V66: 3.112689016 | W66: 1.161691598 | X66: 0
B67: Agua de lluvia | C67: 1.77204214 | D67: 0.6589854012 | E67: 0.1668256433 | F67: 0.6461772891 | G67: 0.8610448939 | H67: 0.1569052539 | I67: 0.1044818943 | J67: 0.3188073239 | K67: 0 | L67: 0 | M67: 1.144912177 | N67: 3.451630658 | O67: 0.8863877278 | P67: 0.2013242576 | Q67: 3.461522078 | R67: 0 | S67: 0 | T67: 0.4041393925 | U67: 0 | V67: 0 | W67: 2.994704923 | X67: 0
B68: Agua embotellada | C68: 0 | D68: 0.2796708575 | E68: 1.363181022 | F68: 9.03747637 | G68: 23.83954269 | H68: 0.4506622404 | I68: 2.054449684 | J68: 9.181189282 | K68: 16.42454177 | L68: 29.89844655 | M68: 0 | N68: 0 | O68: 0 | P68: 0.03632337854 | Q68: 0.9471845848 | R68: 6.591963178 | S68: 33.22019058 | T68: 0.6403410685 | U68: 8.770355206 | V68: 3.548775349 | W68: 0.8936460893 | X68: 0.06623390109
B69: Agua superficial(río,represa,lago,estanque,arroyo) | C69: 1.093669183 | D69: 0.7781280517 | E69: 0.1306667837 | F69: 0 | G69: 0 | H69: 0 | I69: 0 | J69: 0 | K69: 0 | L69: 0 | M69: 1.901623648 | N69: 0.7504050482 | O69: 1.393725522 | P69: 0.6994182463 | Q69: 0.1165586918 | R69: 0.1356929432 | S69: 0 | T69: 0.1612369597 | U69: 0.03011787496 | V69: 0.1955586459 | W69: 1.312444547 | X69: 0
A108: =A1026 -> Paraguay
A109: =A1034 -> 2009
A110: Use of sanitation facilities
A111: by wealth quintile and sub-national region
A112: Notes:
A113: WHO/UNICEF JMP customised wealth index excludes water,
A114: sanitation and hygiene assets.
A115: Survey used for analysis: | B115: =A1025 -> EPH09
A117: Ratio of Shared improved based on: | B117: WHS03
A120: Use of sanitation facilities | C120: NATIONAL wealth index quintile | H120: URBAN wealth index quintile | M120: RURAL wealth index quintile | R120: SUB-REGIONS: | BA120: Raw numbers of respondents: | BB120: Use of sanitation facilities | BC120: NATIONAL wealth index quintile | BH120: URBAN wealth index quintile | BM120: RURAL wealth index quintile | BR120: SUB-REGIONS:
A121: Weighted percentage (used in graphs) | C121: Poorest | D121: Poor | E121: Middle | F121: Rich | G121: Richest | H121: Poorest | I121: Poor | J121: Middle | K121: Rich | L121: Richest | M121: Poorest | N121: Poor | O121: Middle | P121: Rich | Q121: Richest | R121: Alto Paraná | S121: Asunción | T121: Caaguazú | U121: Central | V121: Itapúa | W121: Resto | X121: San Pedro | BA121: Sanitation data, raw numbers (weighted) | BC121: Poorest | BD121: Poor | BE121: Middle | BF121: Rich | BG121: Richest | BH121: Poorest | BI121: Poor | BJ121: Middle | BK121: Rich | BL121: Richest | BM121: Poorest | BN121: Poor | BO121: Middle | BP121: Rich | BQ121: Richest | BR121: Alto Paraná | BS121: Asunción | BT121: Caaguazú | BU121: Central | BV121: Itapúa | BW121: Resto | BX121: San Pedro
A122: Sanitation | B122: Improved | C122: =C153+C154+C155+C157+C158 -> 53.21848936 | D122: =D153+D154+D155+D157+D158 -> 85.89889641 | E122: 97.53586756 | F122: 99.2324453 | G122: 99.97813946 | H122: 83.98752318 | I122: 97.99838154 | J122: 99.73143063 | K122: 98.96114579 | L122: 99.96287439 | M122: 39.2367501 | N122: 62.5226938 | O122: 79.84048024 | P122: 91.16836024 | Q122: 99.06404532 | R122: 94.58685192 | S122: 97.11571221 | T122: 73.91380719 | U122: 97.93309177 | V122: 83.43273377 | W122: 77.50113664 | X122: 66.34019651 | BA122: Sanitation | BB122: Improved | BC122: N/A | BD122: N/A | BE122: N/A | BF122: N/A | BG122: N/A | BH122: N/A | BI122: N/A | BJ122: N/A | BK122: N/A | BL122: N/A | BM122: N/A | BN122: N/A | BO122: N/A | BP122: N/A | BQ122: N/A | BR122: N/A | BS122: N/A | BT122: N/A | BU122: N/A | BV122: N/A | BW122: N/A | BX122: N/A
B123: Not Improved | C123: =100-C122 -> 46.78151064 | D123: =100-D122 -> 14.10110359 | E123: 2.464132441 | F123: 0.7675546955 | G123: 0.02186053933 | H123: 16.01247682 | I123: 2.001618464 | J123: 0.2685693725 | K123: 1.038854206 | L123: 0.03712561057 | M123: 60.7632499 | N123: 37.4773062 | O123: 20.15951976 | P123: 8.831639762 | Q123: 0.9359546776 | R123: 5.413148084 | S123: 2.884287794 | T123: 26.08619281 | U123: 2.066908225 | V123: 16.56726623 | W123: 22.49886336 | X123: 33.65980349 | BB123: Not Improved | BC123: N/A | BD123: N/A | BE123: N/A | BF123: N/A | BG123: N/A | BH123: N/A | BI123: N/A | BJ123: N/A | BK123: N/A | BL123: N/A | BM123: N/A | BN123: N/A | BO123: N/A | BP123: N/A | BQ123: N/A | BR123: N/A | BS123: N/A | BT123: N/A | BU123: N/A | BV123: N/A | BW123: N/A | BX123: N/A
A124: Sanitation ladder | B124: Basic | C124: =C122*'WHS03'!C129/100 -> 50.63605104 | D124: =D122*'WHS03'!D129/100 -> 82.07060802 | E124: =E122*'WHS03'!E129/100 -> 92.21143381 | F124: =F122*'WHS03'!F129/100 -> 95.41659173 | G124: =G122*'WHS03'!G129/100 -> 99.30516749 | H124: =H122*'WHS03'!H129/100 -> 76.5169785 | I124: =I122*'WHS03'!I129/100 -> 87.34899617 | J124: =J122*'WHS03'!J129/100 -> 95.35456995 | K124: =K122*'WHS03'!K129/100 -> 97.61391046 | L124: =L122*'WHS03'!L129/100 -> 99.47382173 | M124: =M122*'WHS03'!M129/100 -> 37.63998496 | N124: =N122*'WHS03'!N129/100 -> 60.61496149 | O124: =O122*'WHS03'!O129/100 -> 77.56585681 | P124: =P122*'WHS03'!P129/100 -> 89.63696545 | Q124: =Q122*'WHS03'!Q129/100 -> 98.73371066 | R124: N/A | S124: N/A | T124: N/A | U124: N/A | V124: N/A | W124: N/A | X124: N/A | BA124: Sanitation ladder | BB124: Basic | BC124: N/A | BD124: N/A | BE124: N/A | BF124: N/A | BG124: N/A | BH124: N/A | BI124: N/A | BJ124: N/A | BK124: N/A | BL124: N/A | BM124: N/A | BN124: N/A | BO124: N/A | BP124: N/A | BQ124: N/A | BR124: N/A | BS124: N/A | BT124: N/A | BU124: N/A | BV124: N/A | BW124: N/A | BX124: N/A
B125: Limited | C125: =C122*'WHS03'!C128/100 -> 2.582438316 | D125: =D122*'WHS03'!D128/100 -> 3.828288391 | E125: =E122*'WHS03'!E128/100 -> 5.32443375 | F125: =F122*'WHS03'!F128/100 -> 3.815853571 | G125: =G122*'WHS03'!G128/100 -> 0.6729719701 | H125: =H122*'WHS03'!H128/100 -> 7.470544679 | I125: =I122*'WHS03'!I128/100 -> 10.64938537 | J125: =J122*'WHS03'!J128/100 -> 4.37686068 | K125: =K122*'WHS03'!K128/100 -> 1.347235338 | L125: =L122*'WHS03'!L128/100 -> 0.4890526638 | M125: =M122*'WHS03'!M128/100 -> 1.596765139 | N125: =N122*'WHS03'!N128/100 -> 1.907732317 | O125: =O122*'WHS03'!O128/100 -> 2.274623431 | P125: =P122*'WHS03'!P128/100 -> 1.531394787 | Q125: =Q122*'WHS03'!Q128/100 -> 0.3303346611 | R125: N/A | S125: N/A | T125: N/A | U125: N/A | V125: N/A | W125: N/A | X125: N/A | BB125: Limited | BC125: N/A | BD125: N/A | BE125: N/A | BF125: N/A | BG125: N/A | BH125: N/A | BI125: N/A | BJ125: N/A | BK125: N/A | BL125: N/A | BM125: N/A | BN125: N/A | BO125: N/A | BP125: N/A | BQ125: N/A | BR125: N/A | BS125: N/A | BT125: N/A | BU125: N/A | BV125: N/A | BW125: N/A | BX125: N/A
B126: Unimproved | C126: =100-(C124+C125+C127) -> 46.78151064 | D126: =100-(D124+D125+D127) -> 14.10110359 | E126: 2.464132441 | F126: 0.7675546955 | G126: 0.02186053933 | H126: 16.01247682 | I126: 2.001618464 | J126: 0.2685693725 | K126: 1.038854206 | L126: 0.03712561057 | M126: 60.7632499 | N126: 37.4773062 | O126: 20.15951976 | P126: 8.831639762 | Q126: 0.9359546776 | R126: N/A | S126: N/A | T126: N/A | U126: N/A | V126: N/A | W126: N/A | X126: N/A | BB126: Unimproved | BC126: N/A | BD126: N/A | BE126: N/A | BF126: N/A | BG126: N/A | BH126: N/A | BI126: N/A | BJ126: N/A | BK126: N/A | BL126: N/A | BM126: N/A | BN126: N/A | BO126: N/A | BP126: N/A | BQ126: N/A | BR126: N/A | BS126: N/A | BT126: N/A | BU126: N/A | BV126: N/A | BW126: N/A | BX126: N/A
B127: Open defecation | C127: 0 | D127: 0 | E127: 0 | F127: 0 | G127: 0 | H127: 0 | I127: 0 | J127: 0 | K127: 0 | L127: 0 | M127: 0 | N127: 0 | O127: 0 | P127: 0 | Q127: 0 | R127: N/A | S127: N/A | T127: N/A | U127: N/A | V127: N/A | W127: N/A | X127: N/A | BB127: Open defecation | BC127: N/A | BD127: N/A | BE127: N/A | BF127: N/A | BG127: N/A | BH127: N/A | BI127: N/A | BJ127: N/A | BK127: N/A | BL127: N/A | BM127: N/A | BN127: N/A | BO127: N/A | BP127: N/A | BQ127: N/A | BR127: N/A | BS127: N/A | BT127: N/A | BU127: N/A | BV127: N/A | BW127: N/A | BX127: N/A
A128: Shared among Improved Sanitation | B128: Yes | C128: N/A | D128: N/A | E128: N/A | F128: N/A | G128: N/A | H128: N/A | I128: N/A | J128: N/A | K128: N/A | L128: N/A | M128: N/A | N128: N/A | O128: N/A | P128: N/A | Q128: N/A | R128: N/A | S128: N/A | T128: N/A | U128: N/A | V128: N/A | W128: N/A | X128: N/A | BA128: Shared among improved sanitation facilities | BB128: Yes | BC128: N/A | BD128: N/A | BE128: N/A | BF128: N/A | BG128: N/A | BH128: N/A | BI128: N/A | BJ128: N/A | BK128: N/A | BL128: N/A | BM128: N/A | BN128: N/A | BO128: N/A | BP128: N/A | BQ128: N/A | BR128: N/A | BS128: N/A | BT128: N/A | BU128: N/A | BV128: N/A | BW128: N/A | BX128: N/A
B129: No | C129: N/A | D129: N/A | E129: N/A | F129: N/A | G129: N/A | H129: N/A | I129: N/A | J129: N/A | K129: N/A | L129: N/A | M129: N/A | N129: N/A | O129: N/A | P129: N/A | Q129: N/A | R129: N/A | S129: N/A | T129: N/A | U129: N/A | V129: N/A | W129: N/A | X129: N/A | BB129: No | BC129: N/A | BD129: N/A | BE129: N/A | BF129: N/A | BG129: N/A | BH129: N/A | BI129: N/A | BJ129: N/A | BK129: N/A | BL129: N/A | BM129: N/A | BN129: N/A | BO129: N/A | BP129: N/A | BQ129: N/A | BR129: N/A | BS129: N/A | BT129: N/A | BU129: N/A | BV129: N/A | BW129: N/A | BX129: N/A
A130: Manually calculated ratios | B130: Improved latrines | C130: =C158/(C158+C159)*100 -> 43.73474765 | D130: =D158/(D158+D159)*100 -> 71.37284911 | E130: 85.99020225 | F130: 100 | G130: 100 | H130: 52.6016324 | I130: 86.28155175 | J130: 100 | K130: 100 | L130: 100 | M130: 34.88724138 | N130: 54.94954819 | O130: 70.40761471 | P130: 80.24791283 | Q130: 90.33972241
B131: Other
B132: Other
C133: NATIONAL wealth index quintile | H133: URBAN wealth index quintile | M133: RURAL wealth index quintile | R133: SUB-REGIONS: | BA133: Raw numbers of respondents: | BB133: Use of sanitation facilities | BC133: NATIONAL wealth index quintile | BH133: URBAN wealth index quintile | BM133: RURAL wealth index quintile | BR133: SUB-REGIONS:
A134: Percentage based on weighted population | C134: Poorest | D134: Poor | E134: Middle | F134: Rich | G134: Richest | H134: Poorest | I134: Poor | J134: Middle | K134: Rich | L134: Richest | M134: Poorest | N134: Poor | O134: Middle | P134: Rich | Q134: Richest | R134: Alto Paraná | S134: Asunción | T134: Caaguazú | U134: Central | V134: Itapúa | W134: Resto | X134: San Pedro | BA134: Sanitation data, raw numbers (weighted) | BC134: Poorest | BD134: Poor | BE134: Middle | BF134: Rich | BG134: Richest | BH134: Poorest | BI134: Poor | BJ134: Middle | BK134: Rich | BL134: Richest | BM134: Poorest | BN134: Poor | BO134: Middle | BP134: Rich | BQ134: Richest | BR134: Alto Paraná | BS134: Asunción | BT134: Caaguazú | BU134: Central | BV134: Itapúa | BW134: Resto | BX134: San Pedro
A135: Sanitation type | B135: Sewer connection | C135: =C153 -> 0.7218200855 | D135: =D153 -> 2.160680967 | E135: 4.724261231 | F135: 12.70031655 | G135: 27.73719483 | H135: 4.982249442 | I135: 6.701587571 | J135: 13.50341822 | K135: 19.88293377 | L135: 34.65784143 | M135: 0 | N135: 0.3504390715 | O135: 0 | P135: 0.5332369465 | Q135: 1.992340429 | R135: 0.02900192529 | S135: 76.45763001 | T135: 1.607120938 | U135: 5.824845385 | V135: 7.55929462 | W135: 2.546862178 | X135: 0.3942674761 | BA135: Sanitation type | BB135: Sewer connection | BC135: N/A | BD135: N/A | BE135: N/A | BF135: N/A | BG135: N/A | BH135: N/A | BI135: N/A | BJ135: N/A | BK135: N/A | BL135: N/A | BM135: N/A | BN135: N/A | BO135: N/A | BP135: N/A | BQ135: N/A | BR135: N/A | BS135: N/A | BT135: N/A | BU135: N/A | BV135: N/A | BW135: N/A | BX135: N/A
B136: Septic tank connection | C136: =C154 -> 3.777662882 | D136: 20.25801899 | E136: 44.42605873 | F136: 58.08725784 | G136: 53.10826552 | H136: 23.17886502 | I136: 48.98887033 | J136: 57.67819198 | K136: 58.9801229 | L136: 46.9392373 | M136: 0.8858690808 | N136: 4.98971474 | O136: 12.36248885 | P136: 25.26967914 | Q136: 56.14779332 | R136: 60.75100009 | S136: 14.81846409 | T136: 27.04551322 | U136: 50.78815348 | V136: 24.03262127 | W136: 24.8493 | X136: 14.75829071 | BB136: Septic tank connection | BC136: N/A | BD136: N/A | BE136: N/A | BF136: N/A | BG136: N/A | BH136: N/A | BI136: N/A | BJ136: N/A | BK136: N/A | BL136: N/A | BM136: N/A | BN136: N/A | BO136: N/A | BP136: N/A | BQ136: N/A | BR136: N/A | BS136: N/A | BT136: N/A | BU136: N/A | BV136: N/A | BW136: N/A | BX136: N/A
B137: Improved latrines | C137: =C157+C158 -> 39.64718582 | D137: =D157+D158 -> 33.42289747 | E137: 12.81056057 | F137: 1.480756541 | G137: 0.2971916387 | H137: 19.25247493 | I137: 7.884952389 | J137: 1.103605591 | K137: 0.702478834 | L137: 0 | M137: 37.01593653 | N137: 48.32572328 | O137: 47.77532967 | P137: 30.72700173 | Q137: 7.240966701 | R137: 19.27307287 | S137: 0.6089912349 | T137: 27.56908673 | U137: 1.890017931 | V137: 36.07090165 | W137: 27.00312751 | X137: 39.96978989 | BB137: Improved latrines | BC137: N/A | BD137: N/A | BE137: N/A | BF137: N/A | BG137: N/A | BH137: N/A | BI137: N/A | BJ137: N/A | BK137: N/A | BL137: N/A | BM137: N/A | BN137: N/A | BO137: N/A | BP137: N/A | BQ137: N/A | BR137: N/A | BS137: N/A | BT137: N/A | BU137: N/A | BV137: N/A | BW137: N/A | BX137: N/A
B138: Unimproved facilities | C138: =C156+C159 -> 46.69042209 | D138: =D156+D159 -> 14.10110359 | E138: 2.464132441 | F138: 0.3685155137 | G138: 0.02186053933 | H138: 15.85623855 | I138: 2.001618464 | J138: 0.1948417844 | K138: 0.4328898554 | L138: 0.03712561057 | M138: 60.7632499 | N138: 37.4773062 | O138: 20.15951976 | P138: 8.831639762 | Q138: 0.9359546776 | R138: 5.413148084 | S138: 2.884287794 | T138: 26.08619281 | U138: 1.758281476 | V138: 16.56726623 | W138: 22.49886336 | X138: 33.65980349 | BB138: Unimproved facilities | BC138: N/A | BD138: N/A | BE138: N/A | BF138: N/A | BG138: N/A | BH138: N/A | BI138: N/A | BJ138: N/A | BK138: N/A | BL138: N/A | BM138: N/A | BN138: N/A | BO138: N/A | BP138: N/A | BQ138: N/A | BR138: N/A | BS138: N/A | BT138: N/A | BU138: N/A | BV138: N/A | BW138: N/A | BX138: N/A
B139: Open defecation | C139: 0 | D139: 0 | E139: 0 | F139: 0 | G139: 0 | H139: 0 | I139: 0 | J139: 0 | K139: 0 | L139: 0 | M139: 0 | N139: 0 | O139: 0 | P139: 0 | Q139: 0 | R139: 0 | S139: 0 | T139: 0 | U139: 0 | V139: 0 | W139: 0 | X139: 0 | BB139: Open defecation | BC139: N/A | BD139: N/A | BE139: N/A | BF139: N/A | BG139: N/A | BH139: N/A | BI139: N/A | BJ139: N/A | BK139: N/A | BL139: N/A | BM139: N/A | BN139: N/A | BO139: N/A | BP139: N/A | BQ139: N/A | BR139: N/A | BS139: N/A | BT139: N/A | BU139: N/A | BV139: N/A | BW139: N/A | BX139: N/A
A140: Septic tank emptying practices | B140: Not emptied/treated and disposed in situ | C140: N/A | D140: N/A | E140: N/A | F140: N/A | G140: N/A | H140: N/A | I140: N/A | J140: N/A | K140: N/A | L140: N/A | M140: N/A | N140: N/A | O140: N/A | P140: N/A | Q140: N/A | R140: N/A | S140: N/A | T140: N/A | U140: N/A | V140: N/A | W140: N/A | X140: N/A | BA140: Septic tank emptying practices | BB140: Not emptied/treated and disposed in situ | BC140: N/A | BD140: N/A | BE140: N/A | BF140: N/A | BG140: N/A | BH140: N/A | BI140: N/A | BJ140: N/A | BK140: N/A | BL140: N/A | BM140: N/A | BN140: N/A | BO140: N/A | BP140: N/A | BQ140: N/A | BR140: N/A | BS140: N/A | BT140: N/A | BU140: N/A | BV140: N/A | BW140: N/A | BX140: N/A
B141: Emptied and buried on site | C141: N/A | D141: N/A | E141: N/A | F141: N/A | G141: N/A | H141: N/A | I141: N/A | J141: N/A | K141: N/A | L141: N/A | M141: N/A | N141: N/A | O141: N/A | P141: N/A | Q141: N/A | R141: N/A | S141: N/A | T141: N/A | U141: N/A | V141: N/A | W141: N/A | X141: N/A | BB141: Emptied and buried on site | BC141: N/A | BD141: N/A | BE141: N/A | BF141: N/A | BG141: N/A | BH141: N/A | BI141: N/A | BJ141: N/A | BK141: N/A | BL141: N/A | BM141: N/A | BN141: N/A | BO141: N/A | BP141: N/A | BQ141: N/A | BR141: N/A | BS141: N/A | BT141: N/A | BU141: N/A | BV141: N/A | BW141: N/A | BX141: N/A
B142: Emptied and discharged locally | C142: N/A | D142: N/A | E142: N/A | F142: N/A | G142: N/A | H142: N/A | I142: N/A | J142: N/A | K142: N/A | L142: N/A | M142: N/A | N142: N/A | O142: N/A | P142: N/A | Q142: N/A | R142: N/A | S142: N/A | T142: N/A | U142: N/A | V142: N/A | W142: N/A | X142: N/A | BB142: Emptied and discharged locally | BC142: N/A | BD142: N/A | BE142: N/A | BF142: N/A | BG142: N/A | BH142: N/A | BI142: N/A | BJ142: N/A | BK142: N/A | BL142: N/A | BM142: N/A | BN142: N/A | BO142: N/A | BP142: N/A | BQ142: N/A | BR142: N/A | BS142: N/A | BT142: N/A | BU142: N/A | BV142: N/A | BW142: N/A | BX142: N/A
B143: Emptied and removed offsite | C143: N/A | D143: N/A | E143: N/A | F143: N/A | G143: N/A | H143: N/A | I143: N/A | J143: N/A | K143: N/A | L143: N/A | M143: N/A | N143: N/A | O143: N/A | P143: N/A | Q143: N/A | R143: N/A | S143: N/A | T143: N/A | U143: N/A | V143: N/A | W143: N/A | X143: N/A | BB143: Emptied and removed offsite | BC143: N/A | BD143: N/A | BE143: N/A | BF143: N/A | BG143: N/A | BH143: N/A | BI143: N/A | BJ143: N/A | BK143: N/A | BL143: N/A | BM143: N/A | BN143: N/A | BO143: N/A | BP143: N/A | BQ143: N/A | BR143: N/A | BS143: N/A | BT143: N/A | BU143: N/A | BV143: N/A | BW143: N/A | BX143: N/A
A144: Latrine emptying practices | B144: Not emptied/treated and disposed in situ | C144: N/A | D144: N/A | E144: N/A | F144: N/A | G144: N/A | H144: N/A | I144: N/A | J144: N/A | K144: N/A | L144: N/A | M144: N/A | N144: N/A | O144: N/A | P144: N/A | Q144: N/A | R144: N/A | S144: N/A | T144: N/A | U144: N/A | V144: N/A | W144: N/A | X144: N/A | BA144: Latrine emptying practices | BB144: Not emptied/treated and disposed in situ | BC144: N/A | BD144: N/A | BE144: N/A | BF144: N/A | BG144: N/A | BH144: N/A | BI144: N/A | BJ144: N/A | BK144: N/A | BL144: N/A | BM144: N/A | BN144: N/A | BO144: N/A | BP144: N/A | BQ144: N/A | BR144: N/A | BS144: N/A | BT144: N/A | BU144: N/A | BV144: N/A | BW144: N/A | BX144: N/A
B145: Emptied and buried on site | C145: N/A | D145: N/A | E145: N/A | F145: N/A | G145: N/A | H145: N/A | I145: N/A | J145: N/A | K145: N/A | L145: N/A | M145: N/A | N145: N/A | O145: N/A | P145: N/A | Q145: N/A | R145: N/A | S145: N/A | T145: N/A | U145: N/A | V145: N/A | W145: N/A | X145: N/A | BB145: Emptied and buried on site | BC145: N/A | BD145: N/A | BE145: N/A | BF145: N/A | BG145: N/A | BH145: N/A | BI145: N/A | BJ145: N/A | BK145: N/A | BL145: N/A | BM145: N/A | BN145: N/A | BO145: N/A | BP145: N/A | BQ145: N/A | BR145: N/A | BS145: N/A | BT145: N/A | BU145: N/A | BV145: N/A | BW145: N/A | BX145: N/A
B146: Emptied and discharged locally | C146: N/A | D146: N/A | E146: N/A | F146: N/A | G146: N/A | H146: N/A | I146: N/A | J146: N/A | K146: N/A | L146: N/A | M146: N/A | N146: N/A | O146: N/A | P146: N/A | Q146: N/A | R146: N/A | S146: N/A | T146: N/A | U146: N/A | V146: N/A | W146: N/A | X146: N/A | BB146: Emptied and discharged locally | BC146: N/A | BD146: N/A | BE146: N/A | BF146: N/A | BG146: N/A | BH146: N/A | BI146: N/A | BJ146: N/A | BK146: N/A | BL146: N/A | BM146: N/A | BN146: N/A | BO146: N/A | BP146: N/A | BQ146: N/A | BR146: N/A | BS146: N/A | BT146: N/A | BU146: N/A | BV146: N/A | BW146: N/A | BX146: N/A
B147: Emptied and removed offsite | C147: N/A | D147: N/A | E147: N/A | F147: N/A | G147: N/A | H147: N/A | I147: N/A | J147: N/A | K147: N/A | L147: N/A | M147: N/A | N147: N/A | O147: N/A | P147: N/A | Q147: N/A | R147: N/A | S147: N/A | T147: N/A | U147: N/A | V147: N/A | W147: N/A | X147: N/A | BB147: Emptied and removed offsite | BC147: N/A | BD147: N/A | BE147: N/A | BF147: N/A | BG147: N/A | BH147: N/A | BI147: N/A | BJ147: N/A | BK147: N/A | BL147: N/A | BM147: N/A | BN147: N/A | BO147: N/A | BP147: N/A | BQ147: N/A | BR147: N/A | BS147: N/A | BT147: N/A | BU147: N/A | BV147: N/A | BW147: N/A | BX147: N/A
A148: Shared among improved sanitation facilities | B148: Yes | C148: N/A | D148: N/A | E148: N/A | F148: N/A | G148: N/A | H148: N/A | I148: N/A | J148: N/A | K148: N/A | L148: N/A | M148: N/A | N148: N/A | O148: N/A | P148: N/A | Q148: N/A | R148: N/A | S148: N/A | T148: N/A | U148: N/A | V148: N/A | W148: N/A | X148: N/A | BA148: Shared among improved sanitation facilities | BB148: Yes | BC148: N/A | BD148: N/A | BE148: N/A | BF148: N/A | BG148: N/A | BH148: N/A | BI148: N/A | BJ148: N/A | BK148: N/A | BL148: N/A | BM148: N/A | BN148: N/A | BO148: N/A | BP148: N/A | BQ148: N/A | BR148: N/A | BS148: N/A | BT148: N/A | BU148: N/A | BV148: N/A | BW148: N/A | BX148: N/A
B149: No | C149: N/A | D149: N/A | E149: N/A | F149: N/A | G149: N/A | H149: N/A | I149: N/A | J149: N/A | K149: N/A | L149: N/A | M149: N/A | N149: N/A | O149: N/A | P149: N/A | Q149: N/A | R149: N/A | S149: N/A | T149: N/A | U149: N/A | V149: N/A | W149: N/A | X149: N/A | BB149: No | BC149: N/A | BD149: N/A | BE149: N/A | BF149: N/A | BG149: N/A | BH149: N/A | BI149: N/A | BJ149: N/A | BK149: N/A | BL149: N/A | BM149: N/A | BN149: N/A | BO149: N/A | BP149: N/A | BQ149: N/A | BR149: N/A | BS149: N/A | BT149: N/A | BU149: N/A | BV149: N/A | BW149: N/A | BX149: N/A
B150: DK/missing | C150: N/A | D150: N/A | E150: N/A | F150: N/A | G150: N/A | H150: N/A | I150: N/A | J150: N/A | K150: N/A | L150: N/A | M150: N/A | N150: N/A | O150: N/A | P150: N/A | Q150: N/A | R150: N/A | S150: N/A | T150: N/A | U150: N/A | V150: N/A | W150: N/A | X150: N/A | BB150: DK/missing | BC150: N/A | BD150: N/A | BE150: N/A | BF150: N/A | BG150: N/A | BH150: N/A | BI150: N/A | BJ150: N/A | BK150: N/A | BL150: N/A | BM150: N/A | BN150: N/A | BO150: N/A | BP150: N/A | BQ150: N/A | BR150: N/A | BS150: N/A | BT150: N/A | BU150: N/A | BV150: N/A | BW150: N/A | BX150: N/A
A151: Shared among all sanitation facilities | B151: Yes | C151: N/A | D151: N/A | E151: N/A | F151: N/A | G151: N/A | H151: N/A | I151: N/A | J151: N/A | K151: N/A | L151: N/A | M151: N/A | N151: N/A | O151: N/A | P151: N/A | Q151: N/A | R151: N/A | S151: N/A | T151: N/A | U151: N/A | V151: N/A | W151: N/A | X151: N/A | BA151: Shared among all sanitation facilities | BB151: Yes | BC151: N/A | BD151: N/A | BE151: N/A | BF151: N/A | BG151: N/A | BH151: N/A | BI151: N/A | BJ151: N/A | BK151: N/A | BL151: N/A | BM151: N/A | BN151: N/A | BO151: N/A | BP151: N/A | BQ151: N/A | BR151: N/A | BS151: N/A | BT151: N/A | BU151: N/A | BV151: N/A | BW151: N/A | BX151: N/A
B152: No | C152: N/A | D152: N/A | E152: N/A | F152: N/A | G152: N/A | H152: N/A | I152: N/A | J152: N/A | K152: N/A | L152: N/A | M152: N/A | N152: N/A | O152: N/A | P152: N/A | Q152: N/A | R152: N/A | S152: N/A | T152: N/A | U152: N/A | V152: N/A | W152: N/A | X152: N/A | BB152: No | BC152: N/A | BD152: N/A | BE152: N/A | BF152: N/A | BG152: N/A | BH152: N/A | BI152: N/A | BJ152: N/A | BK152: N/A | BL152: N/A | BM152: N/A | BN152: N/A | BO152: N/A | BP152: N/A | BQ152: N/A | BR152: N/A | BS152: N/A | BT152: N/A | BU152: N/A | BV152: N/A | BW152: N/A | BX152: N/A
A153: Tipo desagüe sanitario | B153: Arrastre de agua, red de alcantarillado sanitario | C153: 0.7218200855 | D153: 2.160680967 | E153: 4.724261231 | F153: 12.70031655 | G153: 27.73719483 | H153: 4.982249442 | I153: 6.701587571 | J153: 13.50341822 | K153: 19.88293377 | L153: 34.65784143 | M153: 0 | N153: 0.3504390715 | O153: 0 | P153: 0.5332369465 | Q153: 1.992340429 | R153: 0.02900192529 | S153: 76.45763001 | T153: 1.607120938 | U153: 5.824845385 | V153: 7.55929462 | W153: 2.546862178 | X153: 0.3942674761 | BA153: Tipo desagüe sanitario | BB153: Arrastre de agua, red de alcantarillado sanitario | BC153: 89.07 | BD153: 267.62 | BE153: 587.28 | BF153: 1593.59 | BG153: 3476.58 | BH153: 358.43 | BI153: 490.26 | BJ153: 994.52 | BK153: 1464.73 | BL153: 2557.87 | BM153: 0 | BN153: 17.99 | BO153: 0 | BP153: 27.44 | BQ153: 102.9 | BR153: 2.13 | BS153: 3949.74 | BT153: 75.94 | BU153: 1157.13 | BV153: 399.13 | BW153: 416.21 | BX153: 13.86
B154: Arrastre de agua, cámara séptica y pozo ciego(absorbente) | C154: 3.777662882 | D154: 20.25801899 | E154: 44.42605873 | F154: 58.08725784 | G154: 53.10826552 | H154: 23.17886502 | I154: 48.98887033 | J154: 57.67819198 | K154: 58.9801229 | L154: 46.9392373 | M154: 0.8858690808 | N154: 4.98971474 | O154: 12.36248885 | P154: 25.26967914 | Q154: 56.14779332 | R154: 60.75100009 | S154: 14.81846409 | T154: 27.04551322 | U154: 50.78815348 | V154: 24.03262127 | W154: 24.8493 | X154: 14.75829071 | BB154: Arrastre de agua, cámara séptica y pozo ciego(absorbente) | BC154: 466.15 | BD154: 2509.14 | BE154: 5522.67 | BF154: 7288.58 | BG154: 6656.59 | BH154: 1667.52 | BI154: 3583.82 | BJ154: 4247.97 | BK154: 4344.93 | BL154: 3464.28 | BM154: 44.72 | BN154: 256.15 | BO154: 633.47 | BP154: 1300.36 | BQ154: 2899.91 | BR154: 4461.76 | BS154: 765.51 | BT154: 1277.96 | BU154: 10089.28 | BV154: 1268.92 | BW154: 4060.89 | BX154: 518.81
B155: Arrastre de agua y pozo ciego(absorbente) | C155: 9.071820572 | D155: 30.05729898 | E155: 35.57498703 | F155: 26.96411437 | G155: 18.83548747 | H155: 36.57393378 | I155: 34.42297125 | J155: 27.44621484 | K155: 19.39561029 | L155: 18.36579566 | M155: 1.334944485 | N155: 8.856816712 | O155: 19.70266172 | P155: 34.63844242 | Q155: 33.68294487 | R155: 14.53377703 | S155: 5.230626878 | T155: 17.69208629 | U155: 39.43007497 | V155: 15.76991623 | W155: 23.10184695 | X155: 11.21784843 | BB155: Arrastre de agua y pozo ciego(absorbente) | BC155: 1119.43 | BD155: 3722.87 | BE155: 4422.38 | BF155: 3383.36 | BG155: 2360.84 | BH155: 2631.18 | BI155: 2518.24 | BJ155: 2021.4 | BK155: 1428.83 | BL155: 1355.46 | BM155: 67.39 | BN155: 454.67 | BO155: 1009.59 | BP155: 1782.47 | BQ155: 1739.65 | BR155: 1067.41 | BS155: 270.21 | BT155: 835.99 | BU155: 7832.95 | BV155: 832.65 | BW155: 3775.32 | BX155: 394.35
B156: Arrastre de agua en superficie de la tierra,zanja,arroyo... | C156: 1.623467135 | D156: 1.989437998 | E156: 0.6214227968 | F156: 0.3685155137 | G156: 0.02186053933 | H156: 0.7451898351 | I156: 0.8946659048 | J156: 0.1948417844 | K156: 0.4328898554 | L156: 0.03712561057 | M156: 2.567871398 | N156: 1.184363288 | O156: 1.896907377 | P156: 2.050163916 | Q156: 0.2284705254 | R156: 1.570052585 | S156: 2.256326076 | T156: 0.3601948692 | U156: 0.2896490484 | V156: 0.3528415774 | W156: 1.517004884 | X156: 0 | BB156: Arrastre de agua en superficie de la tierra,zanja,arroyo... | BC156: 200.33 | BD156: 246.41 | BE156: 77.25 | BF156: 46.24 | BG156: 2.74 | BH156: 53.61 | BI156: 65.45 | BJ156: 14.35 | BK156: 31.89 | BL156: 2.74 | BM156: 129.63 | BN156: 60.8 | BO156: 97.2 | BP156: 105.5 | BQ156: 11.8 | BR156: 115.31 | BS156: 116.56 | BT156: 17.02 | BU156: 57.54 | BV156: 18.63 | BW156: 247.91 | BX156: 0
B157: Letrina ventilada de hoyo seco(común c/tubo de ventilación) | C157: 4.616828368 | D157: 3.226246598 | E157: 1.500263451 | F157: 0.2221134811 | G157: 0.04284346577 | H157: 2.482576097 | I157: 0.9228249845 | J157: 0.2366614845 | K157: 0.07289490509 | L157: 0 | M157: 5.835008865 | N157: 4.058002634 | O157: 4.324051107 | P157: 3.175519294 | Q157: 0.6248088011 | R157: 1.629281869 | S157: 0.4841344814 | T157: 1.180685767 | U157: 0.4780165735 | V157: 3.961939322 | W157: 3.526297464 | X157: 3.076765527 | BB157: Letrina ventilada de hoyo seco(común c/tubo de ventilación) | BC157: 569.7 | BD157: 399.6 | BE157: 186.5 | BF157: 27.87 | BG157: 5.37 | BH157: 178.6 | BI157: 67.51 | BJ157: 17.43 | BK157: 5.37 | BL157: 0 | BM157: 294.56 | BN157: 208.32 | BO157: 221.57 | BP157: 163.41 | BQ157: 32.27 | BR157: 119.66 | BS157: 25.01 | BT157: 55.79 | BU157: 94.96 | BV157: 209.19 | BW157: 576.27 | BX157: 108.16
B158: Letrina común de hoyo seco(con losa,techo,paredes y puertas) | C158: 35.03035745 | D158: 30.19665087 | E158: 11.31029712 | F158: 1.25864306 | G158: 0.254348173 | H158: 16.76989883 | I158: 6.962127405 | J158: 0.8669441069 | K158: 0.6295839289 | L158: 0 | M158: 31.18092767 | N158: 44.26772065 | O158: 43.45127856 | P158: 27.55148243 | Q158: 6.6161579 | R158: 17.643791 | S158: 0.1248567535 | T158: 26.38840096 | U158: 1.412001357 | V158: 32.10896233 | W158: 23.47683005 | X158: 36.89302437 | BB158: Letrina común de hoyo seco(con losa,techo,paredes y puertas) | BC158: 4322.62 | BD158: 3740.13 | BE158: 1406 | BF158: 157.93 | BG158: 31.88 | BH158: 1206.45 | BI158: 509.32 | BJ158: 63.85 | BK158: 46.38 | BL158: 0 | BM158: 1574.06 | BN158: 2272.51 | BO158: 2226.5 | BP158: 1417.78 | BQ158: 341.71 | BR158: 1295.82 | BS158: 6.45 | BT158: 1246.91 | BU158: 280.5 | BV158: 1695.35 | BW158: 3836.6 | BX158: 1296.93
B159: Letrina común sin techo o puerta | C159: 45.06695495 | D159: 12.11166559 | E159: 1.842709645 | F159: 0 | G159: 0 | H159: 15.11104871 | I159: 1.106952559 | J159: 0 | K159: 0 | L159: 0 | M159: 58.1953785 | N159: 36.29294291 | O159: 18.26261238 | P159: 6.781475846 | Q159: 0.7074841523 | R159: 3.843095499 | S159: 0.6279617183 | T159: 25.72599794 | U159: 1.468632428 | V159: 16.21442465 | W159: 20.98185848 | X159: 33.65980349 | BB159: Letrina común sin techo o puerta | BC159: 5561.1 | BD159: 1500.14 | BE159: 229.07 | BF159: 0 | BG159: 0 | BH159: 1087.11 | BI159: 80.98 | BJ159: 0 | BK159: 0 | BL159: 0 | BM159: 2937.79 | BN159: 1863.12 | BO159: 935.8 | BP159: 348.97 | BQ159: 36.54 | BR159: 282.25 | BS159: 32.44 | BT159: 1215.61 | BU159: 291.75 | BV159: 856.12 | BW159: 3428.87 | BX159: 1183.27
B160: missing | C160: 0.09108855688 | D160: 0 | E160: 0 | F160: 0.3990391819 | G160: 0 | H160: 0.1562382717 | I160: 0 | J160: 0.0737275881 | K160: 0.6059643507 | L160: 0 | M160: 0 | N160: 0 | O160: 0 | P160: 0 | Q160: 0 | R160: 0 | S160: 0 | T160: 0 | U160: 0.3086267494 | V160: 0 | W160: 0 | X160: 0 | BB160: missing | BC160: 11.24 | BD160: 0 | BE160: 0 | BF160: 50.07 | BG160: 0 | BH160: 11.24 | BI160: 0 | BJ160: 5.43 | BK160: 44.64 | BL160: 0 | BM160: 0 | BN160: 0 | BO160: 0 | BP160: 0 | BQ160: 0 | BR160: 0 | BS160: 0 | BT160: 0 | BU160: 61.31 | BV160: 0 | BW160: 0 | BX160: 0
BB161: Total | BC161: 12339.64 | BD161: 12385.91 | BE161: 12431.15 | BF161: 12547.64 | BG161: 12534 | BH161: 7194.14 | BI161: 7315.58 | BJ161: 7364.95 | BK161: 7366.77 | BL161: 7380.35 | BM161: 5048.15 | BN161: 5133.56 | BO161: 5124.13 | BP161: 5145.93 | BQ161: 5164.78 | BR161: 7344.34 | BS161: 5165.92 | BT161: 4725.22 | BU161: 19865.42 | BV161: 5279.99 | BW161: 16342.07 | BX161: 3515.38
A208: =A1026 -> Paraguay
A209: =A1034 -> 2009
A210: Access to hygiene facilities
A211: by wealth quintile and sub-national region
A212: Notes:
A213: WHO/UNICEF JMP customised wealth index excludes water,
A214: sanitation and hygiene assets.
A215: Survey used for analysis: | B215: =A1025 -> EPH09
A220: Access to handwashing | C220: NATIONAL wealth index quintile | H220: URBAN wealth index quintile | M220: RURAL wealth index quintile | R220: SUB-REGIONS: | BA220: Raw numbers of respondents: | BB220: Access to handwashing | BC220: NATIONAL wealth index quintile | BH220: URBAN wealth index quintile | BM220: RURAL wealth index quintile | BR220: SUB-REGIONS:
A221: Weighted percentage (used in graphs) | C221: Poorest | D221: Poor | E221: Middle | F221: Rich | G221: Richest | H221: Poorest | I221: Poor | J221: Middle | K221: Rich | L221: Richest | M221: Poorest | N221: Poor | O221: Middle | P221: Rich | Q221: Richest | R221: Alto Paraná | S221: Asunción | T221: Caaguazú | U221: Central | V221: Itapúa | W221: Resto | X221: San Pedro | BA221: Hygiene data, raw numbers (weighted) | BC221: Poorest | BD221: Poor | BE221: Middle | BF221: Rich | BG221: Richest | BH221: Poorest | BI221: Poor | BJ221: Middle | BK221: Rich | BL221: Richest | BM221: Poorest | BN221: Poor | BO221: Middle | BP221: Rich | BQ221: Richest | BR221: Alto Paraná | BS221: Asunción | BT221: Caaguazú | BU221: Central | BV221: Itapúa | BW221: Resto | BX221: San Pedro
A222: Hygiene ladder | B222: Basic | C222: N/A | D222: N/A | E222: N/A | F222: N/A | G222: N/A | H222: N/A | I222: N/A | J222: N/A | K222: N/A | L222: N/A | M222: N/A | N222: N/A | O222: N/A | P222: N/A | Q222: N/A | R222: N/A | S222: N/A | T222: N/A | U222: N/A | V222: N/A | W222: N/A | X222: N/A | BA222: Hygiene ladder | BB222: Basic | BC222: N/A | BD222: N/A | BE222: N/A | BF222: N/A | BG222: N/A | BH222: N/A | BI222: N/A | BJ222: N/A | BK222: N/A | BL222: N/A | BM222: N/A | BN222: N/A | BO222: N/A | BP222: N/A | BQ222: N/A | BR222: N/A | BS222: N/A | BT222: N/A | BU222: N/A | BV222: N/A | BW222: N/A | BX222: N/A
B223: Limited | C223: N/A | D223: N/A | E223: N/A | F223: N/A | G223: N/A | H223: N/A | I223: N/A | J223: N/A | K223: N/A | L223: N/A | M223: N/A | N223: N/A | O223: N/A | P223: N/A | Q223: N/A | R223: N/A | S223: N/A | T223: N/A | U223: N/A | V223: N/A | W223: N/A | X223: N/A | BB223: Limited | BC223: N/A | BD223: N/A | BE223: N/A | BF223: N/A | BG223: N/A | BH223: N/A | BI223: N/A | BJ223: N/A | BK223: N/A | BL223: N/A | BM223: N/A | BN223: N/A | BO223: N/A | BP223: N/A | BQ223: N/A | BR223: N/A | BS223: N/A | BT223: N/A | BU223: N/A | BV223: N/A | BW223: N/A | BX223: N/A
B224: No facility | C224: N/A | D224: N/A | E224: N/A | F224: N/A | G224: N/A | H224: N/A | I224: N/A | J224: N/A | K224: N/A | L224: N/A | M224: N/A | N224: N/A | O224: N/A | P224: N/A | Q224: N/A | R224: N/A | S224: N/A | T224: N/A | U224: N/A | V224: N/A | W224: N/A | X224: N/A | BB224: No facility | BC224: N/A | BD224: N/A | BE224: N/A | BF224: N/A | BG224: N/A | BH224: N/A | BI224: N/A | BJ224: N/A | BK224: N/A | BL224: N/A | BM224: N/A | BN224: N/A | BO224: N/A | BP224: N/A | BQ224: N/A | BR224: N/A | BS224: N/A | BT224: N/A | BU224: N/A | BV224: N/A | BW224: N/A | BX224: N/A
BA225: Observed handwashing place | BB225: Fixed | BC225: N/A | BD225: N/A | BE225: N/A | BF225: N/A | BG225: N/A | BH225: N/A | BI225: N/A | BJ225: N/A | BK225: N/A | BL225: N/A | BM225: N/A | BN225: N/A | BO225: N/A | BP225: N/A | BQ225: N/A | BR225: N/A | BS225: N/A | BT225: N/A | BU225: N/A | BV225: N/A | BW225: N/A | BX225: N/A
BB226: Mobile | BC226: N/A | BD226: N/A | BE226: N/A | BF226: N/A | BG226: N/A | BH226: N/A | BI226: N/A | BJ226: N/A | BK226: N/A | BL226: N/A | BM226: N/A | BN226: N/A | BO226: N/A | BP226: N/A | BQ226: N/A | BR226: N/A | BS226: N/A | BT226: N/A | BU226: N/A | BV226: N/A | BW226: N/A | BX226: N/A
BA227: Water / Soap | BB227: Water and soap | BC227: N/A | BD227: N/A | BE227: N/A | BF227: N/A | BG227: N/A | BH227: N/A | BI227: N/A | BJ227: N/A | BK227: N/A | BL227: N/A | BM227: N/A | BN227: N/A | BO227: N/A | BP227: N/A | BQ227: N/A | BR227: N/A | BS227: N/A | BT227: N/A | BU227: N/A | BV227: N/A | BW227: N/A | BX227: N/A
BB228: Water only | BC228: N/A | BD228: N/A | BE228: N/A | BF228: N/A | BG228: N/A | BH228: N/A | BI228: N/A | BJ228: N/A | BK228: N/A | BL228: N/A | BM228: N/A | BN228: N/A | BO228: N/A | BP228: N/A | BQ228: N/A | BR228: N/A | BS228: N/A | BT228: N/A | BU228: N/A | BV228: N/A | BW228: N/A | BX228: N/A
BB229: Soap only | BC229: N/A | BD229: N/A | BE229: N/A | BF229: N/A | BG229: N/A | BH229: N/A | BI229: N/A | BJ229: N/A | BK229: N/A | BL229: N/A | BM229: N/A | BN229: N/A | BO229: N/A | BP229: N/A | BQ229: N/A | BR229: N/A | BS229: N/A | BT229: N/A | BU229: N/A | BV229: N/A | BW229: N/A | BX229: N/A
BB230: Neither | BC230: N/A | BD230: N/A | BE230: N/A | BF230: N/A | BG230: N/A | BH230: N/A | BI230: N/A | BJ230: N/A | BK230: N/A | BL230: N/A | BM230: N/A | BN230: N/A | BO230: N/A | BP230: N/A | BQ230: N/A | BR230: N/A | BS230: N/A | BT230: N/A | BU230: N/A | BV230: N/A | BW230: N/A | BX230: N/A
BA259: Raw numbers of respondents: | BB259: Menstrual health and hygiene | BC259: NATIONAL wealth index quintile | BH259: URBAN wealth index quintile | BM259: RURAL wealth index quintile | BR259: SUB-REGIONS:
BA260: MHH data, raw numbers (weighted) | BC260: Poorest | BD260: Poor | BE260: Middle | BF260: Rich | BG260: Richest | BH260: Poorest | BI260: Poor | BJ260: Middle | BK260: Rich | BL260: Richest | BM260: Poorest | BN260: Poor | BO260: Middle | BP260: Rich | BQ260: Richest | BR260: Alto Paraná | BS260: Asunción | BT260: Caaguazú | BU260: Central | BV260: Itapúa | BW260: Resto | BX260: San Pedro
BA261: Private place to wash and change | BB261: Yes | BC261: N/A | BD261: N/A | BE261: N/A | BF261: N/A | BG261: N/A | BH261: N/A | BI261: N/A | BJ261: N/A | BK261: N/A | BL261: N/A | BM261: N/A | BN261: N/A | BO261: N/A | BP261: N/A | BQ261: N/A | BR261: N/A | BS261: N/A | BT261: N/A | BU261: N/A | BV261: N/A | BW261: N/A | BX261: N/A
BB262: No | BC262: N/A | BD262: N/A | BE262: N/A | BF262: N/A | BG262: N/A | BH262: N/A | BI262: N/A | BJ262: N/A | BK262: N/A | BL262: N/A | BM262: N/A | BN262: N/A | BO262: N/A | BP262: N/A | BQ262: N/A | BR262: N/A | BS262: N/A | BT262: N/A | BU262: N/A | BV262: N/A | BW262: N/A | BX262: N/A
BB263: DK/not sure/missing | BC263: N/A | BD263: N/A | BE263: N/A | BF263: N/A | BG263: N/A | BH263: N/A | BI263: N/A | BJ263: N/A | BK263: N/A | BL263: N/A | BM263: N/A | BN263: N/A | BO263: N/A | BP263: N/A | BQ263: N/A | BR263: N/A | BS263: N/A | BT263: N/A | BU263: N/A | BV263: N/A | BW263: N/A | BX263: N/A
BA264: Use of menstrual materials | BB264: Materials reusable | BC264: N/A | BD264: N/A | BE264: N/A | BF264: N/A | BG264: N/A | BH264: N/A | BI264: N/A | BJ264: N/A | BK264: N/A | BL264: N/A | BM264: N/A | BN264: N/A | BO264: N/A | BP264: N/A | BQ264: N/A | BR264: N/A | BS264: N/A | BT264: N/A | BU264: N/A | BV264: N/A | BW264: N/A | BX264: N/A
BB265: Materials not reusable | BC265: N/A | BD265: N/A | BE265: N/A | BF265: N/A | BG265: N/A | BH265: N/A | BI265: N/A | BJ265: N/A | BK265: N/A | BL265: N/A | BM265: N/A | BN265: N/A | BO265: N/A | BP265: N/A | BQ265: N/A | BR265: N/A | BS265: N/A | BT265: N/A | BU265: N/A | BV265: N/A | BW265: N/A | BX265: N/A
BB266: No materials used | BC266: N/A | BD266: N/A | BE266: N/A | BF266: N/A | BG266: N/A | BH266: N/A | BI266: N/A | BJ266: N/A | BK266: N/A | BL266: N/A | BM266: N/A | BN266: N/A | BO266: N/A | BP266: N/A | BQ266: N/A | BR266: N/A | BS266: N/A | BT266: N/A | BU266: N/A | BV266: N/A | BW266: N/A | BX266: N/A
BB267: DK/not sure/missing | BC267: N/A | BD267: N/A | BE267: N/A | BF267: N/A | BG267: N/A | BH267: N/A | BI267: N/A | BJ267: N/A | BK267: N/A | BL267: N/A | BM267: N/A | BN267: N/A | BO267: N/A | BP267: N/A | BQ267: N/A | BR267: N/A | BS267: N/A | BT267: N/A | BU267: N/A | BV267: N/A | BW267: N/A | BX267: N/A
BA268: Use of menstrual materials with private place to wash and change | BB268: Materials reusable | BC268: N/A | BD268: N/A | BE268: N/A | BF268: N/A | BG268: N/A | BH268: N/A | BI268: N/A | BJ268: N/A | BK268: N/A | BL268: N/A | BM268: N/A | BN268: N/A | BO268: N/A | BP268: N/A | BQ268: N/A | BR268: N/A | BS268: N/A | BT268: N/A | BU268: N/A | BV268: N/A | BW268: N/A | BX268: N/A
BB269: Materials not reusable | BC269: N/A | BD269: N/A | BE269: N/A | BF269: N/A | BG269: N/A | BH269: N/A | BI269: N/A | BJ269: N/A | BK269: N/A | BL269: N/A | BM269: N/A | BN269: N/A | BO269: N/A | BP269: N/A | BQ269: N/A | BR269: N/A | BS269: N/A | BT269: N/A | BU269: N/A | BV269: N/A | BW269: N/A | BX269: N/A
BB270: No materials used | BC270: N/A | BD270: N/A | BE270: N/A | BF270: N/A | BG270: N/A | BH270: N/A | BI270: N/A | BJ270: N/A | BK270: N/A | BL270: N/A | BM270: N/A | BN270: N/A | BO270: N/A | BP270: N/A | BQ270: N/A | BR270: N/A | BS270: N/A | BT270: N/A | BU270: N/A | BV270: N/A | BW270: N/A | BX270: N/A
BA271: Awareness of menstruation before menarche | BB271: Yes | BC271: N/A | BD271: N/A | BE271: N/A | BF271: N/A | BG271: N/A | BH271: N/A | BI271: N/A | BJ271: N/A | BK271: N/A | BL271: N/A | BM271: N/A | BN271: N/A | BO271: N/A | BP271: N/A | BQ271: N/A | BR271: N/A | BS271: N/A | BT271: N/A | BU271: N/A | BV271: N/A | BW271: N/A | BX271: N/A
BB272: No | BC272: N/A | BD272: N/A | BE272: N/A | BF272: N/A | BG272: N/A | BH272: N/A | BI272: N/A | BJ272: N/A | BK272: N/A | BL272: N/A | BM272: N/A | BN272: N/A | BO272: N/A | BP272: N/A | BQ272: N/A | BR272: N/A | BS272: N/A | BT272: N/A | BU272: N/A | BV272: N/A | BW272: N/A | BX272: N/A
BB273: DK/not sure/missing | BC273: N/A | BD273: N/A | BE273: N/A | BF273: N/A | BG273: N/A | BH273: N/A | BI273: N/A | BJ273: N/A | BK273: N/A | BL273: N/A | BM273: N/A | BN273: N/A | BO273: N/A | BP273: N/A | BQ273: N/A | BR273: N/A | BS273: N/A | BT273: N/A | BU273: N/A | BV273: N/A | BW273: N/A | BX273: N/A
BA274: Participation in (all) activities during menstruation | BB274: Yes | BC274: N/A | BD274: N/A | BE274: N/A | BF274: N/A | BG274: N/A | BH274: N/A | BI274: N/A | BJ274: N/A | BK274: N/A | BL274: N/A | BM274: N/A | BN274: N/A | BO274: N/A | BP274: N/A | BQ274: N/A | BR274: N/A | BS274: N/A | BT274: N/A | BU274: N/A | BV274: N/A | BW274: N/A | BX274: N/A
BB275: No | BC275: N/A | BD275: N/A | BE275: N/A | BF275: N/A | BG275: N/A | BH275: N/A | BI275: N/A | BJ275: N/A | BK275: N/A | BL275: N/A | BM275: N/A | BN275: N/A | BO275: N/A | BP275: N/A | BQ275: N/A | BR275: N/A | BS275: N/A | BT275: N/A | BU275: N/A | BV275: N/A | BW275: N/A | BX275: N/A
BB276: DK/not sure/missing/no such activity | BC276: N/A | BD276: N/A | BE276: N/A | BF276: N/A | BG276: N/A | BH276: N/A | BI276: N/A | BJ276: N/A | BK276: N/A | BL276: N/A | BM276: N/A | BN276: N/A | BO276: N/A | BP276: N/A | BQ276: N/A | BR276: N/A | BS276: N/A | BT276: N/A | BU276: N/A | BV276: N/A | BW276: N/A | BX276: N/A
BA277: Participation in specific activities during menstruation | BB277: Did not go to school (amongst those usually attending school) | BC277: N/A | BD277: N/A | BE277: N/A | BF277: N/A | BG277: N/A | BH277: N/A | BI277: N/A | BJ277: N/A | BK277: N/A | BL277: N/A | BM277: N/A | BN277: N/A | BO277: N/A | BP277: N/A | BQ277: N/A | BR277: N/A | BS277: N/A | BT277: N/A | BU277: N/A | BV277: N/A | BW277: N/A | BX277: N/A
BB278: Did not go to work (amongst those who usually work) | BC278: N/A | BD278: N/A | BE278: N/A | BF278: N/A | BG278: N/A | BH278: N/A | BI278: N/A | BJ278: N/A | BK278: N/A | BL278: N/A | BM278: N/A | BN278: N/A | BO278: N/A | BP278: N/A | BQ278: N/A | BR278: N/A | BS278: N/A | BT278: N/A | BU278: N/A | BV278: N/A | BW278: N/A | BX278: N/A
BB279: Did not participate in social activities | BC279: N/A | BD279: N/A | BE279: N/A | BF279: N/A | BG279: N/A | BH279: N/A | BI279: N/A | BJ279: N/A | BK279: N/A | BL279: N/A | BM279: N/A | BN279: N/A | BO279: N/A | BP279: N/A | BQ279: N/A | BR279: N/A | BS279: N/A | BT279: N/A | BU279: N/A | BV279: N/A | BW279: N/A | BX279: N/A
BB280: Did not cook food | BC280: N/A | BD280: N/A | BE280: N/A | BF280: N/A | BG280: N/A | BH280: N/A | BI280: N/A | BJ280: N/A | BK280: N/A | BL280: N/A | BM280: N/A | BN280: N/A | BO280: N/A | BP280: N/A | BQ280: N/A | BR280: N/A | BS280: N/A | BT280: N/A | BU280: N/A | BV280: N/A | BW280: N/A | BX280: N/A
BB281: Did not eat with others | BC281: N/A | BD281: N/A | BE281: N/A | BF281: N/A | BG281: N/A | BH281: N/A | BI281: N/A | BJ281: N/A | BK281: N/A | BL281: N/A | BM281: N/A | BN281: N/A | BO281: N/A | BP281: N/A | BQ281: N/A | BR281: N/A | BS281: N/A | BT281: N/A | BU281: N/A | BV281: N/A | BW281: N/A | BX281: N/A
BB282: Did not bathe in regular place | BC282: N/A | BD282: N/A | BE282: N/A | BF282: N/A | BG282: N/A | BH282: N/A | BI282: N/A | BJ282: N/A | BK282: N/A | BL282: N/A | BM282: N/A | BN282: N/A | BO282: N/A | BP282: N/A | BQ282: N/A | BR282: N/A | BS282: N/A | BT282: N/A | BU282: N/A | BV282: N/A | BW282: N/A | BX282: N/A
BB283: Did not participate in other activities | BC283: N/A | BD283: N/A | BE283: N/A | BF283: N/A | BG283: N/A | BH283: N/A | BI283: N/A | BJ283: N/A | BK283: N/A | BL283: N/A | BM283: N/A | BN283: N/A | BO283: N/A | BP283: N/A | BQ283: N/A | BR283: N/A | BS283: N/A | BT283: N/A | BU283: N/A | BV283: N/A | BW283: N/A | BX283: N/A
BB284: DK/not sure/missing/no such activity | BC284: N/A | BD284: N/A | BE284: N/A | BF284: N/A | BG284: N/A | BH284: N/A | BI284: N/A | BJ284: N/A | BK284: N/A | BL284: N/A | BM284: N/A | BN284: N/A | BO284: N/A | BP284: N/A | BQ284: N/A | BR284: N/A | BS284: N/A | BT284: N/A | BU284: N/A | BV284: N/A | BW284: N/A | BX284: N/A
BA339: Raw numbers of respondents: | BB339: Basic water, sanitation and hygiene | BC339: NATIONAL wealth index quintile | BH339: URBAN wealth index quintile | BM339: RURAL wealth index quintile | BR339: SUB-REGIONS:
BA340: WatSan data, raw numbers (weighted) | BC340: Poorest | BD340: Poor | BE340: Middle | BF340: Rich | BG340: Richest | BH340: Poorest | BI340: Poor | BJ340: Middle | BK340: Rich | BL340: Richest | BM340: Poorest | BN340: Poor | BO340: Middle | BP340: Rich | BQ340: Richest | BR340: Alto Paraná | BS340: Asunción | BT340: Caaguazú | BU340: Central | BV340: Itapúa | BW340: Resto | BX340: San Pedro
BA341: Use of Basic Water Sanitation and Hygiene | BB341: Yes | BC341: N/A | BD341: N/A | BE341: N/A | BF341: N/A | BG341: N/A | BH341: N/A | BI341: N/A | BJ341: N/A | BK341: N/A | BL341: N/A | BM341: N/A | BN341: N/A | BO341: N/A | BP341: N/A | BQ341: N/A | BR341: N/A | BS341: N/A | BT341: N/A | BU341: N/A | BV341: N/A | BW341: N/A | BX341: N/A
BB342: No | BC342: N/A | BD342: N/A | BE342: N/A | BF342: N/A | BG342: N/A | BH342: N/A | BI342: N/A | BJ342: N/A | BK342: N/A | BL342: N/A | BM342: N/A | BN342: N/A | BO342: N/A | BP342: N/A | BQ342: N/A | BR342: N/A | BS342: N/A | BT342: N/A | BU342: N/A | BV342: N/A | BW342: N/A | BX342: N/A
BA343: Use of Basic Water and Sanitation | BB343: Yes | BC343: N/A | BD343: N/A | BE343: N/A | BF343: N/A | BG343: N/A | BH343: N/A | BI343: N/A | BJ343: N/A | BK343: N/A | BL343: N/A | BM343: N/A | BN343: N/A | BO343: N/A | BP343: N/A | BQ343: N/A | BR343: N/A | BS343: N/A | BT343: N/A | BU343: N/A | BV343: N/A | BW343: N/A | BX343: N/A
BB344: No | BC344: N/A | BD344: N/A | BE344: N/A | BF344: N/A | BG344: N/A | BH344: N/A | BI344: N/A | BJ344: N/A | BK344: N/A | BL344: N/A | BM344: N/A | BN344: N/A | BO344: N/A | BP344: N/A | BQ344: N/A | BR344: N/A | BS344: N/A | BT344: N/A | BU344: N/A | BV344: N/A | BW344: N/A | BX344: N/A
BA345: Use of Basic Water and Hygiene | BB345: Yes | BC345: N/A | BD345: N/A | BE345: N/A | BF345: N/A | BG345: N/A | BH345: N/A | BI345: N/A | BJ345: N/A | BK345: N/A | BL345: N/A | BM345: N/A | BN345: N/A | BO345: N/A | BP345: N/A | BQ345: N/A | BR345: N/A | BS345: N/A | BT345: N/A | BU345: N/A | BV345: N/A | BW345: N/A | BX345: N/A
BB346: No | BC346: N/A | BD346: N/A | BE346: N/A | BF346: N/A | BG346: N/A | BH346: N/A | BI346: N/A | BJ346: N/A | BK346: N/A | BL346: N/A | BM346: N/A | BN346: N/A | BO346: N/A | BP346: N/A | BQ346: N/A | BR346: N/A | BS346: N/A | BT346: N/A | BU346: N/A | BV346: N/A | BW346: N/A | BX346: N/A
BA347: Use of Basic Sanitation and Hygiene | BB347: Yes | BC347: N/A | BD347: N/A | BE347: N/A | BF347: N/A | BG347: N/A | BH347: N/A | BI347: N/A | BJ347: N/A | BK347: N/A | BL347: N/A | BM347: N/A | BN347: N/A | BO347: N/A | BP347: N/A | BQ347: N/A | BR347: N/A | BS347: N/A | BT347: N/A | BU347: N/A | BV347: N/A | BW347: N/A | BX347: N/A
BB348: No | BC348: N/A | BD348: N/A | BE348: N/A | BF348: N/A | BG348: N/A | BH348: N/A | BI348: N/A | BJ348: N/A | BK348: N/A | BL348: N/A | BM348: N/A | BN348: N/A | BO348: N/A | BP348: N/A | BQ348: N/A | BR348: N/A | BS348: N/A | BT348: N/A | BU348: N/A | BV348: N/A | BW348: N/A | BX348: N/A
BA349: Use of Basic Water | BB349: Yes | BC349: N/A | BD349: N/A | BE349: N/A | BF349: N/A | BG349: N/A | BH349: N/A | BI349: N/A | BJ349: N/A | BK349: N/A | BL349: N/A | BM349: N/A | BN349: N/A | BO349: N/A | BP349: N/A | BQ349: N/A | BR349: N/A | BS349: N/A | BT349: N/A | BU349: N/A | BV349: N/A | BW349: N/A | BX349: N/A
BB350: No | BC350: N/A | BD350: N/A | BE350: N/A | BF350: N/A | BG350: N/A | BH350: N/A | BI350: N/A | BJ350: N/A | BK350: N/A | BL350: N/A | BM350: N/A | BN350: N/A | BO350: N/A | BP350: N/A | BQ350: N/A | BR350: N/A | BS350: N/A | BT350: N/A | BU350: N/A | BV350: N/A | BW350: N/A | BX350: N/A
BA351: Use of Basic Sanitation | BB351: Yes | BC351: N/A | BD351: N/A | BE351: N/A | BF351: N/A | BG351: N/A | BH351: N/A | BI351: N/A | BJ351: N/A | BK351: N/A | BL351: N/A | BM351: N/A | BN351: N/A | BO351: N/A | BP351: N/A | BQ351: N/A | BR351: N/A | BS351: N/A | BT351: N/A | BU351: N/A | BV351: N/A | BW351: N/A | BX351: N/A
BB352: No | BC352: N/A | BD352: N/A | BE352: N/A | BF352: N/A | BG352: N/A | BH352: N/A | BI352: N/A | BJ352: N/A | BK352: N/A | BL352: N/A | BM352: N/A | BN352: N/A | BO352: N/A | BP352: N/A | BQ352: N/A | BR352: N/A | BS352: N/A | BT352: N/A | BU352: N/A | BV352: N/A | BW352: N/A | BX352: N/A
BA353: Access to Basic Hygiene | BB353: Yes | BC353: N/A | BD353: N/A | BE353: N/A | BF353: N/A | BG353: N/A | BH353: N/A | BI353: N/A | BJ353: N/A | BK353: N/A | BL353: N/A | BM353: N/A | BN353: N/A | BO353: N/A | BP353: N/A | BQ353: N/A | BR353: N/A | BS353: N/A | BT353: N/A | BU353: N/A | BV353: N/A | BW353: N/A | BX353: N/A
BB354: No | BC354: N/A | BD354: N/A | BE354: N/A | BF354: N/A | BG354: N/A | BH354: N/A | BI354: N/A | BJ354: N/A | BK354: N/A | BL354: N/A | BM354: N/A | BN354: N/A | BO354: N/A | BP354: N/A | BQ354: N/A | BR354: N/A | BS354: N/A | BT354: N/A | BU354: N/A | BV354: N/A | BW354: N/A | BX354: N/A
C399: INITIAL (national) Wealth Index | H399: URBAN Wealth Index | M399: RURAL Wealth Index
C400: Component Matrix | H400: Component Matrix | M400: Component Matrix
E401: Component | J401: Component | O401: Component
B402: Note: The INITIAL (national) Wealth Index is based on the first component of the Principal Component Analysis (PCA) which has been obtained at national level. The final national-level (NATIONAL) Wealth Index is based on the URBAN and RURAL specific wealth indexes. Regression procedures are used to establish the relationships between the two sets of scores (urban and rural) and the initial (national) wealth factors. This allows best use of the available information for each area and a better precision of the FINAL (NATIONAL) Wealth Index. For dependency reasons, all WASH variables (contained in the generic MICS and DHS scripts) have been excluded from the sets of asset variables used in the PCAs. The PCA can extracts as many components as there are asset variables in the input. Only the first of the components is used to represent the Wealth Index. The scores represent the weights of the asset variables on the Wealth Index (correlations between the variables and the component). The communalities are the proportion of each variable's variance that can be explained by the component. Proportion of explained variance is the part of the model's total variance that is explained by the component. For more information on the procedure used: The DHS Wealth Index, DHS Comparative Reports No. 6, Shea Oscar Rutstein, Kiersten Johnson, ORC Macro International Inc., 2004. The DHS Wealth Index: Approaches for Rural and Urban Areas, Shea O. Rutstein, ORC Macro International Inc., 2008. MICS Methodological Paper No. 4, Review of options for reporting water, sanitation and hygiene coverage by wealth quintile, UNICEF, 2016. | E402: 1 | J402: 1 | O402: 1
C403: Tiene cocina | E403: 0.7254107314 | H403: Tiene cocina | J403: 0.6618605197 | M403: Tiene cocina | O403: 0.6902838775
C404: fuel2 | E404: 0.6992674257 | H404: fuel2 | J404: 0.650237613 | M404: wall1 | O404: -0.6714817742
C405: fuel1 | E405: -0.6788175845 | H405: Tiene heladera | J405: 0.6235555227 | M405: Tiene heladera | O405: 0.6574776045
C406: Tiene máquina lavarropas | E406: 0.657598782 | H406: Tiene máquina lavarropas | J406: 0.6207734656 | M406: Tiene máquina lavarropas | O406: 0.6465087568
C407: Tiene heladera | E407: 0.6523920255 | H407: Tiene acondicionador de aire | J407: 0.5963154516 | M407: dwelling2 | O407: -0.6339262097
C408: wall1 | E408: -0.641480038 | H408: ¿Tiene línea fija? | J408: -0.5790543602 | M408: dwelling1 | O408: 0.6119303201
C409: floor4 | E409: 0.5884728938 | H409: Tiene automóvil / camión | J409: 0.5642743011 | M409: fuel2 | O409: 0.5880535488
C410: Tiene acondicionador de aire | E410: 0.5880274431 | H410: fuel1 | J410: -0.5187974632 | M410: fuel1 | O410: -0.5836240264
C411: dwelling2 | E411: -0.586246515 | H411: Tiene televisor | J411: 0.5182591927 | M411: Tiene televisor | O411: 0.5650528854
C412: Tiene televisor | E412: 0.5829580973 | H412: Tiene TV cable | J412: 0.5125403816 | M412: Tiene horno eléctrico | O412: 0.5497612812
C413: Tiene automóvil / camión | E413: 0.5660293421 | H413: Tiene video/DVD | J413: 0.4995023108 | M413: Tiene video/DVD | O413: 0.5316090028
C414: Tiene video/DVD | E414: 0.559523595 | H414: wall1 | J414: -0.4904312599 | M414: Tiene automóvil / camión | O414: 0.5178247231
C415: ¿Tiene línea fija? | E415: -0.5558587473 | H415: Tiene horno microondas | J415: 0.4902467524 | M415: wall6 | O415: 0.4938109814
C416: Tiene TV cable | E416: 0.5092354903 | H416: floor4 | J416: 0.4494880328 | M416: floor4 | O416: 0.4926712455
C417: wall6 | E417: 0.4973357681 | H417: Tiene horno eléctrico | J417: 0.4454186038 | M417: Tiene acondicionador de aire | O417: 0.4877403014
C418: Tiene horno microondas | E418: 0.4885127825 | H418: wall6 | J418: 0.4264499939 | M418: roof2 | O418: -0.4643592485
C419: Tiene horno eléctrico | E419: 0.4883853684 | H419: roof1 | J419: 0.4150603034 | M419: ¿Tiene celular? | O419: -0.4619516456
C420: dwelling1 | E420: 0.4764316197 | H420: dwelling2 | J420: -0.4073806448 | M420: No tiene ningún bien | O420: -0.4534757867
... 233 more rows

Sheet EPH10
A2: =A1026 -> Paraguay
A3: =A1034 -> 2010
A4: Use of drinking water sources
A5: by wealth quintile and sub-national region
A6: Notes:
A7: WHO/UNICEF JMP customised wealth index excludes water,
A8: sanitation and hygiene assets.
A9: Survey used for analysis: | B9: =A1025 -> EPH10
A10: Ratio of improved artesian wells: | B10: 50% Rule
A11: Time to improved source based on: | B11: MICS16
A14: Use of drinking water sources | C14: NATIONAL wealth index quintile | H14: URBAN wealth index quintile | M14: RURAL wealth index quintile | R14: SUB-REGIONS: | BA14: Raw numbers of respondents: | BB14: Use of drinking water sources | BC14: NATIONAL wealth index quintile | BH14: URBAN wealth index quintile | BM14: RURAL wealth index quintile | BR14: SUB-REGIONS:
A15: Weighted percentage (used in graphs) | C15: Poorest | D15: Poor | E15: Middle | F15: Rich | G15: Richest | H15: Poorest | I15: Poor | J15: Middle | K15: Rich | L15: Richest | M15: Poorest | N15: Poor | O15: Middle | P15: Rich | Q15: Richest | R15: Alto Paraná | S15: Asunción | T15: Caaguazú | U15: Central | V15: Itapúa | W15: Resto | X15: San Pedro | BA15: Water data, raw numbers (weighted) | BC15: Poorest | BD15: Poor | BE15: Middle | BF15: Rich | BG15: Richest | BH15: Poorest | BI15: Poor | BJ15: Middle | BK15: Rich | BL15: Richest | BM15: Poorest | BN15: Poor | BO15: Middle | BP15: Rich | BQ15: Richest | BR15: Alto Paraná | BS15: Asunción | BT15: Caaguazú | BU15: Central | BV15: Itapúa | BW15: Resto | BX15: San Pedro
A16: Water | B16: Improved | C16: =C58+C59+C60+C61+C63+C65+C67+C68+C62*0.5 -> 63.43356053 | D16: 73.56732099 | E16: 87.16545393 | F16: 91.48732816 | G16: 96.31791796 | H16: 81.71341305 | I16: 91.93536353 | J16: 93.46490374 | K16: 95.68562593 | L16: 96.95470439 | M16: 61.36397906 | N16: 57.27422893 | O16: 65.57741481 | P16: 77.15952144 | Q16: 81.82271757 | R16: 55.16366011 | S16: 99.58769212 | T16: 63.80042353 | U16: 98.53733204 | V16: 65.59009854 | W16: 79.52480724 | X16: 85.17611566 | BA16: Water | BB16: Improved | BC16: N/A | BD16: N/A | BE16: N/A | BF16: N/A | BG16: N/A | BH16: N/A | BI16: N/A | BJ16: N/A | BK16: N/A | BL16: N/A | BM16: N/A | BN16: N/A | BO16: N/A | BP16: N/A | BQ16: N/A | BR16: N/A | BS16: N/A | BT16: N/A | BU16: N/A | BV16: N/A | BW16: N/A | BX16: N/A
B17: Not Improved | C17: =100-C16 -> 36.56643947 | D17: =100-D16 -> 26.43267901 | E17: 12.83454607 | F17: 8.512671844 | G17: 3.682082043 | H17: 18.28658695 | I17: 8.064636468 | J17: 6.535096255 | K17: 4.314374071 | L17: 3.045295612 | M17: 38.63602094 | N17: 42.72577107 | O17: 34.42258519 | P17: 22.84047856 | Q17: 18.17728243 | R17: 44.83633989 | S17: 0.4123078823 | T17: 36.19957647 | U17: 1.462667961 | V17: 34.40990146 | W17: 20.47519276 | X17: 14.82388434 | BB17: Not Improved | BC17: N/A | BD17: N/A | BE17: N/A | BF17: N/A | BG17: N/A | BH17: N/A | BI17: N/A | BJ17: N/A | BK17: N/A | BL17: N/A | BM17: N/A | BN17: N/A | BO17: N/A | BP17: N/A | BQ17: N/A | BR17: N/A | BS17: N/A | BT17: N/A | BU17: N/A | BV17: N/A | BW17: N/A | BX17: N/A
A18: Water ladder | B18: Basic | C18: =C16*MICS16!C23/100 -> 62.9435647 | D18: =D16*MICS16!D23/100 -> 73.52318479 | E18: =E16*MICS16!E23/100 -> 87.16545393 | F18: =F16*MICS16!F23/100 -> 91.48732816 | G18: =G16*MICS16!G23/100 -> 96.31791796 | H18: =H16*MICS16!H23/100 -> 81.45082993 | I18: =I16*MICS16!I23/100 -> 91.93536353 | J18: =J16*MICS16!J23/100 -> 93.46490374 | K18: =K16*MICS16!K23/100 -> 95.68562593 | L18: =L16*MICS16!L23/100 -> 96.95470439 | M18: =M16*MICS16!M23/100 -> 60.86145222 | N18: =N16*MICS16!N23/100 -> 56.88780961 | O18: =O16*MICS16!O23/100 -> 65.57741481 | P18: =P16*MICS16!P23/100 -> 77.04030009 | Q18: =Q16*MICS16!Q23/100 -> 81.82271757 | R18: =R16*R23/100 -> 55.16366011 | S18: =S16*S23/100 -> 99.58769212 | T18: 63.80042353 | U18: 98.53733204 | V18: 65.59009854 | W18: 79.52480724 | X18: 85.17611566 | BA18: Water ladder | BB18: Basic | BC18: N/A | BD18: N/A | BE18: N/A | BF18: N/A | BG18: N/A | BH18: N/A | BI18: N/A | BJ18: N/A | BK18: N/A | BL18: N/A | BM18: N/A | BN18: N/A | BO18: N/A | BP18: N/A | BQ18: N/A | BR18: N/A | BS18: N/A | BT18: N/A | BU18: N/A | BV18: N/A | BW18: N/A | BX18: N/A
B19: Limited | C19: =C16*MICS16!C22/100 -> 0.489995822 | D19: =D16*MICS16!D22/100 -> 0.04413620167 | E19: =E16*MICS16!E22/100 -> 0 | F19: =F16*MICS16!F22/100 -> 0 | G19: =G16*MICS16!G22/100 -> 0 | H19: =H16*MICS16!H22/100 -> 0.262583117 | I19: =I16*MICS16!I22/100 -> 0 | J19: =J16*MICS16!J22/100 -> 0 | K19: =K16*MICS16!K22/100 -> 0 | L19: =L16*MICS16!L22/100 -> 0 | M19: =M16*MICS16!M22/100 -> 0.5025268355 | N19: =N16*MICS16!N22/100 -> 0.386419319 | O19: =O16*MICS16!O22/100 -> 0 | P19: =P16*MICS16!P22/100 -> 0.1192213508 | Q19: =Q16*MICS16!Q22/100 -> 0 | R19: =R16*R22/100 -> 0 | S19: =S16*S22/100 -> 0 | T19: 0 | U19: 0 | V19: 0 | W19: 0 | X19: 0 | BB19: Limited | BC19: N/A | BD19: N/A | BE19: N/A | BF19: N/A | BG19: N/A | BH19: N/A | BI19: N/A | BJ19: N/A | BK19: N/A | BL19: N/A | BM19: N/A | BN19: N/A | BO19: N/A | BP19: N/A | BQ19: N/A | BR19: N/A | BS19: N/A | BT19: N/A | BU19: N/A | BV19: N/A | BW19: N/A | BX19: N/A
B20: Unimproved | C20: =100-(C18+C19+C21) -> 36.35489722 | D20: =100-(D18+D19+D21) -> 26.1597169 | E20: 12.81496479 | F20: 8.512671844 | G20: 3.682082043 | H20: 18.28658695 | I20: 8.064636468 | J20: 6.535096255 | K20: 4.314374071 | L20: 3.045295612 | M20: 38.37262346 | N20: 42.47330865 | O20: 33.75557912 | P20: 22.79285852 | Q20: 18.17728243 | R20: 44.72155356 | S20: 0.4123078823 | T20: 35.84891209 | U20: 1.462667961 | V20: 34.17551304 | W20: 20.31794751 | X20: 14.82388434 | BB20: Unimproved | BC20: N/A | BD20: N/A | BE20: N/A | BF20: N/A | BG20: N/A | BH20: N/A | BI20: N/A | BJ20: N/A | BK20: N/A | BL20: N/A | BM20: N/A | BN20: N/A | BO20: N/A | BP20: N/A | BQ20: N/A | BR20: N/A | BS20: N/A | BT20: N/A | BU20: N/A | BV20: N/A | BW20: N/A | BX20: N/A
B21: Surface water | C21: =C69 -> 0.2115422599 | D21: 0.2729621049 | E21: 0.01958127404 | F21: 0 | G21: 0 | H21: 0 | I21: 0 | J21: 0 | K21: 0 | L21: 0 | M21: 0.263397484 | N21: 0.2524624177 | O21: 0.667006071 | P21: 0.04762004537 | Q21: 0 | R21: 0.1147863382 | S21: 0 | T21: 0.3506643786 | U21: 0 | V21: 0.2343884236 | W21: 0.1572452552 | X21: 0 | BB21: Surface water | BC21: N/A | BD21: N/A | BE21: N/A | BF21: N/A | BG21: N/A | BH21: N/A | BI21: N/A | BJ21: N/A | BK21: N/A | BL21: N/A | BM21: N/A | BN21: N/A | BO21: N/A | BP21: N/A | BQ21: N/A | BR21: N/A | BS21: N/A | BT21: N/A | BU21: N/A | BV21: N/A | BW21: N/A | BX21: N/A
A22: Improved water point at more than 30 minutes | B22: Yes | C22: N/A | D22: N/A | E22: N/A | F22: N/A | G22: N/A | H22: N/A | I22: N/A | J22: N/A | K22: N/A | L22: N/A | M22: N/A | N22: N/A | O22: N/A | P22: N/A | Q22: N/A | R22: 0 | S22: 0 | T22: 0 | U22: 0 | V22: 0 | W22: 0 | X22: 0 | BA22: Improved water point at more than 30 minutes | BB22: Yes | BC22: N/A | BD22: N/A | BE22: N/A | BF22: N/A | BG22: N/A | BH22: N/A | BI22: N/A | BJ22: N/A | BK22: N/A | BL22: N/A | BM22: N/A | BN22: N/A | BO22: N/A | BP22: N/A | BQ22: N/A | BR22: N/A | BS22: N/A | BT22: N/A | BU22: N/A | BV22: N/A | BW22: N/A | BX22: N/A
B23: No | C23: N/A | D23: N/A | E23: N/A | F23: N/A | G23: N/A | H23: N/A | I23: N/A | J23: N/A | K23: N/A | L23: N/A | M23: N/A | N23: N/A | O23: N/A | P23: N/A | Q23: N/A | R23: 100 | S23: 100 | T23: 100 | U23: 100 | V23: 100 | W23: 100 | X23: 100 | BB23: No | BC23: N/A | BD23: N/A | BE23: N/A | BF23: N/A | BG23: N/A | BH23: N/A | BI23: N/A | BJ23: N/A | BK23: N/A | BL23: N/A | BM23: N/A | BN23: N/A | BO23: N/A | BP23: N/A | BQ23: N/A | BR23: N/A | BS23: N/A | BT23: N/A | BU23: N/A | BV23: N/A | BW23: N/A | BX23: N/A
A24: Manually calculated ratios | B24: Improved wells
B25: Improved springs
B26: Other
C27: NATIONAL wealth index quintile | H27: URBAN wealth index quintile | M27: RURAL wealth index quintile | R27: SUB-REGIONS: | BA27: Raw numbers of respondents: | BB27: Use of drinking water sources | BC27: NATIONAL wealth index quintile | BH27: URBAN wealth index quintile | BM27: RURAL wealth index quintile | BR27: SUB-REGIONS:
A28: Percentage based on weighted population | C28: Poorest | D28: Poor | E28: Middle | F28: Rich | G28: Richest | H28: Poorest | I28: Poor | J28: Middle | K28: Rich | L28: Richest | M28: Poorest | N28: Poor | O28: Middle | P28: Rich | Q28: Richest | R28: Alto Paraná | S28: Asunción | T28: Caaguazú | U28: Central | V28: Itapúa | W28: Resto | X28: San Pedro | BA28: Water data, raw numbers (weighted) | BC28: Poorest | BD28: Poor | BE28: Middle | BF28: Rich | BG28: Richest | BH28: Poorest | BI28: Poor | BJ28: Middle | BK28: Rich | BL28: Richest | BM28: Poorest | BN28: Poor | BO28: Middle | BP28: Rich | BQ28: Richest | BR28: Alto Paraná | BS28: Asunción | BT28: Caaguazú | BU28: Central | BV28: Itapúa | BW28: Resto | BX28: San Pedro
A29: Piped water | B29: Yes | C29: N/A | D29: N/A | E29: N/A | F29: N/A | G29: N/A | H29: N/A | I29: N/A | J29: N/A | K29: N/A | L29: N/A | M29: N/A | N29: N/A | O29: N/A | P29: N/A | Q29: N/A | R29: N/A | S29: N/A | T29: N/A | U29: N/A | V29: N/A | W29: N/A | X29: N/A | BA29: Piped water | BB29: Yes | BC29: N/A | BD29: N/A | BE29: N/A | BF29: N/A | BG29: N/A | BH29: N/A | BI29: N/A | BJ29: N/A | BK29: N/A | BL29: N/A | BM29: N/A | BN29: N/A | BO29: N/A | BP29: N/A | BQ29: N/A | BR29: N/A | BS29: N/A | BT29: N/A | BU29: N/A | BV29: N/A | BW29: N/A | BX29: N/A
B30: No | C30: N/A | D30: N/A | E30: N/A | F30: N/A | G30: N/A | H30: N/A | I30: N/A | J30: N/A | K30: N/A | L30: N/A | M30: N/A | N30: N/A | O30: N/A | P30: N/A | Q30: N/A | R30: N/A | S30: N/A | T30: N/A | U30: N/A | V30: N/A | W30: N/A | X30: N/A | BB30: No | BC30: N/A | BD30: N/A | BE30: N/A | BF30: N/A | BG30: N/A | BH30: N/A | BI30: N/A | BJ30: N/A | BK30: N/A | BL30: N/A | BM30: N/A | BN30: N/A | BO30: N/A | BP30: N/A | BQ30: N/A | BR30: N/A | BS30: N/A | BT30: N/A | BU30: N/A | BV30: N/A | BW30: N/A | BX30: N/A
A31: Piped water on premises | B31: Yes | C31: N/A | D31: N/A | E31: N/A | F31: N/A | G31: N/A | H31: N/A | I31: N/A | J31: N/A | K31: N/A | L31: N/A | M31: N/A | N31: N/A | O31: N/A | P31: N/A | Q31: N/A | R31: N/A | S31: N/A | T31: N/A | U31: N/A | V31: N/A | W31: N/A | X31: N/A | BA31: Piped water on premises | BB31: Yes | BC31: N/A | BD31: N/A | BE31: N/A | BF31: N/A | BG31: N/A | BH31: N/A | BI31: N/A | BJ31: N/A | BK31: N/A | BL31: N/A | BM31: N/A | BN31: N/A | BO31: N/A | BP31: N/A | BQ31: N/A | BR31: N/A | BS31: N/A | BT31: N/A | BU31: N/A | BV31: N/A | BW31: N/A | BX31: N/A
B32: No | C32: N/A | D32: N/A | E32: N/A | F32: N/A | G32: N/A | H32: N/A | I32: N/A | J32: N/A | K32: N/A | L32: N/A | M32: N/A | N32: N/A | O32: N/A | P32: N/A | Q32: N/A | R32: N/A | S32: N/A | T32: N/A | U32: N/A | V32: N/A | W32: N/A | X32: N/A | BB32: No | BC32: N/A | BD32: N/A | BE32: N/A | BF32: N/A | BG32: N/A | BH32: N/A | BI32: N/A | BJ32: N/A | BK32: N/A | BL32: N/A | BM32: N/A | BN32: N/A | BO32: N/A | BP32: N/A | BQ32: N/A | BR32: N/A | BS32: N/A | BT32: N/A | BU32: N/A | BV32: N/A | BW32: N/A | BX32: N/A
A33: Piped water into dwelling | B33: Yes | C33: N/A | D33: N/A | E33: N/A | F33: N/A | G33: N/A | H33: N/A | I33: N/A | J33: N/A | K33: N/A | L33: N/A | M33: N/A | N33: N/A | O33: N/A | P33: N/A | Q33: N/A | R33: N/A | S33: N/A | T33: N/A | U33: N/A | V33: N/A | W33: N/A | X33: N/A | BA33: Piped water into dwelling | BB33: Yes | BC33: N/A | BD33: N/A | BE33: N/A | BF33: N/A | BG33: N/A | BH33: N/A | BI33: N/A | BJ33: N/A | BK33: N/A | BL33: N/A | BM33: N/A | BN33: N/A | BO33: N/A | BP33: N/A | BQ33: N/A | BR33: N/A | BS33: N/A | BT33: N/A | BU33: N/A | BV33: N/A | BW33: N/A | BX33: N/A
B34: No | C34: N/A | D34: N/A | E34: N/A | F34: N/A | G34: N/A | H34: N/A | I34: N/A | J34: N/A | K34: N/A | L34: N/A | M34: N/A | N34: N/A | O34: N/A | P34: N/A | Q34: N/A | R34: N/A | S34: N/A | T34: N/A | U34: N/A | V34: N/A | W34: N/A | X34: N/A | BB34: No | BC34: N/A | BD34: N/A | BE34: N/A | BF34: N/A | BG34: N/A | BH34: N/A | BI34: N/A | BJ34: N/A | BK34: N/A | BL34: N/A | BM34: N/A | BN34: N/A | BO34: N/A | BP34: N/A | BQ34: N/A | BR34: N/A | BS34: N/A | BT34: N/A | BU34: N/A | BV34: N/A | BW34: N/A | BX34: N/A
A35: Water source on premises | B35: Yes | C35: N/A | D35: N/A | E35: N/A | F35: N/A | G35: N/A | H35: N/A | I35: N/A | J35: N/A | K35: N/A | L35: N/A | M35: N/A | N35: N/A | O35: N/A | P35: N/A | Q35: N/A | R35: N/A | S35: N/A | T35: N/A | U35: N/A | V35: N/A | W35: N/A | X35: N/A | BA35: Water source on premises | BB35: Yes | BC35: N/A | BD35: N/A | BE35: N/A | BF35: N/A | BG35: N/A | BH35: N/A | BI35: N/A | BJ35: N/A | BK35: N/A | BL35: N/A | BM35: N/A | BN35: N/A | BO35: N/A | BP35: N/A | BQ35: N/A | BR35: N/A | BS35: N/A | BT35: N/A | BU35: N/A | BV35: N/A | BW35: N/A | BX35: N/A
B36: No | C36: N/A | D36: N/A | E36: N/A | F36: N/A | G36: N/A | H36: N/A | I36: N/A | J36: N/A | K36: N/A | L36: N/A | M36: N/A | N36: N/A | O36: N/A | P36: N/A | Q36: N/A | R36: N/A | S36: N/A | T36: N/A | U36: N/A | V36: N/A | W36: N/A | X36: N/A | BB36: No | BC36: N/A | BD36: N/A | BE36: N/A | BF36: N/A | BG36: N/A | BH36: N/A | BI36: N/A | BJ36: N/A | BK36: N/A | BL36: N/A | BM36: N/A | BN36: N/A | BO36: N/A | BP36: N/A | BQ36: N/A | BR36: N/A | BS36: N/A | BT36: N/A | BU36: N/A | BV36: N/A | BW36: N/A | BX36: N/A
A37: Improved Water source on premises | B37: Yes | C37: N/A | D37: N/A | E37: N/A | F37: N/A | G37: N/A | H37: N/A | I37: N/A | J37: N/A | K37: N/A | L37: N/A | M37: N/A | N37: N/A | O37: N/A | P37: N/A | Q37: N/A | R37: N/A | S37: N/A | T37: N/A | U37: N/A | V37: N/A | W37: N/A | X37: N/A | BA37: Improved water source on premises | BB37: Yes | BC37: N/A | BD37: N/A | BE37: N/A | BF37: N/A | BG37: N/A | BH37: N/A | BI37: N/A | BJ37: N/A | BK37: N/A | BL37: N/A | BM37: N/A | BN37: N/A | BO37: N/A | BP37: N/A | BQ37: N/A | BR37: N/A | BS37: N/A | BT37: N/A | BU37: N/A | BV37: N/A | BW37: N/A | BX37: N/A
B38: No | C38: N/A | D38: N/A | E38: N/A | F38: N/A | G38: N/A | H38: N/A | I38: N/A | J38: N/A | K38: N/A | L38: N/A | M38: N/A | N38: N/A | O38: N/A | P38: N/A | Q38: N/A | R38: N/A | S38: N/A | T38: N/A | U38: N/A | V38: N/A | W38: N/A | X38: N/A | BB38: No | BC38: N/A | BD38: N/A | BE38: N/A | BF38: N/A | BG38: N/A | BH38: N/A | BI38: N/A | BJ38: N/A | BK38: N/A | BL38: N/A | BM38: N/A | BN38: N/A | BO38: N/A | BP38: N/A | BQ38: N/A | BR38: N/A | BS38: N/A | BT38: N/A | BU38: N/A | BV38: N/A | BW38: N/A | BX38: N/A
A39: Piped water on premises available when needed | B39: Yes | C39: N/A | D39: N/A | E39: N/A | F39: N/A | G39: N/A | H39: N/A | I39: N/A | J39: N/A | K39: N/A | L39: N/A | M39: N/A | N39: N/A | O39: N/A | P39: N/A | Q39: N/A | R39: N/A | S39: N/A | T39: N/A | U39: N/A | V39: N/A | W39: N/A | X39: N/A | BA39: Piped water on premises available when needed | BB39: Yes | BC39: N/A | BD39: N/A | BE39: N/A | BF39: N/A | BG39: N/A | BH39: N/A | BI39: N/A | BJ39: N/A | BK39: N/A | BL39: N/A | BM39: N/A | BN39: N/A | BO39: N/A | BP39: N/A | BQ39: N/A | BR39: N/A | BS39: N/A | BT39: N/A | BU39: N/A | BV39: N/A | BW39: N/A | BX39: N/A
B40: No | C40: N/A | D40: N/A | E40: N/A | F40: N/A | G40: N/A | H40: N/A | I40: N/A | J40: N/A | K40: N/A | L40: N/A | M40: N/A | N40: N/A | O40: N/A | P40: N/A | Q40: N/A | R40: N/A | S40: N/A | T40: N/A | U40: N/A | V40: N/A | W40: N/A | X40: N/A | BB40: No | BC40: N/A | BD40: N/A | BE40: N/A | BF40: N/A | BG40: N/A | BH40: N/A | BI40: N/A | BJ40: N/A | BK40: N/A | BL40: N/A | BM40: N/A | BN40: N/A | BO40: N/A | BP40: N/A | BQ40: N/A | BR40: N/A | BS40: N/A | BT40: N/A | BU40: N/A | BV40: N/A | BW40: N/A | BX40: N/A
A41: Water point at more than 30 minutes | B41: Yes | C41: N/A | D41: N/A | E41: N/A | F41: N/A | G41: N/A | H41: N/A | I41: N/A | J41: N/A | K41: N/A | L41: N/A | M41: N/A | N41: N/A | O41: N/A | P41: N/A | Q41: N/A | R41: N/A | S41: N/A | T41: N/A | U41: N/A | V41: N/A | W41: N/A | X41: N/A | BA41: Water point at more than 30 minutes | BB41: Yes | BC41: N/A | BD41: N/A | BE41: N/A | BF41: N/A | BG41: N/A | BH41: N/A | BI41: N/A | BJ41: N/A | BK41: N/A | BL41: N/A | BM41: N/A | BN41: N/A | BO41: N/A | BP41: N/A | BQ41: N/A | BR41: N/A | BS41: N/A | BT41: N/A | BU41: N/A | BV41: N/A | BW41: N/A | BX41: N/A
B42: No | C42: N/A | D42: N/A | E42: N/A | F42: N/A | G42: N/A | H42: N/A | I42: N/A | J42: N/A | K42: N/A | L42: N/A | M42: N/A | N42: N/A | O42: N/A | P42: N/A | Q42: N/A | R42: N/A | S42: N/A | T42: N/A | U42: N/A | V42: N/A | W42: N/A | X42: N/A | BB42: No | BC42: N/A | BD42: N/A | BE42: N/A | BF42: N/A | BG42: N/A | BH42: N/A | BI42: N/A | BJ42: N/A | BK42: N/A | BL42: N/A | BM42: N/A | BN42: N/A | BO42: N/A | BP42: N/A | BQ42: N/A | BR42: N/A | BS42: N/A | BT42: N/A | BU42: N/A | BV42: N/A | BW42: N/A | BX42: N/A
A43: Water source available when needed | B43: Yes | C43: 77.0863806 | D43: 82.07135919 | E43: 87.19256089 | F43: 84.72406576 | G43: 91.22689826 | H43: 89.65824495 | I43: 89.14005722 | J43: 86.4064299 | K43: 82.4291605 | L43: 95.32508299 | M43: 77.61987705 | N43: 66.53330414 | O43: 74.55632094 | P43: 79.63734937 | Q43: 87.55803058 | R43: 67.46216531 | S43: 97.31185145 | T43: 70.90782014 | U43: 90.54444763 | V43: 85.81811489 | W43: 80.59187736 | X43: 79.84198499 | BA43: Water source available when needed | BB43: Yes | BC43: N/A | BD43: N/A | BE43: N/A | BF43: N/A | BG43: N/A | BH43: N/A | BI43: N/A | BJ43: N/A | BK43: N/A | BL43: N/A | BM43: N/A | BN43: N/A | BO43: N/A | BP43: N/A | BQ43: N/A | BR43: N/A | BS43: N/A | BT43: N/A | BU43: N/A | BV43: N/A | BW43: N/A | BX43: N/A
B44: No | C44: 22.9136194 | D44: 17.92864081 | E44: 12.80743911 | F44: 15.27593424 | G44: 8.77310174 | H44: 10.34175505 | I44: 10.85994278 | J44: 13.5935701 | K44: 17.5708395 | L44: 4.674917006 | M44: 22.38012295 | N44: 33.46669586 | O44: 25.44367906 | P44: 20.36265063 | Q44: 12.44196942 | R44: 32.53783469 | S44: 2.688148548 | T44: 29.09217986 | U44: 9.455552374 | V44: 14.18188511 | W44: 19.40812264 | X44: 20.15801501 | BB44: No | BC44: N/A | BD44: N/A | BE44: N/A | BF44: N/A | BG44: N/A | BH44: N/A | BI44: N/A | BJ44: N/A | BK44: N/A | BL44: N/A | BM44: N/A | BN44: N/A | BO44: N/A | BP44: N/A | BQ44: N/A | BR44: N/A | BS44: N/A | BT44: N/A | BU44: N/A | BV44: N/A | BW44: N/A | BX44: N/A
A45: Improved water source available when needed | B45: Yes | C45: N/A | D45: N/A | E45: N/A | F45: N/A | G45: N/A | H45: N/A | I45: N/A | J45: N/A | K45: N/A | L45: N/A | M45: N/A | N45: N/A | O45: N/A | P45: N/A | Q45: N/A | R45: N/A | S45: N/A | T45: N/A | U45: N/A | V45: N/A | W45: N/A | X45: N/A | BA45: Improved water source available when needed | BB45: Yes | BC45: N/A | BD45: N/A | BE45: N/A | BF45: N/A | BG45: N/A | BH45: N/A | BI45: N/A | BJ45: N/A | BK45: N/A | BL45: N/A | BM45: N/A | BN45: N/A | BO45: N/A | BP45: N/A | BQ45: N/A | BR45: N/A | BS45: N/A | BT45: N/A | BU45: N/A | BV45: N/A | BW45: N/A | BX45: N/A
B46: No | C46: N/A | D46: N/A | E46: N/A | F46: N/A | G46: N/A | H46: N/A | I46: N/A | J46: N/A | K46: N/A | L46: N/A | M46: N/A | N46: N/A | O46: N/A | P46: N/A | Q46: N/A | R46: N/A | S46: N/A | T46: N/A | U46: N/A | V46: N/A | W46: N/A | X46: N/A | BB46: No | BC46: N/A | BD46: N/A | BE46: N/A | BF46: N/A | BG46: N/A | BH46: N/A | BI46: N/A | BJ46: N/A | BK46: N/A | BL46: N/A | BM46: N/A | BN46: N/A | BO46: N/A | BP46: N/A | BQ46: N/A | BR46: N/A | BS46: N/A | BT46: N/A | BU46: N/A | BV46: N/A | BW46: N/A | BX46: N/A
A47: Microbiological quality at point of collection | B47: Not contaminated (No E. coli in 100 mL) | C47: N/A | D47: N/A | E47: N/A | F47: N/A | G47: N/A | H47: N/A | I47: N/A | J47: N/A | K47: N/A | L47: N/A | M47: N/A | N47: N/A | O47: N/A | P47: N/A | Q47: N/A | R47: N/A | S47: N/A | T47: N/A | U47: N/A | V47: N/A | W47: N/A | X47: N/A | BA47: Microbiological quality at point of collection | BB47: Not contaminated (No E. coli in 100 mL) | BC47: N/A | BD47: N/A | BE47: N/A | BF47: N/A | BG47: N/A | BH47: N/A | BI47: N/A | BJ47: N/A | BK47: N/A | BL47: N/A | BM47: N/A | BN47: N/A | BO47: N/A | BP47: N/A | BQ47: N/A | BR47: N/A | BS47: N/A | BT47: N/A | BU47: N/A | BV47: N/A | BW47: N/A | BX47: N/A
B48: Contaminated (E. coli detected in 100 mL) | C48: N/A | D48: N/A | E48: N/A | F48: N/A | G48: N/A | H48: N/A | I48: N/A | J48: N/A | K48: N/A | L48: N/A | M48: N/A | N48: N/A | O48: N/A | P48: N/A | Q48: N/A | R48: N/A | S48: N/A | T48: N/A | U48: N/A | V48: N/A | W48: N/A | X48: N/A | BB48: Contaminated (E. coli detected in 100 mL) | BC48: N/A | BD48: N/A | BE48: N/A | BF48: N/A | BG48: N/A | BH48: N/A | BI48: N/A | BJ48: N/A | BK48: N/A | BL48: N/A | BM48: N/A | BN48: N/A | BO48: N/A | BP48: N/A | BQ48: N/A | BR48: N/A | BS48: N/A | BT48: N/A | BU48: N/A | BV48: N/A | BW48: N/A | BX48: N/A
B49: Highly contaminated (>100 CFU/100 mL) | C49: N/A | D49: N/A | E49: N/A | F49: N/A | G49: N/A | H49: N/A | I49: N/A | J49: N/A | K49: N/A | L49: N/A | M49: N/A | N49: N/A | O49: N/A | P49: N/A | Q49: N/A | R49: N/A | S49: N/A | T49: N/A | U49: N/A | V49: N/A | W49: N/A | X49: N/A | BB49: Highly contaminated (>100 CFU/100 mL) | BC49: N/A | BD49: N/A | BE49: N/A | BF49: N/A | BG49: N/A | BH49: N/A | BI49: N/A | BJ49: N/A | BK49: N/A | BL49: N/A | BM49: N/A | BN49: N/A | BO49: N/A | BP49: N/A | BQ49: N/A | BR49: N/A | BS49: N/A | BT49: N/A | BU49: N/A | BV49: N/A | BW49: N/A | BX49: N/A
A50: Microbiological quality of improved water sources at point of collection | B50: Not contaminated (No E. coli in 100 mL) | C50: N/A | D50: N/A | E50: N/A | F50: N/A | G50: N/A | H50: N/A | I50: N/A | J50: N/A | K50: N/A | L50: N/A | M50: N/A | N50: N/A | O50: N/A | P50: N/A | Q50: N/A | R50: N/A | S50: N/A | T50: N/A | U50: N/A | V50: N/A | W50: N/A | X50: N/A | BA50: Microbiological quality of improved water sources at point of collection | BB50: Not contaminated (No E. coli in 100 mL) | BC50: N/A | BD50: N/A | BE50: N/A | BF50: N/A | BG50: N/A | BH50: N/A | BI50: N/A | BJ50: N/A | BK50: N/A | BL50: N/A | BM50: N/A | BN50: N/A | BO50: N/A | BP50: N/A | BQ50: N/A | BR50: N/A | BS50: N/A | BT50: N/A | BU50: N/A | BV50: N/A | BW50: N/A | BX50: N/A
B51: Contaminated (E. coli detected in 100 mL) | C51: N/A | D51: N/A | E51: N/A | F51: N/A | G51: N/A | H51: N/A | I51: N/A | J51: N/A | K51: N/A | L51: N/A | M51: N/A | N51: N/A | O51: N/A | P51: N/A | Q51: N/A | R51: N/A | S51: N/A | T51: N/A | U51: N/A | V51: N/A | W51: N/A | X51: N/A | BB51: Contaminated (E. coli detected in 100 mL) | BC51: N/A | BD51: N/A | BE51: N/A | BF51: N/A | BG51: N/A | BH51: N/A | BI51: N/A | BJ51: N/A | BK51: N/A | BL51: N/A | BM51: N/A | BN51: N/A | BO51: N/A | BP51: N/A | BQ51: N/A | BR51: N/A | BS51: N/A | BT51: N/A | BU51: N/A | BV51: N/A | BW51: N/A | BX51: N/A
B52: Highly contaminated (>100 CFU/100 mL) | C52: N/A | D52: N/A | E52: N/A | F52: N/A | G52: N/A | H52: N/A | I52: N/A | J52: N/A | K52: N/A | L52: N/A | M52: N/A | N52: N/A | O52: N/A | P52: N/A | Q52: N/A | R52: N/A | S52: N/A | T52: N/A | U52: N/A | V52: N/A | W52: N/A | X52: N/A | BB52: Highly contaminated (>100 CFU/100 mL) | BC52: N/A | BD52: N/A | BE52: N/A | BF52: N/A | BG52: N/A | BH52: N/A | BI52: N/A | BJ52: N/A | BK52: N/A | BL52: N/A | BM52: N/A | BN52: N/A | BO52: N/A | BP52: N/A | BQ52: N/A | BR52: N/A | BS52: N/A | BT52: N/A | BU52: N/A | BV52: N/A | BW52: N/A | BX52: N/A
A53: Microbiological quality of piped on premises at point of collection | B53: Not contaminated (No E. coli in 100 mL) | C53: N/A | D53: N/A | E53: N/A | F53: N/A | G53: N/A | H53: N/A | I53: N/A | J53: N/A | K53: N/A | L53: N/A | M53: N/A | N53: N/A | O53: N/A | P53: N/A | Q53: N/A | R53: N/A | S53: N/A | T53: N/A | U53: N/A | V53: N/A | W53: N/A | X53: N/A | BA53: Microbiological quality of piped on premises at point of collection | BB53: Not contaminated (No E. coli in 100 mL) | BC53: N/A | BD53: N/A | BE53: N/A | BF53: N/A | BG53: N/A | BH53: N/A | BI53: N/A | BJ53: N/A | BK53: N/A | BL53: N/A | BM53: N/A | BN53: N/A | BO53: N/A | BP53: N/A | BQ53: N/A | BR53: N/A | BS53: N/A | BT53: N/A | BU53: N/A | BV53: N/A | BW53: N/A | BX53: N/A
B54: Contaminated (E. coli detected in 100 mL) | C54: N/A | D54: N/A | E54: N/A | F54: N/A | G54: N/A | H54: N/A | I54: N/A | J54: N/A | K54: N/A | L54: N/A | M54: N/A | N54: N/A | O54: N/A | P54: N/A | Q54: N/A | R54: N/A | S54: N/A | T54: N/A | U54: N/A | V54: N/A | W54: N/A | X54: N/A | BB54: Contaminated (E. coli detected in 100 mL) | BC54: N/A | BD54: N/A | BE54: N/A | BF54: N/A | BG54: N/A | BH54: N/A | BI54: N/A | BJ54: N/A | BK54: N/A | BL54: N/A | BM54: N/A | BN54: N/A | BO54: N/A | BP54: N/A | BQ54: N/A | BR54: N/A | BS54: N/A | BT54: N/A | BU54: N/A | BV54: N/A | BW54: N/A | BX54: N/A
B55: Highly contaminated (>100 CFU/100 mL) | C55: N/A | D55: N/A | E55: N/A | F55: N/A | G55: N/A | H55: N/A | I55: N/A | J55: N/A | K55: N/A | L55: N/A | M55: N/A | N55: N/A | O55: N/A | P55: N/A | Q55: N/A | R55: N/A | S55: N/A | T55: N/A | U55: N/A | V55: N/A | W55: N/A | X55: N/A | BB55: Highly contaminated (>100 CFU/100 mL) | BC55: N/A | BD55: N/A | BE55: N/A | BF55: N/A | BG55: N/A | BH55: N/A | BI55: N/A | BJ55: N/A | BK55: N/A | BL55: N/A | BM55: N/A | BN55: N/A | BO55: N/A | BP55: N/A | BQ55: N/A | BR55: N/A | BS55: N/A | BT55: N/A | BU55: N/A | BV55: N/A | BW55: N/A | BX55: N/A
C56: NATIONAL wealth index quintile | H56: URBAN wealth index quintile | M56: RURAL wealth index quintile | R56: SUB-REGIONS: | BA56: Raw numbers of respondents: | BB56: Use of drinking water sources | BC56: NATIONAL wealth index quintile | BH56: URBAN wealth index quintile | BM56: RURAL wealth index quintile | BR56: SUB-REGIONS:
A57: Percentage based on weighted population | C57: Poorest | D57: Poor | E57: Middle | F57: Rich | G57: Richest | H57: Poorest | I57: Poor | J57: Middle | K57: Rich | L57: Richest | M57: Poorest | N57: Poor | O57: Middle | P57: Rich | Q57: Richest | R57: Alto Paraná | S57: Asunción | T57: Caaguazú | U57: Central | V57: Itapúa | W57: Resto | X57: San Pedro | BA57: Water data, raw numbers (weighted) | BC57: Poorest | BD57: Poor | BE57: Middle | BF57: Rich | BG57: Richest | BH57: Poorest | BI57: Poor | BJ57: Middle | BK57: Rich | BL57: Richest | BM57: Poorest | BN57: Poor | BO57: Middle | BP57: Rich | BQ57: Richest | BR57: Alto Paraná | BS57: Asunción | BT57: Caaguazú | BU57: Central | BV57: Itapúa | BW57: Resto | BX57: San Pedro
A58: Fuente principal de agua para beber | B58: ESSAP (ex-corposana) | C58: 5.419134268 | D58: 8.896293198 | E58: 17.80486086 | F58: 24.02802955 | G58: 29.94879644 | H58: 23.14542064 | I58: 28.13779449 | J58: 25.63518006 | K58: 29.77980605 | L58: 35.44947287 | M58: 0.1133754388 | N58: 0.1531235286 | O58: 0.7246154906 | P58: 2.594340072 | Q58: 1.797502264 | R58: 3.717219543 | S58: 69.57719631 | T58: 4.226188874 | U58: 21.95991753 | V58: 7.274819026 | W58: 11.2136873 | X58: 2.796637207
B59: SENASA o Junta de Saneamiento | C59: 26.22018892 | D59: 32.79484998 | E59: 29.9378882 | F59: 21.29231883 | G59: 17.95265648 | H59: 20.56222814 | I59: 22.90774841 | J59: 17.53323351 | K59: 18.1528108 | L59: 15.08469291 | M59: 25.32242333 | N59: 28.9663779 | O59: 40.38114086 | P59: 39.46044584 | Q59: 43.04103532 | R59: 8.038095794 | S59: 0 | T59: 28.90538479 | U59: 20.87139682 | V59: 29.89115412 | W59: 38.19697309 | X59: 58.21583894
B60: Red Comunitaria | C60: 22.42073631 | D60: 13.21285405 | E60: 13.11428415 | F60: 14.68314708 | G60: 8.89823439 | H60: 14.04312076 | I60: 12.49841786 | J60: 15.3563244 | K60: 11.83125507 | L60: 6.670205214 | M60: 28.76262352 | N60: 20.7430702 | O60: 12.25032728 | P60: 11.48100246 | Q60: 16.2475629 | R60: 25.96387349 | S60: 0 | T60: 17.68246864 | U60: 11.99031351 | V60: 12.94178949 | W60: 15.05833379 | X60: 20.68106638
B61: Red o Prestador privado | C61: 3.354343866 | D61: 7.964540774 | E61: 14.52922701 | F61: 19.95510757 | G61: 13.62107171 | H61: 17.03187831 | I61: 19.09276587 | J61: 24.02027175 | K61: 18.26550587 | L61: 9.972863768 | M61: 0.126545313 | N61: 1.572961447 | O61: 1.232382236 | P61: 4.928865176 | Q61: 9.857765701 | R61: 2.498891947 | S61: 0 | T61: 7.252376921 | U61: 30.98679133 | V61: 2.235374536 | W61: 3.111295431 | X61: 0
B62: Pozo artesiano | C62: 0.1747045933 | D62: 2.165838773 | E62: 1.890376195 | F62: 1.732449592 | G62: 1.681093533 | H62: 1.197092435 | I62: 1.343117936 | J62: 1.580486591 | K62: 2.152236692 | L62: 1.065146861 | M62: 0 | N62: 0.3026103734 | O62: 0.5693954265 | P62: 4.924674612 | Q62: 2.28242681 | R62: 1.822249706 | S62: 0.8246157646 | T62: 1.451096395 | U62: 1.831544519 | V62: 0.9397948588 | W62: 1.751904198 | X62: 0.1309743033
B63: Pozo excavado protegido (brocal y tapa) | C63: 5.436926077 | D63: 8.659673824 | E63: 6.61886225 | F63: 2.859070849 | G63: 2.747384013 | H63: 4.457109707 | I63: 3.756226959 | J63: 2.218612354 | K63: 2.233169828 | L63: 2.851891906 | M63: 6.409529645 | N63: 5.585180705 | O63: 10.25409391 | P63: 14.17229694 | Q63: 5.440481125 | R63: 8.700937134 | S63: 0.863975057 | T63: 1.906090672 | U63: 2.270753507 | V63: 10.09457713 | W63: 8.680838345 | X63: 3.102523774
B64: Pozo excavado sin protección (sin brocal ni tapa) | C64: 31.96757031 | D64: 24.16572285 | E64: 11.76450777 | F64: 7.646447048 | G64: 2.841535277 | H64: 17.68804073 | I64: 7.3930775 | J64: 5.74485296 | K64: 3.238255725 | L64: 2.512722182 | M64: 30.8951888 | N64: 39.31963388 | O64: 31.63120785 | P64: 19.68974588 | Q64: 17.03606902 | R64: 43.3719847 | S64: 0 | T64: 33.1172904 | U64: 0.37745958 | V64: 29.40780971 | W64: 17.85982006 | X64: 14.20847303
B65: Manantial protegido | C65: 0.2097395655 | D65: 0.5190587859 | E65: 0.2403797201 | F65: 0 | G65: 0.08107034791 | H65: 0.2536437279 | I65: 0.02145045013 | J65: 0 | K65: 0 | L65: 0 | M65: 0.4088387034 | N65: 0.1022099553 | O65: 0.4501573254 | P65: 1.003449596 | Q65: 0.1986137337 | R65: 0.3440936126 | S65: 0 | T65: 0.329135987 | U65: 0.0925999354 | V65: 0.7125034551 | W65: 0.2097003518 | X65: 0
B66: Manantial sin protección | C66: 4.299974606 | D66: 0.9110746639 | E66: 0.1052689292 | F66: 0 | G66: 0 | H66: 0 | I66: 0 | J66: 0 | K66: 0 | L66: 0 | M66: 7.477434661 | N66: 3.002369587 | O66: 1.839673559 | P66: 0.6407753305 | Q66: 0 | R66: 0.4384440015 | S66: 0 | T66: 2.00607349 | U66: 0.169436122 | V66: 4.2978059 | W66: 1.58217535 | X66: 0.549924158
B67: Agua de lluvia | C67: 0.09060498421 | D67: 0 | E67: 0.4527190557 | F67: 0.5888996261 | G67: 0.1810962748 | H67: 0 | I67: 0 | J67: 0 | K67: 0 | L67: 0 | M67: 0.2206431098 | N67: 0 | O67: 0 | P67: 0.3302926347 | Q67: 2.661999724 | R67: 0 | S67: 0 | T67: 0 | U67: 0 | V67: 0 | W67: 1.00600953 | X67: 0
B68: Agua embotellada | C68: 0.1945342308 | D68: 0.437130992 | E68: 3.522044598 | F68: 7.214529848 | G68: 22.04706153 | H68: 1.621465544 | I68: 4.84940052 | J68: 7.911038384 | K68: 14.34695996 | L68: 26.39300429 | M68: 0 | N68: 0 | O68: 0 | P68: 0.7264914122 | Q68: 1.436543392 | R68: 4.989423733 | S68: 28.73421287 | T68: 2.773229445 | U68: 9.449787141 | V68: 1.969983341 | W68: 1.172017307 | X68: 0.3145622156
B69: Agua superficial(río,represa,lago,estanque,arroyo) | C69: 0.2115422599 | D69: 0.2729621049 | E69: 0.01958127404 | F69: 0 | G69: 0 | H69: 0 | I69: 0 | J69: 0 | K69: 0 | L69: 0 | M69: 0.263397484 | N69: 0.2524624177 | O69: 0.667006071 | P69: 0.04762004537 | Q69: 0 | R69: 0.1147863382 | S69: 0 | T69: 0.3506643786 | U69: 0 | V69: 0.2343884236 | W69: 0.1572452552 | X69: 0
A108: =A1026 -> Paraguay
A109: =A1034 -> 2010
A110: Use of sanitation facilities
A111: by wealth quintile and sub-national region
A112: Notes:
A113: WHO/UNICEF JMP customised wealth index excludes water,
A114: sanitation and hygiene assets.
A115: Survey used for analysis: | B115: =A1025 -> EPH10
A117: Ratio of Shared improved based on: | B117: MICS16
A120: Use of sanitation facilities | C120: NATIONAL wealth index quintile | H120: URBAN wealth index quintile | M120: RURAL wealth index quintile | R120: SUB-REGIONS: | BA120: Raw numbers of respondents: | BB120: Use of sanitation facilities | BC120: NATIONAL wealth index quintile | BH120: URBAN wealth index quintile | BM120: RURAL wealth index quintile | BR120: SUB-REGIONS:
A121: Weighted percentage (used in graphs) | C121: Poorest | D121: Poor | E121: Middle | F121: Rich | G121: Richest | H121: Poorest | I121: Poor | J121: Middle | K121: Rich | L121: Richest | M121: Poorest | N121: Poor | O121: Middle | P121: Rich | Q121: Richest | R121: Alto Paraná | S121: Asunción | T121: Caaguazú | U121: Central | V121: Itapúa | W121: Resto | X121: San Pedro | BA121: Sanitation data, raw numbers (weighted) | BC121: Poorest | BD121: Poor | BE121: Middle | BF121: Rich | BG121: Richest | BH121: Poorest | BI121: Poor | BJ121: Middle | BK121: Rich | BL121: Richest | BM121: Poorest | BN121: Poor | BO121: Middle | BP121: Rich | BQ121: Richest | BR121: Alto Paraná | BS121: Asunción | BT121: Caaguazú | BU121: Central | BV121: Itapúa | BW121: Resto | BX121: San Pedro
A122: Sanitation | B122: Improved | C122: =C153+C154+C155+C157+C158 -> 45.28933552 | D122: =D153+D154+D155+D157+D158 -> 80.72074202 | E122: 95.81736962 | F122: 98.63581564 | G122: 99.62684141 | H122: 81.5244318 | I122: 97.57675635 | J122: 98.49210989 | K122: 98.98893382 | L122: 99.57882445 | M122: 28.68260874 | N122: 53.39306576 | O122: 71.67541668 | P122: 86.35206124 | Q122: 98.9363218 | R122: 88.65695119 | S122: 94.49064207 | T122: 73.3452277 | U122: 94.94091606 | V122: 83.99066362 | W122: 73.59351341 | X122: 62.67287868 | BA122: Sanitation | BB122: Improved | BC122: N/A | BD122: N/A | BE122: N/A | BF122: N/A | BG122: N/A | BH122: N/A | BI122: N/A | BJ122: N/A | BK122: N/A | BL122: N/A | BM122: N/A | BN122: N/A | BO122: N/A | BP122: N/A | BQ122: N/A | BR122: N/A | BS122: N/A | BT122: N/A | BU122: N/A | BV122: N/A | BW122: N/A | BX122: N/A
B123: Not Improved | C123: =100-C122 -> 54.71066448 | D123: =100-D122 -> 19.27925798 | E123: 4.182630379 | F123: 1.364184356 | G123: 0.3731585869 | H123: 18.4755682 | I123: 2.423243647 | J123: 1.507890107 | K123: 1.011066178 | L123: 0.4211755495 | M123: 71.31739126 | N123: 46.60693424 | O123: 28.32458332 | P123: 13.64793876 | Q123: 1.063678201 | R123: 11.34304881 | S123: 5.509357931 | T123: 26.6547723 | U123: 5.059083943 | V123: 16.00933638 | W123: 26.40648659 | X123: 37.32712132 | BB123: Not Improved | BC123: N/A | BD123: N/A | BE123: N/A | BF123: N/A | BG123: N/A | BH123: N/A | BI123: N/A | BJ123: N/A | BK123: N/A | BL123: N/A | BM123: N/A | BN123: N/A | BO123: N/A | BP123: N/A | BQ123: N/A | BR123: N/A | BS123: N/A | BT123: N/A | BU123: N/A | BV123: N/A | BW123: N/A | BX123: N/A
A124: Sanitation ladder | B124: Basic | C124: =C122*MICS16!C129/100 -> 42.15940272 | D124: =D122*MICS16!D129/100 -> 76.269768 | E124: =E122*MICS16!E129/100 -> 91.83540346 | F124: =F122*MICS16!F129/100 -> 96.22889304 | G124: =G122*MICS16!G129/100 -> 98.36397246 | H124: =H122*MICS16!H129/100 -> 72.8209089 | I124: =I122*MICS16!I129/100 -> 92.37481612 | J124: =J122*MICS16!J129/100 -> 94.99658639 | K124: =K122*MICS16!K129/100 -> 96.41688641 | L124: =L122*MICS16!L129/100 -> 98.89141278 | M124: =M122*MICS16!M129/100 -> 26.7965674 | N124: =N122*MICS16!N129/100 -> 51.2298034 | O124: =O122*MICS16!O129/100 -> 70.3414408 | P124: =P122*MICS16!P129/100 -> 84.66241909 | Q124: =Q122*MICS16!Q129/100 -> 98.58058072 | R124: N/A | S124: N/A | T124: N/A | U124: N/A | V124: N/A | W124: N/A | X124: N/A | BA124: Sanitation ladder | BB124: Basic | BC124: N/A | BD124: N/A | BE124: N/A | BF124: N/A | BG124: N/A | BH124: N/A | BI124: N/A | BJ124: N/A | BK124: N/A | BL124: N/A | BM124: N/A | BN124: N/A | BO124: N/A | BP124: N/A | BQ124: N/A | BR124: N/A | BS124: N/A | BT124: N/A | BU124: N/A | BV124: N/A | BW124: N/A | BX124: N/A
B125: Limited | C125: =C122*MICS16!C128/100 -> 3.129932794 | D125: =D122*MICS16!D128/100 -> 4.450974015 | E125: =E122*MICS16!E128/100 -> 3.981966164 | F125: =F122*MICS16!F128/100 -> 2.406922606 | G125: =G122*MICS16!G128/100 -> 1.262868951 | H125: =H122*MICS16!H128/100 -> 8.703522898 | I125: =I122*MICS16!I128/100 -> 5.201940238 | J125: =J122*MICS16!J128/100 -> 3.495523507 | K125: =K122*MICS16!K128/100 -> 2.572047408 | L125: =L122*MICS16!L128/100 -> 0.6874116752 | M125: =M122*MICS16!M128/100 -> 1.886041337 | N125: =N122*MICS16!N128/100 -> 2.163262362 | O125: =O122*MICS16!O128/100 -> 1.333975879 | P125: =P122*MICS16!P128/100 -> 1.689642146 | Q125: =Q122*MICS16!Q128/100 -> 0.3557410842 | R125: N/A | S125: N/A | T125: N/A | U125: N/A | V125: N/A | W125: N/A | X125: N/A | BB125: Limited | BC125: N/A | BD125: N/A | BE125: N/A | BF125: N/A | BG125: N/A | BH125: N/A | BI125: N/A | BJ125: N/A | BK125: N/A | BL125: N/A | BM125: N/A | BN125: N/A | BO125: N/A | BP125: N/A | BQ125: N/A | BR125: N/A | BS125: N/A | BT125: N/A | BU125: N/A | BV125: N/A | BW125: N/A | BX125: N/A
B126: Unimproved | C126: =100-(C124+C125+C127) -> 54.62100074 | D126: =100-(D124+D125+D127) -> 19.27925798 | E126: 4.182630379 | F126: 1.364184356 | G126: 0.3731585869 | H126: 18.32574291 | I126: 2.423243647 | J126: 1.507890107 | K126: 1.011066178 | L126: 0.4211755495 | M126: 71.31739126 | N126: 46.60693424 | O126: 28.32458332 | P126: 13.64793876 | Q126: 1.063678201 | R126: N/A | S126: N/A | T126: N/A | U126: N/A | V126: N/A | W126: N/A | X126: N/A | BB126: Unimproved | BC126: N/A | BD126: N/A | BE126: N/A | BF126: N/A | BG126: N/A | BH126: N/A | BI126: N/A | BJ126: N/A | BK126: N/A | BL126: N/A | BM126: N/A | BN126: N/A | BO126: N/A | BP126: N/A | BQ126: N/A | BR126: N/A | BS126: N/A | BT126: N/A | BU126: N/A | BV126: N/A | BW126: N/A | BX126: N/A
B127: Open defecation | C127: =C160+C161 -> 0.08966374477 | D127: =D160+D161 -> 0 | E127: 0 | F127: 0 | G127: 0 | H127: 0.149825294 | I127: 0 | J127: 0 | K127: 0 | L127: 0 | M127: 0 | N127: 0 | O127: 0 | P127: 0 | Q127: 0 | R127: N/A | S127: N/A | T127: N/A | U127: N/A | V127: N/A | W127: N/A | X127: N/A | BB127: Open defecation | BC127: N/A | BD127: N/A | BE127: N/A | BF127: N/A | BG127: N/A | BH127: N/A | BI127: N/A | BJ127: N/A | BK127: N/A | BL127: N/A | BM127: N/A | BN127: N/A | BO127: N/A | BP127: N/A | BQ127: N/A | BR127: N/A | BS127: N/A | BT127: N/A | BU127: N/A | BV127: N/A | BW127: N/A | BX127: N/A
A128: Shared among Improved Sanitation | B128: Yes | C128: N/A | D128: N/A | E128: N/A | F128: N/A | G128: N/A | H128: N/A | I128: N/A | J128: N/A | K128: N/A | L128: N/A | M128: N/A | N128: N/A | O128: N/A | P128: N/A | Q128: N/A | R128: N/A | S128: N/A | T128: N/A | U128: N/A | V128: N/A | W128: N/A | X128: N/A | BA128: Shared among improved sanitation facilities | BB128: Yes | BC128: N/A | BD128: N/A | BE128: N/A | BF128: N/A | BG128: N/A | BH128: N/A | BI128: N/A | BJ128: N/A | BK128: N/A | BL128: N/A | BM128: N/A | BN128: N/A | BO128: N/A | BP128: N/A | BQ128: N/A | BR128: N/A | BS128: N/A | BT128: N/A | BU128: N/A | BV128: N/A | BW128: N/A | BX128: N/A
B129: No | C129: N/A | D129: N/A | E129: N/A | F129: N/A | G129: N/A | H129: N/A | I129: N/A | J129: N/A | K129: N/A | L129: N/A | M129: N/A | N129: N/A | O129: N/A | P129: N/A | Q129: N/A | R129: N/A | S129: N/A | T129: N/A | U129: N/A | V129: N/A | W129: N/A | X129: N/A | BB129: No | BC129: N/A | BD129: N/A | BE129: N/A | BF129: N/A | BG129: N/A | BH129: N/A | BI129: N/A | BJ129: N/A | BK129: N/A | BL129: N/A | BM129: N/A | BN129: N/A | BO129: N/A | BP129: N/A | BQ129: N/A | BR129: N/A | BS129: N/A | BT129: N/A | BU129: N/A | BV129: N/A | BW129: N/A | BX129: N/A
A130: Manually calculated ratios | B130: Improved latrines | C130: =C158/(C158+C159)*100 -> 32.14751153 | D130: =D158/(D158+D159)*100 -> 60.45942947 | E130: 69.76435517 | F130: 98.09015299 | G130: 100 | H130: 48.69819129 | I130: 71.64965626 | J130: 97.84447792 | K130: 100 | L130: 100 | M130: 22.0486341 | N130: 42.60314332 | O130: 59.01889039 | P130: 62.33562242 | Q130: 86.07804233
B131: Other
B132: Other
C133: NATIONAL wealth index quintile | H133: URBAN wealth index quintile | M133: RURAL wealth index quintile | R133: SUB-REGIONS: | BA133: Raw numbers of respondents: | BB133: Use of sanitation facilities | BC133: NATIONAL wealth index quintile | BH133: URBAN wealth index quintile | BM133: RURAL wealth index quintile | BR133: SUB-REGIONS:
A134: Percentage based on weighted population | C134: Poorest | D134: Poor | E134: Middle | F134: Rich | G134: Richest | H134: Poorest | I134: Poor | J134: Middle | K134: Rich | L134: Richest | M134: Poorest | N134: Poor | O134: Middle | P134: Rich | Q134: Richest | R134: Alto Paraná | S134: Asunción | T134: Caaguazú | U134: Central | V134: Itapúa | W134: Resto | X134: San Pedro | BA134: Sanitation data, raw numbers (weighted) | BC134: Poorest | BD134: Poor | BE134: Middle | BF134: Rich | BG134: Richest | BH134: Poorest | BI134: Poor | BJ134: Middle | BK134: Rich | BL134: Richest | BM134: Poorest | BN134: Poor | BO134: Middle | BP134: Rich | BQ134: Richest | BR134: Alto Paraná | BS134: Asunción | BT134: Caaguazú | BU134: Central | BV134: Itapúa | BW134: Resto | BX134: San Pedro
A135: Sanitation type | B135: Sewer connection | C135: =C153 -> 1.020208331 | D135: =D153 -> 1.669890097 | E135: 4.596526265 | F135: 10.33170419 | G135: 22.41082066 | H135: 4.578055192 | I135: 7.187800379 | J135: 11.41801858 | K135: 15.46952515 | L135: 28.14856589 | M135: 0 | N135: 0 | O135: 0.1538862097 | P135: 0 | Q135: 1.329597751 | R135: 0.590054179 | S135: 61.68275819 | T135: 3.336749801 | U135: 5.577533993 | V135: 6.817951917 | W135: 1.078398768 | X135: 0.8934240491 | BA135: Sanitation type | BB135: Sewer connection | BC135: N/A | BD135: N/A | BE135: N/A | BF135: N/A | BG135: N/A | BH135: N/A | BI135: N/A | BJ135: N/A | BK135: N/A | BL135: N/A | BM135: N/A | BN135: N/A | BO135: N/A | BP135: N/A | BQ135: N/A | BR135: N/A | BS135: N/A | BT135: N/A | BU135: N/A | BV135: N/A | BW135: N/A | BX135: N/A
B136: Septic tank connection | C136: =C154 -> 2.982533373 | D136: 17.77580159 | E136: 36.71398142 | F136: 49.21990021 | G136: 58.13965875 | H136: 21.53387025 | I136: 41.28845181 | J136: 45.85807485 | K136: 57.26730394 | L136: 56.82074827 | M136: 0.2683032695 | N136: 2.504127524 | O136: 7.52643462 | P136: 24.86047469 | Q136: 46.42751237 | R136: 50.30504282 | S136: 17.70339572 | T136: 20.77169984 | U136: 43.35939286 | V136: 30.92618194 | W136: 25.09425711 | X136: 18.34962059 | BB136: Septic tank connection | BC136: N/A | BD136: N/A | BE136: N/A | BF136: N/A | BG136: N/A | BH136: N/A | BI136: N/A | BJ136: N/A | BK136: N/A | BL136: N/A | BM136: N/A | BN136: N/A | BO136: N/A | BP136: N/A | BQ136: N/A | BR136: N/A | BS136: N/A | BT136: N/A | BU136: N/A | BV136: N/A | BW136: N/A | BX136: N/A
B137: Improved latrines | C137: =C157+C158 -> 32.45074968 | D137: =D157+D158 -> 30.19502412 | E137: 8.955573863 | F137: 0.9301898736 | G137: 0 | H137: 17.29440941 | I137: 3.468929307 | J137: 1.119317406 | K137: 0.03428694451 | L137: 0 | M137: 27.31868332 | N137: 43.34855609 | O137: 42.28217912 | P137: 24.86676477 | Q137: 7.107811989 | R137: 13.20678112 | S137: 0.5592241905 | T137: 31.0866897 | U137: 2.192065384 | V137: 31.01010442 | W137: 20.89182147 | X137: 29.68137552 | BB137: Improved latrines | BC137: N/A | BD137: N/A | BE137: N/A | BF137: N/A | BG137: N/A | BH137: N/A | BI137: N/A | BJ137: N/A | BK137: N/A | BL137: N/A | BM137: N/A | BN137: N/A | BO137: N/A | BP137: N/A | BQ137: N/A | BR137: N/A | BS137: N/A | BT137: N/A | BU137: N/A | BV137: N/A | BW137: N/A | BX137: N/A
B138: Unimproved facilities | C138: =C156+C159 -> 54.62100074 | D138: =D156+D159 -> 19.27925798 | E138: 4.182630379 | F138: 1.364184356 | G138: 0.3731585869 | H138: 18.32574291 | I138: 2.423243647 | J138: 1.507890107 | K138: 1.011066178 | L138: 0.4211755495 | M138: 71.31739126 | N138: 46.60693424 | O138: 28.32458332 | P138: 13.64793876 | Q138: 1.063678201 | R138: 11.31992525 | S138: 5.509357931 | T138: 26.6547723 | U138: 5.013548685 | V138: 16.00933638 | W138: 26.40648659 | X138: 37.32712132 | BB138: Unimproved facilities | BC138: N/A | BD138: N/A | BE138: N/A | BF138: N/A | BG138: N/A | BH138: N/A | BI138: N/A | BJ138: N/A | BK138: N/A | BL138: N/A | BM138: N/A | BN138: N/A | BO138: N/A | BP138: N/A | BQ138: N/A | BR138: N/A | BS138: N/A | BT138: N/A | BU138: N/A | BV138: N/A | BW138: N/A | BX138: N/A
B139: Open defecation | C139: =C160+C161 -> 0.08966374477 | D139: =D160+D161 -> 0 | E139: 0 | F139: 0 | G139: 0 | H139: 0.149825294 | I139: 0 | J139: 0 | K139: 0 | L139: 0 | M139: 0 | N139: 0 | O139: 0 | P139: 0 | Q139: 0 | R139: 0.02312356318 | S139: 0 | T139: 0 | U139: 0.0455352582 | V139: 0 | W139: 0 | X139: 0 | BB139: Open defecation | BC139: N/A | BD139: N/A | BE139: N/A | BF139: N/A | BG139: N/A | BH139: N/A | BI139: N/A | BJ139: N/A | BK139: N/A | BL139: N/A | BM139: N/A | BN139: N/A | BO139: N/A | BP139: N/A | BQ139: N/A | BR139: N/A | BS139: N/A | BT139: N/A | BU139: N/A | BV139: N/A | BW139: N/A | BX139: N/A
A140: Septic tank emptying practices | B140: Not emptied/treated and disposed in situ | C140: N/A | D140: N/A | E140: N/A | F140: N/A | G140: N/A | H140: N/A | I140: N/A | J140: N/A | K140: N/A | L140: N/A | M140: N/A | N140: N/A | O140: N/A | P140: N/A | Q140: N/A | R140: N/A | S140: N/A | T140: N/A | U140: N/A | V140: N/A | W140: N/A | X140: N/A | BA140: Septic tank emptying practices | BB140: Not emptied/treated and disposed in situ | BC140: N/A | BD140: N/A | BE140: N/A | BF140: N/A | BG140: N/A | BH140: N/A | BI140: N/A | BJ140: N/A | BK140: N/A | BL140: N/A | BM140: N/A | BN140: N/A | BO140: N/A | BP140: N/A | BQ140: N/A | BR140: N/A | BS140: N/A | BT140: N/A | BU140: N/A | BV140: N/A | BW140: N/A | BX140: N/A
B141: Emptied and buried on site | C141: N/A | D141: N/A | E141: N/A | F141: N/A | G141: N/A | H141: N/A | I141: N/A | J141: N/A | K141: N/A | L141: N/A | M141: N/A | N141: N/A | O141: N/A | P141: N/A | Q141: N/A | R141: N/A | S141: N/A | T141: N/A | U141: N/A | V141: N/A | W141: N/A | X141: N/A | BB141: Emptied and buried on site | BC141: N/A | BD141: N/A | BE141: N/A | BF141: N/A | BG141: N/A | BH141: N/A | BI141: N/A | BJ141: N/A | BK141: N/A | BL141: N/A | BM141: N/A | BN141: N/A | BO141: N/A | BP141: N/A | BQ141: N/A | BR141: N/A | BS141: N/A | BT141: N/A | BU141: N/A | BV141: N/A | BW141: N/A | BX141: N/A
B142: Emptied and discharged locally | C142: N/A | D142: N/A | E142: N/A | F142: N/A | G142: N/A | H142: N/A | I142: N/A | J142: N/A | K142: N/A | L142: N/A | M142: N/A | N142: N/A | O142: N/A | P142: N/A | Q142: N/A | R142: N/A | S142: N/A | T142: N/A | U142: N/A | V142: N/A | W142: N/A | X142: N/A | BB142: Emptied and discharged locally | BC142: N/A | BD142: N/A | BE142: N/A | BF142: N/A | BG142: N/A | BH142: N/A | BI142: N/A | BJ142: N/A | BK142: N/A | BL142: N/A | BM142: N/A | BN142: N/A | BO142: N/A | BP142: N/A | BQ142: N/A | BR142: N/A | BS142: N/A | BT142: N/A | BU142: N/A | BV142: N/A | BW142: N/A | BX142: N/A
B143: Emptied and removed offsite | C143: N/A | D143: N/A | E143: N/A | F143: N/A | G143: N/A | H143: N/A | I143: N/A | J143: N/A | K143: N/A | L143: N/A | M143: N/A | N143: N/A | O143: N/A | P143: N/A | Q143: N/A | R143: N/A | S143: N/A | T143: N/A | U143: N/A | V143: N/A | W143: N/A | X143: N/A | BB143: Emptied and removed offsite | BC143: N/A | BD143: N/A | BE143: N/A | BF143: N/A | BG143: N/A | BH143: N/A | BI143: N/A | BJ143: N/A | BK143: N/A | BL143: N/A | BM143: N/A | BN143: N/A | BO143: N/A | BP143: N/A | BQ143: N/A | BR143: N/A | BS143: N/A | BT143: N/A | BU143: N/A | BV143: N/A | BW143: N/A | BX143: N/A
A144: Latrine emptying practices | B144: Not emptied/treated and disposed in situ | C144: N/A | D144: N/A | E144: N/A | F144: N/A | G144: N/A | H144: N/A | I144: N/A | J144: N/A | K144: N/A | L144: N/A | M144: N/A | N144: N/A | O144: N/A | P144: N/A | Q144: N/A | R144: N/A | S144: N/A | T144: N/A | U144: N/A | V144: N/A | W144: N/A | X144: N/A | BA144: Latrine emptying practices | BB144: Not emptied/treated and disposed in situ | BC144: N/A | BD144: N/A | BE144: N/A | BF144: N/A | BG144: N/A | BH144: N/A | BI144: N/A | BJ144: N/A | BK144: N/A | BL144: N/A | BM144: N/A | BN144: N/A | BO144: N/A | BP144: N/A | BQ144: N/A | BR144: N/A | BS144: N/A | BT144: N/A | BU144: N/A | BV144: N/A | BW144: N/A | BX144: N/A
B145: Emptied and buried on site | C145: N/A | D145: N/A | E145: N/A | F145: N/A | G145: N/A | H145: N/A | I145: N/A | J145: N/A | K145: N/A | L145: N/A | M145: N/A | N145: N/A | O145: N/A | P145: N/A | Q145: N/A | R145: N/A | S145: N/A | T145: N/A | U145: N/A | V145: N/A | W145: N/A | X145: N/A | BB145: Emptied and buried on site | BC145: N/A | BD145: N/A | BE145: N/A | BF145: N/A | BG145: N/A | BH145: N/A | BI145: N/A | BJ145: N/A | BK145: N/A | BL145: N/A | BM145: N/A | BN145: N/A | BO145: N/A | BP145: N/A | BQ145: N/A | BR145: N/A | BS145: N/A | BT145: N/A | BU145: N/A | BV145: N/A | BW145: N/A | BX145: N/A
B146: Emptied and discharged locally | C146: N/A | D146: N/A | E146: N/A | F146: N/A | G146: N/A | H146: N/A | I146: N/A | J146: N/A | K146: N/A | L146: N/A | M146: N/A | N146: N/A | O146: N/A | P146: N/A | Q146: N/A | R146: N/A | S146: N/A | T146: N/A | U146: N/A | V146: N/A | W146: N/A | X146: N/A | BB146: Emptied and discharged locally | BC146: N/A | BD146: N/A | BE146: N/A | BF146: N/A | BG146: N/A | BH146: N/A | BI146: N/A | BJ146: N/A | BK146: N/A | BL146: N/A | BM146: N/A | BN146: N/A | BO146: N/A | BP146: N/A | BQ146: N/A | BR146: N/A | BS146: N/A | BT146: N/A | BU146: N/A | BV146: N/A | BW146: N/A | BX146: N/A
B147: Emptied and removed offsite | C147: N/A | D147: N/A | E147: N/A | F147: N/A | G147: N/A | H147: N/A | I147: N/A | J147: N/A | K147: N/A | L147: N/A | M147: N/A | N147: N/A | O147: N/A | P147: N/A | Q147: N/A | R147: N/A | S147: N/A | T147: N/A | U147: N/A | V147: N/A | W147: N/A | X147: N/A | BB147: Emptied and removed offsite | BC147: N/A | BD147: N/A | BE147: N/A | BF147: N/A | BG147: N/A | BH147: N/A | BI147: N/A | BJ147: N/A | BK147: N/A | BL147: N/A | BM147: N/A | BN147: N/A | BO147: N/A | BP147: N/A | BQ147: N/A | BR147: N/A | BS147: N/A | BT147: N/A | BU147: N/A | BV147: N/A | BW147: N/A | BX147: N/A
